Workbook

Sheet List of classifications (hidden)
B2: List of Classifications
B4: S1
B5: S2
B6: S3
B7: S4
B8: S5
B9: S6
B10: S7
B11: S8
B12: S9
B13: S10
B14: S11
B15: S12
B16: S13
B17: S14
B18: S15
B19: S16
B20: S17
B21: S18
B22: S19
B23: SB1
B24: SB2
B25: SB3
B26: SB4
B27: SB5
B28: SB6
B29: SB7
B30: SB8
B31: SB9
B32: SB11
B33: SB12
B34: SB13
B35: SB14
B36: SB15
B37: SB16
B38: SB17
B39: SB18
B40: SB19
B41: SM1
B42: SM2
B43: SM3
B44: SM4
B45: SM5
B46: SM6
B47: SM7
B48: SM8
B49: SM9
B50: SM10
B51: SM11
B52: SM12
B53: SM13
B54: SM14
B55: SM15
B56: SM16
B57: SM17
B58: SM18
B59: SM19

Sheet Any Event
B2: 2023/24 Short Course Multi Class Event Results Table
B3: Event | C3: 50FR
B5: # | C5: Name | D5: M/F | E5: Class | F5: Time m:s | G5: Time (s) | H5: Points | J5: To sort results click the arrow
B6: =ROW(B6)-ROW(B$5) -> 1 | C6: Swimmer 1 | D6: M | E6: S5 | F6: 00:00:00 | G6: =IF(F6<1,F6*24*60*60,F6) -> 0 | H6: =MAX(IF(OFFSET(INDIRECT("'" & $C$3 & " " &$D6 & "'!A1"),3,MATCH($E6,INDIRECT("'" & $C$3 & " " &$D6 & "'!B1:T1"),0),1200,1)>=$G6,1,0)*INDIRECT("'" & $C$3 & " " &$D6 & "'!A4:A1203")) -> 1200
B7: 2 | C7: Swimmer 2 | D7: M | E7: S6 | F7: 00:00:00 | G7: 0 | H7: =MAX(IF(OFFSET(INDIRECT("'" & $C$3 & " " &$D7 & "'!A1"),3,MATCH($E7,INDIRECT("'" & $C$3 & " " &$D7 & "'!B1:T1"),0),1200,1)>=$G7,1,0)*INDIRECT("'" & $C$3 & " " &$D7 & "'!A4:A1203")) -> 1200
B8: 3 | C8: Swimmer 3 | D8: M | E8: S7 | F8: 00:00:00 | G8: 0 | H8: =MAX(IF(OFFSET(INDIRECT("'" & $C$3 & " " &$D8 & "'!A1"),3,MATCH($E8,INDIRECT("'" & $C$3 & " " &$D8 & "'!B1:T1"),0),1200,1)>=$G8,1,0)*INDIRECT("'" & $C$3 & " " &$D8 & "'!A4:A1203")) -> 1200
B9: 4 | C9: Swimmer 4 | D9: M | E9: S8 | F9: 00:00:00 | G9: 0 | H9: =MAX(IF(OFFSET(INDIRECT("'" & $C$3 & " " &$D9 & "'!A1"),3,MATCH($E9,INDIRECT("'" & $C$3 & " " &$D9 & "'!B1:T1"),0),1200,1)>=$G9,1,0)*INDIRECT("'" & $C$3 & " " &$D9 & "'!A4:A1203")) -> 1200
B10: 5 | C10: Swimmer 5 | D10: M | E10: S9 | F10: 00:00:00 | G10: 0 | H10: =MAX(IF(OFFSET(INDIRECT("'" & $C$3 & " " &$D10 & "'!A1"),3,MATCH($E10,INDIRECT("'" & $C$3 & " " &$D10 & "'!B1:T1"),0),1200,1)>=$G10,1,0)*INDIRECT("'" & $C$3 & " " &$D10 & "'!A4:A1203")) -> 1200
B11: 6 | C11: Swimmer 6 | D11: M | E11: S10 | F11: 00:00:00 | G11: 0 | H11: =MAX(IF(OFFSET(INDIRECT("'" & $C$3 & " " &$D11 & "'!A1"),3,MATCH($E11,INDIRECT("'" & $C$3 & " " &$D11 & "'!B1:T1"),0),1200,1)>=$G11,1,0)*INDIRECT("'" & $C$3 & " " &$D11 & "'!A4:A1203")) -> 1200
B12: 7 | C12: Swimmer 7 | D12: M | E12: S11 | F12: 00:00:00 | G12: 0 | H12: =MAX(IF(OFFSET(INDIRECT("'" & $C$3 & " " &$D12 & "'!A1"),3,MATCH($E12,INDIRECT("'" & $C$3 & " " &$D12 & "'!B1:T1"),0),1200,1)>=$G12,1,0)*INDIRECT("'" & $C$3 & " " &$D12 & "'!A4:A1203")) -> 1200
B13: 8 | C13: Swimmer 8 | D13: M | E13: S12 | F13: 00:00:00 | G13: 0 | H13: =MAX(IF(OFFSET(INDIRECT("'" & $C$3 & " " &$D13 & "'!A1"),3,MATCH($E13,INDIRECT("'" & $C$3 & " " &$D13 & "'!B1:T1"),0),1200,1)>=$G13,1,0)*INDIRECT("'" & $C$3 & " " &$D13 & "'!A4:A1203")) -> 1200
B14: 9 | C14: Swimmer 9 | D14: M | E14: S13 | F14: 00:00:00 | G14: 0 | H14: =MAX(IF(OFFSET(INDIRECT("'" & $C$3 & " " &$D14 & "'!A1"),3,MATCH($E14,INDIRECT("'" & $C$3 & " " &$D14 & "'!B1:T1"),0),1200,1)>=$G14,1,0)*INDIRECT("'" & $C$3 & " " &$D14 & "'!A4:A1203")) -> 1200
B15: 10 | C15: Swimmer 10 | D15: M | E15: S14 | F15: 00:00:00 | G15: 0 | H15: =MAX(IF(OFFSET(INDIRECT("'" & $C$3 & " " &$D15 & "'!A1"),3,MATCH($E15,INDIRECT("'" & $C$3 & " " &$D15 & "'!B1:T1"),0),1200,1)>=$G15,1,0)*INDIRECT("'" & $C$3 & " " &$D15 & "'!A4:A1203")) -> 1200
C16: (insert name or lane) | D16: (select M or F) | E16: (select athlete class) | F16: (insert time swum)
B21: swimming.org.au

Sheet 50FR
B2: 2023/24 Short Course Multi Class Event Results Table
B3: Event | C3: 50FR
B5: # | C5: Name | D5: M/F | E5: Class | F5: Time m:s | G5: Time (s) | H5: Points | J5: To sort results click the arrow
B6: =ROW(B6)-ROW(B$5) -> 1 | C6: Swimmer 1 | D6: M | E6: S1 | F6: 00:00:00 | G6: =IF(F6<1,F6*24*60*60,F6) -> 0 | H6: =MAX(IF(OFFSET(INDIRECT("'" & $C$3 & " " &$D6 & "'!A1"),3,MATCH($E6,INDIRECT("'" & $C$3 & " " &$D6 & "'!B1:T1"),0),1200,1)>=$G6,1,0)*INDIRECT("'" & $C$3 & " " &$D6 & "'!A4:A1203")) -> 1200
B7: 2 | C7: Swimmer 2 | D7: M | E7: S2 | F7: 00:00:00 | G7: 0 | H7: =MAX(IF(OFFSET(INDIRECT("'" & $C$3 & " " &$D7 & "'!A1"),3,MATCH($E7,INDIRECT("'" & $C$3 & " " &$D7 & "'!B1:T1"),0),1200,1)>=$G7,1,0)*INDIRECT("'" & $C$3 & " " &$D7 & "'!A4:A1203")) -> 1200
B8: 3 | C8: Swimmer 3 | D8: M | E8: S3 | F8: 00:00:00 | G8: 0 | H8: =MAX(IF(OFFSET(INDIRECT("'" & $C$3 & " " &$D8 & "'!A1"),3,MATCH($E8,INDIRECT("'" & $C$3 & " " &$D8 & "'!B1:T1"),0),1200,1)>=$G8,1,0)*INDIRECT("'" & $C$3 & " " &$D8 & "'!A4:A1203")) -> 1200
B9: 4 | C9: Swimmer 4 | D9: M | E9: S4 | F9: 00:00:00 | G9: 0 | H9: =MAX(IF(OFFSET(INDIRECT("'" & $C$3 & " " &$D9 & "'!A1"),3,MATCH($E9,INDIRECT("'" & $C$3 & " " &$D9 & "'!B1:T1"),0),1200,1)>=$G9,1,0)*INDIRECT("'" & $C$3 & " " &$D9 & "'!A4:A1203")) -> 1200
B10: 5 | C10: Swimmer 5 | D10: M | E10: S5 | F10: 00:00:00 | G10: 0 | H10: =MAX(IF(OFFSET(INDIRECT("'" & $C$3 & " " &$D10 & "'!A1"),3,MATCH($E10,INDIRECT("'" & $C$3 & " " &$D10 & "'!B1:T1"),0),1200,1)>=$G10,1,0)*INDIRECT("'" & $C$3 & " " &$D10 & "'!A4:A1203")) -> 1200
B11: 6 | C11: Swimmer 6 | D11: M | E11: S6 | F11: 00:00:00 | G11: 0 | H11: =MAX(IF(OFFSET(INDIRECT("'" & $C$3 & " " &$D11 & "'!A1"),3,MATCH($E11,INDIRECT("'" & $C$3 & " " &$D11 & "'!B1:T1"),0),1200,1)>=$G11,1,0)*INDIRECT("'" & $C$3 & " " &$D11 & "'!A4:A1203")) -> 1200
B12: 7 | C12: Swimmer 7 | D12: M | E12: S7 | F12: 00:00:00 | G12: 0 | H12: =MAX(IF(OFFSET(INDIRECT("'" & $C$3 & " " &$D12 & "'!A1"),3,MATCH($E12,INDIRECT("'" & $C$3 & " " &$D12 & "'!B1:T1"),0),1200,1)>=$G12,1,0)*INDIRECT("'" & $C$3 & " " &$D12 & "'!A4:A1203")) -> 1200
B13: 8 | C13: Swimmer 8 | D13: M | E13: S8 | F13: 00:00:00 | G13: 0 | H13: =MAX(IF(OFFSET(INDIRECT("'" & $C$3 & " " &$D13 & "'!A1"),3,MATCH($E13,INDIRECT("'" & $C$3 & " " &$D13 & "'!B1:T1"),0),1200,1)>=$G13,1,0)*INDIRECT("'" & $C$3 & " " &$D13 & "'!A4:A1203")) -> 1200
B14: 9 | C14: Swimmer 9 | D14: M | E14: S9 | F14: 00:00:00 | G14: 0 | H14: =MAX(IF(OFFSET(INDIRECT("'" & $C$3 & " " &$D14 & "'!A1"),3,MATCH($E14,INDIRECT("'" & $C$3 & " " &$D14 & "'!B1:T1"),0),1200,1)>=$G14,1,0)*INDIRECT("'" & $C$3 & " " &$D14 & "'!A4:A1203")) -> 1200
B15: 10 | C15: Swimmer 10 | D15: M | E15: S10 | F15: 00:00:00 | G15: 0 | H15: =MAX(IF(OFFSET(INDIRECT("'" & $C$3 & " " &$D15 & "'!A1"),3,MATCH($E15,INDIRECT("'" & $C$3 & " " &$D15 & "'!B1:T1"),0),1200,1)>=$G15,1,0)*INDIRECT("'" & $C$3 & " " &$D15 & "'!A4:A1203")) -> 1200
C16: (insert name or lane) | D16: (select M or F) | E16: (select athlete class) | F16: (insert time swum)
B21: swimming.org.au

Sheet 50FR M (hidden)
A1: Class | B1: S19 | C1: S18 | D1: S17 | E1: S16 | F1: S15 | G1: S14 | H1: S13 | I1: S12 | J1: S11 | K1: S10 | L1: S9 | M1: S8 | N1: S7 | O1: S6 | P1: S5 | Q1: S4 | R1: S3 | S1: S2 | T1: S1 | U1: score/1000 | V1: Power
B2: 18.144 | C2: 25.619 | D2: 15.12 | E2: 24.525 | F2: 23.12 | G2: 24.59 | H2: 23.38 | I2: 23.86 | J2: 27.39 | K2: 22.44 | L2: 24.38 | M2: 26.09 | N2: 27.28 | O2: 29.63 | P2: 31.51 | Q2: 37.5 | R2: 45.98 | S2: 60.39 | T2: 77.19
A4: 1 | B4: =ROUND(B$2/$V4,2) -> 181.44 | C4: 256.19 | D4: 151.2 | E4: 245.25 | F4: 231.2 | G4: 245.9 | H4: 233.8 | I4: 238.6 | J4: 273.9 | K4: 224.4 | L4: 243.8 | M4: 260.9 | N4: 272.8 | O4: 296.3 | P4: 315.1 | Q4: 375 | R4: 459.8 | S4: 603.9 | T4: 771.9 | U4: =A4/1000 -> 0.001 | V4: =POWER(U4,1/3) -> 0.1
A5: 2 | B5: 144.01 | C5: 203.34 | D5: =ROUND(D$2/$V5,2) -> 120.01 | E5: =ROUND(E$2/$V5,2) -> 194.66 | F5: 183.5 | G5: 195.17 | H5: 185.57 | I5: 189.38 | J5: 217.39 | K5: 178.11 | L5: 193.5 | M5: 207.08 | N5: 216.52 | O5: 235.17 | P5: 250.1 | Q5: 297.64 | R5: 364.94 | S5: 479.32 | T5: 612.66 | U5: 0.002 | V5: 0.125992105
A6: 3 | B6: 125.8 | C6: 177.63 | D6: 104.84 | E6: 170.05 | F6: 160.31 | G6: 170.5 | H6: 162.11 | I6: 165.44 | J6: 189.91 | K6: 155.59 | L6: 169.04 | M6: 180.9 | N6: 189.15 | O6: 205.44 | P6: 218.48 | Q6: 260.01 | R6: 318.81 | S6: 418.72 | T6: 535.21 | U6: 0.003 | V6: 0.144224957
A7: 4 | B7: 114.3 | C7: 161.39 | D7: 95.25 | E7: 154.5 | F7: 145.65 | G7: 154.91 | H7: 147.28 | I7: 150.31 | J7: 172.55 | K7: 141.36 | L7: 153.58 | M7: 164.36 | N7: 171.85 | O7: 186.66 | P7: 198.5 | Q7: 236.24 | R7: 289.66 | S7: 380.43 | T7: 486.27 | U7: 0.004 | V7: 0.1587401052
A8: 5 | B8: 106.11 | C8: 149.82 | D8: 88.42 | E8: 143.42 | F8: 135.21 | G8: 143.8 | H8: 136.73 | I8: 139.53 | J8: 160.18 | K8: 131.23 | L8: 142.58 | M8: 152.58 | N8: 159.53 | O8: 173.28 | P8: 184.27 | Q8: 219.3 | R8: 268.89 | S8: 353.16 | T8: 451.41 | U8: 0.005 | V8: 0.1709975947
A9: 6 | B9: 99.85 | C9: 140.99 | D9: 83.21 | E9: 134.97 | F9: 127.23 | G9: 135.32 | H9: 128.67 | I9: 131.31 | J9: 150.73 | K9: 123.49 | L9: 134.17 | M9: 143.58 | N9: 150.13 | O9: 163.06 | P9: 173.41 | Q9: 206.37 | R9: 253.04 | S9: 332.34 | T9: 424.79 | U9: 0.006 | V9: 0.1817120593
A10: 7 | B10: 94.85 | C10: 133.93 | D10: 79.04 | E10: 128.21 | F10: 120.86 | G10: 128.55 | H10: 122.22 | I10: 124.73 | J10: 143.18 | K10: 117.31 | L10: 127.45 | M10: 136.39 | N10: 142.61 | O10: 154.89 | P10: 164.72 | Q10: 196.03 | R10: 240.36 | S10: 315.69 | T10: 403.52 | U10: 0.007 | V10: 0.1912931183
A11: 8 | B11: 90.72 | C11: 128.1 | D11: 75.6 | E11: 122.63 | F11: 115.6 | G11: 122.95 | H11: 116.9 | I11: 119.3 | J11: 136.95 | K11: 112.2 | L11: 121.9 | M11: 130.45 | N11: 136.4 | O11: 148.15 | P11: 157.55 | Q11: 187.5 | R11: 229.9 | S11: 301.95 | T11: 385.95 | U11: 0.008 | V11: 0.2
A12: 9 | B12: 87.23 | C12: 123.16 | D12: 72.69 | E12: 117.9 | F12: 111.15 | G12: 118.22 | H12: 112.4 | I12: 114.71 | J12: 131.68 | K12: 107.88 | L12: 117.21 | M12: 125.43 | N12: 131.15 | O12: 142.45 | P12: 151.48 | Q12: 180.28 | R12: 221.05 | S12: 290.32 | T12: 371.09 | U12: 0.009 | V12: 0.2080083823
A13: 10 | B13: 84.22 | C13: 118.91 | D13: 70.18 | E13: 113.83 | F13: 107.31 | G13: 114.14 | H13: 108.52 | I13: 110.75 | J13: 127.13 | K13: 104.16 | L13: 113.16 | M13: 121.1 | N13: 126.62 | O13: 137.53 | P13: 146.26 | Q13: 174.06 | R13: 213.42 | S13: 280.31 | T13: 358.28 | U13: 0.01 | V13: 0.215443469
A14: 11 | B14: 81.58 | C14: 115.19 | D14: 67.99 | E14: =ROUND(E$2/$V14,2) -> 110.28 | F14: 103.96 | G14: 110.57 | H14: 105.13 | I14: 107.29 | J14: 123.16 | K14: 100.9 | L14: 109.62 | M14: 117.31 | N14: 122.66 | O14: 133.23 | P14: 141.68 | Q14: 168.62 | R14: 206.75 | S14: 271.54 | T14: 347.08 | U14: 0.011 | V14: 0.2223980091
A15: 12 | B15: 79.25 | C15: 111.9 | D15: 66.04 | E15: 107.12 | F15: 100.99 | G15: 107.41 | H15: 102.12 | I15: 104.22 | J15: 119.64 | K15: 98.02 | L15: 106.49 | M15: 113.96 | N15: 119.16 | O15: 129.42 | P15: 137.63 | Q15: 163.8 | R15: 200.84 | S15: 263.78 | T15: 337.16 | U15: 0.012 | V15: 0.2289428485
A16: 13 | B16: 77.16 | C16: 108.96 | D16: 64.3 | E16: 104.3 | F16: 98.33 | G16: 104.58 | H16: 99.43 | I16: 101.47 | J16: 116.49 | K16: 95.44 | L16: 103.69 | M16: 110.96 | N16: 116.02 | O16: 126.01 | P16: 134.01 | Q16: 159.48 | R16: 195.55 | S16: 256.83 | T16: 328.28 | U16: 0.013 | V16: 0.2351334688
A17: 14 | B17: 75.28 | C17: 106.3 | D17: 62.73 | E17: 101.76 | F17: 95.93 | G17: 102.03 | H17: 97.01 | I17: 99 | J17: 113.64 | K17: 93.11 | L17: 101.16 | M17: 108.25 | N17: 113.19 | O17: 122.94 | P17: 130.74 | Q17: 155.59 | R17: 190.78 | S17: 250.57 | T17: 320.27 | U17: 0.014 | V17: 0.2410142264
A18: 15 | B18: 73.57 | C18: 103.88 | D18: 61.31 | E18: 99.44 | F18: 93.75 | G18: 99.71 | H18: 94.8 | I18: 96.75 | J18: 111.06 | K18: 90.99 | L18: 98.86 | M18: 105.79 | N18: 110.61 | O18: 120.14 | P18: 127.77 | Q18: 152.06 | R18: 186.44 | S18: 244.87 | T18: 312.99 | U18: 0.015 | V18: 0.2466212074
A19: 16 | B19: 72 | C19: 101.67 | D19: 60 | E19: 97.33 | F19: 91.75 | G19: 97.59 | H19: 92.78 | I19: 94.69 | J19: 108.7 | K19: 89.05 | L19: 96.75 | M19: 103.54 | N19: 108.26 | O19: 117.59 | P19: 125.05 | Q19: 148.82 | R19: 182.47 | S19: 239.66 | T19: 306.33 | U19: 0.016 | V19: 0.25198421
A20: 17 | B20: =ROUND(B$2/$V20,2) -> 70.56 | C20: 99.64 | D20: 58.8 | E20: 95.38 | F20: 89.92 | G20: 95.63 | H20: 90.93 | I20: 92.79 | J20: 106.52 | K20: 87.27 | L20: 94.82 | M20: 101.47 | N20: 106.09 | O20: 115.23 | P20: 122.55 | Q20: 145.84 | R20: 178.82 | S20: 234.86 | T20: 300.2 | U20: 0.017 | V20: 0.2571281591
A21: 18 | B21: 69.23 | C21: 97.75 | D21: 57.69 | E21: 93.58 | F21: 88.22 | G21: 93.83 | H21: 89.21 | I21: 91.04 | J21: 104.51 | K21: 85.62 | L21: 93.03 | M21: 99.55 | N21: 104.09 | O21: 113.06 | P21: 120.23 | Q21: 143.09 | R21: 175.45 | S21: 230.43 | T21: 294.53 | U21: 0.018 | V21: 0.2620741394
A22: 19 | B22: 68 | C22: 96.01 | D22: 56.66 | E22: 91.91 | F22: 86.64 | G22: 92.15 | H22: 87.62 | I22: 89.42 | J22: 102.65 | K22: 84.1 | L22: 91.37 | M22: 97.77 | N22: 102.23 | O22: 111.04 | P22: 118.09 | Q22: 140.53 | R22: 172.31 | S22: 226.32 | T22: 289.27 | U22: 0.019 | V22: 0.2668401649
A23: 20 | B23: 66.84 | C23: 94.38 | D23: 55.7 | E23: 90.35 | F23: 85.17 | G23: 90.59 | H23: 86.13 | I23: 87.9 | J23: 100.91 | K23: 82.67 | L23: 89.82 | M23: 96.12 | N23: 100.5 | O23: 109.16 | P23: 116.08 | Q23: 138.15 | R23: 169.39 | S23: 222.48 | T23: 284.37 | U23: 0.02 | V23: 0.2714417617
A24: 21 | B24: 65.76 | C24: 92.86 | D24: 54.8 | E24: =ROUND(E$2/$V24,2) -> 88.89 | F24: 83.8 | G24: 89.13 | H24: 84.74 | I24: 86.48 | J24: 99.28 | K24: 81.34 | L24: 88.37 | M24: 94.57 | N24: 98.88 | O24: 107.4 | P24: 114.21 | Q24: 135.92 | R24: 166.66 | S24: 218.89 | T24: 279.78 | U24: 0.021 | V24: 0.2758924176
A25: 22 | B25: 64.75 | C25: 91.43 | D25: 53.96 | E25: 87.53 | F25: 82.51 | G25: 87.76 | H25: 83.44 | I25: 85.15 | J25: 97.75 | K25: 80.08 | L25: 87.01 | M25: 93.11 | N25: 97.36 | O25: 105.74 | P25: 112.45 | Q25: 133.83 | R25: 164.09 | S25: 215.52 | T25: 275.48 | U25: 0.022 | V25: 0.2802039331
A26: 23 | B26: 63.8 | C26: 90.09 | D26: 53.17 | E26: 86.24 | F26: 81.3 | G26: 86.47 | H26: 82.21 | I26: 83.9 | J26: 96.31 | K26: 78.91 | L26: 85.73 | M26: 91.74 | N26: 95.93 | O26: 104.19 | P26: 110.8 | Q26: 131.86 | R26: 161.68 | S26: 212.35 | T26: 271.43 | U26: 0.023 | V26: 0.284386698
A27: 24 | B27: 62.9 | C27: 88.82 | D27: 52.42 | E27: 85.02 | F27: 80.15 | G27: 85.25 | H27: 81.05 | I27: 82.72 | J27: 94.96 | K27: 77.8 | L27: 84.52 | M27: 90.45 | N27: 94.57 | O27: 102.72 | P27: 109.24 | Q27: 130.01 | R27: 159.4 | S27: 209.36 | T27: 267.6 | U27: 0.024 | V27: 0.2884499141
A28: 25 | B28: 62.05 | C28: 87.62 | D28: 51.71 | E28: 83.87 | F28: 79.07 | G28: 84.1 | H28: 79.96 | I28: 81.6 | J28: 93.67 | K28: 76.74 | L28: 83.38 | M28: 89.23 | N28: 93.3 | O28: 101.33 | P28: 107.76 | Q28: 128.25 | R28: 157.25 | S28: 206.53 | T28: 263.99 | U28: 0.025 | V28: 0.2924017738
A29: 26 | B29: 61.25 | C29: 86.48 | D29: 51.04 | E29: 82.78 | F29: 78.04 | G29: 83 | H29: 78.92 | I29: 80.54 | J29: 92.46 | K29: 75.75 | L29: 82.3 | M29: 88.07 | N29: 92.08 | O29: 100.02 | P29: 106.36 | Q29: 126.58 | R29: 155.21 | S29: 203.85 | T29: 260.56 | U29: 0.026 | V29: 0.2962496068
A30: 27 | B30: 60.48 | C30: 85.4 | D30: 50.4 | E30: 81.75 | F30: 77.07 | G30: 81.97 | H30: 77.93 | I30: 79.53 | J30: 91.3 | K30: 74.8 | L30: 81.27 | M30: 86.97 | N30: 90.93 | O30: 98.77 | P30: 105.03 | Q30: 125 | R30: 153.27 | S30: 201.3 | T30: 257.3 | U30: 0.027 | V30: 0.3
A31: 28 | B31: 59.75 | C31: 84.37 | D31: 49.79 | E31: 80.76 | F31: 76.14 | G31: 80.98 | H31: 76.99 | I31: 78.58 | J31: 90.2 | K31: 73.9 | L31: 80.29 | M31: 85.92 | N31: 89.84 | O31: 97.58 | P31: 103.77 | Q31: 123.49 | R31: 151.42 | S31: 198.87 | T31: 254.2 | U31: 0.028 | V31: 0.3036588972
A32: 29 | B32: 59.06 | C32: 83.39 | D32: 49.21 | E32: 79.83 | F32: 75.25 | G32: 80.04 | H32: 76.1 | I32: 77.66 | J32: 89.15 | K32: 73.04 | L32: 79.35 | M32: 84.92 | N32: 88.79 | O32: 96.44 | P32: 102.56 | Q32: 122.06 | R32: 149.66 | S32: 196.56 | T32: 251.24 | U32: 0.029 | V32: 0.3072316826
A33: 30 | B33: 58.39 | C33: 82.45 | D33: 48.66 | E33: 78.93 | F33: 74.41 | G33: 79.14 | H33: 75.24 | I33: 76.79 | J33: 88.15 | K33: 72.22 | L33: 78.46 | M33: 83.97 | N33: 87.8 | O33: 95.36 | P33: 101.41 | Q33: 120.69 | R33: 147.98 | S33: 194.35 | T33: 248.42 | U33: 0.03 | V33: 0.3107232506
A34: 31 | B34: 57.76 | C34: 81.55 | D34: 48.13 | E34: =ROUND(E$2/$V34,2) -> 78.07 | F34: 73.6 | G34: 78.28 | H34: 74.43 | I34: 75.95 | J34: 87.19 | K34: 71.43 | L34: 77.61 | M34: 83.05 | N34: 86.84 | O34: 94.32 | P34: 100.31 | Q34: 119.37 | R34: 146.37 | S34: 192.24 | T34: 245.72 | U34: 0.031 | V34: 0.3141380652
A35: 32 | B35: 57.15 | C35: 80.69 | D35: 47.63 | E35: 77.25 | F35: 72.82 | G35: 77.45 | H35: 73.64 | I35: 75.15 | J35: 86.27 | K35: 70.68 | L35: 76.79 | M35: 82.18 | N35: 85.93 | O35: 93.33 | P35: 99.25 | Q35: 118.12 | R35: 144.83 | S35: 190.22 | T35: 243.13 | U35: 0.032 | V35: 0.3174802104
A36: 33 | B36: 56.57 | C36: 79.87 | D36: 47.14 | E36: 76.46 | F36: 72.08 | G36: 76.66 | H36: 72.89 | I36: 74.39 | J36: 85.39 | K36: 69.96 | L36: 76.01 | M36: 81.34 | N36: 85.05 | O36: 92.38 | P36: 98.24 | Q36: 116.91 | R36: 143.35 | S36: 188.28 | T36: 240.65 | U36: 0.033 | V36: 0.320753433
A37: 34 | B37: 56.01 | C37: 79.08 | D37: 46.67 | E37: 75.7 | F37: 71.37 | G37: 75.9 | H37: 72.17 | I37: 73.65 | J37: 84.55 | K37: 69.27 | L37: 75.26 | M37: 80.53 | N37: 84.21 | O37: 91.46 | P37: 97.26 | Q37: 115.75 | R37: 141.93 | S37: 186.41 | T37: 238.27 | U37: 0.034 | V37: 0.3239611801
A38: 35 | B38: 55.47 | C38: 78.32 | D38: 46.22 | E38: 74.98 | F38: 70.68 | G38: 75.17 | H38: 71.48 | I38: 72.94 | J38: 83.73 | K38: 68.6 | L38: 74.53 | M38: 79.76 | N38: 83.4 | O38: 90.58 | P38: 96.33 | Q38: 114.64 | R38: 140.57 | S38: 184.62 | T38: 235.98 | U38: 0.035 | V38: 0.327106631
A39: 36 | B39: 54.95 | C39: 77.59 | D39: 45.79 | E39: 74.27 | F39: 70.02 | G39: 74.47 | H39: 70.81 | I39: 72.26 | J39: 82.95 | K39: 67.96 | L39: 73.84 | M39: 79.01 | N39: 82.62 | O39: 89.74 | P39: 95.43 | Q39: 113.57 | R39: 139.25 | S39: 182.89 | T39: 233.77 | U39: 0.036 | V39: 0.3301927249
A40: 37 | B40: 54.45 | C40: 76.88 | D40: 45.38 | E40: 73.6 | F40: 69.38 | G40: 73.79 | H40: 70.16 | I40: 71.6 | J40: 82.2 | K40: 67.34 | L40: 73.16 | M40: 78.3 | N40: 81.87 | O40: 88.92 | P40: 94.56 | Q40: 112.54 | R40: 137.99 | S40: 181.23 | T40: 231.65 | U40: 0.037 | V40: 0.3332221852
A41: 38 | B41: 53.97 | C41: 76.2 | D41: 44.97 | E41: 72.95 | F41: 68.77 | G41: 73.14 | H41: 69.54 | I41: 70.97 | J41: 81.47 | K41: 66.75 | L41: 72.52 | M41: 77.6 | N41: 81.14 | O41: 88.13 | P41: 93.72 | Q41: 111.54 | R41: 136.76 | S41: 179.63 | T41: 229.6 | U41: 0.038 | V41: 0.3361975407
A42: 39 | B42: 53.5 | C42: 75.55 | D42: 44.59 | E42: 72.32 | F42: 68.18 | G42: 72.51 | H42: 68.94 | I42: 70.36 | J42: 80.77 | K42: 66.17 | L42: 71.89 | M42: 76.93 | N42: 80.44 | O42: 87.37 | P42: 92.92 | Q42: 110.58 | R42: 135.59 | S42: 178.08 | T42: 227.62 | U42: 0.039 | V42: 0.3391211443
A43: 40 | B43: 53.05 | C43: 74.91 | D43: 44.21 | E43: 71.71 | F43: 67.6 | G43: 71.9 | H43: 68.36 | I43: 69.77 | J43: 80.09 | K43: 65.61 | L43: 71.29 | M43: 76.29 | N43: 79.77 | O43: 86.64 | P43: 92.14 | Q43: 109.65 | R43: 134.45 | S43: 176.58 | T43: 225.7 | U43: 0.04 | V43: 0.3419951893
A44: 41 | B44: 52.62 | C44: 74.3 | D44: 43.85 | E44: =ROUND(E$2/$V44,2) -> 71.12 | F44: 67.05 | G44: 71.31 | H44: 67.8 | I44: 69.2 | J44: 79.43 | K44: 65.08 | L44: 70.7 | M44: 75.66 | N44: 79.11 | O44: 85.93 | P44: 91.38 | Q44: 108.75 | R44: 133.34 | S44: 175.13 | T44: 223.85 | U44: 0.041 | V44: 0.344821724
A45: 42 | B45: 52.2 | C45: 73.7 | D45: 43.5 | E45: 70.55 | F45: 66.51 | G45: 70.74 | H45: 67.26 | I45: 68.64 | J45: 78.8 | K45: 64.56 | L45: 70.14 | M45: 75.06 | N45: 78.48 | O45: 85.24 | P45: 90.65 | Q45: 107.88 | R45: 132.28 | S45: 173.73 | T45: 222.06 | U45: 0.042 | V45: 0.3476026645
A46: 43 | B46: 51.79 | C46: 73.13 | D46: 43.16 | E46: 70 | F46: 65.99 | G46: 70.19 | H46: 66.74 | I46: 68.11 | J46: 78.18 | K46: 64.05 | L46: 69.59 | M46: 74.47 | N46: 77.87 | O46: 84.58 | P46: 89.94 | Q46: 107.04 | R46: 131.24 | S46: 172.38 | T46: 220.33 | U46: 0.043 | V46: 0.350339806
A47: 44 | B47: 51.39 | C47: 72.57 | D47: 42.83 | E47: 69.47 | F47: 65.49 | G47: 69.65 | H47: 66.23 | I47: 67.59 | J47: 77.58 | K47: 63.56 | L47: 69.06 | M47: 73.9 | N47: 77.27 | O47: 83.93 | P47: 89.25 | Q47: 106.22 | R47: 130.24 | S47: 171.06 | T47: 218.65 | U47: 0.044 | V47: 0.3530348335
A48: 45 | B48: 51.01 | C48: 72.03 | D48: 42.51 | E48: 68.95 | F48: 65 | G48: 69.13 | H48: 65.73 | I48: 67.08 | J48: 77.01 | K48: 63.09 | L48: 68.54 | M48: 73.35 | N48: 76.7 | O48: 83.3 | P48: 88.59 | Q48: 105.43 | R48: 129.27 | S48: 169.78 | T48: 217.02 | U48: 0.045 | V48: 0.3556893304
A49: 46 | B49: 50.64 | C49: 71.5 | D49: 42.2 | E49: 68.45 | F49: 64.53 | G49: 68.63 | H49: 65.25 | I49: 66.59 | J49: 76.44 | K49: 62.63 | L49: 68.04 | M49: 72.82 | N49: 76.14 | O49: 82.69 | P49: 87.94 | Q49: 104.66 | R49: 128.33 | S49: 168.54 | T49: 215.43 | U49: 0.046 | V49: 0.3583047871
A50: 47 | B50: 50.28 | C50: 70.99 | D50: 41.9 | E50: 67.96 | F50: 64.07 | G50: 68.14 | H50: 64.79 | I50: 66.12 | J50: 75.9 | K50: 62.18 | L50: 67.56 | M50: 72.29 | N50: 75.59 | O50: 82.1 | P50: 87.31 | Q50: 103.91 | R50: 127.41 | S50: 167.34 | T50: 213.89 | U50: 0.047 | V50: 0.360882608
A51: 48 | B51: 49.93 | C51: 70.49 | D51: 41.6 | E51: 67.48 | F51: 63.62 | G51: 67.66 | H51: 64.33 | I51: 65.65 | J51: 75.37 | K51: 61.75 | L51: 67.08 | M51: 71.79 | N51: 75.06 | O51: 81.53 | P51: 86.7 | Q51: 103.19 | R51: 126.52 | S51: 166.17 | T51: 212.4 | U51: 0.048 | V51: 0.3634241186
A52: 49 | B52: 49.58 | C52: 70.01 | D52: 41.32 | E52: 67.02 | F52: 63.18 | G52: 67.2 | H52: 63.89 | I52: 65.2 | J52: 74.85 | K52: 61.32 | L52: 66.62 | M52: 71.3 | N52: 74.55 | O52: 80.97 | P52: 86.11 | Q52: 102.48 | R52: 125.65 | S52: 165.03 | T52: 210.94 | U52: 0.049 | V52: 0.365930571
A53: 50 | B53: 49.25 | C53: 69.54 | D53: 41.04 | E53: 66.57 | F53: 62.76 | G53: 66.75 | H53: 63.46 | I53: 64.77 | J53: 74.35 | K53: 60.91 | L53: 66.18 | M53: 70.82 | N53: 74.05 | O53: 80.43 | P53: 85.53 | Q53: 101.79 | R53: 124.81 | S53: 163.92 | T53: 209.53 | U53: 0.05 | V53: 0.3684031499
A54: 51 | B54: 48.93 | C54: 69.08 | D54: 40.77 | E54: =ROUND(E$2/$V54,2) -> 66.13 | F54: 62.34 | G54: 66.31 | H54: 63.05 | I54: 64.34 | J54: 73.86 | K54: 60.51 | L54: 65.74 | M54: 70.35 | N54: 73.56 | O54: 79.9 | P54: 84.97 | Q54: 101.12 | R54: 123.99 | S54: 162.85 | T54: 208.15 | U54: 0.051 | V54: 0.3708429769
A55: 52 | B55: 48.61 | C55: 68.64 | D55: 40.51 | E55: 65.71 | F55: 61.94 | G55: 65.88 | H55: 62.64 | I55: 63.92 | J55: 73.38 | K55: 60.12 | L55: 65.32 | M55: 69.9 | N55: 73.09 | O55: 79.38 | P55: 84.42 | Q55: 100.47 | R55: 123.19 | S55: 161.79 | T55: 206.8 | U55: 0.052 | V55: 0.3732511157
A56: 53 | B56: 48.3 | C56: 68.2 | D56: 40.25 | E56: 65.29 | F56: 61.55 | G56: 65.46 | H56: 62.24 | I56: 63.52 | J56: 72.92 | K56: 59.74 | L56: 64.9 | M56: 69.46 | N56: 72.62 | O56: 78.88 | P56: 83.89 | Q56: 99.83 | R56: 122.41 | S56: 160.77 | T56: 205.5 | U56: 0.053 | V56: 0.3756285754
A57: 54 | B57: 48 | C57: 67.78 | D57: 40 | E57: 64.89 | F57: 61.17 | G57: 65.06 | H57: 61.86 | I57: 63.13 | J57: 72.46 | K57: 59.37 | L57: 64.5 | M57: 69.03 | N57: 72.17 | O57: 78.39 | P57: 83.37 | Q57: 99.21 | R57: 121.65 | S57: 159.77 | T57: 204.22 | U57: 0.054 | V57: 0.377976315
A58: 55 | B58: 47.71 | C58: 67.37 | D58: 39.76 | E58: 64.49 | F58: 60.79 | G58: 64.66 | H58: 61.48 | I58: 62.74 | J58: 72.02 | K58: 59.01 | L58: 64.11 | M58: 68.6 | N58: 71.73 | O58: 77.91 | P58: 82.86 | Q58: 98.61 | R58: 120.91 | S58: 158.8 | T58: 202.97 | U58: 0.055 | V58: 0.3802952461
A59: 56 | B59: 47.42 | C59: 66.96 | D59: 39.52 | E59: 64.1 | F59: 60.43 | G59: 64.27 | H59: 61.11 | I59: 62.37 | J59: 71.59 | K59: 58.65 | L59: 63.72 | M59: 68.19 | N59: 71.3 | O59: 77.45 | P59: 82.36 | Q59: 98.02 | R59: 120.18 | S59: 157.85 | T59: 201.76 | U59: 0.056 | V59: 0.3825862366
A60: 57 | B60: 47.15 | C60: 66.57 | D60: 39.29 | E60: 63.73 | F60: 60.08 | G60: 63.9 | H60: 60.75 | I60: 62 | J60: 71.17 | K60: 58.31 | L60: 63.35 | M60: 67.79 | N60: 70.88 | O60: 76.99 | P60: 81.88 | Q60: 97.44 | R60: 119.48 | S60: 156.92 | T60: 200.57 | U60: 0.057 | V60: 0.3848501131
A61: 58 | B61: 46.87 | C61: 66.18 | D61: 39.06 | E61: 63.36 | F61: 59.73 | G61: 63.53 | H61: 60.4 | I61: 61.64 | J61: 70.76 | K61: 57.97 | L61: 62.98 | M61: 67.4 | N61: 70.47 | O61: 76.55 | P61: 81.4 | Q61: 96.88 | R61: 118.78 | S61: 156.01 | T61: 199.41 | U61: 0.058 | V61: 0.3870876641
A62: 59 | B62: 46.61 | C62: 65.81 | D62: 38.84 | E62: 63 | F62: 59.39 | G62: 63.16 | H62: 60.06 | I62: 61.29 | J62: 70.36 | K62: 57.64 | L62: 62.63 | M62: 67.02 | N62: 70.07 | O62: 76.11 | P62: 80.94 | Q62: 96.33 | R62: 118.11 | S62: 155.12 | T62: 198.28 | U62: 0.059 | V62: 0.3892996416
A63: 60 | B63: 46.35 | C63: 65.44 | D63: 38.62 | E63: 62.65 | F63: 59.06 | G63: 62.81 | H63: 59.72 | I63: 60.95 | J63: 69.96 | K63: 57.32 | L63: 62.28 | M63: 66.64 | N63: 69.68 | O63: 75.69 | P63: 80.49 | Q63: 95.79 | R63: 117.45 | S63: 154.26 | T63: 197.17 | U63: 0.06 | V63: 0.3914867641
A64: 61 | B64: 46.09 | C64: 65.08 | D64: 38.41 | E64: =ROUND(E$2/$V64,2) -> 62.3 | F64: 58.73 | G64: 62.47 | H64: 59.39 | I64: 60.61 | J64: 69.58 | K64: 57 | L64: 61.93 | M64: 66.28 | N64: 69.3 | O64: 75.27 | P64: 80.05 | Q64: 95.26 | R64: 116.8 | S64: 153.41 | T64: 196.09 | U64: 0.061 | V64: 0.3936497183
A65: 62 | B65: 45.84 | C65: 64.73 | D65: 38.2 | E65: 61.96 | F65: 58.41 | G65: 62.13 | H65: 59.07 | I65: 60.28 | J65: 69.2 | K65: 56.7 | L65: 61.6 | M65: 65.92 | N65: 68.93 | O65: 74.86 | P65: 79.61 | Q65: 94.75 | R65: 116.17 | S65: 152.58 | T65: 195.03 | U65: 0.062 | V65: 0.395789161
A66: 63 | B66: 45.6 | C66: 64.38 | D66: 38 | E66: 61.64 | F66: 58.1 | G66: 61.8 | H66: 58.76 | I66: 59.96 | J66: 68.84 | K66: 56.4 | L66: 61.27 | M66: 65.57 | N66: 68.56 | O66: 74.46 | P66: 79.19 | Q66: 94.24 | R66: 115.56 | S66: 151.77 | T66: 193.99 | U66: 0.063 | V66: 0.3979057208
A67: 64 | B67: 45.36 | C67: 64.05 | D67: 37.8 | E67: 61.31 | F67: 57.8 | G67: 61.48 | H67: 58.45 | I67: 59.65 | J67: 68.48 | K67: 56.1 | L67: 60.95 | M67: 65.23 | N67: 68.2 | O67: 74.08 | P67: 78.78 | Q67: 93.75 | R67: 114.95 | S67: 150.98 | T67: 192.98 | U67: 0.064 | V67: 0.4
A68: 65 | B68: 45.13 | C68: 63.72 | D68: 37.61 | E68: 61 | F68: 57.5 | G68: 61.16 | H68: 58.15 | I68: 59.34 | J68: 68.12 | K68: 55.81 | L68: 60.64 | M68: 64.89 | N68: 67.85 | O68: 73.69 | P68: 78.37 | Q68: 93.27 | R68: 114.36 | S68: 150.2 | T68: 191.98 | U68: =A68/1000 -> 0.065 | V68: =POWER(U68,1/3) -> 0.4020725759
A69: 66 | B69: 44.9 | C69: 63.39 | D69: =ROUND(D$2/$V69,2) -> 37.41 | E69: 60.69 | F69: 57.21 | G69: 60.85 | H69: 57.85 | I69: 59.04 | J69: 67.78 | K69: 55.53 | L69: 60.33 | M69: 64.56 | N69: 67.5 | O69: 73.32 | P69: 77.97 | Q69: 92.79 | R69: 113.78 | S69: 149.43 | T69: 191.01 | U69: 0.066 | V69: 0.4041240021
A70: 67 | B70: 44.67 | C70: 63.08 | D70: 37.23 | E70: 60.38 | F70: 56.92 | G70: 60.54 | H70: 57.56 | I70: 58.75 | J70: 67.44 | K70: 55.25 | L70: 60.03 | M70: 64.24 | N70: 67.17 | O70: 72.95 | P70: 77.58 | Q70: 92.33 | R70: 113.21 | S70: 148.69 | T70: 190.05 | U70: 0.067 | V70: 0.40615481
A71: 68 | B71: 44.45 | C71: 62.77 | D71: 37.04 | E71: 60.09 | F71: 56.64 | G71: 60.25 | H71: 57.28 | I71: 58.46 | J71: 67.11 | K71: 54.98 | L71: 59.73 | M71: 63.92 | N71: 66.84 | O71: 72.59 | P71: 77.2 | Q71: 91.87 | R71: 112.65 | S71: 147.95 | T71: 189.11 | U71: 0.068 | V71: 0.4081655102
A72: 69 | B72: 44.24 | C72: 62.46 | D72: 36.86 | E72: 59.79 | F72: 56.37 | G72: 59.95 | H72: 57 | I72: 58.17 | J72: 66.78 | K72: 54.71 | L72: 59.44 | M72: 63.61 | N72: 66.51 | O72: 72.24 | P72: 76.82 | Q72: 91.43 | R72: 112.1 | S72: 147.24 | T72: 188.2 | U72: 0.069 | V72: 0.410156593
A73: 70 | B73: 44.03 | C73: 62.16 | D73: 36.69 | E73: 59.51 | F73: 56.1 | G73: 59.67 | H73: 56.73 | I73: 57.89 | J73: 66.46 | K73: 54.45 | L73: 59.16 | M73: 63.31 | N73: 66.19 | O73: 71.9 | P73: 76.46 | Q73: 90.99 | R73: 111.57 | S73: 146.53 | T73: 187.3 | U73: 0.07 | V73: 0.41212853
A74: 71 | B74: 43.82 | C74: 61.87 | D74: 36.51 | E74: =ROUND(E$2/$V74,2) -> 59.23 | F74: 55.83 | G74: 59.38 | H74: 56.46 | I74: 57.62 | J74: 66.15 | K74: 54.19 | L74: 58.88 | M74: 63.01 | N74: 65.88 | O74: 71.56 | P74: 76.1 | Q74: 90.56 | R74: 111.04 | S74: 145.84 | T74: 186.41 | U74: 0.071 | V74: 0.4140817749
A75: 72 | B75: 43.61 | C75: 61.58 | D75: 36.34 | E75: 58.95 | F75: 55.57 | G75: 59.11 | H75: 56.2 | I75: 57.35 | J75: 65.84 | K75: 53.94 | L75: 58.6 | M75: 62.71 | N75: 65.57 | O75: 71.22 | P75: 75.74 | Q75: 90.14 | R75: 110.52 | S75: 145.16 | T75: 185.55 | U75: 0.072 | V75: 0.4160167646
A76: 73 | B76: 43.41 | C76: 61.3 | D76: 36.18 | E76: 58.68 | F76: 55.32 | G76: 58.84 | H76: 55.94 | I76: 57.09 | J76: 65.54 | K76: 53.69 | L76: 58.33 | M76: 62.43 | N76: 65.27 | O76: 70.9 | P76: 75.39 | Q76: 89.73 | R76: 110.02 | S76: 144.5 | T76: 184.69 | U76: 0.073 | V76: 0.4179339196
A77: 74 | B77: 43.22 | C77: 61.02 | D77: 36.01 | E77: 58.42 | F77: 55.07 | G77: 58.57 | H77: 55.69 | I77: 56.83 | J77: 65.24 | K77: 53.45 | L77: 58.07 | M77: 62.14 | N77: 64.98 | O77: 70.58 | P77: 75.05 | Q77: 89.32 | R77: 109.52 | S77: 143.84 | T77: 183.86 | U77: 0.074 | V77: 0.4198336454
A78: 75 | B78: 43.02 | C78: 60.75 | D78: 35.85 | E78: 58.16 | F78: 54.82 | G78: 58.31 | H78: 55.44 | I78: 56.58 | J78: 64.95 | K78: 53.21 | L78: 57.81 | M78: 61.87 | N78: 64.69 | O78: 70.26 | P78: 74.72 | Q78: 88.92 | R78: 109.03 | S78: 143.2 | T78: 183.04 | U78: 0.075 | V78: 0.4217163327
A79: 76 | B79: 42.83 | C79: 60.48 | D79: 35.7 | E79: 57.9 | F79: 54.58 | G79: 58.05 | H79: 55.2 | I79: 56.33 | J79: 64.66 | K79: 52.98 | L79: 57.56 | M79: 61.59 | N79: 64.4 | O79: 69.95 | P79: 74.39 | Q79: 88.53 | R79: 108.55 | S79: 142.57 | T79: 182.23 | U79: 0.076 | V79: 0.4235823584
A80: 77 | B80: 42.65 | C80: 60.22 | D80: 35.54 | E80: 57.65 | F80: 54.34 | G80: 57.8 | H80: 54.96 | I80: 56.08 | J80: 64.38 | K80: 52.75 | L80: 57.31 | M80: 61.33 | N80: 64.12 | O80: 69.65 | P80: 74.07 | Q80: 88.15 | R80: 108.08 | S80: 141.95 | T80: 181.44 | U80: 0.077 | V80: 0.4254320865
A81: 78 | B81: 42.47 | C81: 59.96 | D81: 35.39 | E81: 57.4 | F81: 54.11 | G81: 57.55 | H81: 54.72 | I81: 55.84 | J81: 64.11 | K81: 52.52 | L81: 57.06 | M81: 61.06 | N81: 63.85 | O81: 69.35 | P81: 73.75 | Q81: 87.77 | R81: 107.61 | S81: 141.34 | T81: 180.66 | U81: 0.078 | V81: 0.4272658682
A82: 79 | B82: 42.29 | C82: 59.71 | D82: 35.24 | E82: 57.16 | F82: 53.88 | G82: 57.31 | H82: 54.49 | I82: 55.61 | J82: 63.83 | K82: 52.3 | L82: 56.82 | M82: 60.8 | N82: 63.58 | O82: 69.05 | P82: 73.44 | Q82: 87.4 | R82: 107.16 | S82: 140.74 | T82: 179.89 | U82: 0.079 | V82: 0.4290840427
A83: 80 | B83: 42.11 | C83: 59.46 | D83: 35.09 | E83: 56.92 | F83: 53.66 | G83: 57.07 | H83: 54.26 | I83: 55.37 | J83: 63.57 | K83: 52.08 | L83: 56.58 | M83: 60.55 | N83: 63.31 | O83: 68.77 | P83: 73.13 | Q83: 87.03 | R83: 106.71 | S83: 140.15 | T83: 179.14 | U83: 0.08 | V83: 0.430886938
A84: 81 | B84: =ROUND(B$2/$V84,2) -> 41.93 | C84: 59.21 | D84: 34.95 | E84: =ROUND(E$2/$V84,2) -> 56.68 | F84: 53.44 | G84: 56.83 | H84: 54.04 | I84: 55.15 | J84: 63.3 | K84: 51.86 | L84: 56.35 | M84: 60.3 | N84: 63.05 | O84: 68.48 | P84: 72.83 | Q84: 86.67 | R84: 106.27 | S84: 139.57 | T84: 178.4 | U84: 0.081 | V84: 0.4326748711
A85: 82 | B85: 41.76 | C85: 58.97 | D85: 34.8 | E85: 56.45 | F85: 53.22 | G85: 56.6 | H85: 53.82 | I85: 54.92 | J85: 63.05 | K85: 51.65 | L85: 56.12 | M85: 60.05 | N85: 62.79 | O85: 68.2 | P85: 72.53 | Q85: 86.32 | R85: 105.84 | S85: 139 | T85: 177.67 | U85: 0.082 | V85: 0.4344481486
A86: 83 | B86: 41.59 | C86: 58.73 | D86: 34.66 | E86: 56.22 | F86: 53 | G86: 56.37 | H86: 53.6 | I86: 54.7 | J86: 62.79 | K86: 51.44 | L86: 55.89 | M86: 59.81 | N86: 62.54 | O86: 67.93 | P86: 72.24 | Q86: 85.97 | R86: 105.41 | S86: 138.44 | T86: 176.96 | U86: 0.083 | V86: 0.4362070671
A87: 84 | B87: 41.43 | C87: 58.5 | D87: 34.52 | E87: 56 | F87: 52.79 | G87: 56.15 | H87: 53.38 | I87: 54.48 | J87: 62.54 | K87: 51.24 | L87: 55.67 | M87: 59.57 | N87: 62.29 | O87: 67.66 | P87: 71.95 | Q87: 85.63 | R87: 104.99 | S87: 137.89 | T87: 176.25 | U87: 0.084 | V87: 0.437951914
A88: 85 | B88: 41.27 | C88: 58.27 | D88: 34.39 | E88: 55.78 | F88: 52.58 | G88: 55.93 | H88: 53.17 | I88: 54.27 | J88: 62.29 | K88: 51.04 | L88: 55.45 | M88: 59.34 | N88: 62.04 | O88: 67.39 | P88: 71.67 | Q88: 85.29 | R88: 104.58 | S88: 137.35 | T88: 175.56 | U88: 0.085 | V88: 0.4396829672
A89: 86 | B89: 41.11 | C89: 58.04 | D89: 34.25 | E89: 55.56 | F89: 52.38 | G89: 55.71 | H89: 52.97 | I89: 54.06 | J89: 62.05 | K89: 50.84 | L89: 55.23 | M89: 59.11 | N89: 61.8 | O89: 67.13 | P89: 71.39 | Q89: 84.96 | R89: 104.17 | S89: 136.81 | T89: 174.88 | U89: 0.086 | V89: 0.4414004962
A90: 87 | B90: 40.95 | C90: 57.82 | D90: 34.12 | E90: 55.35 | F90: 52.18 | G90: 55.49 | H90: 52.76 | I90: 53.85 | J90: 61.81 | K90: 50.64 | L90: 55.02 | M90: 58.88 | N90: 61.57 | O90: 66.87 | P90: 71.11 | Q90: 84.63 | R90: 103.77 | S90: 136.29 | T90: 174.2 | U90: 0.087 | V90: 0.4431047622
A91: 88 | B91: 40.79 | C91: 57.6 | D91: 33.99 | E91: 55.14 | F91: 51.98 | G91: 55.28 | H91: 52.56 | I91: 53.64 | J91: 61.58 | K91: 50.45 | L91: 54.81 | M91: 58.66 | N91: 61.33 | O91: 66.61 | P91: 70.84 | Q91: 84.31 | R91: 103.37 | S91: 135.77 | T91: 173.54 | U91: 0.088 | V91: 0.4447960181
A92: 89 | B92: 40.64 | C92: 57.38 | D92: 33.87 | E92: 54.93 | F92: 51.78 | G92: 55.08 | H92: 52.37 | I92: 53.44 | J92: 61.35 | K92: 50.26 | L92: 54.61 | M92: 58.44 | N92: 61.1 | O92: 66.36 | P92: 70.58 | Q92: 83.99 | R92: 102.98 | S92: 135.26 | T92: 172.89 | U92: 0.089 | V92: 0.4464745096
A93: 90 | B93: 40.49 | C93: 57.17 | D93: 33.74 | E93: 54.73 | F93: 51.59 | G93: 54.87 | H93: 52.17 | I93: 53.24 | J93: 61.12 | K93: 50.07 | L93: 54.4 | M93: 58.22 | N93: 60.87 | O93: 66.12 | P93: 70.31 | Q93: 83.68 | R93: 102.6 | S93: 134.76 | T93: 172.25 | U93: 0.09 | V93: 0.4481404747
A94: 91 | B94: 40.34 | C94: 56.96 | D94: 33.62 | E94: =ROUND(E$2/$V94,2) -> 54.52 | F94: 51.4 | G94: 54.67 | H94: 51.98 | I94: 53.05 | J94: 60.89 | K94: 49.89 | L94: 54.2 | M94: 58 | N94: 60.65 | O94: 65.87 | P94: 70.05 | Q94: 83.37 | R94: 102.22 | S94: 134.26 | T94: 171.61 | U94: 0.091 | V94: 0.4497941445
A95: 92 | B95: 40.19 | C95: 56.75 | D95: 33.49 | E95: 54.33 | F95: 51.21 | G95: 54.47 | H95: 51.79 | I95: 52.85 | J95: 60.67 | K95: 49.71 | L95: 54.01 | M95: 57.79 | N95: 60.43 | O95: 65.64 | P95: 69.8 | Q95: 83.07 | R95: 101.85 | S95: 133.77 | T95: 170.99 | U95: 0.092 | V95: 0.4514357435
A96: 93 | B96: 40.05 | C96: 56.55 | D96: 33.37 | E96: 54.13 | F96: 51.03 | G96: 54.27 | H96: 51.6 | I96: 52.66 | J96: 60.45 | K96: 49.53 | L96: 53.81 | M96: 57.59 | N96: 60.21 | O96: 65.4 | P96: 69.55 | Q96: 82.77 | R96: 101.49 | S96: 133.29 | T96: 170.37 | U96: 0.093 | V96: 0.4530654896
A97: 94 | B97: 39.9 | C97: 56.34 | D97: 33.25 | E97: 53.94 | F97: 50.85 | G97: 54.08 | H97: 51.42 | I97: 52.48 | J97: 60.24 | K97: 49.35 | L97: 53.62 | M97: 57.38 | N97: 60 | O97: 65.17 | P97: 69.3 | Q97: 82.47 | R97: 101.13 | S97: 132.82 | T97: 169.77 | U97: 0.094 | V97: 0.4546835944
A98: 95 | B98: 39.76 | C98: 56.15 | D98: 33.14 | E98: 53.75 | F98: 50.67 | G98: 53.89 | H98: 51.24 | I98: 52.29 | J98: 60.03 | K98: 49.18 | L98: 53.43 | M98: 57.18 | N98: 59.79 | O98: 64.94 | P98: 69.06 | Q98: 82.18 | R98: 100.77 | S98: 132.35 | T98: 169.17 | U98: 0.095 | V98: 0.4562902635
A99: 96 | B99: 39.63 | C99: 55.95 | D99: 33.02 | E99: 53.56 | F99: 50.49 | G99: 53.7 | H99: 51.06 | I99: 52.11 | J99: 59.82 | K99: 49.01 | L99: 53.24 | M99: 56.98 | N99: 59.58 | O99: 64.71 | P99: 68.82 | Q99: 81.9 | R99: 100.42 | S99: 131.89 | T99: 168.58 | U99: 0.096 | V99: 0.457885697
A100: 97 | B100: 39.49 | C100: 55.76 | D100: 32.91 | E100: 53.38 | F100: 50.32 | G100: 53.52 | H100: 50.88 | I100: 51.93 | J100: 59.61 | K100: 48.84 | L100: 53.06 | M100: 56.78 | N100: 59.37 | O100: 64.49 | P100: 68.58 | Q100: 81.62 | R100: 100.07 | S100: 131.43 | T100: 168 | U100: 0.097 | V100: 0.4594700892
A101: 98 | B101: 39.35 | C101: 55.57 | D101: 32.8 | E101: 53.19 | F101: 50.15 | G101: 53.34 | H101: 50.71 | I101: 51.75 | J101: 59.41 | K101: 48.67 | L101: 52.88 | M101: 56.59 | N101: 59.17 | O101: 64.27 | P101: 68.34 | Q101: 81.34 | R101: 99.73 | S101: 130.99 | T101: 167.42 | U101: 0.098 | V101: 0.4610436292
A102: 99 | B102: 39.22 | C102: 55.38 | D102: 32.68 | E102: 53.01 | F102: 49.98 | G102: 53.16 | H102: 50.54 | I102: 51.58 | J102: 59.21 | K102: 48.51 | L102: 52.7 | M102: 56.4 | N102: 58.97 | O102: 64.05 | P102: 68.11 | Q102: 81.06 | R102: 99.39 | S102: 130.54 | T102: 166.86 | U102: 0.099 | V102: 0.4626065009
A103: 100 | B103: 39.09 | C103: 55.19 | D103: 32.58 | E103: 52.84 | F103: 49.81 | G103: 52.98 | H103: 50.37 | I103: 51.4 | J103: 59.01 | K103: 48.35 | L103: 52.53 | M103: 56.21 | N103: 58.77 | O103: 63.84 | P103: 67.89 | Q103: 80.79 | R103: 99.06 | S103: 130.11 | T103: 166.3 | U103: 0.1 | V103: 0.4641588834
A104: 101 | B104: 38.96 | C104: 55.01 | D104: 32.47 | E104: =ROUND(E$2/$V104,2) -> 52.66 | F104: 49.65 | G104: 52.8 | H104: 50.2 | I104: 51.23 | J104: 58.81 | K104: 48.19 | L104: 52.35 | M104: 56.02 | N104: 58.58 | O104: 63.62 | P104: 67.66 | Q104: 80.52 | R104: 98.73 | S104: 129.68 | T104: 165.75 | U104: 0.101 | V104: 0.4657009508
A105: 102 | B105: 38.83 | C105: 54.83 | D105: 32.36 | E105: 52.49 | F105: 49.48 | G105: 52.63 | H105: 50.04 | I105: 51.07 | J105: 58.62 | K105: 48.03 | L105: 52.18 | M105: 55.84 | N105: 58.39 | O105: 63.42 | P105: 67.44 | Q105: 80.26 | R105: 98.41 | S105: 129.25 | T105: 165.21 | U105: 0.102 | V105: 0.4672328728
A106: 103 | B106: 38.71 | C106: 54.65 | D106: 32.26 | E106: 52.32 | F106: 49.32 | G106: 52.46 | H106: 49.88 | I106: 50.9 | J106: 58.43 | K106: 47.87 | L106: 52.01 | M106: 55.66 | N106: 58.2 | O106: 63.21 | P106: 67.22 | Q106: 80 | R106: 98.09 | S106: 128.83 | T106: 164.67 | U106: 0.103 | V106: 0.4687548148
A107: 104 | B107: 38.58 | C107: 54.48 | D107: 32.15 | E107: 52.15 | F107: 49.16 | G107: 52.29 | H107: 49.72 | I107: 50.74 | J107: 58.24 | K107: 47.72 | L107: 51.84 | M107: 55.48 | N107: 58.01 | O107: 63.01 | P107: 67 | Q107: 79.74 | R107: 97.77 | S107: 128.42 | T107: 164.14 | U107: 0.104 | V107: 0.4702669375
A108: 105 | B108: 38.46 | C108: 54.3 | D108: 32.05 | E108: 51.99 | F108: 49.01 | G108: 52.12 | H108: 49.56 | I108: 50.58 | J108: 58.06 | K108: 47.57 | L108: 51.68 | M108: 55.3 | N108: 57.82 | O108: 62.81 | P108: 66.79 | Q108: 79.49 | R108: 97.46 | S108: 128.01 | T108: 163.62 | U108: 0.105 | V108: 0.471769398
A109: 106 | B109: 38.34 | C109: 54.13 | D109: 31.95 | E109: 51.82 | F109: 48.85 | G109: 51.96 | H109: 49.4 | I109: 50.42 | J109: 57.87 | K109: 47.42 | L109: 51.51 | M109: 55.13 | N109: 57.64 | O109: 62.61 | P109: 66.58 | Q109: 79.24 | R109: 97.16 | S109: 127.6 | T109: 163.1 | U109: 0.106 | V109: 0.4732623491
A110: 107 | B110: 38.22 | C110: 53.96 | D110: 31.85 | E110: 51.66 | F110: 48.7 | G110: 51.8 | H110: 49.25 | I110: 50.26 | J110: 57.69 | K110: 47.27 | L110: 51.35 | M110: 54.96 | N110: 57.46 | O110: 62.41 | P110: 66.37 | Q110: 78.99 | R110: 96.85 | S110: 127.2 | T110: 162.59 | U110: 0.107 | V110: 0.4747459399
A111: 108 | B111: 38.1 | C111: 53.8 | D111: 31.75 | E111: 51.5 | F111: 48.55 | G111: 51.64 | H111: 49.09 | I111: 50.1 | J111: 57.52 | K111: 47.12 | L111: 51.19 | M111: 54.79 | N111: 57.28 | O111: 62.22 | P111: 66.17 | Q111: 78.75 | R111: 96.55 | S111: 126.81 | T111: 162.09 | U111: 0.108 | V111: 0.4762203156
A112: 109 | B112: 37.98 | C112: 53.63 | D112: 31.65 | E112: 51.34 | F112: 48.4 | G112: 51.48 | H112: 48.94 | I112: 49.95 | J112: 57.34 | K112: 46.98 | L112: 51.04 | M112: 54.62 | N112: 57.11 | O112: 62.03 | P112: 65.96 | Q112: 78.5 | R112: 96.26 | S112: 126.42 | T112: 161.59 | U112: 0.109 | V112: 0.4776856181
A113: 110 | B113: 37.87 | C113: 53.47 | D113: 31.56 | E113: 51.19 | F113: 48.25 | G113: 51.32 | H113: 48.8 | I113: 49.8 | J113: 57.16 | K113: 46.83 | L113: 50.88 | M113: 54.45 | N113: 56.94 | O113: 61.84 | P113: 65.76 | Q113: 78.26 | R113: 95.96 | S113: 126.04 | T113: 161.1 | U113: 0.11 | V113: 0.4791419857
A114: 111 | B114: 37.75 | C114: 53.31 | D114: 31.46 | E114: =ROUND(E$2/$V114,2) -> 51.03 | F114: 48.11 | G114: 51.17 | H114: 48.65 | I114: 49.65 | J114: 56.99 | K114: 46.69 | L114: 50.73 | M114: 54.29 | N114: 56.76 | O114: 61.65 | P114: 65.57 | Q114: 78.03 | R114: 95.67 | S114: 125.66 | T114: 160.62 | U114: 0.111 | V114: 0.4805895534
A115: 112 | B115: 37.64 | C115: 53.15 | D115: 31.37 | E115: 50.88 | F115: 47.96 | G115: 51.01 | H115: 48.5 | I115: 49.5 | J115: 56.82 | K115: 46.55 | L115: 50.58 | M115: 54.13 | N115: 56.59 | O115: 61.47 | P115: 65.37 | Q115: 77.8 | R115: 95.39 | S115: 125.28 | T115: 160.14 | U115: 0.112 | V115: 0.4820284528
A116: 113 | B116: 37.53 | C116: 52.99 | D116: 31.27 | E116: 50.73 | F116: 47.82 | G116: 50.86 | H116: 48.36 | I116: 49.35 | J116: 56.65 | K116: 46.42 | L116: 50.43 | M116: 53.97 | N116: 56.43 | O116: 61.29 | P116: 65.18 | Q116: 77.57 | R116: 95.11 | S116: 124.91 | T116: 159.66 | U116: 0.113 | V116: 0.4834588127
A117: 114 | B117: 37.42 | C117: 52.84 | D117: 31.18 | E117: 50.58 | F117: 47.68 | G117: 50.71 | H117: 48.22 | I117: 49.21 | J117: 56.49 | K117: 46.28 | L117: 50.28 | M117: 53.81 | N117: 56.26 | O117: 61.11 | P117: 64.99 | Q117: 77.34 | R117: 94.83 | S117: 124.55 | T117: 159.19 | U117: 0.114 | V117: 0.4848807586
A118: 115 | B118: 37.31 | C118: 52.68 | D118: 31.09 | E118: 50.43 | F118: 47.54 | G118: 50.57 | H118: 48.08 | I118: 49.06 | J118: 56.32 | K118: 46.14 | L118: 50.13 | M118: 53.65 | N118: 56.1 | O118: 60.93 | P118: 64.8 | Q118: 77.11 | R118: 94.55 | S118: 124.18 | T118: 158.73 | U118: 0.115 | V118: 0.4862944131
A119: 116 | B119: 37.2 | C119: 52.53 | D119: 31 | E119: 50.29 | F119: 47.41 | G119: 50.42 | H119: 47.94 | I119: 48.92 | J119: 56.16 | K119: 46.01 | L119: 49.99 | M119: 53.5 | N119: 55.94 | O119: 60.75 | P119: 64.61 | Q119: 76.89 | R119: 94.28 | S119: 123.83 | T119: 158.27 | U119: 0.116 | V119: 0.4876998961
A120: 117 | B120: 37.1 | C120: 52.38 | D120: 30.91 | E120: 50.14 | F120: 47.27 | G120: 50.28 | H120: 47.8 | I120: 48.78 | J120: 56 | K120: 45.88 | L120: 49.85 | M120: 53.34 | N120: 55.78 | O120: 60.58 | P120: 64.42 | Q120: 76.67 | R120: 94.01 | S120: 123.47 | T120: 157.82 | U120: 0.117 | V120: 0.4890973247
A121: 118 | B121: 36.99 | C121: 52.23 | D121: 30.83 | E121: 50 | F121: 47.14 | G121: 50.13 | H121: 47.67 | I121: 48.65 | J121: 55.84 | K121: 45.75 | L121: 49.71 | M121: 53.19 | N121: 55.62 | O121: 60.41 | P121: 64.24 | Q121: 76.45 | R121: 93.74 | S121: 123.12 | T121: 157.37 | U121: 0.118 | V121: 0.4904868132
A122: 119 | B122: 36.89 | C122: 52.09 | D122: 30.74 | E122: 49.86 | F122: 47 | G122: 49.99 | H122: 47.53 | I122: 48.51 | J122: 55.69 | K122: 45.62 | L122: 49.57 | M122: 53.04 | N122: 55.46 | O122: 60.24 | P122: 64.06 | Q122: 76.24 | R122: 93.48 | S122: 122.78 | T122: 156.93 | U122: 0.119 | V122: 0.4918684734
A123: 120 | B123: 36.79 | C123: 51.94 | D123: 30.65 | E123: 49.72 | F123: 46.87 | G123: 49.85 | H123: 47.4 | I123: 48.37 | J123: 55.53 | K123: 45.49 | L123: 49.43 | M123: 52.89 | N123: 55.31 | O123: 60.07 | P123: 63.88 | Q123: 76.03 | R123: 93.22 | S123: 122.43 | T123: 156.5 | U123: 0.12 | V123: 0.4932424149
A124: 121 | B124: 36.68 | C124: 51.8 | D124: 30.57 | E124: =ROUND(E$2/$V124,2) -> 49.58 | F124: 46.74 | G124: 49.72 | H124: 47.27 | I124: 48.24 | J124: 55.38 | K124: 45.37 | L124: 49.29 | M124: 52.75 | N124: 55.15 | O124: 59.91 | P124: 63.71 | Q124: 75.82 | R124: 92.96 | S124: 122.1 | T124: 156.06 | U124: 0.121 | V124: 0.4946087443
A125: 122 | B125: 36.58 | C125: 51.65 | D125: 30.49 | E125: 49.45 | F125: 46.62 | G125: 49.58 | H125: 47.14 | I125: 48.11 | J125: 55.23 | K125: 45.24 | L125: 49.16 | M125: 52.6 | N125: 55 | O125: 59.74 | P125: 63.53 | Q125: 75.61 | R125: 92.71 | S125: 121.76 | T125: 155.64 | U125: 0.122 | V125: 0.4959675664
A126: 123 | B126: 36.48 | C126: 51.51 | D126: 30.4 | E126: 49.31 | F126: 46.49 | G126: 49.45 | H126: 47.01 | I126: 47.98 | J126: 55.08 | K126: 45.12 | L126: 49.02 | M126: 52.46 | N126: 54.85 | O126: 59.58 | P126: 63.36 | Q126: 75.4 | R126: 92.46 | S126: 121.43 | T126: 155.21 | U126: 0.123 | V126: 0.4973189833
A127: 124 | B127: 36.39 | C127: 51.38 | D127: 30.32 | E127: 49.18 | F127: 46.36 | G127: 49.31 | H127: 46.89 | I127: 47.85 | J127: 54.93 | K127: 45 | L127: 48.89 | M127: 52.32 | N127: 54.71 | O127: 59.42 | P127: 63.19 | Q127: 75.2 | R127: 92.21 | S127: 121.1 | T127: 154.79 | U127: 0.124 | V127: 0.4986630952
A128: 125 | B128: 36.29 | C128: 51.24 | D128: 30.24 | E128: 49.05 | F128: 46.24 | G128: 49.18 | H128: 46.76 | I128: 47.72 | J128: 54.78 | K128: 44.88 | L128: 48.76 | M128: 52.18 | N128: 54.56 | O128: 59.26 | P128: 63.02 | Q128: 75 | R128: 91.96 | S128: 120.78 | T128: 154.38 | U128: 0.125 | V128: 0.5
A129: 126 | B129: 36.19 | C129: 51.1 | D129: 30.16 | E129: 48.92 | F129: 46.12 | G129: 49.05 | H129: 46.64 | I129: 47.59 | J129: 54.63 | K129: 44.76 | L129: 48.63 | M129: 52.04 | N129: 54.42 | O129: 59.1 | P129: 62.85 | Q129: 74.8 | R129: 91.72 | S129: 120.46 | T129: 153.97 | U129: 0.126 | V129: 0.5013297935
A130: 127 | B130: 36.1 | C130: 50.97 | D130: 30.08 | E130: 48.79 | F130: 46 | G130: 48.92 | H130: 46.51 | I130: 47.47 | J130: 54.49 | K130: 44.64 | L130: 48.5 | M130: 51.9 | N130: 54.27 | O130: 58.95 | P130: 62.69 | Q130: 74.6 | R130: 91.47 | S130: 120.14 | T130: 153.57 | U130: 0.127 | V130: 0.5026525695
A131: 128 | B131: 36 | C131: 50.83 | D131: 30 | E131: 48.66 | F131: 45.88 | G131: 48.79 | H131: 46.39 | I131: 47.34 | J131: 54.35 | K131: 44.53 | L131: 48.38 | M131: 51.77 | N131: 54.13 | O131: 58.79 | P131: 62.52 | Q131: 74.41 | R131: 91.24 | S131: 119.83 | T131: 153.16 | U131: 0.128 | V131: 0.50396842
A132: 129 | B132: 35.91 | C132: 50.7 | D132: 29.92 | E132: 48.54 | F132: 45.76 | G132: 48.67 | H132: 46.27 | I132: 47.22 | J132: 54.21 | K132: 44.41 | L132: 48.25 | M132: 51.63 | N132: 53.99 | O132: 58.64 | P132: 62.36 | Q132: 74.22 | R132: 91 | S132: 119.52 | T132: 152.77 | U132: =A132/1000 -> 0.129 | V132: =POWER(U132,1/3) -> 0.5052774347
A133: 130 | B133: 35.82 | C133: 50.57 | D133: =ROUND(D$2/$V133,2) -> 29.85 | E133: 48.41 | F133: 45.64 | G133: 48.54 | H133: 46.15 | I133: 47.1 | J133: 54.07 | K133: 44.3 | L133: 48.13 | M133: 51.5 | N133: 53.85 | O133: 58.49 | P133: 62.2 | Q133: 74.03 | R133: 90.77 | S133: 119.21 | T133: 152.37 | U133: 0.13 | V133: 0.5065797019
A134: 131 | B134: 35.73 | C134: 50.44 | D134: 29.77 | E134: =ROUND(E$2/$V134,2) -> 48.29 | F134: 45.52 | G134: 48.42 | H134: 46.03 | I134: 46.98 | J134: 53.93 | K134: 44.18 | L134: 48 | M134: 51.37 | N134: 53.71 | O134: 58.34 | P134: 62.04 | Q134: 73.84 | R134: 90.53 | S134: 118.91 | T134: 151.99 | U134: 0.131 | V134: 0.5078753078
A135: 132 | B135: 35.63 | C135: 50.32 | D135: 29.7 | E135: 48.17 | F135: 45.41 | G135: 48.29 | H135: 45.92 | I135: 46.86 | J135: 53.79 | K135: 44.07 | L135: 47.88 | M135: 51.24 | N135: 53.58 | O135: 58.19 | P135: 61.89 | Q135: 73.65 | R135: 90.3 | S135: 118.61 | T135: 151.6 | U135: 0.132 | V135: 0.509164337
A136: 133 | B136: 35.55 | C136: 50.19 | D136: 29.62 | E136: 48.05 | F136: 45.29 | G136: 48.17 | H136: 45.8 | I136: 46.74 | J136: 53.66 | K136: 43.96 | L136: 47.76 | M136: 51.11 | N136: 53.44 | O136: 58.05 | P136: 61.73 | Q136: 73.47 | R136: 90.08 | S136: 118.31 | T136: 151.22 | U136: 0.133 | V136: 0.5104468722
A137: 134 | B137: 35.46 | C137: 50.06 | D137: 29.55 | E137: 47.93 | F137: 45.18 | G137: 48.05 | H137: 45.69 | I137: 46.63 | J137: 53.53 | K137: 43.85 | L137: 47.64 | M137: 50.98 | N137: 53.31 | O137: 57.9 | P137: 61.58 | Q137: 73.28 | R137: 89.85 | S137: 118.01 | T137: 150.84 | U137: 0.134 | V137: 0.5117229947
A138: 135 | B138: 35.37 | C138: 49.94 | D138: 29.47 | E138: 47.81 | F138: 45.07 | G138: 47.93 | H138: 45.58 | I138: 46.51 | J138: 53.39 | K138: 43.74 | L138: 47.53 | M138: 50.86 | N138: 53.18 | O138: 57.76 | P138: 61.42 | Q138: 73.1 | R138: 89.63 | S138: 117.72 | T138: 150.47 | U138: 0.135 | V138: 0.512992784
A139: 136 | B139: 35.28 | C139: 49.82 | D139: 29.4 | E139: 47.69 | F139: 44.96 | G139: 47.82 | H139: 45.46 | I139: 46.4 | J139: 53.26 | K139: 43.64 | L139: 47.41 | M139: 50.73 | N139: 53.05 | O139: 57.62 | P139: 61.27 | Q139: 72.92 | R139: 89.41 | S139: 117.43 | T139: 150.1 | U139: 0.136 | V139: 0.5142563181
A140: 137 | B140: 35.2 | C140: 49.7 | D140: 29.33 | E140: 47.57 | F140: 44.85 | G140: 47.7 | H140: 45.35 | I140: 46.28 | J140: 53.13 | K140: 43.53 | L140: 47.29 | M140: 50.61 | N140: 52.92 | O140: 57.48 | P140: 61.12 | Q140: 72.74 | R140: 89.19 | S140: 117.15 | T140: 149.73 | U140: 0.137 | V140: 0.5155136735
A141: 138 | B141: 35.11 | C141: 49.58 | D141: 29.26 | E141: 47.46 | F141: 44.74 | G141: 47.58 | H141: 45.24 | I141: 46.17 | J141: 53 | K141: 43.42 | L141: 47.18 | M141: 50.49 | N141: 52.79 | O141: 57.34 | P141: 60.98 | Q141: 72.57 | R141: 88.98 | S141: 116.86 | T141: 149.37 | U141: 0.138 | V141: 0.5167649252
A142: 139 | B142: 35.03 | C142: 49.46 | D142: 29.19 | E142: 47.34 | F142: 44.63 | G142: 47.47 | H142: 45.13 | I142: 46.06 | J142: 52.88 | K142: 43.32 | L142: 47.06 | M142: 50.37 | N142: 52.66 | O142: 57.2 | P142: 60.83 | Q142: 72.39 | R142: 88.76 | S142: 116.58 | T142: 149.01 | U142: 0.139 | V142: 0.5180101467
A143: 140 | B143: 34.94 | C143: 49.34 | D143: 29.12 | E143: 47.23 | F143: 44.53 | G143: 47.36 | H143: 45.03 | I143: 45.95 | J143: 52.75 | K143: 43.22 | L143: 46.95 | M143: 50.25 | N143: 52.54 | O143: 57.06 | P143: 60.68 | Q143: 72.22 | R143: 88.55 | S143: 116.3 | T143: 148.66 | U143: 0.14 | V143: 0.5192494102
A144: 141 | B144: 34.86 | C144: 49.22 | D144: 29.05 | E144: =ROUND(E$2/$V144,2) -> 47.12 | F144: 44.42 | G144: 47.24 | H144: 44.92 | I144: 45.84 | J144: 52.62 | K144: 43.11 | L144: 46.84 | M144: 50.13 | N144: 52.41 | O144: 56.93 | P144: 60.54 | Q144: 72.05 | R144: 88.34 | S144: 116.03 | T144: 148.3 | U144: 0.141 | V144: 0.5204827863
A145: 142 | B145: 34.78 | C145: 49.11 | D145: 28.98 | E145: 47.01 | F145: 44.32 | G145: 47.13 | H145: 44.81 | I145: 45.73 | J145: 52.5 | K145: 43.01 | L145: 46.73 | M145: 50.01 | N145: 52.29 | O145: 56.79 | P145: 60.4 | Q145: 71.88 | R145: 88.13 | S145: 115.75 | T145: 147.96 | U145: 0.142 | V145: 0.5217103446
A146: 143 | B146: 34.7 | C146: 48.99 | D146: 28.91 | E146: 46.9 | F146: 44.21 | G146: 47.02 | H146: 44.71 | I146: 45.63 | J146: 52.38 | K146: 42.91 | L146: 46.62 | M146: 49.89 | N146: 52.17 | O146: 56.66 | P146: 60.26 | Q146: 71.71 | R146: 87.93 | S146: 115.48 | T146: 147.61 | U146: 0.143 | V146: 0.5229321532
A147: 144 | B147: 34.62 | C147: 48.88 | D147: 28.85 | E147: 46.79 | F147: 44.11 | G147: 46.91 | H147: 44.61 | I147: 45.52 | J147: 52.26 | K147: 42.81 | L147: 46.51 | M147: 49.78 | N147: 52.05 | O147: 56.53 | P147: 60.12 | Q147: 71.54 | R147: 87.72 | S147: 115.22 | T147: 147.27 | U147: 0.144 | V147: 0.5241482788
A148: 145 | B148: =ROUND(B$2/$V148,2) -> 34.54 | C148: 48.76 | D148: 28.78 | E148: 46.68 | F148: 44.01 | G148: 46.81 | H148: 44.5 | I148: 45.42 | J148: 52.14 | K148: 42.71 | L148: 46.41 | M148: 49.66 | N148: 51.93 | O148: 56.4 | P148: 59.98 | Q148: 71.38 | R148: 87.52 | S148: 114.95 | T148: 146.93 | U148: 0.145 | V148: 0.5253587872
A149: 146 | B149: 34.46 | C149: 48.65 | D149: 28.71 | E149: 46.58 | F149: 43.91 | G149: 46.7 | H149: 44.4 | I149: 45.31 | J149: 52.02 | K149: 42.62 | L149: 46.3 | M149: 49.55 | N149: 51.81 | O149: 56.27 | P149: 59.84 | Q149: 71.22 | R149: 87.32 | S149: 114.69 | T149: 146.59 | U149: 0.146 | V149: 0.5265637428
A150: 147 | B150: 34.38 | C150: 48.54 | D150: 28.65 | E150: 46.47 | F150: 43.81 | G150: 46.59 | H150: 44.3 | I150: 45.21 | J150: 51.9 | K150: 42.52 | L150: 46.19 | M150: 49.44 | N150: 51.69 | O150: 56.14 | P150: 59.7 | Q150: 71.05 | R150: 87.12 | S150: 114.43 | T150: 146.26 | U150: 0.147 | V150: 0.5277632088
A151: 148 | B151: 34.3 | C151: 48.43 | D151: 28.58 | E151: 46.36 | F151: 43.71 | G151: 46.49 | H151: 44.2 | I151: 45.11 | J151: 51.78 | K151: 42.42 | L151: 46.09 | M151: 49.32 | N151: 51.57 | O151: 56.02 | P151: 59.57 | Q151: 70.89 | R151: 86.93 | S151: 114.17 | T151: 145.93 | U151: 0.148 | V151: 0.5289572473
A152: 149 | B152: 34.22 | C152: 48.32 | D152: 28.52 | E152: 46.26 | F152: 43.61 | G152: 46.38 | H152: 44.1 | I152: 45.01 | J152: 51.67 | K152: 42.33 | L152: 45.99 | M152: 49.21 | N152: 51.46 | O152: 55.89 | P152: 59.44 | Q152: 70.74 | R152: 86.73 | S152: 113.91 | T152: 145.6 | U152: 0.149 | V152: 0.5301459192
A153: 150 | B153: 34.15 | C153: 48.22 | D153: 28.46 | E153: 46.16 | F153: 43.51 | G153: 46.28 | H153: 44 | I153: 44.91 | J153: 51.55 | K153: 42.23 | L153: 45.88 | M153: 49.1 | N153: 51.34 | O153: 55.77 | P153: 59.3 | Q153: 70.58 | R153: 86.54 | S153: 113.66 | T153: 145.28 | U153: 0.15 | V153: 0.5313292846
A154: 151 | B154: 34.07 | C154: 48.11 | D154: 28.39 | E154: =ROUND(E$2/$V154,2) -> 46.06 | F154: 43.42 | G154: 46.18 | H154: 43.91 | I154: 44.81 | J154: 51.44 | K154: 42.14 | L154: 45.78 | M154: 48.99 | N154: 51.23 | O154: 55.64 | P154: 59.17 | Q154: 70.42 | R154: 86.35 | S154: 113.41 | T154: 144.96 | U154: 0.151 | V154: 0.5325074022
A155: 152 | B155: 34 | C155: 48 | D155: 28.33 | E155: 45.95 | F155: 43.32 | G155: 46.08 | H155: 43.81 | I155: 44.71 | J155: 51.32 | K155: 42.05 | L155: 45.68 | M155: 48.89 | N155: 51.12 | O155: 55.52 | P155: 59.04 | Q155: 70.27 | R155: 86.16 | S155: 113.16 | T155: 144.64 | U155: 0.152 | V155: 0.5336803297
A156: 153 | B156: 33.92 | C156: 47.9 | D156: 28.27 | E156: 45.85 | F156: 43.23 | G156: 45.98 | H156: 43.71 | I156: 44.61 | J156: 51.21 | K156: 41.96 | L156: 45.58 | M156: 48.78 | N156: 51.01 | O156: 55.4 | P156: 58.91 | Q156: 70.11 | R156: 85.97 | S156: 112.91 | T156: 144.32 | U156: 0.153 | V156: 0.5348481241
A157: 154 | B157: 33.85 | C157: 47.8 | D157: 28.21 | E157: 45.75 | F157: 43.13 | G157: 45.88 | H157: 43.62 | I157: 44.51 | J157: 51.1 | K157: 41.86 | L157: 45.48 | M157: 48.67 | N157: 50.89 | O157: 55.28 | P157: 58.79 | Q157: 69.96 | R157: 85.78 | S157: 112.67 | T157: 144.01 | U157: 0.154 | V157: 0.5360108411
A158: 155 | B158: 33.78 | C158: 47.69 | D158: 28.15 | E158: 45.66 | F158: 43.04 | G158: 45.78 | H158: 43.52 | I158: 44.42 | J158: 50.99 | K158: 41.77 | L158: 45.39 | M158: 48.57 | N158: 50.78 | O158: 55.16 | P158: 58.66 | Q158: 69.81 | R158: 85.6 | S158: 112.42 | T158: 143.7 | U158: 0.155 | V158: 0.5371685355
A159: 156 | B159: 33.7 | C159: 47.59 | D159: 28.09 | E159: 45.56 | F159: 42.95 | G159: 45.68 | H159: 43.43 | I159: 44.32 | J159: 50.88 | K159: 41.69 | L159: 45.29 | M159: 48.47 | N159: 50.68 | O159: 55.04 | P159: 58.53 | Q159: 69.66 | R159: 85.41 | S159: 112.18 | T159: 143.39 | U159: 0.156 | V159: 0.5383212612
A160: 157 | B160: 33.63 | C160: 47.49 | D160: 28.03 | E160: 45.46 | F160: 42.86 | G160: 45.58 | H160: 43.34 | I160: 44.23 | J160: 50.77 | K160: 41.6 | L160: 45.19 | M160: 48.36 | N160: 50.57 | O160: 54.92 | P160: 58.41 | Q160: 69.51 | R160: 85.23 | S160: 111.94 | T160: 143.09 | U160: 0.157 | V160: 0.5394690712
A161: 158 | B161: 33.56 | C161: 47.39 | D161: 27.97 | E161: 45.37 | F161: 42.77 | G161: 45.49 | H161: 43.25 | I161: 44.14 | J161: 50.66 | K161: 41.51 | L161: 45.1 | M161: 48.26 | N161: 50.46 | O161: 54.81 | P161: 58.29 | Q161: 69.37 | R161: 85.05 | S161: 111.71 | T161: 142.78 | U161: 0.158 | V161: 0.5406120176
A162: 159 | B162: 33.49 | C162: 47.29 | D162: 27.91 | E162: 45.27 | F162: 42.68 | G162: 45.39 | H162: 43.16 | I162: 44.04 | J162: 50.56 | K162: 41.42 | L162: 45 | M162: 48.16 | N162: 50.36 | O162: 54.69 | P162: 58.16 | Q162: 69.22 | R162: 84.87 | S162: 111.47 | T162: 142.48 | U162: 0.159 | V162: 0.5417501515
A163: 160 | B163: 33.42 | C163: 47.19 | D163: 27.85 | E163: 45.18 | F163: 42.59 | G163: 45.3 | H163: 43.07 | I163: 43.95 | J163: 50.45 | K163: 41.33 | L163: 44.91 | M163: 48.06 | N163: 50.25 | O163: 54.58 | P163: 58.04 | Q163: 69.08 | R163: 84.7 | S163: 111.24 | T163: 142.19 | U163: 0.16 | V163: 0.5428835233
A164: 161 | B164: 33.35 | C164: 47.09 | D164: 27.79 | E164: =ROUND(E$2/$V164,2) -> 45.08 | F164: 42.5 | G164: 45.2 | H164: 42.98 | I164: 43.86 | J164: 50.35 | K164: 41.25 | L164: 44.82 | M164: 47.96 | N164: 50.15 | O164: 54.47 | P164: 57.92 | Q164: 68.93 | R164: 84.52 | S164: 111.01 | T164: 141.89 | U164: 0.161 | V164: 0.5440121825
A165: 162 | B165: 33.28 | C165: 47 | D165: 27.74 | E165: 44.99 | F165: 42.41 | G165: 45.11 | H165: 42.89 | I165: 43.77 | J165: 50.24 | K165: 41.16 | L165: 44.72 | M165: 47.86 | N165: 50.04 | O165: 54.35 | P165: 57.8 | Q165: 68.79 | R165: 84.35 | S165: 110.78 | T165: 141.6 | U165: 0.162 | V165: 0.5451361778
A166: 163 | B166: 33.22 | C166: 46.9 | D166: 27.68 | E166: 44.9 | F166: 42.32 | G166: 45.02 | H166: 42.8 | I166: 43.68 | J166: 50.14 | K166: 41.08 | L166: 44.63 | M166: 47.76 | N166: 49.94 | O166: 54.24 | P166: 57.68 | Q166: 68.65 | R166: 84.17 | S166: 110.55 | T166: 141.31 | U166: 0.163 | V166: 0.5462555571
A167: 164 | B167: 33.15 | C167: 46.8 | D167: 27.62 | E167: 44.81 | F167: 42.24 | G167: 44.92 | H167: 42.71 | I167: 43.59 | J167: 50.04 | K167: 41 | L167: 44.54 | M167: 47.66 | N167: 49.84 | O167: 54.13 | P167: 57.57 | Q167: 68.51 | R167: 84 | S167: 110.33 | T167: 141.02 | U167: 0.164 | V167: 0.5473703675
A168: 165 | B168: 33.08 | C168: 46.71 | D168: 27.57 | E168: 44.71 | F168: 42.15 | G168: 44.83 | H168: 42.63 | I168: 43.5 | J168: 49.94 | K168: 40.91 | L168: 44.45 | M168: 47.57 | N168: 49.74 | O168: 54.02 | P168: 57.45 | Q168: 68.37 | R168: 83.83 | S168: 110.1 | T168: 140.73 | U168: 0.165 | V168: 0.5484806552
A169: 166 | B169: 33.01 | C169: 46.62 | D169: 27.51 | E169: 44.62 | F169: 42.07 | G169: 44.74 | H169: 42.54 | I169: 43.41 | J169: 49.84 | K169: 40.83 | L169: 44.36 | M169: 47.47 | N169: 49.64 | O169: 53.91 | P169: 57.33 | Q169: 68.23 | R169: 83.66 | S169: 109.88 | T169: 140.45 | U169: 0.166 | V169: 0.549586466
A170: 167 | B170: 32.95 | C170: 46.52 | D170: 27.46 | E170: 44.54 | F170: 41.98 | G170: 44.65 | H170: 42.46 | I170: 43.33 | J170: 49.74 | K170: 40.75 | L170: 44.27 | M170: 47.38 | N170: 49.54 | O170: 53.81 | P170: 57.22 | Q170: 68.1 | R170: 83.5 | S170: 109.66 | T170: 140.17 | U170: 0.167 | V170: 0.5506878446
A171: 168 | B171: 32.88 | C171: 46.43 | D171: 27.4 | E171: 44.45 | F171: 41.9 | G171: 44.56 | H171: 42.37 | I171: 43.24 | J171: 49.64 | K171: 40.67 | L171: 44.18 | M171: 47.28 | N171: 49.44 | O171: 53.7 | P171: 57.11 | Q171: 67.96 | R171: 83.33 | S171: 109.44 | T171: 139.89 | U171: 0.168 | V171: 0.5517848353
A172: 169 | B172: 32.82 | C172: 46.34 | D172: 27.35 | E172: 44.36 | F172: 41.82 | G172: 44.48 | H172: 42.29 | I172: 43.16 | J172: 49.54 | K172: 40.59 | L172: 44.1 | M172: 47.19 | N172: 49.34 | O172: 53.59 | P172: 56.99 | Q172: 67.83 | R172: 83.16 | S172: 109.23 | T172: 139.62 | U172: 0.169 | V172: 0.5528774814
A173: 170 | B173: 32.75 | C173: 46.25 | D173: 27.29 | E173: 44.27 | F173: 41.74 | G173: 44.39 | H173: 42.2 | I173: 43.07 | J173: 49.44 | K173: 40.51 | L173: 44.01 | M173: 47.1 | N173: 49.24 | O173: 53.49 | P173: 56.88 | Q173: 67.69 | R173: 83 | S173: 109.01 | T173: 139.34 | U173: 0.17 | V173: 0.5539658257
A174: 171 | B174: 32.69 | C174: 46.16 | D174: 27.24 | E174: =ROUND(E$2/$V174,2) -> 44.19 | F174: 41.65 | G174: 44.3 | H174: 42.12 | I174: 42.99 | J174: 49.35 | K174: 40.43 | L174: 43.92 | M174: 47 | N174: 49.15 | O174: 53.38 | P174: 56.77 | Q174: 67.56 | R174: 82.84 | S174: 108.8 | T174: 139.07 | U174: 0.171 | V174: 0.5550499103
A175: 172 | B175: 32.63 | C175: 46.07 | D175: 27.19 | E175: 44.1 | F175: 41.57 | G175: 44.22 | H175: 42.04 | I175: 42.9 | J175: 49.25 | K175: 40.35 | L175: 43.84 | M175: 46.91 | N175: 49.05 | O175: 53.28 | P175: 56.66 | Q175: 67.43 | R175: 82.68 | S175: 108.59 | T175: 138.8 | U175: 0.172 | V175: 0.5561297767
A176: 173 | B176: 32.56 | C176: 45.98 | D176: 27.14 | E176: 44.01 | F176: 41.49 | G176: 44.13 | H176: 41.96 | I176: 42.82 | J176: 49.16 | K176: 40.27 | L176: 43.75 | M176: 46.82 | N176: 48.96 | O176: 53.18 | P176: 56.55 | Q176: 67.3 | R176: 82.52 | S176: 108.38 | T176: 138.53 | U176: 0.173 | V176: 0.5572054656
A177: 174 | B177: 32.5 | C177: 45.89 | D177: 27.08 | E177: 43.93 | F177: 41.41 | G177: 44.05 | H177: 41.88 | I177: 42.74 | J177: 49.06 | K177: 40.2 | L177: 43.67 | M177: 46.73 | N177: 48.86 | O177: 53.07 | P177: 56.44 | Q177: 67.17 | R177: 82.36 | S177: 108.17 | T177: 138.26 | U177: 0.174 | V177: 0.5582770172
A178: 175 | B178: 32.44 | C178: 45.8 | D178: 27.03 | E178: 43.85 | F178: 41.33 | G178: 43.96 | H178: 41.8 | I178: 42.66 | J178: 48.97 | K178: 40.12 | L178: 43.59 | M178: 46.64 | N178: 48.77 | O178: 52.97 | P178: 56.33 | Q178: 67.04 | R178: 82.2 | S178: 107.97 | T178: 138 | U178: 0.175 | V178: 0.559344471
A179: 176 | B179: 32.38 | C179: 45.71 | D179: 26.98 | E179: 43.76 | F179: 41.26 | G179: 43.88 | H179: 41.72 | I179: 42.58 | J179: 48.88 | K179: 40.04 | L179: 43.5 | M179: 46.56 | N179: 48.68 | O179: 52.87 | P179: 56.23 | Q179: 66.92 | R179: 82.05 | S179: 107.76 | T179: 137.74 | U179: 0.176 | V179: 0.5604078661
A180: 177 | B180: 32.32 | C180: 45.63 | D180: 26.93 | E180: 43.68 | F180: 41.18 | G180: 43.8 | H180: 41.64 | I180: 42.5 | J180: 48.78 | K180: 39.97 | L180: 43.42 | M180: 46.47 | N180: 48.59 | O180: 52.77 | P180: 56.12 | Q180: 66.79 | R180: 81.89 | S180: 107.56 | T180: 137.48 | U180: 0.177 | V180: 0.5614672408
A181: 178 | B181: 32.25 | C181: 45.54 | D181: 26.88 | E181: 43.6 | F181: 41.1 | G181: 43.71 | H181: 41.56 | I181: 42.42 | J181: 48.69 | K181: 39.89 | L181: 43.34 | M181: 46.38 | N181: 48.5 | O181: 52.67 | P181: 56.02 | Q181: 66.66 | R181: 81.74 | S181: 107.36 | T181: 137.22 | U181: 0.178 | V181: 0.5625226328
A182: 179 | B182: 32.19 | C182: 45.46 | D182: 26.83 | E182: 43.52 | F182: 41.02 | G182: 43.63 | H182: 41.49 | I182: 42.34 | J182: 48.6 | K182: 39.82 | L182: 43.26 | M182: 46.29 | N182: 48.41 | O182: 52.58 | P182: 55.91 | Q182: 66.54 | R182: 81.59 | S182: 107.16 | T182: 136.97 | U182: 0.179 | V182: 0.5635740795
A183: 180 | B183: 32.13 | C183: 45.37 | D183: 26.78 | E183: 43.44 | F183: 40.95 | G183: 43.55 | H183: 41.41 | I183: 42.26 | J183: 48.51 | K183: 39.74 | L183: 43.18 | M183: 46.21 | N183: 48.32 | O183: 52.48 | P183: 55.81 | Q183: 66.42 | R183: 81.44 | S183: 106.96 | T183: 136.71 | U183: 0.18 | V183: 0.5646216173
A184: 181 | B184: 32.08 | C184: 45.29 | D184: 26.73 | E184: =ROUND(E$2/$V184,2) -> 43.36 | F184: 40.87 | G184: 43.47 | H184: 41.33 | I184: 42.18 | J184: 48.42 | K184: 39.67 | L184: 43.1 | M184: 46.12 | N184: 48.23 | O184: 52.38 | P184: 55.7 | Q184: 66.29 | R184: 81.28 | S184: 106.76 | T184: 136.46 | U184: 0.181 | V184: 0.5656652826
A185: 182 | B185: 32.02 | C185: 45.21 | D185: 26.68 | E185: 43.28 | F185: 40.8 | G185: 43.39 | H185: 41.26 | I185: 42.1 | J185: 48.33 | K185: 39.6 | L185: 43.02 | M185: 46.04 | N185: 48.14 | O185: 52.28 | P185: 55.6 | Q185: 66.17 | R185: 81.14 | S185: 106.56 | T185: 136.21 | U185: 0.182 | V185: 0.5667051108
A186: 183 | B186: 31.96 | C186: 45.12 | D186: 26.63 | E186: 43.2 | F186: 40.72 | G186: 43.31 | H186: 41.18 | I186: 42.03 | J186: 48.24 | K186: 39.53 | L186: 42.94 | M186: 45.95 | N186: 48.05 | O186: 52.19 | P186: 55.5 | Q186: 66.05 | R186: 80.99 | S186: 106.37 | T186: 135.96 | U186: 0.183 | V186: 0.5677411371
A187: 184 | B187: 31.9 | C187: 45.04 | D187: 26.58 | E187: 43.12 | F187: 40.65 | G187: 43.23 | H187: 41.11 | I187: 41.95 | J187: 48.16 | K187: 39.45 | L187: 42.86 | M187: 45.87 | N187: 47.96 | O187: 52.09 | P187: 55.4 | Q187: 65.93 | R187: 80.84 | S187: 106.18 | T187: 135.71 | U187: 0.184 | V187: 0.568773396
A188: 185 | B188: 31.84 | C188: 44.96 | D188: 26.54 | E188: 43.04 | F188: 40.58 | G188: 43.16 | H188: 41.03 | I188: 41.87 | J188: 48.07 | K188: 39.38 | L188: 42.79 | M188: 45.79 | N188: 47.88 | O188: 52 | P188: 55.3 | Q188: 65.81 | R188: 80.69 | S188: 105.98 | T188: 135.47 | U188: 0.185 | V188: 0.5698019215
A189: 186 | B189: 31.79 | C189: 44.88 | D189: 26.49 | E189: 42.96 | F189: 40.5 | G189: 43.08 | H189: 40.96 | I189: 41.8 | J189: 47.98 | K189: 39.31 | L189: 42.71 | M189: 45.71 | N189: 47.79 | O189: 51.91 | P189: 55.2 | Q189: 65.69 | R189: 80.55 | S189: 105.79 | T189: 135.22 | U189: 0.186 | V189: 0.5708267473
A190: 187 | B190: 31.73 | C190: 44.8 | D190: 26.44 | E190: 42.89 | F190: 40.43 | G190: 43 | H190: 40.88 | I190: 41.72 | J190: 47.9 | K190: 39.24 | L190: 42.63 | M190: 45.62 | N190: 47.7 | O190: 51.81 | P190: 55.1 | Q190: 65.58 | R190: 80.41 | S190: 105.61 | T190: 134.98 | U190: 0.187 | V190: 0.5718479065
A191: 188 | B191: 31.67 | C191: 44.72 | D191: 26.39 | E191: 42.81 | F191: 40.36 | G191: 42.92 | H191: 40.81 | I191: 41.65 | J191: 47.81 | K191: 39.17 | L191: 42.56 | M191: 45.54 | N191: 47.62 | O191: 51.72 | P191: 55 | Q191: 65.46 | R191: 80.26 | S191: 105.42 | T191: 134.74 | U191: 0.188 | V191: 0.5728654316
A192: 189 | B192: 31.62 | C192: 44.64 | D192: 26.35 | E192: 42.74 | F192: 40.29 | G192: 42.85 | H192: 40.74 | I192: 41.58 | J192: 47.73 | K192: 39.1 | L192: 42.48 | M192: 45.46 | N192: 47.54 | O192: 51.63 | P192: 54.91 | Q192: 65.34 | R192: 80.12 | S192: 105.23 | T192: 134.51 | U192: 0.189 | V192: 0.5738793548
A193: 190 | B193: 31.56 | C193: 44.56 | D193: 26.3 | E193: 42.66 | F193: 40.22 | G193: 42.77 | H193: 40.67 | I193: 41.5 | J193: 47.64 | K193: 39.03 | L193: 42.41 | M193: 45.38 | N193: 47.45 | O193: 51.54 | P193: 54.81 | Q193: 65.23 | R193: 79.98 | S193: 105.05 | T193: 134.27 | U193: 0.19 | V193: 0.5748897079
A194: 191 | B194: 31.51 | C194: 44.49 | D194: 26.25 | E194: =ROUND(E$2/$V194,2) -> 42.59 | F194: 40.15 | G194: 42.7 | H194: 40.6 | I194: 41.43 | J194: 47.56 | K194: 38.97 | L194: 42.33 | M194: 45.3 | N194: 47.37 | O194: 51.45 | P194: 54.71 | Q194: 65.12 | R194: 79.84 | S194: 104.86 | T194: 134.03 | U194: 0.191 | V194: 0.575896522
A195: 192 | B195: 31.45 | C195: 44.41 | D195: 26.21 | E195: 42.51 | F195: 40.08 | G195: 42.62 | H195: 40.53 | I195: 41.36 | J195: 47.48 | K195: 38.9 | L195: 42.26 | M195: 45.22 | N195: 47.29 | O195: 51.36 | P195: 54.62 | Q195: 65 | R195: 79.7 | S195: 104.68 | T195: 133.8 | U195: 0.192 | V195: 0.5768998281
A196: 193 | B196: 31.4 | C196: 44.33 | D196: 26.16 | E196: 42.44 | F196: 40.01 | G196: 42.55 | H196: 40.46 | I196: 41.29 | J196: 47.4 | K196: 38.83 | L196: 42.19 | M196: 45.15 | N196: 47.21 | O196: 51.27 | P196: 54.53 | Q196: 64.89 | R196: 79.56 | S196: 104.5 | T196: 133.57 | U196: =A196/1000 -> 0.193 | V196: =POWER(U196,1/3) -> 0.5778996565
A197: 194 | B197: 31.34 | C197: 44.25 | D197: =ROUND(D$2/$V197,2) -> 26.12 | E197: 42.37 | F197: 39.94 | G197: 42.48 | H197: 40.39 | I197: 41.22 | J197: 47.31 | K197: 38.76 | L197: 42.11 | M197: 45.07 | N197: 47.12 | O197: 51.18 | P197: 54.43 | Q197: 64.78 | R197: 79.43 | S197: 104.32 | T197: 133.34 | U197: 0.194 | V197: 0.5788960372
A198: 195 | B198: 31.29 | C198: 44.18 | D198: 26.07 | E198: 42.29 | F198: 39.87 | G198: 42.4 | H198: 40.32 | I198: 41.15 | J198: 47.23 | K198: 38.7 | L198: 42.04 | M198: 44.99 | N198: 47.04 | O198: 51.1 | P198: 54.34 | Q198: 64.67 | R198: 79.29 | S198: 104.14 | T198: 133.11 | U198: 0.195 | V198: 0.5798889998
A199: 196 | B199: 31.24 | C199: 44.1 | D199: 26.03 | E199: 42.22 | F199: 39.8 | G199: 42.33 | H199: 40.25 | I199: 41.08 | J199: 47.15 | K199: 38.63 | L199: 41.97 | M199: 44.91 | N199: 46.96 | O199: 51.01 | P199: 54.25 | Q199: 64.56 | R199: 79.16 | S199: 103.96 | T199: 132.88 | U199: 0.196 | V199: 0.5808785734
A200: 197 | B200: 31.18 | C200: 44.03 | D200: 25.99 | E200: 42.15 | F200: 39.73 | G200: 42.26 | H200: 40.18 | I200: 41.01 | J200: 47.07 | K200: 38.57 | L200: 41.9 | M200: 44.84 | N200: 46.88 | O200: 50.92 | P200: 54.15 | Q200: 64.45 | R200: 79.02 | S200: 103.79 | T200: 132.66 | U200: 0.197 | V200: 0.5818647867
A201: 198 | B201: 31.13 | C201: 43.95 | D201: 25.94 | E201: 42.08 | F201: 39.67 | G201: 42.19 | H201: 40.11 | I201: 40.94 | J201: 46.99 | K201: 38.5 | L201: 41.83 | M201: 44.76 | N201: 46.8 | O201: 50.84 | P201: 54.06 | Q201: 64.34 | R201: 78.89 | S201: 103.61 | T201: 132.44 | U201: 0.198 | V201: 0.5828476683
... 1004 more rows

Sheet 50FR F (hidden)
A1: Score | B1: S19 | C1: S18 | D1: S17 | E1: S16 | F1: S15 | G1: S14 | H1: S13 | I1: S12 | J1: S11 | K1: S10 | L1: S9 | M1: S8 | N1: S7 | O1: S6 | P1: S5 | Q1: S4 | R1: S3 | S1: S2 | T1: S1 | U1: score/1000 | V1: Power
B2: 20.637 | C2: 28.7895 | D2: 17.1975 | E2: 27.909 | F2: 25.81 | G2: 27.55 | H2: 27.07 | I2: 26.54 | J2: 30.14 | K2: 27.22 | L2: 28.2 | M2: 30.41 | N2: 32.17 | O2: 34.22 | P2: 37.39 | Q2: 40.74 | R2: 47.28 | S2: 56.02 | T2: 54.15
A4: 1 | B4: =ROUND(B$2/$V4,2) -> 206.37 | C4: 287.9 | D4: 171.98 | E4: =ROUND(E$2/$V4,2) -> 279.09 | F4: 258.1 | G4: 275.5 | H4: 270.7 | I4: 265.4 | J4: 301.4 | K4: 272.2 | L4: 282 | M4: 304.1 | N4: 321.7 | O4: 342.2 | P4: 373.9 | Q4: 407.4 | R4: 472.8 | S4: 560.2 | T4: 541.5 | U4: =A4/1000 -> 0.001 | V4: =POWER(U4,1/3) -> 0.1
A5: 2 | B5: 163.8 | C5: 228.5 | D5: 136.5 | E5: 221.51 | F5: 204.85 | G5: 218.66 | H5: 214.85 | I5: 210.65 | J5: 239.22 | K5: 216.05 | L5: 223.82 | M5: 241.36 | N5: 255.33 | O5: 271.6 | P5: 296.76 | Q5: 323.35 | R5: 375.26 | S5: 444.63 | T5: 429.79 | U5: 0.002 | V5: 0.125992105
A6: 3 | B6: 143.09 | C6: 199.62 | D6: 119.24 | E6: 193.51 | F6: 178.96 | G6: 191.02 | H6: 187.69 | I6: 184.02 | J6: 208.98 | K6: 188.73 | L6: 195.53 | M6: 210.85 | N6: 223.05 | O6: 237.27 | P6: 259.25 | Q6: 282.48 | R6: 327.82 | S6: 388.42 | T6: 375.46 | U6: 0.003 | V6: 0.144224957
A7: 4 | B7: 130 | C7: 181.36 | D7: 108.34 | E7: 175.82 | F7: 162.59 | G7: 173.55 | H7: 170.53 | I7: 167.19 | J7: 189.87 | K7: 171.48 | L7: 177.65 | M7: 191.57 | N7: 202.66 | O7: 215.57 | P7: 235.54 | Q7: 256.65 | R7: 297.85 | S7: 352.9 | T7: 341.12 | U7: 0.004 | V7: 0.1587401052
A8: 5 | B8: 120.69 | C8: 168.36 | D8: 100.57 | E8: 163.21 | F8: 150.94 | G8: 161.11 | H8: 158.31 | I8: 155.21 | J8: 176.26 | K8: 159.18 | L8: 164.91 | M8: 177.84 | N8: 188.13 | O8: 200.12 | P8: 218.66 | Q8: 238.25 | R8: 276.5 | S8: 327.61 | T8: 316.67 | U8: 0.005 | V8: 0.1709975947
A9: 6 | B9: 113.57 | C9: 158.43 | D9: 94.64 | E9: 153.59 | F9: 142.04 | G9: 151.61 | H9: 148.97 | I9: 146.06 | J9: 165.87 | K9: 149.8 | L9: 155.19 | M9: 167.35 | N9: 177.04 | O9: 188.32 | P9: 205.77 | Q9: 224.2 | R9: 260.19 | S9: 308.29 | T9: 298 | U9: 0.006 | V9: 0.1817120593
A10: 7 | B10: 107.88 | C10: 150.5 | D10: 89.9 | E10: 145.9 | F10: 134.92 | G10: 144.02 | H10: 141.51 | I10: 138.74 | J10: 157.56 | K10: 142.29 | L10: 147.42 | M10: 158.97 | N10: 168.17 | O10: 178.89 | P10: 195.46 | Q10: 212.97 | R10: 247.16 | S10: 292.85 | T10: 283.07 | U10: 0.007 | V10: 0.1912931183
A11: 8 | B11: 103.19 | C11: 143.95 | D11: 85.99 | E11: 139.55 | F11: 129.05 | G11: 137.75 | H11: 135.35 | I11: 132.7 | J11: 150.7 | K11: 136.1 | L11: 141 | M11: 152.05 | N11: 160.85 | O11: 171.1 | P11: 186.95 | Q11: 203.7 | R11: 236.4 | S11: 280.1 | T11: 270.75 | U11: 0.008 | V11: 0.2
A12: 9 | B12: 99.21 | C12: 138.41 | D12: 82.68 | E12: 134.17 | F12: 124.08 | G12: 132.45 | H12: 130.14 | I12: 127.59 | J12: 144.9 | K12: 130.86 | L12: 135.57 | M12: 146.2 | N12: 154.66 | O12: 164.51 | P12: 179.75 | Q12: 195.86 | R12: 227.3 | S12: 269.32 | T12: 260.33 | U12: 0.009 | V12: 0.2080083823
A13: 10 | B13: 95.79 | C13: 133.63 | D13: 79.82 | E13: 129.54 | F13: 119.8 | G13: 127.88 | H13: 125.65 | I13: 123.19 | J13: 139.9 | K13: 126.34 | L13: 130.89 | M13: 141.15 | N13: 149.32 | O13: 158.84 | P13: 173.55 | Q13: 189.1 | R13: 219.45 | S13: 260.02 | T13: 251.34 | U13: 0.01 | V13: 0.215443469
A14: 11 | B14: 92.79 | C14: 129.45 | D14: 77.33 | E14: =ROUND(E$2/$V14,2) -> 125.49 | F14: 116.05 | G14: 123.88 | H14: 121.72 | I14: 119.34 | J14: 135.52 | K14: 122.39 | L14: 126.8 | M14: 136.74 | N14: 144.65 | O14: 153.87 | P14: 168.12 | Q14: 183.19 | R14: 212.59 | S14: 251.89 | T14: 243.48 | U14: 0.011 | V14: 0.2223980091
A15: 12 | B15: 90.14 | C15: 125.75 | D15: 75.12 | E15: 121.9 | F15: 112.74 | G15: 120.34 | H15: 118.24 | I15: 115.92 | J15: 131.65 | K15: 118.89 | L15: 123.17 | M15: 132.83 | N15: 140.52 | O15: 149.47 | P15: 163.32 | Q15: 177.95 | R15: 206.51 | S15: 244.69 | T15: 236.52 | U15: 0.012 | V15: 0.2289428485
A16: 13 | B16: 87.77 | C16: 122.44 | D16: 73.14 | E16: 118.69 | F16: 109.77 | G16: 117.17 | H16: 115.13 | I16: 112.87 | J16: 128.18 | K16: 115.76 | L16: 119.93 | M16: 129.33 | N16: 136.82 | O16: 145.53 | P16: 159.02 | Q16: 173.26 | R16: 201.08 | S16: 238.25 | T16: 230.29 | U16: 0.013 | V16: 0.2351334688
A17: 14 | B17: 85.63 | C17: 119.45 | D17: 71.35 | E17: 115.8 | F17: 107.09 | G17: 114.31 | H17: 112.32 | I17: 110.12 | J17: 125.05 | K17: 112.94 | L17: 117.01 | M17: 126.18 | N17: 133.48 | O17: 141.98 | P17: 155.14 | Q17: 169.04 | R17: 196.17 | S17: 232.43 | T17: 224.68 | U17: 0.014 | V17: 0.2410142264
A18: 15 | B18: 83.68 | C18: 116.74 | D18: 69.73 | E18: 113.17 | F18: 104.65 | G18: 111.71 | H18: 109.76 | I18: 107.61 | J18: 122.21 | K18: 110.37 | L18: 114.35 | M18: 123.31 | N18: 130.44 | O18: 138.76 | P18: 151.61 | Q18: 165.19 | R18: 191.71 | S18: 227.15 | T18: 219.57 | U18: 0.015 | V18: 0.2466212074
A19: 16 | B19: 81.9 | C19: 114.25 | D19: 68.25 | E19: 110.76 | F19: 102.43 | G19: 109.33 | H19: 107.43 | I19: 105.32 | J19: 119.61 | K19: 108.02 | L19: 111.91 | M19: 120.68 | N19: 127.67 | O19: 135.8 | P19: 148.38 | Q19: 161.68 | R19: 187.63 | S19: 222.32 | T19: 214.89 | U19: 0.016 | V19: 0.25198421
A20: 17 | B20: =ROUND(B$2/$V20,2) -> 80.26 | C20: 111.97 | D20: =ROUND(D$2/$V20,2) -> 66.88 | E20: 108.54 | F20: 100.38 | G20: 107.15 | H20: 105.28 | I20: 103.22 | J20: 117.22 | K20: 105.86 | L20: 109.67 | M20: 118.27 | N20: 125.11 | O20: 133.09 | P20: 145.41 | Q20: 158.44 | R20: 183.88 | S20: 217.87 | T20: 210.6 | U20: 0.017 | V20: 0.2571281591
A21: 18 | B21: 78.74 | C21: 109.85 | D21: 65.62 | E21: 106.49 | F21: 98.48 | G21: 105.12 | H21: 103.29 | I21: 101.27 | J21: 115.01 | K21: 103.86 | L21: 107.6 | M21: 116.04 | N21: 122.75 | O21: 130.57 | P21: 142.67 | Q21: 155.45 | R21: 180.41 | S21: 213.76 | T21: 206.62 | U21: 0.018 | V21: 0.2620741394
A22: 19 | B22: 77.34 | C22: 107.89 | D22: 64.45 | E22: 104.59 | F22: 96.72 | G22: 103.25 | H22: 101.45 | I22: 99.46 | J22: 112.95 | K22: 102.01 | L22: 105.68 | M22: 113.96 | N22: 120.56 | O22: 128.24 | P22: 140.12 | Q22: 152.68 | R22: 177.18 | S22: 209.94 | T22: 202.93 | U22: 0.019 | V22: 0.2668401649
A23: 20 | B23: 76.03 | C23: 106.06 | D23: 63.36 | E23: 102.82 | F23: 95.08 | G23: 101.5 | H23: 99.73 | I23: 97.77 | J23: 111.04 | K23: 100.28 | L23: 103.89 | M23: 112.03 | N23: 118.52 | O23: 126.07 | P23: 137.75 | Q23: 150.09 | R23: 174.18 | S23: 206.38 | T23: 199.49 | U23: 0.02 | V23: 0.2714417617
A24: 21 | B24: 74.8 | C24: 104.35 | D24: 62.33 | E24: =ROUND(E$2/$V24,2) -> 101.16 | F24: 93.55 | G24: 99.86 | H24: 98.12 | I24: 96.2 | J24: 109.25 | K24: 98.66 | L24: 102.21 | M24: 110.22 | N24: 116.6 | O24: 124.03 | P24: 135.52 | Q24: 147.67 | R24: 171.37 | S24: 203.05 | T24: 196.27 | U24: 0.021 | V24: 0.2758924176
A25: 22 | B25: 73.65 | C25: 102.74 | D25: 61.37 | E25: 99.6 | F25: 92.11 | G25: 98.32 | H25: 96.61 | I25: 94.72 | J25: 107.56 | K25: 97.14 | L25: 100.64 | M25: 108.53 | N25: 114.81 | O25: 122.13 | P25: 133.44 | Q25: 145.39 | R25: 168.73 | S25: 199.93 | T25: 193.25 | U25: 0.022 | V25: 0.2802039331
A26: 23 | B26: 72.57 | C26: 101.23 | D26: 60.47 | E26: 98.14 | F26: 90.76 | G26: 96.88 | H26: 95.19 | I26: 93.32 | J26: 105.98 | K26: 95.71 | L26: 99.16 | M26: 106.93 | N26: 113.12 | O26: 120.33 | P26: 131.48 | Q26: 143.26 | R26: 166.25 | S26: 196.99 | T26: 190.41 | U26: 0.023 | V26: 0.284386698
A27: 24 | B27: 71.54 | C27: 99.81 | D27: 59.62 | E27: 96.76 | F27: 89.48 | G27: 95.51 | H27: 93.85 | I27: 92.01 | J27: 104.49 | K27: 94.37 | L27: 97.76 | M27: 105.43 | N27: 111.53 | O27: 118.63 | P27: 129.62 | Q27: 141.24 | R27: 163.91 | S27: 194.21 | T27: 187.73 | U27: 0.024 | V27: 0.2884499141
A28: 25 | B28: 70.58 | C28: 98.46 | D28: 58.81 | E28: 95.45 | F28: 88.27 | G28: 94.22 | H28: 92.58 | I28: 90.77 | J28: 103.08 | K28: 93.09 | L28: 96.44 | M28: 104 | N28: 110.02 | O28: 117.03 | P28: 127.87 | Q28: 139.33 | R28: 161.7 | S28: 191.59 | T28: 185.19 | U28: 0.025 | V28: 0.2924017738
A29: 26 | B29: 69.66 | C29: 97.18 | D29: 58.05 | E29: 94.21 | F29: 87.12 | G29: 93 | H29: 91.38 | I29: 89.59 | J29: 101.74 | K29: 91.88 | L29: 95.19 | M29: 102.65 | N29: 108.59 | O29: 115.51 | P29: 126.21 | Q29: 137.52 | R29: 159.6 | S29: 189.1 | T29: 182.79 | U29: 0.026 | V29: 0.2962496068
A30: 27 | B30: 68.79 | C30: 95.97 | D30: 57.33 | E30: 93.03 | F30: 86.03 | G30: 91.83 | H30: 90.23 | I30: 88.47 | J30: 100.47 | K30: 90.73 | L30: 94 | M30: 101.37 | N30: 107.23 | O30: 114.07 | P30: 124.63 | Q30: 135.8 | R30: 157.6 | S30: 186.73 | T30: 180.5 | U30: 0.027 | V30: 0.3
A31: 28 | B31: 67.96 | C31: 94.81 | D31: 56.63 | E31: 91.91 | F31: 85 | G31: 90.73 | H31: 89.15 | I31: 87.4 | J31: 99.26 | K31: 89.64 | L31: 92.87 | M31: 100.15 | N31: 105.94 | O31: 112.69 | P31: 123.13 | Q31: 134.16 | R31: 155.7 | S31: 184.48 | T31: 178.33 | U31: 0.028 | V31: 0.3036588972
A32: 29 | B32: 67.17 | C32: 93.71 | D32: 55.98 | E32: 90.84 | F32: 84.01 | G32: 89.67 | H32: 88.11 | I32: 86.38 | J32: 98.1 | K32: 88.6 | L32: 91.79 | M32: 98.98 | N32: 104.71 | O32: 111.38 | P32: 121.7 | Q32: 132.6 | R32: 153.89 | S32: 182.34 | T32: 176.25 | U32: 0.029 | V32: 0.3072316826
A33: 30 | B33: 66.42 | C33: 92.65 | D33: 55.35 | E33: 89.82 | F33: 83.06 | G33: 88.66 | H33: 87.12 | I33: 85.41 | J33: 97 | K33: 87.6 | L33: 90.76 | M33: 97.87 | N33: 103.53 | O33: 110.13 | P33: 120.33 | Q33: 131.11 | R33: 152.16 | S33: 180.29 | T33: 174.27 | U33: 0.03 | V33: 0.3107232506
A34: 31 | B34: 65.69 | C34: 91.65 | D34: 54.75 | E34: =ROUND(E$2/$V34,2) -> 88.84 | F34: 82.16 | G34: 87.7 | H34: 86.17 | I34: 84.49 | J34: 95.95 | K34: 86.65 | L34: 89.77 | M34: 96.8 | N34: 102.41 | O34: 108.93 | P34: 119.02 | Q34: 129.69 | R34: 150.51 | S34: 178.33 | T34: 172.38 | U34: 0.031 | V34: 0.3141380652
A35: 32 | B35: 65 | C35: 90.68 | D35: 54.17 | E35: 87.91 | F35: 81.3 | G35: 86.78 | H35: 85.27 | I35: 83.6 | J35: 94.94 | K35: 85.74 | L35: 88.82 | M35: 95.79 | N35: 101.33 | O35: 107.79 | P35: 117.77 | Q35: 128.32 | R35: 148.92 | S35: 176.45 | T35: 170.56 | U35: 0.032 | V35: 0.3174802104
A36: 33 | B36: 64.34 | C36: 89.76 | D36: 53.62 | E36: 87.01 | F36: 80.47 | G36: 85.89 | H36: 84.4 | I36: 82.74 | J36: 93.97 | K36: 84.86 | L36: 87.92 | M36: 94.81 | N36: 100.3 | O36: 106.69 | P36: 116.57 | Q36: 127.01 | R36: 147.4 | S36: 174.65 | T36: 168.82 | U36: 0.033 | V36: 0.320753433
A37: 34 | B37: 63.7 | C37: 88.87 | D37: 53.09 | E37: 86.15 | F37: 79.67 | G37: 85.04 | H37: 83.56 | I37: 81.92 | J37: 93.04 | K37: 84.02 | L37: 87.05 | M37: 93.87 | N37: 99.3 | O37: 105.63 | P37: 115.42 | Q37: 125.76 | R37: 145.94 | S37: 172.92 | T37: 167.15 | U37: 0.034 | V37: 0.3239611801
A38: 35 | B38: 63.09 | C38: 88.01 | D38: 52.57 | E38: 85.32 | F38: 78.9 | G38: 84.22 | H38: 82.76 | I38: 81.14 | J38: 92.14 | K38: 83.21 | L38: 86.21 | M38: 92.97 | N38: 98.35 | O38: 104.61 | P38: 114.31 | Q38: 124.55 | R38: 144.54 | S38: 171.26 | T38: 165.54 | U38: 0.035 | V38: 0.327106631
A39: 36 | B39: 62.5 | C39: 87.19 | D39: 52.08 | E39: 84.52 | F39: 78.17 | G39: 83.44 | H39: 81.98 | I39: 80.38 | J39: 91.28 | K39: 82.44 | L39: 85.4 | M39: 92.1 | N39: 97.43 | O39: 103.64 | P39: 113.24 | Q39: 123.38 | R39: 143.19 | S39: 169.66 | T39: 164 | U39: 0.036 | V39: 0.3301927249
A40: 37 | B40: 61.93 | C40: 86.4 | D40: 51.61 | E40: 83.75 | F40: 77.46 | G40: 82.68 | H40: 81.24 | I40: 79.65 | J40: 90.45 | K40: 81.69 | L40: 84.63 | M40: 91.26 | N40: 96.54 | O40: 102.69 | P40: 112.21 | Q40: 122.26 | R40: 141.89 | S40: 168.12 | T40: 162.5 | U40: 0.037 | V40: 0.3332221852
A41: 38 | B41: 61.38 | C41: 85.63 | D41: 51.15 | E41: 83.01 | F41: 76.77 | G41: 81.95 | H41: 80.52 | I41: 78.94 | J41: 89.65 | K41: 80.96 | L41: 83.88 | M41: 90.45 | N41: 95.69 | O41: 101.79 | P41: 111.21 | Q41: 121.18 | R41: 140.63 | S41: 166.63 | T41: 161.07 | U41: 0.038 | V41: 0.3361975407
A42: 39 | B42: 60.85 | C42: 84.89 | D42: 50.71 | E42: 82.3 | F42: 76.11 | G42: 81.24 | H42: 79.82 | I42: 78.26 | J42: 88.88 | K42: 80.27 | L42: 83.16 | M42: 89.67 | N42: 94.86 | O42: 100.91 | P42: 110.26 | Q42: 120.13 | R42: 139.42 | S42: 165.19 | T42: 159.68 | U42: 0.039 | V42: 0.3391211443
A43: 40 | B43: 60.34 | C43: 84.18 | D43: 50.29 | E43: 81.61 | F43: 75.47 | G43: 80.56 | H43: 79.15 | I43: 77.6 | J43: 88.13 | K43: 79.59 | L43: 82.46 | M43: 88.92 | N43: 94.07 | O43: 100.06 | P43: 109.33 | Q43: 119.12 | R43: 138.25 | S43: 163.8 | T43: 158.34 | U43: 0.04 | V43: 0.3419951893
A44: 41 | B44: 59.85 | C44: 83.49 | D44: 49.87 | E44: =ROUND(E$2/$V44,2) -> 80.94 | F44: 74.85 | G44: 79.9 | H44: 78.5 | I44: 76.97 | J44: 87.41 | K44: 78.94 | L44: 81.78 | M44: 88.19 | N44: 93.29 | O44: 99.24 | P44: 108.43 | Q44: 118.15 | R44: 137.11 | S44: 162.46 | T44: 157.04 | U44: 0.041 | V44: 0.344821724
A45: 42 | B45: 59.37 | C45: 82.82 | D45: 49.47 | E45: 80.29 | F45: 74.25 | G45: 79.26 | H45: 77.88 | I45: 76.35 | J45: 86.71 | K45: 78.31 | L45: 81.13 | M45: 87.48 | N45: 92.55 | O45: 98.45 | P45: 107.57 | Q45: 117.2 | R45: 136.02 | S45: 161.16 | T45: 155.78 | U45: 0.042 | V45: 0.3476026645
A46: 43 | B46: 58.91 | C46: 82.18 | D46: 49.09 | E46: 79.66 | F46: 73.67 | G46: 78.64 | H46: 77.27 | I46: 75.76 | J46: 86.03 | K46: 77.7 | L46: 80.49 | M46: 86.8 | N46: 91.83 | O46: 97.68 | P46: 106.72 | Q46: 116.29 | R46: 134.95 | S46: 159.9 | T46: 154.56 | U46: 0.043 | V46: 0.350339806
A47: 44 | B47: 58.46 | C47: 81.55 | D47: 48.71 | E47: 79.05 | F47: 73.11 | G47: 78.04 | H47: 76.68 | I47: 75.18 | J47: 85.37 | K47: 77.1 | L47: 79.88 | M47: 86.14 | N47: 91.12 | O47: 96.93 | P47: 105.91 | Q47: 115.4 | R47: 133.92 | S47: 158.68 | T47: 153.38 | U47: 0.044 | V47: 0.3530348335
A48: 45 | B48: 58.02 | C48: 80.94 | D48: 48.35 | E48: 78.46 | F48: 72.56 | G48: 77.46 | H48: 76.11 | I48: 74.62 | J48: 84.74 | K48: 76.53 | L48: 79.28 | M48: 85.5 | N48: 90.44 | O48: 96.21 | P48: 105.12 | Q48: 114.54 | R48: 132.92 | S48: 157.5 | T48: 152.24 | U48: 0.045 | V48: 0.3556893304
A49: 46 | B49: 57.6 | C49: 80.35 | D49: 48 | E49: 77.89 | F49: 72.03 | G49: 76.89 | H49: 75.55 | I49: 74.07 | J49: 84.12 | K49: 75.97 | L49: 78.7 | M49: 84.87 | N49: 89.78 | O49: 95.51 | P49: 104.35 | Q49: 113.7 | R49: 131.95 | S49: 156.35 | T49: 151.13 | U49: 0.046 | V49: 0.3583047871
A50: 47 | B50: 57.18 | C50: 79.78 | D50: 47.65 | E50: 77.34 | F50: 71.52 | G50: 76.34 | H50: 75.01 | I50: 73.54 | J50: 83.52 | K50: 75.43 | L50: 78.14 | M50: 84.27 | N50: 89.14 | O50: 94.82 | P50: 103.61 | Q50: 112.89 | R50: 131.01 | S50: 155.23 | T50: 150.05 | U50: 0.047 | V50: 0.360882608
A51: 48 | B51: 56.78 | C51: 79.22 | D51: 47.32 | E51: 76.79 | F51: 71.02 | G51: 75.81 | H51: 74.49 | I51: 73.03 | J51: 82.93 | K51: 74.9 | L51: 77.6 | M51: 83.68 | N51: 88.52 | O51: 94.16 | P51: 102.88 | Q51: 112.1 | R51: 130.1 | S51: 154.14 | T51: 149 | U51: 0.048 | V51: 0.3634241186
A52: 49 | B52: 56.4 | C52: 78.67 | D52: 47 | E52: 76.27 | F52: 70.53 | G52: 75.29 | H52: 73.98 | I52: 72.53 | J52: 82.37 | K52: 74.39 | L52: 77.06 | M52: 83.1 | N52: 87.91 | O52: 93.52 | P52: 102.18 | Q52: 111.33 | R52: 129.2 | S52: 153.09 | T52: 147.98 | U52: 0.049 | V52: 0.365930571
A53: 50 | B53: 56.02 | C53: 78.15 | D53: 46.68 | E53: 75.76 | F53: 70.06 | G53: 74.78 | H53: 73.48 | I53: 72.04 | J53: 81.81 | K53: 73.89 | L53: 76.55 | M53: 82.55 | N53: 87.32 | O53: 92.89 | P53: 101.49 | Q53: 110.59 | R53: 128.34 | S53: 152.06 | T53: 146.99 | U53: 0.05 | V53: 0.3684031499
A54: 51 | B54: 55.65 | C54: 77.63 | D54: 46.37 | E54: =ROUND(E$2/$V54,2) -> 75.26 | F54: 69.6 | G54: 74.29 | H54: 73 | I54: 71.57 | J54: 81.27 | K54: 73.4 | L54: 76.04 | M54: 82 | N54: 86.75 | O54: 92.28 | P54: 100.82 | Q54: 109.86 | R54: 127.49 | S54: 151.06 | T54: 146.02 | U54: 0.051 | V54: 0.3708429769
A55: 52 | B55: 55.29 | C55: 77.13 | D55: 46.07 | E55: 74.77 | F55: 69.15 | G55: 73.81 | H55: 72.52 | I55: 71.1 | J55: 80.75 | K55: 72.93 | L55: 75.55 | M55: 81.47 | N55: 86.19 | O55: 91.68 | P55: 100.17 | Q55: 109.15 | R55: 126.67 | S55: 150.09 | T55: 145.08 | U55: 0.052 | V55: 0.3732511157
A56: 53 | B56: 54.94 | C56: 76.64 | D56: 45.78 | E56: 74.3 | F56: 68.71 | G56: 73.34 | H56: 72.07 | I56: 70.65 | J56: 80.24 | K56: 72.47 | L56: 75.07 | M56: 80.96 | N56: 85.64 | O56: 91.1 | P56: 99.54 | Q56: 108.46 | R56: 125.87 | S56: 149.14 | T56: 144.16 | U56: 0.053 | V56: 0.3756285754
A57: 54 | B57: 54.6 | C57: 76.17 | D57: 45.5 | E57: 73.84 | F57: 68.28 | G57: 72.89 | H57: 71.62 | I57: 70.22 | J57: 79.74 | K57: 72.02 | L57: 74.61 | M57: 80.45 | N57: 85.11 | O57: 90.53 | P57: 98.92 | Q57: 107.78 | R57: 125.09 | S57: 148.21 | T57: 143.26 | U57: 0.054 | V57: 0.377976315
A58: 55 | B58: 54.27 | C58: 75.7 | D58: 45.22 | E58: 73.39 | F58: 67.87 | G58: 72.44 | H58: 71.18 | I58: 69.79 | J58: 79.25 | K58: 71.58 | L58: 74.15 | M58: 79.96 | N58: 84.59 | O58: 89.98 | P58: 98.32 | Q58: 107.13 | R58: 124.32 | S58: 147.31 | T58: 142.39 | U58: 0.055 | V58: 0.3802952461
A59: 56 | B59: 53.94 | C59: 75.25 | D59: 44.95 | E59: 72.95 | F59: 67.46 | G59: 72.01 | H59: 70.76 | I59: 69.37 | J59: 78.78 | K59: 71.15 | L59: 73.71 | M59: 79.49 | N59: 84.09 | O59: 89.44 | P59: 97.73 | Q59: 106.49 | R59: 123.58 | S59: 146.42 | T59: 141.54 | U59: 0.056 | V59: 0.3825862366
A60: 57 | B60: 53.62 | C60: 74.81 | D60: 44.69 | E60: 72.52 | F60: 67.07 | G60: 71.59 | H60: 70.34 | I60: 68.96 | J60: 78.32 | K60: 70.73 | L60: 73.28 | M60: 79.02 | N60: 83.59 | O60: 88.92 | P60: 97.15 | Q60: 105.86 | R60: 122.85 | S60: 145.56 | T60: 140.7 | U60: 0.057 | V60: 0.3848501131
A61: 58 | B61: 53.31 | C61: 74.37 | D61: 44.43 | E61: 72.1 | F61: 66.68 | G61: 71.17 | H61: 69.93 | I61: 68.56 | J61: 77.86 | K61: 70.32 | L61: 72.85 | M61: 78.56 | N61: 83.11 | O61: 88.4 | P61: 96.59 | Q61: 105.25 | R61: 122.14 | S61: 144.72 | T61: 139.89 | U61: 0.058 | V61: 0.3870876641
A62: 59 | B62: 53.01 | C62: 73.95 | D62: 44.18 | E62: 71.69 | F62: 66.3 | G62: 70.77 | H62: 69.54 | I62: 68.17 | J62: 77.42 | K62: 69.92 | L62: 72.44 | M62: 78.11 | N62: 82.64 | O62: 87.9 | P62: 96.04 | Q62: 104.65 | R62: 121.45 | S62: 143.9 | T62: 139.1 | U62: 0.059 | V62: 0.3892996416
A63: 60 | B63: 52.71 | C63: 73.54 | D63: 43.93 | E63: 71.29 | F63: 65.93 | G63: 70.37 | H63: 69.15 | I63: 67.79 | J63: 76.99 | K63: 69.53 | L63: 72.03 | M63: 77.68 | N63: 82.17 | O63: 87.41 | P63: 95.51 | Q63: 104.06 | R63: 120.77 | S63: 143.1 | T63: 138.32 | U63: 0.06 | V63: 0.3914867641
A64: 61 | B64: 52.42 | C64: 73.13 | D64: 43.69 | E64: =ROUND(E$2/$V64,2) -> 70.9 | F64: 65.57 | G64: 69.99 | H64: 68.77 | I64: 67.42 | J64: 76.57 | K64: 69.15 | L64: 71.64 | M64: 77.25 | N64: 81.72 | O64: 86.93 | P64: 94.98 | Q64: 103.49 | R64: 120.11 | S64: 142.31 | T64: 137.56 | U64: 0.061 | V64: 0.3936497183
A65: 62 | B65: 52.14 | C65: 72.74 | D65: 43.45 | E65: 70.51 | F65: 65.21 | G65: 69.61 | H65: 68.4 | I65: 67.06 | J65: 76.15 | K65: 68.77 | L65: 71.25 | M65: 76.83 | N65: 81.28 | O65: 86.46 | P65: 94.47 | Q65: 102.93 | R65: 119.46 | S65: 141.54 | T65: 136.82 | U65: 0.062 | V65: 0.395789161
A66: 63 | B66: 51.86 | C66: 72.35 | D66: 43.22 | E66: 70.14 | F66: 64.86 | G66: 69.24 | H66: 68.03 | I66: 66.7 | J66: 75.75 | K66: 68.41 | L66: 70.87 | M66: 76.43 | N66: 80.85 | O66: 86 | P66: 93.97 | Q66: 102.39 | R66: 118.82 | S66: 140.79 | T66: 136.09 | U66: 0.063 | V66: 0.3979057208
A67: 64 | B67: 51.59 | C67: 71.97 | D67: 42.99 | E67: 69.77 | F67: 64.53 | G67: 68.88 | H67: 67.68 | I67: 66.35 | J67: 75.35 | K67: 68.05 | L67: 70.5 | M67: 76.03 | N67: 80.43 | O67: 85.55 | P67: 93.48 | Q67: 101.85 | R67: 118.2 | S67: 140.05 | T67: 135.38 | U67: 0.064 | V67: 0.4
A68: 65 | B68: 51.33 | C68: 71.6 | D68: 42.77 | E68: 69.41 | F68: 64.19 | G68: 68.52 | H68: 67.33 | I68: 66.01 | J68: 74.96 | K68: 67.7 | L68: 70.14 | M68: 75.63 | N68: 80.01 | O68: 85.11 | P68: 92.99 | Q68: 101.32 | R68: 117.59 | S68: 139.33 | T68: 134.68 | U68: =A68/1000 -> 0.065 | V68: =POWER(U68,1/3) -> 0.4020725759
A69: 66 | B69: 51.07 | C69: 71.24 | D69: 42.56 | E69: 69.06 | F69: 63.87 | G69: 68.17 | H69: 66.98 | I69: 65.67 | J69: 74.58 | K69: 67.36 | L69: 69.78 | M69: 75.25 | N69: 79.6 | O69: 84.68 | P69: 92.52 | Q69: 100.81 | R69: 116.99 | S69: 138.62 | T69: 133.99 | U69: 0.066 | V69: 0.4041240021
A70: 67 | B70: 50.81 | C70: 70.88 | D70: 42.34 | E70: 68.72 | F70: 63.55 | G70: 67.83 | H70: 66.65 | I70: 65.34 | J70: 74.21 | K70: 67.02 | L70: 69.43 | M70: 74.87 | N70: 79.21 | O70: 84.25 | P70: 92.06 | Q70: 100.31 | R70: 116.41 | S70: 137.93 | T70: 133.32 | U70: 0.067 | V70: 0.40615481
A71: 68 | B71: 50.56 | C71: 70.53 | D71: 42.13 | E71: 68.38 | F71: 63.23 | G71: 67.5 | H71: 66.32 | I71: 65.02 | J71: 73.84 | K71: 66.69 | L71: 69.09 | M71: 74.5 | N71: 78.82 | O71: 83.84 | P71: 91.6 | Q71: 99.81 | R71: 115.84 | S71: 137.25 | T71: 132.67 | U71: 0.068 | V71: 0.4081655102
A72: 69 | B72: 50.31 | C72: 70.19 | D72: 41.93 | E72: 68.04 | F72: 62.93 | G72: 67.17 | H72: 66 | I72: 64.71 | J72: 73.48 | K72: 66.36 | L72: 68.75 | M72: 74.14 | N72: 78.43 | O72: 83.43 | P72: 91.16 | Q72: 99.33 | R72: 115.27 | S72: 136.58 | T72: 132.02 | U72: 0.069 | V72: 0.410156593
A73: 70 | B73: 50.07 | C73: 69.86 | D73: 41.73 | E73: 67.72 | F73: 62.63 | G73: 66.85 | H73: 65.68 | I73: 64.4 | J73: 73.13 | K73: 66.05 | L73: 68.43 | M73: 73.79 | N73: 78.06 | O73: 83.03 | P73: 90.72 | Q73: 98.85 | R73: 114.72 | S73: 135.93 | T73: 131.39 | U73: 0.07 | V73: 0.41212853
A74: 71 | B74: 49.84 | C74: 69.53 | D74: 41.53 | E74: =ROUND(E$2/$V74,2) -> 67.4 | F74: 62.33 | G74: 66.53 | H74: 65.37 | I74: 64.09 | J74: 72.79 | K74: 65.74 | L74: 68.1 | M74: 73.44 | N74: 77.69 | O74: 82.64 | P74: 90.3 | Q74: 98.39 | R74: 114.18 | S74: 135.29 | T74: 130.77 | U74: 0.071 | V74: 0.4140817749
A75: 72 | B75: 49.61 | C75: 69.2 | D75: 41.34 | E75: 67.09 | F75: 62.04 | G75: 66.22 | H75: 65.07 | I75: 63.8 | J75: 72.45 | K75: 65.43 | L75: 67.79 | M75: 73.1 | N75: 77.33 | O75: 82.26 | P75: 89.88 | Q75: 97.93 | R75: 113.65 | S75: 134.66 | T75: 130.16 | U75: 0.072 | V75: 0.4160167646
A76: 73 | B76: 49.38 | C76: 68.89 | D76: 41.15 | E76: 66.78 | F76: 61.76 | G76: 65.92 | H76: 64.77 | I76: 63.5 | J76: 72.12 | K76: 65.13 | L76: 67.47 | M76: 72.76 | N76: 76.97 | O76: 81.88 | P76: 89.46 | Q76: 97.48 | R76: 113.13 | S76: 134.04 | T76: 129.57 | U76: 0.073 | V76: 0.4179339196
A77: 74 | B77: 49.16 | C77: 68.57 | D77: 40.96 | E77: 66.48 | F77: 61.48 | G77: 65.62 | H77: 64.48 | I77: 63.22 | J77: 71.79 | K77: 64.84 | L77: 67.17 | M77: 72.43 | N77: 76.63 | O77: 81.51 | P77: 89.06 | Q77: 97.04 | R77: 112.62 | S77: 133.43 | T77: 128.98 | U77: 0.074 | V77: 0.4198336454
A78: 75 | B78: 48.94 | C78: 68.27 | D78: 40.78 | E78: 66.18 | F78: 61.2 | G78: 65.33 | H78: 64.19 | I78: 62.93 | J78: 71.47 | K78: 64.55 | L78: 66.87 | M78: 72.11 | N78: 76.28 | O78: 81.14 | P78: 88.66 | Q78: 96.61 | R78: 112.11 | S78: 132.84 | T78: 128.4 | U78: 0.075 | V78: 0.4217163327
A79: 76 | B79: 48.72 | C79: 67.97 | D79: 40.6 | E79: 65.89 | F79: 60.93 | G79: 65.04 | H79: 63.91 | I79: 62.66 | J79: 71.15 | K79: 64.26 | L79: 66.58 | M79: 71.79 | N79: 75.95 | O79: 80.79 | P79: 88.27 | Q79: 96.18 | R79: 111.62 | S79: 132.25 | T79: 127.84 | U79: 0.076 | V79: 0.4235823584
A80: 77 | B80: 48.51 | C80: 67.67 | D80: 40.42 | E80: 65.6 | F80: 60.67 | G80: 64.76 | H80: 63.63 | I80: 62.38 | J80: 70.85 | K80: 63.98 | L80: 66.29 | M80: 71.48 | N80: 75.62 | O80: 80.44 | P80: 87.89 | Q80: 95.76 | R80: 111.13 | S80: 131.68 | T80: 127.28 | U80: 0.077 | V80: 0.4254320865
A81: 78 | B81: 48.3 | C81: 67.38 | D81: 40.25 | E81: 65.32 | F81: 60.41 | G81: 64.48 | H81: 63.36 | I81: 62.12 | J81: 70.54 | K81: 63.71 | L81: 66 | M81: 71.17 | N81: 75.29 | O81: 80.09 | P81: 87.51 | Q81: 95.35 | R81: 110.66 | S81: 131.11 | T81: 126.74 | U81: 0.078 | V81: 0.4272658682
A82: 79 | B82: 48.1 | C82: 67.1 | D82: 40.08 | E82: 65.04 | F82: 60.15 | G82: 64.21 | H82: 63.09 | I82: 61.85 | J82: 70.24 | K82: 63.44 | L82: 65.72 | M82: 70.87 | N82: 74.97 | O82: 79.75 | P82: 87.14 | Q82: 94.95 | R82: 110.19 | S82: 130.56 | T82: 126.2 | U82: 0.079 | V82: 0.4290840427
A83: 80 | B83: 47.89 | C83: 66.81 | D83: 39.91 | E83: 64.77 | F83: 59.9 | G83: 63.94 | H83: 62.82 | I83: 61.59 | J83: 69.95 | K83: 63.17 | L83: 65.45 | M83: 70.58 | N83: 74.66 | O83: 79.42 | P83: 86.77 | Q83: 94.55 | R83: 109.73 | S83: 130.01 | T83: 125.67 | U83: 0.08 | V83: 0.430886938
A84: 81 | B84: =ROUND(B$2/$V84,2) -> 47.7 | C84: 66.54 | D84: =ROUND(D$2/$V84,2) -> 39.75 | E84: =ROUND(E$2/$V84,2) -> 64.5 | F84: 59.65 | G84: 63.67 | H84: 62.56 | I84: 61.34 | J84: 69.66 | K84: 62.91 | L84: 65.18 | M84: 70.28 | N84: 74.35 | O84: 79.09 | P84: 86.42 | Q84: 94.16 | R84: 109.27 | S84: 129.47 | T84: 125.15 | U84: 0.081 | V84: 0.4326748711
A85: 82 | B85: 47.5 | C85: 66.27 | D85: 39.58 | E85: 64.24 | F85: 59.41 | G85: 63.41 | H85: 62.31 | I85: 61.09 | J85: 69.38 | K85: 62.65 | L85: 64.91 | M85: 70 | N85: 74.05 | O85: 78.77 | P85: 86.06 | Q85: 93.77 | R85: 108.83 | S85: 128.95 | T85: 124.64 | U85: 0.082 | V85: 0.4344481486
A86: 83 | B86: 47.31 | C86: 66 | D86: 39.43 | E86: 63.98 | F86: 59.17 | G86: 63.16 | H86: 62.06 | I86: 60.84 | J86: 69.1 | K86: 62.4 | L86: 64.65 | M86: 69.71 | N86: 73.75 | O86: 78.45 | P86: 85.72 | Q86: 93.4 | R86: 108.39 | S86: 128.43 | T86: 124.14 | U86: 0.083 | V86: 0.4362070671
A87: 84 | B87: 47.12 | C87: 65.74 | D87: 39.27 | E87: 63.73 | F87: 58.93 | G87: 62.91 | H87: 61.81 | I87: 60.6 | J87: 68.82 | K87: 62.15 | L87: 64.39 | M87: 69.44 | N87: 73.46 | O87: 78.14 | P87: 85.37 | Q87: 93.02 | R87: 107.96 | S87: 127.91 | T87: 123.64 | U87: 0.084 | V87: 0.437951914
A88: 85 | B88: 46.94 | C88: 65.48 | D88: 39.11 | E88: 63.48 | F88: 58.7 | G88: 62.66 | H88: 61.57 | I88: 60.36 | J88: 68.55 | K88: 61.91 | L88: 64.14 | M88: 69.16 | N88: 73.17 | O88: 77.83 | P88: 85.04 | Q88: 92.66 | R88: 107.53 | S88: 127.41 | T88: 123.16 | U88: 0.085 | V88: 0.4396829672
A89: 86 | B89: 46.75 | C89: 65.22 | D89: 38.96 | E89: 63.23 | F89: 58.47 | G89: 62.41 | H89: 61.33 | I89: 60.13 | J89: 68.28 | K89: 61.67 | L89: 63.89 | M89: 68.89 | N89: 72.88 | O89: 77.53 | P89: 84.71 | Q89: 92.3 | R89: 107.11 | S89: 126.91 | T89: 122.68 | U89: 0.086 | V89: 0.4414004962
A90: 87 | B90: 46.57 | C90: 64.97 | D90: 38.81 | E90: 62.99 | F90: 58.25 | G90: 62.17 | H90: 61.09 | I90: 59.9 | J90: 68.02 | K90: 61.43 | L90: 63.64 | M90: 68.63 | N90: 72.6 | O90: 77.23 | P90: 84.38 | Q90: 91.94 | R90: 106.7 | S90: 126.43 | T90: 122.21 | U90: 0.087 | V90: 0.4431047622
A91: 88 | B91: 46.4 | C91: 64.73 | D91: 38.66 | E91: 62.75 | F91: 58.03 | G91: 61.94 | H91: 60.86 | I91: 59.67 | J91: 67.76 | K91: 61.2 | L91: 63.4 | M91: 68.37 | N91: 72.33 | O91: 76.93 | P91: 84.06 | Q91: 91.59 | R91: 106.3 | S91: 125.95 | T91: 121.74 | U91: 0.088 | V91: 0.4447960181
A92: 89 | B92: 46.22 | C92: 64.48 | D92: 38.52 | E92: 62.51 | F92: 57.81 | G92: 61.71 | H92: 60.63 | I92: 59.44 | J92: 67.51 | K92: 60.97 | L92: 63.16 | M92: 68.11 | N92: 72.05 | O92: 76.64 | P92: 83.74 | Q92: 91.25 | R92: 105.9 | S92: 125.47 | T92: 121.28 | U92: 0.089 | V92: 0.4464745096
A93: 90 | B93: 46.05 | C93: 64.24 | D93: 38.38 | E93: 62.28 | F93: 57.59 | G93: 61.48 | H93: 60.41 | I93: 59.22 | J93: 67.26 | K93: 60.74 | L93: 62.93 | M93: 67.86 | N93: 71.79 | O93: 76.36 | P93: 83.43 | Q93: 90.91 | R93: 105.5 | S93: 125.01 | T93: 120.83 | U93: 0.09 | V93: 0.4481404747
A94: 91 | B94: 45.88 | C94: 64.01 | D94: 38.23 | E94: =ROUND(E$2/$V94,2) -> 62.05 | F94: 57.38 | G94: 61.25 | H94: 60.18 | I94: 59 | J94: 67.01 | K94: 60.52 | L94: 62.7 | M94: 67.61 | N94: 71.52 | O94: 76.08 | P94: 83.13 | Q94: 90.57 | R94: 105.11 | S94: 124.55 | T94: 120.39 | U94: 0.091 | V94: 0.4497941445
A95: 92 | B95: 45.71 | C95: 63.77 | D95: 38.1 | E95: 61.82 | F95: 57.17 | G95: 61.03 | H95: 59.96 | I95: 58.79 | J95: 66.76 | K95: 60.3 | L95: 62.47 | M95: 67.36 | N95: 71.26 | O95: 75.8 | P95: 82.82 | Q95: 90.25 | R95: 104.73 | S95: 124.09 | T95: 119.95 | U95: 0.092 | V95: 0.4514357435
A96: 93 | B96: 45.55 | C96: 63.54 | D96: 37.96 | E96: 61.6 | F96: 56.97 | G96: 60.81 | H96: 59.75 | I96: 58.58 | J96: 66.52 | K96: 60.08 | L96: 62.24 | M96: 67.12 | N96: 71.01 | O96: 75.53 | P96: 82.53 | Q96: 89.92 | R96: 104.36 | S96: 123.65 | T96: 119.52 | U96: 0.093 | V96: 0.4530654896
A97: 94 | B97: 45.39 | C97: 63.32 | D97: 37.82 | E97: 61.38 | F97: 56.76 | G97: 60.59 | H97: 59.54 | I97: 58.37 | J97: 66.29 | K97: 59.87 | L97: 62.02 | M97: 66.88 | N97: 70.75 | O97: 75.26 | P97: 82.23 | Q97: 89.6 | R97: 103.98 | S97: 123.21 | T97: 119.09 | U97: 0.094 | V97: 0.4546835944
A98: 95 | B98: 45.23 | C98: 63.09 | D98: 37.69 | E98: 61.17 | F98: 56.56 | G98: 60.38 | H98: 59.33 | I98: 58.16 | J98: 66.05 | K98: 59.66 | L98: 61.8 | M98: 66.65 | N98: 70.5 | O98: 75 | P98: 81.94 | Q98: 89.29 | R98: 103.62 | S98: 122.77 | T98: 118.67 | U98: 0.095 | V98: 0.4562902635
A99: 96 | B99: 45.07 | C99: 62.87 | D99: 37.56 | E99: 60.95 | F99: 56.37 | G99: 60.17 | H99: 59.12 | I99: 57.96 | J99: 65.82 | K99: 59.45 | L99: 61.59 | M99: 66.41 | N99: 70.26 | O99: 74.73 | P99: 81.66 | Q99: 88.97 | R99: 103.26 | S99: 122.34 | T99: 118.26 | U99: 0.096 | V99: 0.457885697
A100: 97 | B100: 44.91 | C100: 62.66 | D100: 37.43 | E100: 60.74 | F100: 56.17 | G100: 59.96 | H100: 58.92 | I100: 57.76 | J100: 65.6 | K100: 59.24 | L100: 61.38 | M100: 66.18 | N100: 70.02 | O100: 74.48 | P100: 81.38 | Q100: 88.67 | R100: 102.9 | S100: 121.92 | T100: 117.85 | U100: 0.097 | V100: 0.4594700892
A101: 98 | B101: 44.76 | C101: 62.44 | D101: 37.3 | E101: 60.53 | F101: 55.98 | G101: 59.76 | H101: 58.71 | I101: 57.57 | J101: 65.37 | K101: 59.04 | L101: 61.17 | M101: 65.96 | N101: 69.78 | O101: 74.22 | P101: 81.1 | Q101: 88.36 | R101: 102.55 | S101: 121.51 | T101: 117.45 | U101: 0.098 | V101: 0.4610436292
A102: 99 | B102: 44.61 | C102: 62.23 | D102: 37.18 | E102: 60.33 | F102: 55.79 | G102: 59.55 | H102: 58.52 | I102: 57.37 | J102: 65.15 | K102: 58.84 | L102: 60.96 | M102: 65.74 | N102: 69.54 | O102: 73.97 | P102: 80.82 | Q102: 88.07 | R102: 102.2 | S102: 121.1 | T102: 117.05 | U102: 0.099 | V102: 0.4626065009
A103: 100 | B103: 44.46 | C103: 62.03 | D103: 37.05 | E103: 60.13 | F103: 55.61 | G103: 59.35 | H103: 58.32 | I103: 57.18 | J103: 64.93 | K103: 58.64 | L103: 60.76 | M103: 65.52 | N103: 69.31 | O103: 73.72 | P103: 80.55 | Q103: 87.77 | R103: 101.86 | S103: 120.69 | T103: 116.66 | U103: 0.1 | V103: 0.4641588834
A104: 101 | B104: 44.31 | C104: 61.82 | D104: 36.93 | E104: =ROUND(E$2/$V104,2) -> 59.93 | F104: 55.42 | G104: 59.16 | H104: 58.13 | I104: 56.99 | J104: 64.72 | K104: 58.45 | L104: 60.55 | M104: 65.3 | N104: 69.08 | O104: 73.48 | P104: 80.29 | Q104: 87.48 | R104: 101.52 | S104: 120.29 | T104: 116.28 | U104: 0.101 | V104: 0.4657009508
A105: 102 | B105: 44.17 | C105: 61.62 | D105: 36.81 | E105: 59.73 | F105: 55.24 | G105: 58.96 | H105: 57.94 | I105: 56.8 | J105: 64.51 | K105: 58.26 | L105: 60.36 | M105: 65.09 | N105: 68.85 | O105: 73.24 | P105: 80.02 | Q105: 87.19 | R105: 101.19 | S105: 119.9 | T105: 115.9 | U105: 0.102 | V105: 0.4672328728
A106: 103 | B106: 44.03 | C106: 61.42 | D106: 36.69 | E106: 59.54 | F106: 55.06 | G106: 58.77 | H106: 57.75 | I106: 56.62 | J106: 64.3 | K106: 58.07 | L106: 60.16 | M106: 64.87 | N106: 68.63 | O106: 73 | P106: 79.76 | Q106: 86.91 | R106: 100.86 | S106: 119.51 | T106: 115.52 | U106: 0.103 | V106: 0.4687548148
A107: 104 | B107: 43.88 | C107: 61.22 | D107: 36.57 | E107: 59.35 | F107: 54.88 | G107: 58.58 | H107: 57.56 | I107: 56.44 | J107: 64.09 | K107: 57.88 | L107: 59.97 | M107: 64.67 | N107: 68.41 | O107: 72.77 | P107: 79.51 | Q107: 86.63 | R107: 100.54 | S107: 119.12 | T107: 115.15 | U107: 0.104 | V107: 0.4702669375
A108: 105 | B108: 43.74 | C108: 61.02 | D108: 36.45 | E108: 59.16 | F108: 54.71 | G108: 58.4 | H108: 57.38 | I108: 56.26 | J108: 63.89 | K108: 57.7 | L108: 59.77 | M108: 64.46 | N108: 68.19 | O108: 72.54 | P108: 79.25 | Q108: 86.36 | R108: 100.22 | S108: 118.74 | T108: 114.78 | U108: 0.105 | V108: 0.471769398
A109: 106 | B109: 43.61 | C109: 60.83 | D109: 36.34 | E109: 58.97 | F109: 54.54 | G109: 58.21 | H109: 57.2 | I109: 56.08 | J109: 63.69 | K109: 57.52 | L109: 59.59 | M109: 64.26 | N109: 67.97 | O109: 72.31 | P109: 79 | Q109: 86.08 | R109: 99.9 | S109: 118.37 | T109: 114.42 | U109: 0.106 | V109: 0.4732623491
A110: 107 | B110: 43.47 | C110: 60.64 | D110: 36.22 | E110: 58.79 | F110: 54.37 | G110: 58.03 | H110: 57.02 | I110: 55.9 | J110: 63.49 | K110: 57.34 | L110: 59.4 | M110: 64.06 | N110: 67.76 | O110: 72.08 | P110: 78.76 | Q110: 85.81 | R110: 99.59 | S110: 118 | T110: 114.06 | U110: 0.107 | V110: 0.4747459399
A111: 108 | B111: 43.33 | C111: 60.45 | D111: 36.11 | E111: 58.61 | F111: 54.2 | G111: 57.85 | H111: 56.84 | I111: 55.73 | J111: 63.29 | K111: 57.16 | L111: 59.22 | M111: 63.86 | N111: 67.55 | O111: 71.86 | P111: 78.51 | Q111: 85.55 | R111: 99.28 | S111: 117.63 | T111: 113.71 | U111: 0.108 | V111: 0.4762203156
A112: 109 | B112: 43.2 | C112: 60.27 | D112: 36 | E112: 58.43 | F112: 54.03 | G112: 57.67 | H112: 56.67 | I112: 55.56 | J112: 63.1 | K112: 56.98 | L112: 59.03 | M112: 63.66 | N112: 67.35 | O112: 71.64 | P112: 78.27 | Q112: 85.29 | R112: 98.98 | S112: 117.27 | T112: 113.36 | U112: 0.109 | V112: 0.4776856181
A113: 110 | B113: 43.07 | C113: 60.09 | D113: 35.89 | E113: 58.25 | F113: 53.87 | G113: 57.5 | H113: 56.5 | I113: 55.39 | J113: 62.9 | K113: 56.81 | L113: 58.86 | M113: 63.47 | N113: 67.14 | O113: 71.42 | P113: 78.04 | Q113: 85.03 | R113: 98.68 | S113: 116.92 | T113: 113.01 | U113: 0.11 | V113: 0.4791419857
A114: 111 | B114: 42.94 | C114: 59.9 | D114: 35.78 | E114: =ROUND(E$2/$V114,2) -> 58.07 | F114: 53.7 | G114: 57.33 | H114: 56.33 | I114: 55.22 | J114: 62.71 | K114: 56.64 | L114: 58.68 | M114: 63.28 | N114: 66.94 | O114: 71.2 | P114: 77.8 | Q114: 84.77 | R114: 98.38 | S114: 116.57 | T114: 112.67 | U114: 0.111 | V114: 0.4805895534
A115: 112 | B115: 42.81 | C115: 59.73 | D115: 35.68 | E115: 57.9 | F115: 53.54 | G115: 57.15 | H115: 56.16 | I115: 55.06 | J115: 62.53 | K115: 56.47 | L115: 58.5 | M115: 63.09 | N115: 66.74 | O115: 70.99 | P115: 77.57 | Q115: 84.52 | R115: 98.09 | S115: 116.22 | T115: 112.34 | U115: 0.112 | V115: 0.4820284528
A116: 113 | B116: 42.69 | C116: 59.55 | D116: 35.57 | E116: 57.73 | F116: 53.39 | G116: 56.99 | H116: 55.99 | I116: 54.9 | J116: 62.34 | K116: 56.3 | L116: 58.33 | M116: 62.9 | N116: 66.54 | O116: 70.78 | P116: 77.34 | Q116: 84.27 | R116: 97.8 | S116: 115.87 | T116: 112.01 | U116: 0.113 | V116: 0.4834588127
A117: 114 | B117: 42.56 | C117: 59.37 | D117: 35.47 | E117: 57.56 | F117: 53.23 | G117: 56.82 | H117: 55.83 | I117: 54.74 | J117: 62.16 | K117: 56.14 | L117: 58.16 | M117: 62.72 | N117: 66.35 | O117: 70.57 | P117: 77.11 | Q117: 84.02 | R117: 97.51 | S117: 115.53 | T117: 111.68 | U117: 0.114 | V117: 0.4848807586
A118: 115 | B118: 42.44 | C118: 59.2 | D118: 35.36 | E118: 57.39 | F118: 53.07 | G118: 56.65 | H118: 55.67 | I118: 54.58 | J118: 61.98 | K118: 55.97 | L118: 57.99 | M118: 62.53 | N118: 66.15 | O118: 70.37 | P118: 76.89 | Q118: 83.78 | R118: 97.23 | S118: 115.2 | T118: 111.35 | U118: 0.115 | V118: 0.4862944131
A119: 116 | B119: 42.31 | C119: 59.03 | D119: 35.26 | E119: 57.23 | F119: 52.92 | G119: 56.49 | H119: 55.51 | I119: 54.42 | J119: 61.8 | K119: 55.81 | L119: 57.82 | M119: 62.35 | N119: 65.96 | O119: 70.17 | P119: 76.67 | Q119: 83.53 | R119: 96.94 | S119: 114.87 | T119: 111.03 | U119: 0.116 | V119: 0.4876998961
A120: 117 | B120: 42.19 | C120: 58.86 | D120: 35.16 | E120: 57.06 | F120: 52.77 | G120: 56.33 | H120: 55.35 | I120: 54.26 | J120: 61.62 | K120: 55.65 | L120: 57.66 | M120: 62.18 | N120: 65.77 | O120: 69.97 | P120: 76.45 | Q120: 83.3 | R120: 96.67 | S120: 114.54 | T120: 110.71 | U120: 0.117 | V120: 0.4890973247
A121: 118 | B121: 42.07 | C121: 58.7 | D121: 35.06 | E121: 56.9 | F121: 52.62 | G121: 56.17 | H121: 55.19 | I121: 54.11 | J121: 61.45 | K121: 55.5 | L121: 57.49 | M121: 62 | N121: 65.59 | O121: 69.77 | P121: 76.23 | Q121: 83.06 | R121: 96.39 | S121: 114.21 | T121: 110.4 | U121: 0.118 | V121: 0.4904868132
A122: 119 | B122: 41.96 | C122: 58.53 | D122: 34.96 | E122: 56.74 | F122: 52.47 | G122: 56.01 | H122: 55.04 | I122: 53.96 | J122: 61.28 | K122: 55.34 | L122: 57.33 | M122: 61.83 | N122: 65.4 | O122: 69.57 | P122: 76.02 | Q122: 82.83 | R122: 96.12 | S122: 113.89 | T122: 110.09 | U122: 0.119 | V122: 0.4918684734
A123: 120 | B123: 41.84 | C123: 58.37 | D123: 34.87 | E123: 56.58 | F123: 52.33 | G123: 55.85 | H123: 54.88 | I123: 53.81 | J123: 61.11 | K123: 55.19 | L123: 57.17 | M123: 61.65 | N123: 65.22 | O123: 69.38 | P123: 75.8 | Q123: 82.6 | R123: 95.86 | S123: 113.57 | T123: 109.78 | U123: 0.12 | V123: 0.4932424149
A124: 121 | B124: 41.72 | C124: 58.21 | D124: 34.77 | E124: =ROUND(E$2/$V124,2) -> 56.43 | F124: 52.18 | G124: 55.7 | H124: 54.73 | I124: 53.66 | J124: 60.94 | K124: 55.03 | L124: 57.01 | M124: 61.48 | N124: 65.04 | O124: 69.19 | P124: 75.6 | Q124: 82.37 | R124: 95.59 | S124: 113.26 | T124: 109.48 | U124: 0.121 | V124: 0.4946087443
A125: 122 | B125: 41.61 | C125: 58.05 | D125: 34.67 | E125: 56.27 | F125: 52.04 | G125: 55.55 | H125: 54.58 | I125: 53.51 | J125: 60.77 | K125: 54.88 | L125: 56.86 | M125: 61.31 | N125: 64.86 | O125: 69 | P125: 75.39 | Q125: 82.14 | R125: 95.33 | S125: 112.95 | T125: 109.18 | U125: 0.122 | V125: 0.4959675664
A126: 123 | B126: 41.5 | C126: 57.89 | D126: 34.58 | E126: 56.12 | F126: 51.9 | G126: 55.4 | H126: 54.43 | I126: 53.37 | J126: 60.6 | K126: 54.73 | L126: 56.7 | M126: 61.15 | N126: 64.69 | O126: 68.81 | P126: 75.18 | Q126: 81.92 | R126: 95.07 | S126: 112.64 | T126: 108.88 | U126: 0.123 | V126: 0.4973189833
A127: 124 | B127: 41.38 | C127: 57.73 | D127: 34.49 | E127: 55.97 | F127: 51.76 | G127: 55.25 | H127: 54.29 | I127: 53.22 | J127: 60.44 | K127: 54.59 | L127: 56.55 | M127: 60.98 | N127: 64.51 | O127: 68.62 | P127: 74.98 | Q127: 81.7 | R127: 94.81 | S127: 112.34 | T127: 108.59 | U127: 0.124 | V127: 0.4986630952
A128: 125 | B128: 41.27 | C128: 57.58 | D128: 34.4 | E128: 55.82 | F128: 51.62 | G128: 55.1 | H128: 54.14 | I128: 53.08 | J128: 60.28 | K128: 54.44 | L128: 56.4 | M128: 60.82 | N128: 64.34 | O128: 68.44 | P128: 74.78 | Q128: 81.48 | R128: 94.56 | S128: 112.04 | T128: 108.3 | U128: 0.125 | V128: 0.5
A129: 126 | B129: 41.16 | C129: 57.43 | D129: 34.3 | E129: 55.67 | F129: 51.48 | G129: 54.95 | H129: 54 | I129: 52.94 | J129: 60.12 | K129: 54.3 | L129: 56.25 | M129: 60.66 | N129: 64.17 | O129: 68.26 | P129: 74.58 | Q129: 81.26 | R129: 94.31 | S129: 111.74 | T129: 108.01 | U129: 0.126 | V129: 0.5013297935
A130: 127 | B130: 41.06 | C130: 57.28 | D130: 34.21 | E130: 55.52 | F130: 51.35 | G130: 54.81 | H130: 53.85 | I130: 52.8 | J130: 59.96 | K130: 54.15 | L130: 56.1 | M130: 60.5 | N130: 64 | O130: 68.08 | P130: 74.39 | Q130: 81.05 | R130: 94.06 | S130: 111.45 | T130: 107.73 | U130: 0.127 | V130: 0.5026525695
A131: 128 | B131: 40.95 | C131: 57.13 | D131: 34.12 | E131: 55.38 | F131: 51.21 | G131: 54.67 | H131: 53.71 | I131: 52.66 | J131: 59.81 | K131: 54.01 | L131: 55.96 | M131: 60.34 | N131: 63.83 | O131: 67.9 | P131: 74.19 | Q131: 80.84 | R131: 93.82 | S131: 111.16 | T131: 107.45 | U131: 0.128 | V131: 0.50396842
A132: 129 | B132: 40.84 | C132: 56.98 | D132: 34.04 | E132: 55.24 | F132: 51.08 | G132: 54.52 | H132: 53.57 | I132: 52.53 | J132: 59.65 | K132: 53.87 | L132: 55.81 | M132: 60.18 | N132: 63.67 | O132: 67.73 | P132: 74 | Q132: 80.63 | R132: 93.57 | S132: 110.87 | T132: 107.17 | U132: =A132/1000 -> 0.129 | V132: =POWER(U132,1/3) -> 0.5052774347
A133: 130 | B133: 40.74 | C133: 56.83 | D133: 33.95 | E133: 55.09 | F133: 50.95 | G133: 54.38 | H133: 53.44 | I133: 52.39 | J133: 59.5 | K133: 53.73 | L133: 55.67 | M133: 60.03 | N133: 63.5 | O133: 67.55 | P133: 73.81 | Q133: 80.42 | R133: 93.33 | S133: 110.58 | T133: 106.89 | U133: 0.13 | V133: 0.5065797019
A134: 131 | B134: 40.63 | C134: 56.69 | D134: 33.86 | E134: =ROUND(E$2/$V134,2) -> 54.95 | F134: 50.82 | G134: 54.25 | H134: 53.3 | I134: 52.26 | J134: 59.35 | K134: 53.6 | L134: 55.53 | M134: 59.88 | N134: 63.34 | O134: 67.38 | P134: 73.62 | Q134: 80.22 | R134: 93.09 | S134: 110.3 | T134: 106.62 | U134: 0.131 | V134: 0.5078753078
A135: 132 | B135: 40.53 | C135: 56.54 | D135: 33.78 | E135: 54.81 | F135: 50.69 | G135: 54.11 | H135: 53.17 | I135: 52.12 | J135: 59.2 | K135: 53.46 | L135: 55.38 | M135: 59.73 | N135: 63.18 | O135: 67.21 | P135: 73.43 | Q135: 80.01 | R135: 92.86 | S135: 110.02 | T135: 106.35 | U135: 0.132 | V135: 0.509164337
A136: 133 | B136: 40.43 | C136: 56.4 | D136: 33.69 | E136: 54.68 | F136: 50.56 | G136: 53.97 | H136: 53.03 | I136: 51.99 | J136: 59.05 | K136: 53.33 | L136: 55.25 | M136: 59.58 | N136: 63.02 | O136: 67.04 | P136: 73.25 | Q136: 79.81 | R136: 92.62 | S136: 109.75 | T136: 106.08 | U136: 0.133 | V136: 0.5104468722
A137: 134 | B137: 40.33 | C137: 56.26 | D137: 33.61 | E137: 54.54 | F137: 50.44 | G137: 53.84 | H137: 52.9 | I137: 51.86 | J137: 58.9 | K137: 53.19 | L137: 55.11 | M137: 59.43 | N137: 62.87 | O137: 66.87 | P137: 73.07 | Q137: 79.61 | R137: 92.39 | S137: 109.47 | T137: 105.82 | U137: 0.134 | V137: 0.5117229947
A138: 135 | B138: 40.23 | C138: 56.12 | D138: 33.52 | E138: 54.4 | F138: 50.31 | G138: 53.7 | H138: 52.77 | I138: 51.74 | J138: 58.75 | K138: 53.06 | L138: 54.97 | M138: 59.28 | N138: 62.71 | O138: 66.71 | P138: 72.89 | Q138: 79.42 | R138: 92.17 | S138: 109.2 | T138: 105.56 | U138: 0.135 | V138: 0.512992784
A139: 136 | B139: 40.13 | C139: 55.98 | D139: 33.44 | E139: 54.27 | F139: 50.19 | G139: 53.57 | H139: 52.64 | I139: 51.61 | J139: 58.61 | K139: 52.93 | L139: 54.84 | M139: 59.13 | N139: 62.56 | O139: 66.54 | P139: 72.71 | Q139: 79.22 | R139: 91.94 | S139: 108.93 | T139: 105.3 | U139: 0.136 | V139: 0.5142563181
A140: 137 | B140: 40.03 | C140: 55.85 | D140: 33.36 | E140: 54.14 | F140: 50.07 | G140: 53.44 | H140: 52.51 | I140: 51.48 | J140: 58.47 | K140: 52.8 | L140: 54.7 | M140: 58.99 | N140: 62.4 | O140: 66.38 | P140: 72.53 | Q140: 79.03 | R140: 91.71 | S140: 108.67 | T140: 105.04 | U140: 0.137 | V140: 0.5155136735
A141: 138 | B141: 39.93 | C141: 55.71 | D141: 33.28 | E141: 54.01 | F141: 49.95 | G141: 53.31 | H141: 52.38 | I141: 51.36 | J141: 58.32 | K141: 52.67 | L141: 54.57 | M141: 58.85 | N141: 62.25 | O141: 66.22 | P141: 72.35 | Q141: 78.84 | R141: 91.49 | S141: 108.41 | T141: 104.79 | U141: 0.138 | V141: 0.5167649252
A142: 139 | B142: 39.84 | C142: 55.58 | D142: 33.2 | E142: 53.88 | F142: 49.83 | G142: 53.18 | H142: 52.26 | I142: 51.23 | J142: 58.18 | K142: 52.55 | L142: 54.44 | M142: 58.71 | N142: 62.1 | O142: 66.06 | P142: 72.18 | Q142: 78.65 | R142: 91.27 | S142: 108.14 | T142: 104.53 | U142: 0.139 | V142: 0.5180101467
A143: 140 | B143: 39.74 | C143: 55.44 | D143: 33.12 | E143: 53.75 | F143: 49.71 | G143: 53.06 | H143: 52.13 | I143: 51.11 | J143: 58.05 | K143: 52.42 | L143: 54.31 | M143: 58.57 | N143: 61.95 | O143: 65.9 | P143: 72.01 | Q143: 78.46 | R143: 91.05 | S143: 107.89 | T143: 104.29 | U143: 0.14 | V143: 0.5192494102
A144: 141 | B144: 39.65 | C144: 55.31 | D144: 33.04 | E144: =ROUND(E$2/$V144,2) -> 53.62 | F144: 49.59 | G144: 52.93 | H144: 52.01 | I144: 50.99 | J144: 57.91 | K144: 52.3 | L144: 54.18 | M144: 58.43 | N144: 61.81 | O144: 65.75 | P144: 71.84 | Q144: 78.27 | R144: 90.84 | S144: 107.63 | T144: 104.04 | U144: 0.141 | V144: 0.5204827863
A145: 142 | B145: 39.56 | C145: 55.18 | D145: 32.96 | E145: 53.5 | F145: 49.47 | G145: 52.81 | H145: 51.89 | I145: 50.87 | J145: 57.77 | K145: 52.17 | L145: 54.05 | M145: 58.29 | N145: 61.66 | O145: 65.59 | P145: 71.67 | Q145: 78.09 | R145: 90.63 | S145: 107.38 | T145: 103.79 | U145: 0.142 | V145: 0.5217103446
A146: 143 | B146: 39.46 | C146: 55.05 | D146: 32.89 | E146: 53.37 | F146: 49.36 | G146: 52.68 | H146: 51.77 | I146: 50.75 | J146: 57.64 | K146: 52.05 | L146: 53.93 | M146: 58.15 | N146: 61.52 | O146: 65.44 | P146: 71.5 | Q146: 77.91 | R146: 90.41 | S146: 107.13 | T146: 103.55 | U146: 0.143 | V146: 0.5229321532
A147: 144 | B147: 39.37 | C147: 54.93 | D147: 32.81 | E147: 53.25 | F147: 49.24 | G147: 52.56 | H147: 51.65 | I147: 50.63 | J147: 57.5 | K147: 51.93 | L147: 53.8 | M147: 58.02 | N147: 61.38 | O147: 65.29 | P147: 71.33 | Q147: 77.73 | R147: 90.2 | S147: 106.88 | T147: 103.31 | U147: 0.144 | V147: 0.5241482788
A148: 145 | B148: =ROUND(B$2/$V148,2) -> 39.28 | C148: 54.8 | D148: =ROUND(D$2/$V148,2) -> 32.73 | E148: 53.12 | F148: 49.13 | G148: 52.44 | H148: 51.53 | I148: 50.52 | J148: 57.37 | K148: 51.81 | L148: 53.68 | M148: 57.88 | N148: 61.23 | O148: 65.14 | P148: 71.17 | Q148: 77.55 | R148: 90 | S148: 106.63 | T148: 103.07 | U148: 0.145 | V148: 0.5253587872
A149: 146 | B149: 39.19 | C149: 54.67 | D149: 32.66 | E149: 53 | F149: 49.02 | G149: 52.32 | H149: 51.41 | I149: 50.4 | J149: 57.24 | K149: 51.69 | L149: 53.55 | M149: 57.75 | N149: 61.09 | O149: 64.99 | P149: 71.01 | Q149: 77.37 | R149: 89.79 | S149: 106.39 | T149: 102.84 | U149: 0.146 | V149: 0.5265637428
A150: 147 | B150: 39.1 | C150: 54.55 | D150: 32.59 | E150: 52.88 | F150: 48.9 | G150: 52.2 | H150: 51.29 | I150: 50.29 | J150: 57.11 | K150: 51.58 | L150: 53.43 | M150: 57.62 | N150: 60.96 | O150: 64.84 | P150: 70.85 | Q150: 77.19 | R150: 89.59 | S150: 106.15 | T150: 102.6 | U150: 0.147 | V150: 0.5277632088
A151: 148 | B151: 39.01 | C151: 54.43 | D151: 32.51 | E151: 52.76 | F151: 48.79 | G151: 52.08 | H151: 51.18 | I151: 50.17 | J151: 56.98 | K151: 51.46 | L151: 53.31 | M151: 57.49 | N151: 60.82 | O151: 64.69 | P151: 70.69 | Q151: 77.02 | R151: 89.38 | S151: 105.91 | T151: 102.37 | U151: 0.148 | V151: 0.5289572473
A152: 149 | B152: 38.93 | C152: 54.3 | D152: 32.44 | E152: 52.64 | F152: 48.68 | G152: 51.97 | H152: 51.06 | I152: 50.06 | J152: 56.85 | K152: 51.34 | L152: 53.19 | M152: 57.36 | N152: 60.68 | O152: 64.55 | P152: 70.53 | Q152: 76.85 | R152: 89.18 | S152: 105.67 | T152: 102.14 | U152: 0.149 | V152: 0.5301459192
A153: 150 | B153: 38.84 | C153: 54.18 | D153: 32.37 | E153: 52.53 | F153: 48.58 | G153: 51.85 | H153: 50.95 | I153: 49.95 | J153: 56.73 | K153: 51.23 | L153: 53.07 | M153: 57.23 | N153: 60.55 | O153: 64.4 | P153: 70.37 | Q153: 76.68 | R153: 88.98 | S153: 105.43 | T153: 101.91 | U153: 0.15 | V153: 0.5313292846
A154: 151 | B154: 38.75 | C154: 54.06 | D154: 32.3 | E154: =ROUND(E$2/$V154,2) -> 52.41 | F154: 48.47 | G154: 51.74 | H154: 50.83 | I154: 49.84 | J154: 56.6 | K154: 51.12 | L154: 52.96 | M154: 57.11 | N154: 60.41 | O154: 64.26 | P154: 70.21 | Q154: 76.51 | R154: 88.79 | S154: 105.2 | T154: 101.69 | U154: 0.151 | V154: 0.5325074022
A155: 152 | B155: 38.67 | C155: 53.95 | D155: 32.22 | E155: 52.3 | F155: 48.36 | G155: 51.62 | H155: 50.72 | I155: 49.73 | J155: 56.48 | K155: 51 | L155: 52.84 | M155: 56.98 | N155: 60.28 | O155: 64.12 | P155: 70.06 | Q155: 76.34 | R155: 88.59 | S155: 104.97 | T155: 101.47 | U155: 0.152 | V155: 0.5336803297
A156: 153 | B156: 38.58 | C156: 53.83 | D156: 32.15 | E156: 52.18 | F156: 48.26 | G156: 51.51 | H156: 50.61 | I156: 49.62 | J156: 56.35 | K156: 50.89 | L156: 52.73 | M156: 56.86 | N156: 60.15 | O156: 63.98 | P156: 69.91 | Q156: 76.17 | R156: 88.4 | S156: 104.74 | T156: 101.24 | U156: 0.153 | V156: 0.5348481241
A157: 154 | B157: 38.5 | C157: 53.71 | D157: 32.08 | E157: 52.07 | F157: 48.15 | G157: 51.4 | H157: 50.5 | I157: 49.51 | J157: 56.23 | K157: 50.78 | L157: 52.61 | M157: 56.73 | N157: 60.02 | O157: 63.84 | P157: 69.76 | Q157: 76.01 | R157: 88.21 | S157: 104.51 | T157: 101.02 | U157: 0.154 | V157: 0.5360108411
A158: 155 | B158: 38.42 | C158: 53.59 | D158: 32.02 | E158: 51.96 | F158: 48.05 | G158: 51.29 | H158: 50.39 | I158: 49.41 | J158: 56.11 | K158: 50.67 | L158: 52.5 | M158: 56.61 | N158: 59.89 | O158: 63.7 | P158: 69.61 | Q158: 75.84 | R158: 88.02 | S158: 104.29 | T158: 100.81 | U158: 0.155 | V158: 0.5371685355
A159: 156 | B159: 38.34 | C159: 53.48 | D159: 31.95 | E159: 51.84 | F159: 47.95 | G159: 51.18 | H159: 50.29 | I159: 49.3 | J159: 55.99 | K159: 50.56 | L159: 52.39 | M159: 56.49 | N159: 59.76 | O159: 63.57 | P159: 69.46 | Q159: 75.68 | R159: 87.83 | S159: 104.06 | T159: 100.59 | U159: 0.156 | V159: 0.5383212612
A160: 157 | B160: 38.25 | C160: 53.37 | D160: 31.88 | E160: 51.73 | F160: 47.84 | G160: 51.07 | H160: 50.18 | I160: 49.2 | J160: 55.87 | K160: 50.46 | L160: 52.27 | M160: 56.37 | N160: 59.63 | O160: 63.43 | P160: 69.31 | Q160: 75.52 | R160: 87.64 | S160: 103.84 | T160: 100.38 | U160: 0.157 | V160: 0.5394690712
A161: 158 | B161: 38.17 | C161: 53.25 | D161: 31.81 | E161: 51.62 | F161: 47.74 | G161: 50.96 | H161: 50.07 | I161: 49.09 | J161: 55.75 | K161: 50.35 | L161: 52.16 | M161: 56.25 | N161: 59.51 | O161: 63.3 | P161: 69.16 | Q161: 75.36 | R161: 87.46 | S161: 103.62 | T161: 100.16 | U161: 0.158 | V161: 0.5406120176
A162: 159 | B162: 38.09 | C162: 53.14 | D162: 31.74 | E162: 51.52 | F162: 47.64 | G162: 50.85 | H162: 49.97 | I162: 48.99 | J162: 55.63 | K162: 50.24 | L162: 52.05 | M162: 56.13 | N162: 59.38 | O162: 63.17 | P162: 69.02 | Q162: 75.2 | R162: 87.27 | S162: 103.41 | T162: 99.95 | U162: 0.159 | V162: 0.5417501515
A163: 160 | B163: 38.01 | C163: 53.03 | D163: 31.68 | E163: 51.41 | F163: 47.54 | G163: 50.75 | H163: 49.86 | I163: 48.89 | J163: 55.52 | K163: 50.14 | L163: 51.94 | M163: 56.02 | N163: 59.26 | O163: 63.03 | P163: 68.87 | Q163: 75.04 | R163: 87.09 | S163: 103.19 | T163: 99.75 | U163: 0.16 | V163: 0.5428835233
A164: 161 | B164: 37.93 | C164: 52.92 | D164: 31.61 | E164: =ROUND(E$2/$V164,2) -> 51.3 | F164: 47.44 | G164: 50.64 | H164: 49.76 | I164: 48.79 | J164: 55.4 | K164: 50.04 | L164: 51.84 | M164: 55.9 | N164: 59.13 | O164: 62.9 | P164: 68.73 | Q164: 74.89 | R164: 86.91 | S164: 102.98 | T164: 99.54 | U164: 0.161 | V164: 0.5440121825
A165: 162 | B165: 37.86 | C165: 52.81 | D165: 31.55 | E165: 51.2 | F165: 47.35 | G165: 50.54 | H165: 49.66 | I165: 48.69 | J165: 55.29 | K165: 49.93 | L165: 51.73 | M165: 55.78 | N165: 59.01 | O165: 62.77 | P165: 68.59 | Q165: 74.73 | R165: 86.73 | S165: 102.76 | T165: 99.33 | U165: 0.162 | V165: 0.5451361778
A166: 163 | B166: 37.78 | C166: 52.7 | D166: 31.48 | E166: 51.09 | F166: 47.25 | G166: 50.43 | H166: 49.56 | I166: 48.59 | J166: 55.18 | K166: 49.83 | L166: 51.62 | M166: 55.67 | N166: 58.89 | O166: 62.64 | P166: 68.45 | Q166: 74.58 | R166: 86.55 | S166: 102.55 | T166: 99.13 | U166: 0.163 | V166: 0.5462555571
A167: 164 | B167: 37.7 | C167: 52.6 | D167: 31.42 | E167: 50.99 | F167: 47.15 | G167: 50.33 | H167: 49.45 | I167: 48.49 | J167: 55.06 | K167: 49.73 | L167: 51.52 | M167: 55.56 | N167: 58.77 | O167: 62.52 | P167: 68.31 | Q167: 74.43 | R167: 86.38 | S167: 102.34 | T167: 98.93 | U167: 0.164 | V167: 0.5473703675
A168: 165 | B168: 37.63 | C168: 52.49 | D168: 31.35 | E168: 50.88 | F168: 47.06 | G168: 50.23 | H168: 49.35 | I168: 48.39 | J168: 54.95 | K168: 49.63 | L168: 51.41 | M168: 55.44 | N168: 58.65 | O168: 62.39 | P168: 68.17 | Q168: 74.28 | R168: 86.2 | S168: 102.14 | T168: 98.73 | U168: 0.165 | V168: 0.5484806552
A169: 166 | B169: 37.55 | C169: 52.38 | D169: 31.29 | E169: 50.78 | F169: 46.96 | G169: 50.13 | H169: 49.26 | I169: 48.29 | J169: 54.84 | K169: 49.53 | L169: 51.31 | M169: 55.33 | N169: 58.53 | O169: 62.26 | P169: 68.03 | Q169: 74.13 | R169: 86.03 | S169: 101.93 | T169: 98.53 | U169: 0.166 | V169: 0.549586466
A170: 167 | B170: 37.47 | C170: 52.28 | D170: 31.23 | E170: 50.68 | F170: 46.87 | G170: 50.03 | H170: 49.16 | I170: 48.19 | J170: 54.73 | K170: 49.43 | L170: 51.21 | M170: 55.22 | N170: 58.42 | O170: 62.14 | P170: 67.9 | Q170: 73.98 | R170: 85.86 | S170: 101.73 | T170: 98.33 | U170: 0.167 | V170: 0.5506878446
A171: 168 | B171: 37.4 | C171: 52.18 | D171: 31.17 | E171: 50.58 | F171: 46.78 | G171: 49.93 | H171: 49.06 | I171: 48.1 | J171: 54.62 | K171: 49.33 | L171: 51.11 | M171: 55.11 | N171: 58.3 | O171: 62.02 | P171: 67.76 | Q171: 73.83 | R171: 85.69 | S171: 101.53 | T171: 98.14 | U171: 0.168 | V171: 0.5517848353
A172: 169 | B172: 37.33 | C172: 52.07 | D172: 31.11 | E172: 50.48 | F172: 46.68 | G172: 49.83 | H172: 48.96 | I172: 48 | J172: 54.51 | K172: 49.23 | L172: 51.01 | M172: 55 | N172: 58.19 | O172: 61.89 | P172: 67.63 | Q172: 73.69 | R172: 85.52 | S172: 101.32 | T172: 97.94 | U172: 0.169 | V172: 0.5528774814
A173: 170 | B173: 37.25 | C173: 51.97 | D173: 31.04 | E173: 50.38 | F173: 46.59 | G173: 49.73 | H173: 48.87 | I173: 47.91 | J173: 54.41 | K173: 49.14 | L173: 50.91 | M173: 54.9 | N173: 58.07 | O173: 61.77 | P173: 67.5 | Q173: 73.54 | R173: 85.35 | S173: 101.13 | T173: 97.75 | U173: 0.17 | V173: 0.5539658257
A174: 171 | B174: 37.18 | C174: 51.87 | D174: 30.98 | E174: =ROUND(E$2/$V174,2) -> 50.28 | F174: 46.5 | G174: 49.64 | H174: 48.77 | I174: 47.82 | J174: 54.3 | K174: 49.04 | L174: 50.81 | M174: 54.79 | N174: 57.96 | O174: 61.65 | P174: 67.36 | Q174: 73.4 | R174: 85.18 | S174: 100.93 | T174: 97.56 | U174: 0.171 | V174: 0.5550499103
A175: 172 | B175: 37.11 | C175: 51.77 | D175: 30.92 | E175: 50.18 | F175: 46.41 | G175: 49.54 | H175: 48.68 | I175: 47.72 | J175: 54.2 | K175: 48.95 | L175: 50.71 | M175: 54.68 | N175: 57.85 | O175: 61.53 | P175: 67.23 | Q175: 73.26 | R175: 85.02 | S175: 100.73 | T175: 97.37 | U175: 0.172 | V175: 0.5561297767
A176: 173 | B176: 37.04 | C176: 51.67 | D176: 30.86 | E176: 50.09 | F176: 46.32 | G176: 49.44 | H176: 48.58 | I176: 47.63 | J176: 54.09 | K176: 48.85 | L176: 50.61 | M176: 54.58 | N176: 57.73 | O176: 61.41 | P176: 67.1 | Q176: 73.11 | R176: 84.85 | S176: 100.54 | T176: 97.18 | U176: 0.173 | V176: 0.5572054656
A177: 174 | B177: 36.97 | C177: 51.57 | D177: 30.8 | E177: 49.99 | F177: 46.23 | G177: 49.35 | H177: 48.49 | I177: 47.54 | J177: 53.99 | K177: 48.76 | L177: 50.51 | M177: 54.47 | N177: 57.62 | O177: 61.3 | P177: 66.97 | Q177: 72.97 | R177: 84.69 | S177: 100.34 | T177: 96.99 | U177: 0.174 | V177: 0.5582770172
A178: 175 | B178: 36.89 | C178: 51.47 | D178: 30.75 | E178: 49.9 | F178: 46.14 | G178: 49.25 | H178: 48.4 | I178: 47.45 | J178: 53.88 | K178: 48.66 | L178: 50.42 | M178: 54.37 | N178: 57.51 | O178: 61.18 | P178: 66.85 | Q178: 72.84 | R178: 84.53 | S178: 100.15 | T178: 96.81 | U178: 0.175 | V178: 0.559344471
A179: 176 | B179: 36.82 | C179: 51.37 | D179: 30.69 | E179: 49.8 | F179: 46.06 | G179: 49.16 | H179: 48.3 | I179: 47.36 | J179: 53.78 | K179: 48.57 | L179: 50.32 | M179: 54.26 | N179: 57.4 | O179: 61.06 | P179: 66.72 | Q179: 72.7 | R179: 84.37 | S179: 99.96 | T179: 96.63 | U179: 0.176 | V179: 0.5604078661
A180: 177 | B180: 36.76 | C180: 51.28 | D180: 30.63 | E180: 49.71 | F180: 45.97 | G180: 49.07 | H180: 48.21 | I180: 47.27 | J180: 53.68 | K180: 48.48 | L180: 50.23 | M180: 54.16 | N180: 57.3 | O180: 60.95 | P180: 66.59 | Q180: 72.56 | R180: 84.21 | S180: 99.77 | T180: 96.44 | U180: 0.177 | V180: 0.5614672408
A181: 178 | B181: 36.69 | C181: 51.18 | D181: 30.57 | E181: 49.61 | F181: 45.88 | G181: 48.98 | H181: 48.12 | I181: 47.18 | J181: 53.58 | K181: 48.39 | L181: 50.13 | M181: 54.06 | N181: 57.19 | O181: 60.83 | P181: 66.47 | Q181: 72.42 | R181: 84.05 | S181: 99.59 | T181: 96.26 | U181: 0.178 | V181: 0.5625226328
A182: 179 | B182: 36.62 | C182: 51.08 | D182: 30.52 | E182: 49.52 | F182: 45.8 | G182: 48.88 | H182: 48.03 | I182: 47.09 | J182: 53.48 | K182: 48.3 | L182: 50.04 | M182: 53.96 | N182: 57.08 | O182: 60.72 | P182: 66.34 | Q182: 72.29 | R182: 83.89 | S182: 99.4 | T182: 96.08 | U182: 0.179 | V182: 0.5635740795
A183: 180 | B183: 36.55 | C183: 50.99 | D183: 30.46 | E183: 49.43 | F183: 45.71 | G183: 48.79 | H183: 47.94 | I183: 47 | J183: 53.38 | K183: 48.21 | L183: 49.94 | M183: 53.86 | N183: 56.98 | O183: 60.61 | P183: 66.22 | Q183: 72.15 | R183: 83.74 | S183: 99.22 | T183: 95.9 | U183: 0.18 | V183: 0.5646216173
A184: 181 | B184: 36.48 | C184: 50.89 | D184: 30.4 | E184: =ROUND(E$2/$V184,2) -> 49.34 | F184: 45.63 | G184: 48.7 | H184: 47.86 | I184: 46.92 | J184: 53.28 | K184: 48.12 | L184: 49.85 | M184: 53.76 | N184: 56.87 | O184: 60.5 | P184: 66.1 | Q184: 72.02 | R184: 83.58 | S184: 99.03 | T184: 95.73 | U184: 0.181 | V184: 0.5656652826
A185: 182 | B185: 36.42 | C185: 50.8 | D185: 30.35 | E185: 49.25 | F185: 45.54 | G185: 48.61 | H185: 47.77 | I185: 46.83 | J185: 53.18 | K185: 48.03 | L185: 49.76 | M185: 53.66 | N185: 56.77 | O185: 60.38 | P185: 65.98 | Q185: 71.89 | R185: 83.43 | S185: 98.85 | T185: 95.55 | U185: 0.182 | V185: 0.5667051108
A186: 183 | B186: 36.35 | C186: 50.71 | D186: 30.29 | E186: 49.16 | F186: 45.46 | G186: 48.53 | H186: 47.68 | I186: 46.75 | J186: 53.09 | K186: 47.94 | L186: 49.67 | M186: 53.56 | N186: 56.66 | O186: 60.27 | P186: 65.86 | Q186: 71.76 | R186: 83.28 | S186: 98.67 | T186: 95.38 | U186: 0.183 | V186: 0.5677411371
A187: 184 | B187: 36.28 | C187: 50.62 | D187: 30.24 | E187: 49.07 | F187: 45.38 | G187: 48.44 | H187: 47.59 | I187: 46.66 | J187: 52.99 | K187: 47.86 | L187: 49.58 | M187: 53.47 | N187: 56.56 | O187: 60.16 | P187: 65.74 | Q187: 71.63 | R187: 83.13 | S187: 98.49 | T187: 95.2 | U187: 0.184 | V187: 0.568773396
A188: 185 | B188: 36.22 | C188: 50.53 | D188: 30.18 | E188: 48.98 | F188: 45.3 | G188: 48.35 | H188: 47.51 | I188: 46.58 | J188: 52.9 | K188: 47.77 | L188: 49.49 | M188: 53.37 | N188: 56.46 | O188: 60.06 | P188: 65.62 | Q188: 71.5 | R188: 82.98 | S188: 98.31 | T188: 95.03 | U188: 0.185 | V188: 0.5698019215
A189: 186 | B189: 36.15 | C189: 50.43 | D189: 30.13 | E189: 48.89 | F189: 45.22 | G189: 48.26 | H189: 47.42 | I189: 46.49 | J189: 52.8 | K189: 47.69 | L189: 49.4 | M189: 53.27 | N189: 56.36 | O189: 59.95 | P189: 65.5 | Q189: 71.37 | R189: 82.83 | S189: 98.14 | T189: 94.86 | U189: 0.186 | V189: 0.5708267473
A190: 187 | B190: 36.09 | C190: 50.34 | D190: 30.07 | E190: 48.8 | F190: 45.13 | G190: 48.18 | H190: 47.34 | I190: 46.41 | J190: 52.71 | K190: 47.6 | L190: 49.31 | M190: 53.18 | N190: 56.26 | O190: 59.84 | P190: 65.38 | Q190: 71.24 | R190: 82.68 | S190: 97.96 | T190: 94.69 | U190: 0.187 | V190: 0.5718479065
A191: 188 | B191: 36.02 | C191: 50.26 | D191: 30.02 | E191: 48.72 | F191: 45.05 | G191: 48.09 | H191: 47.25 | I191: 46.33 | J191: 52.61 | K191: 47.52 | L191: 49.23 | M191: 53.08 | N191: 56.16 | O191: 59.73 | P191: 65.27 | Q191: 71.12 | R191: 82.53 | S191: 97.79 | T191: 94.52 | U191: 0.188 | V191: 0.5728654316
A192: 189 | B192: 35.96 | C192: 50.17 | D192: 29.97 | E192: 48.63 | F192: 44.97 | G192: 48.01 | H192: 47.17 | I192: 46.25 | J192: 52.52 | K192: 47.43 | L192: 49.14 | M192: 52.99 | N192: 56.06 | O192: 59.63 | P192: 65.15 | Q192: 70.99 | R192: 82.39 | S192: 97.62 | T192: 94.36 | U192: 0.189 | V192: 0.5738793548
A193: 190 | B193: 35.9 | C193: 50.08 | D193: 29.91 | E193: 48.55 | F193: 44.9 | G193: 47.92 | H193: 47.09 | I193: 46.17 | J193: 52.43 | K193: 47.35 | L193: 49.05 | M193: 52.9 | N193: 55.96 | O193: 59.52 | P193: 65.04 | Q193: 70.87 | R193: 82.24 | S193: 97.44 | T193: 94.19 | U193: 0.19 | V193: 0.5748897079
A194: 191 | B194: 35.83 | C194: 49.99 | D194: 29.86 | E194: =ROUND(E$2/$V194,2) -> 48.46 | F194: 44.82 | G194: 47.84 | H194: 47 | I194: 46.08 | J194: 52.34 | K194: 47.27 | L194: 48.97 | M194: 52.8 | N194: 55.86 | O194: 59.42 | P194: 64.92 | Q194: 70.74 | R194: 82.1 | S194: 97.27 | T194: 94.03 | U194: 0.191 | V194: 0.575896522
A195: 192 | B195: 35.77 | C195: 49.9 | D195: 29.81 | E195: 48.38 | F195: 44.74 | G195: 47.76 | H195: 46.92 | I195: 46 | J195: 52.24 | K195: 47.18 | L195: 48.88 | M195: 52.71 | N195: 55.76 | O195: 59.32 | P195: 64.81 | Q195: 70.62 | R195: 81.96 | S195: 97.11 | T195: 93.86 | U195: 0.192 | V195: 0.5768998281
A196: 193 | B196: 35.71 | C196: 49.82 | D196: 29.76 | E196: 48.29 | F196: 44.66 | G196: 47.67 | H196: 46.84 | I196: 45.92 | J196: 52.15 | K196: 47.1 | L196: 48.8 | M196: 52.62 | N196: 55.67 | O196: 59.21 | P196: 64.7 | Q196: 70.5 | R196: 81.81 | S196: 96.94 | T196: 93.7 | U196: =A196/1000 -> 0.193 | V196: =POWER(U196,1/3) -> 0.5778996565
A197: 194 | B197: 35.65 | C197: 49.73 | D197: 29.71 | E197: 48.21 | F197: 44.58 | G197: 47.59 | H197: 46.76 | I197: 45.85 | J197: 52.06 | K197: 47.02 | L197: 48.71 | M197: 52.53 | N197: 55.57 | O197: 59.11 | P197: 64.59 | Q197: 70.38 | R197: 81.67 | S197: 96.77 | T197: 93.54 | U197: 0.194 | V197: 0.5788960372
A198: 195 | B198: 35.59 | C198: 49.65 | D198: 29.66 | E198: 48.13 | F198: 44.51 | G198: 47.51 | H198: 46.68 | I198: 45.77 | J198: 51.98 | K198: 46.94 | L198: 48.63 | M198: 52.44 | N198: 55.48 | O198: 59.01 | P198: 64.48 | Q198: 70.25 | R198: 81.53 | S198: 96.6 | T198: 93.38 | U198: 0.195 | V198: 0.5798889998
A199: 196 | B199: 35.53 | C199: 49.56 | D199: 29.61 | E199: 48.05 | F199: 44.43 | G199: 47.43 | H199: 46.6 | I199: 45.69 | J199: 51.89 | K199: 46.86 | L199: 48.55 | M199: 52.35 | N199: 55.38 | O199: 58.91 | P199: 64.37 | Q199: 70.14 | R199: 81.39 | S199: 96.44 | T199: 93.22 | U199: 0.196 | V199: 0.5808785734
A200: 197 | B200: 35.47 | C200: 49.48 | D200: 29.56 | E200: 47.96 | F200: 44.36 | G200: 47.35 | H200: 46.52 | I200: 45.61 | J200: 51.8 | K200: 46.78 | L200: 48.46 | M200: 52.26 | N200: 55.29 | O200: 58.81 | P200: 64.26 | Q200: 70.02 | R200: 81.26 | S200: 96.28 | T200: 93.06 | U200: 0.197 | V200: 0.5818647867
A201: 198 | B201: 35.41 | C201: 49.39 | D201: 29.51 | E201: 47.88 | F201: 44.28 | G201: 47.27 | H201: 46.44 | I201: 45.54 | J201: 51.71 | K201: 46.7 | L201: 48.38 | M201: 52.17 | N201: 55.19 | O201: 58.71 | P201: 64.15 | Q201: 69.9 | R201: 81.12 | S201: 96.11 | T201: 92.91 | U201: 0.198 | V201: 0.5828476683
... 1002 more rows

Sheet 100FR
B2: 2023/24 Short Course Multi Class Event Results Table
B3: Event | C3: 100FR
B5: # | C5: Name | D5: M/F | E5: Class | F5: Time m:s | G5: Time (s) | H5: Points | J5: To sort results click the arrow
B6: =ROW(B6)-ROW(B$5) -> 1 | C6: Swimmer 1 | D6: M | E6: S1 | F6: 00:00:00 | G6: =IF(F6<1,F6*24*60*60,F6) -> 0 | H6: =MAX(IF(OFFSET(INDIRECT("'" & $C$3 & " " &$D6 & "'!A1"),3,MATCH($E6,INDIRECT("'" & $C$3 & " " &$D6 & "'!B1:T1"),0),1200,1)>=$G6,1,0)*INDIRECT("'" & $C$3 & " " &$D6 & "'!A4:A1203")) -> 1200
B7: 2 | C7: Swimmer 2 | D7: M | E7: S2 | F7: 00:00:00 | G7: 0 | H7: =MAX(IF(OFFSET(INDIRECT("'" & $C$3 & " " &$D7 & "'!A1"),3,MATCH($E7,INDIRECT("'" & $C$3 & " " &$D7 & "'!B1:T1"),0),1200,1)>=$G7,1,0)*INDIRECT("'" & $C$3 & " " &$D7 & "'!A4:A1203")) -> 1200
B8: 3 | C8: Swimmer 3 | D8: M | E8: S3 | F8: 00:00:00 | G8: 0 | H8: =MAX(IF(OFFSET(INDIRECT("'" & $C$3 & " " &$D8 & "'!A1"),3,MATCH($E8,INDIRECT("'" & $C$3 & " " &$D8 & "'!B1:T1"),0),1200,1)>=$G8,1,0)*INDIRECT("'" & $C$3 & " " &$D8 & "'!A4:A1203")) -> 1200
B9: 4 | C9: Swimmer 4 | D9: M | E9: S4 | F9: 00:00:00 | G9: 0 | H9: =MAX(IF(OFFSET(INDIRECT("'" & $C$3 & " " &$D9 & "'!A1"),3,MATCH($E9,INDIRECT("'" & $C$3 & " " &$D9 & "'!B1:T1"),0),1200,1)>=$G9,1,0)*INDIRECT("'" & $C$3 & " " &$D9 & "'!A4:A1203")) -> 1200
B10: 5 | C10: Swimmer 5 | D10: M | E10: S5 | F10: 00:00:00 | G10: 0 | H10: =MAX(IF(OFFSET(INDIRECT("'" & $C$3 & " " &$D10 & "'!A1"),3,MATCH($E10,INDIRECT("'" & $C$3 & " " &$D10 & "'!B1:T1"),0),1200,1)>=$G10,1,0)*INDIRECT("'" & $C$3 & " " &$D10 & "'!A4:A1203")) -> 1200
B11: 6 | C11: Swimmer 6 | D11: M | E11: S6 | F11: 00:00:00 | G11: 0 | H11: =MAX(IF(OFFSET(INDIRECT("'" & $C$3 & " " &$D11 & "'!A1"),3,MATCH($E11,INDIRECT("'" & $C$3 & " " &$D11 & "'!B1:T1"),0),1200,1)>=$G11,1,0)*INDIRECT("'" & $C$3 & " " &$D11 & "'!A4:A1203")) -> 1200
B12: 7 | C12: Swimmer 7 | D12: M | E12: S7 | F12: 00:00:00 | G12: 0 | H12: =MAX(IF(OFFSET(INDIRECT("'" & $C$3 & " " &$D12 & "'!A1"),3,MATCH($E12,INDIRECT("'" & $C$3 & " " &$D12 & "'!B1:T1"),0),1200,1)>=$G12,1,0)*INDIRECT("'" & $C$3 & " " &$D12 & "'!A4:A1203")) -> 1200
B13: 8 | C13: Swimmer 8 | D13: M | E13: S8 | F13: 00:00:00 | G13: 0 | H13: =MAX(IF(OFFSET(INDIRECT("'" & $C$3 & " " &$D13 & "'!A1"),3,MATCH($E13,INDIRECT("'" & $C$3 & " " &$D13 & "'!B1:T1"),0),1200,1)>=$G13,1,0)*INDIRECT("'" & $C$3 & " " &$D13 & "'!A4:A1203")) -> 1200
B14: 9 | C14: Swimmer 9 | D14: M | E14: S9 | F14: 00:00:00 | G14: 0 | H14: =MAX(IF(OFFSET(INDIRECT("'" & $C$3 & " " &$D14 & "'!A1"),3,MATCH($E14,INDIRECT("'" & $C$3 & " " &$D14 & "'!B1:T1"),0),1200,1)>=$G14,1,0)*INDIRECT("'" & $C$3 & " " &$D14 & "'!A4:A1203")) -> 1200
B15: 10 | C15: Swimmer 10 | D15: M | E15: S10 | F15: 00:00:00 | G15: 0 | H15: =MAX(IF(OFFSET(INDIRECT("'" & $C$3 & " " &$D15 & "'!A1"),3,MATCH($E15,INDIRECT("'" & $C$3 & " " &$D15 & "'!B1:T1"),0),1200,1)>=$G15,1,0)*INDIRECT("'" & $C$3 & " " &$D15 & "'!A4:A1203")) -> 1200
C16: (insert name or lane) | D16: (select M or F) | E16: (select athlete class) | F16: (insert time swum)
B21: swimming.org.au

Sheet 100FR M (hidden)
A1: Score | B1: S19 | C1: S18 | D1: S17 | E1: S16 | F1: S15 | G1: S14 | H1: S13 | I1: S12 | J1: S11 | K1: S10 | L1: S9 | M1: S8 | N1: S7 | O1: S6 | P1: S5 | Q1: S4 | R1: S3 | S1: S2 | T1: S1 | U1: score/1000 | V1: Power
B2: 40.356 | C2: 57.1795 | D2: 33.63 | E2: 53.667 | F2: 50.68 | G2: 51.11 | H2: 52.09 | I2: 51.99 | J2: 60.65 | K2: 48.7 | L2: 52.77 | M2: 57.21 | N2: 60.14 | O2: 63.93 | P2: 67.54 | Q2: 82.98 | R2: 102.83 | S2: 138.15 | T2: 238.33
A4: 1 | B4: =ROUND(B$2/$V4,2) -> 403.56 | C4: 571.8 | D4: =ROUND(D$2/$V4,2) -> 336.3 | E4: =ROUND(E$2/$V4,2) -> 536.67 | F4: =ROUND(F$2/$V4,2) -> 506.8 | G4: 511.1 | H4: 520.9 | I4: 519.9 | J4: 606.5 | K4: 487 | L4: 527.7 | M4: 572.1 | N4: 601.4 | O4: 639.3 | P4: 675.4 | Q4: 829.8 | R4: 1028.3 | S4: 1381.5 | T4: 2383.3 | U4: =A4/1000 -> 0.001 | V4: =POWER(U4,1/3) -> 0.1
A5: 2 | B5: 320.31 | C5: 453.83 | D5: =ROUND(D$2/$V5,2) -> 266.92 | E5: =ROUND(E$2/$V5,2) -> 425.96 | F5: 402.25 | G5: 405.66 | H5: 413.44 | I5: 412.64 | J5: 481.38 | K5: 386.53 | L5: 418.84 | M5: 454.08 | N5: 477.33 | O5: 507.41 | P5: 536.07 | Q5: 658.61 | R5: 816.16 | S5: 1096.5 | T5: 1891.63 | U5: 0.002 | V5: 0.125992105
A6: 3 | B6: 279.81 | C6: 396.46 | D6: 233.18 | E6: 372.11 | F6: 351.4 | G6: 354.38 | H6: 361.17 | I6: 360.48 | J6: 420.52 | K6: 337.67 | L6: 365.89 | M6: 396.67 | N6: 416.99 | O6: 443.27 | P6: 468.3 | Q6: 575.35 | R6: 712.98 | S6: 957.88 | T6: 1652.49 | U6: 0.003 | V6: 0.144224957
A7: 4 | B7: 254.23 | C7: 360.21 | D7: 211.86 | E7: 338.08 | F7: 319.26 | G7: 321.97 | H7: 328.15 | I7: 327.52 | J7: 382.07 | K7: 306.79 | L7: 332.43 | M7: 360.4 | N7: 378.86 | O7: 402.73 | P7: 425.48 | Q7: 522.74 | R7: 647.79 | S7: 870.29 | T7: 1501.38 | U7: 0.004 | V7: 0.1587401052
A8: 5 | B8: 236 | C8: 334.39 | D8: 196.67 | E8: 313.85 | F8: 296.38 | G8: 298.89 | H8: 304.62 | I8: 304.04 | J8: 354.68 | K8: 284.8 | L8: 308.6 | M8: 334.57 | N8: 351.7 | O8: 373.86 | P8: 394.98 | Q8: 485.27 | R8: 601.35 | S8: 807.91 | T8: 1393.76 | U8: 0.005 | V8: 0.1709975947
A9: 6 | B9: 222.09 | C9: 314.67 | D9: 185.07 | E9: 295.34 | F9: 278.9 | G9: 281.27 | H9: 286.66 | I9: 286.11 | J9: 333.77 | K9: 268.01 | L9: 290.4 | M9: 314.84 | N9: 330.96 | O9: 351.82 | P9: 371.69 | Q9: 456.66 | R9: 565.9 | S9: 760.27 | T9: 1311.58 | U9: 0.006 | V9: 0.1817120593
A10: 7 | B10: 210.96 | C10: 298.91 | D10: 175.8 | E10: 280.55 | F10: 264.93 | G10: 267.18 | H10: 272.3 | I10: 271.78 | J10: 317.05 | K10: 254.58 | L10: 275.86 | M10: 299.07 | N10: 314.39 | O10: 334.2 | P10: 353.07 | Q10: 433.78 | R10: 537.55 | S10: 722.19 | T10: 1245.89 | U10: 0.007 | V10: 0.1912931183
A11: 8 | B11: 201.78 | C11: 285.9 | D11: 168.15 | E11: 268.34 | F11: 253.4 | G11: 255.55 | H11: 260.45 | I11: 259.95 | J11: 303.25 | K11: 243.5 | L11: 263.85 | M11: 286.05 | N11: 300.7 | O11: 319.65 | P11: 337.7 | Q11: 414.9 | R11: 514.15 | S11: 690.75 | T11: 1191.65 | U11: 0.008 | V11: 0.2
A12: 9 | B12: 194.01 | C12: 274.89 | D12: 161.68 | E12: 258 | F12: 243.64 | G12: 245.71 | H12: 250.42 | I12: 249.94 | J12: 291.57 | K12: 234.13 | L12: 253.69 | M12: 275.04 | N12: 289.12 | O12: 307.34 | P12: 324.7 | Q12: 398.93 | R12: 494.36 | S12: 664.16 | T12: 1145.77 | U12: 0.009 | V12: 0.2080083823
A13: 10 | B13: 187.32 | C13: 265.4 | D13: 156.1 | E13: 249.1 | F13: 235.24 | G13: 237.23 | H13: 241.78 | I13: 241.32 | J13: 281.51 | K13: 226.05 | L13: 244.94 | M13: 265.55 | N13: 279.15 | O13: 296.74 | P13: 313.49 | Q13: 385.16 | R13: 477.29 | S13: 641.24 | T13: 1106.23 | U13: 0.01 | V13: 0.215443469
A14: 11 | B14: 181.46 | C14: 257.1 | D14: 151.22 | E14: 241.31 | F14: 227.88 | G14: 229.81 | H14: 234.22 | I14: 233.77 | J14: 272.71 | K14: 218.98 | L14: 237.28 | M14: 257.24 | N14: 270.42 | O14: 287.46 | P14: 303.69 | Q14: 373.11 | R14: 462.37 | S14: 621.18 | T14: 1071.64 | U14: 0.011 | V14: 0.2223980091
A15: 12 | B15: 176.27 | C15: 249.75 | D15: 146.89 | E15: 234.41 | F15: 221.37 | G15: 223.24 | H15: 227.52 | I15: 227.09 | J15: 264.91 | K15: 212.72 | L15: 230.49 | M15: 249.89 | N15: 262.69 | O15: 279.24 | P15: 295.01 | Q15: 362.45 | R15: 449.15 | S15: 603.43 | T15: 1041 | U15: 0.012 | V15: 0.2289428485
A16: 13 | B16: 171.63 | C16: 243.18 | D16: 143.03 | E16: 228.24 | F16: 215.54 | G16: 217.37 | H16: 221.53 | I16: 221.11 | J16: 257.94 | K16: 207.12 | L16: 224.43 | M16: 243.31 | N16: 255.77 | O16: 271.89 | P16: 287.24 | Q16: 352.91 | R16: 437.33 | S16: 587.54 | T16: 1013.59 | U16: 0.013 | V16: 0.2351334688
A17: 14 | B17: 167.44 | C17: 237.25 | D17: 139.54 | E17: 222.67 | F17: 210.28 | G17: 212.06 | H17: 216.13 | I17: 215.71 | J17: 251.64 | K17: 202.06 | L17: 218.95 | M17: 237.37 | N17: 249.53 | O17: 265.25 | P17: 280.23 | Q17: 344.3 | R17: 426.66 | S17: 573.2 | T17: 988.86 | U17: 0.014 | V17: 0.2410142264
A18: 15 | B18: 163.64 | C18: 231.85 | D18: 136.36 | E18: 217.61 | F18: 205.5 | G18: 207.24 | H18: 211.21 | I18: 210.81 | J18: 245.92 | K18: 197.47 | L18: 213.97 | M18: 231.98 | N18: 243.86 | O18: 259.22 | P18: 273.86 | Q18: 336.47 | R18: 416.96 | S18: 560.17 | T18: 966.38 | U18: 0.015 | V18: 0.2466212074
A19: 16 | B19: 160.15 | C19: 226.92 | D19: 133.46 | E19: 212.98 | F19: 201.12 | G19: 202.83 | H19: 206.72 | I19: 206.32 | J19: 240.69 | K19: 193.27 | L19: 209.42 | M19: 227.04 | N19: 238.67 | O19: 253.71 | P19: 268.03 | Q19: 329.31 | R19: 408.08 | S19: 548.25 | T19: 945.81 | U19: 0.016 | V19: 0.25198421
A20: 17 | B20: =ROUND(B$2/$V20,2) -> 156.95 | C20: 222.38 | D20: 130.79 | E20: 208.72 | F20: 197.1 | G20: 198.77 | H20: 202.58 | I20: 202.19 | J20: 235.87 | K20: 189.4 | L20: 205.23 | M20: 222.5 | N20: 233.89 | O20: 248.63 | P20: 262.67 | Q20: 322.72 | R20: 399.92 | S20: 537.28 | T20: 926.89 | U20: 0.017 | V20: 0.2571281591
A21: 18 | B21: 153.99 | C21: 218.18 | D21: 128.32 | E21: 204.78 | F21: 193.38 | G21: 195.02 | H21: 198.76 | I21: 198.38 | J21: 231.42 | K21: 185.83 | L21: 201.36 | M21: 218.3 | N21: 229.48 | O21: 243.94 | P21: 257.71 | Q21: 316.63 | R21: 392.37 | S21: 527.14 | T21: 909.4 | U21: 0.018 | V21: 0.2620741394
A22: 19 | B22: 151.24 | C22: 214.28 | D22: 126.03 | E22: 201.12 | F22: 189.93 | G22: 191.54 | H22: 195.21 | I22: 194.84 | J22: 227.29 | K22: 182.51 | L22: 197.76 | M22: 214.4 | N22: 225.38 | O22: 239.58 | P22: 253.11 | Q22: 310.97 | R22: 385.36 | S22: 517.73 | T22: 893.16 | U22: 0.019 | V22: 0.2668401649
A23: 20 | B23: 148.67 | C23: 210.65 | D23: 123.89 | E23: 197.71 | F23: 186.71 | G23: 188.29 | H23: 191.9 | I23: 191.53 | J23: 223.44 | K23: 179.41 | L23: 194.41 | M23: 210.76 | N23: 221.56 | O23: 235.52 | P23: 248.82 | Q23: 305.7 | R23: 378.83 | S23: 508.95 | T23: 878.02 | U23: 0.02 | V23: 0.2714417617
A24: 21 | B24: 146.27 | C24: 207.25 | D24: 121.9 | E24: 194.52 | F24: 183.69 | G24: 185.25 | H24: 188.81 | I24: 188.44 | J24: 219.83 | K24: 176.52 | L24: 191.27 | M24: 207.36 | N24: 217.98 | O24: 231.72 | P24: 244.81 | Q24: 300.77 | R24: 372.72 | S24: 500.74 | T24: 863.85 | U24: 0.021 | V24: 0.2758924176
A25: 22 | B25: 144.02 | C25: 204.06 | D25: 120.02 | E25: 191.53 | F25: 180.87 | G25: 182.4 | H25: 185.9 | I25: 185.54 | J25: 216.45 | K25: 173.8 | L25: 188.33 | M25: 204.17 | N25: 214.63 | O25: 228.16 | P25: 241.04 | Q25: 296.14 | R25: 366.98 | S25: 493.03 | T25: 850.56 | U25: 0.022 | V25: 0.2802039331
A26: 23 | B26: 141.91 | C26: 201.06 | D26: 118.25 | E26: 188.71 | F26: 178.21 | G26: 179.72 | H26: 183.17 | I26: 182.81 | J26: 213.27 | K26: 171.25 | L26: 185.56 | M26: 201.17 | N26: 211.47 | O26: 224.8 | P26: 237.49 | Q26: 291.79 | R26: 361.59 | S26: 485.78 | T26: 838.05 | U26: 0.023 | V26: 0.284386698
A27: 24 | B27: 139.91 | C27: 198.23 | D27: 116.59 | E27: 186.05 | F27: 175.7 | G27: 177.19 | H27: 180.59 | I27: 180.24 | J27: 210.26 | K27: 168.83 | L27: 182.94 | M27: 198.34 | N27: 208.49 | O27: 221.63 | P27: 234.15 | Q27: 287.68 | R27: 356.49 | S27: 478.94 | T27: 826.24 | U27: 0.024 | V27: 0.2884499141
A28: 25 | B28: 138.02 | C28: 195.55 | D28: 115.01 | E28: 183.54 | F28: 173.32 | G28: 174.79 | H28: 178.15 | I28: 177.8 | J28: 207.42 | K28: 166.55 | L28: 180.47 | M28: 195.66 | N28: 205.68 | O28: 218.64 | P28: 230.98 | Q28: 283.79 | R28: 351.67 | S28: 472.47 | T28: 815.08 | U28: 0.025 | V28: 0.2924017738
A29: 26 | B29: 136.22 | C29: 193.01 | D29: 113.52 | E29: 181.15 | F29: 171.07 | G29: 172.52 | H29: 175.83 | I29: 175.49 | J29: 204.73 | K29: 164.39 | L29: 178.13 | M29: 193.11 | N29: 203 | O29: 215.8 | P29: 227.98 | Q29: 280.1 | R29: 347.11 | S29: 466.33 | T29: 804.49 | U29: 0.026 | V29: 0.2962496068
A30: 27 | B30: 134.52 | C30: 190.6 | D30: 112.1 | E30: 178.89 | F30: 168.93 | G30: 170.37 | H30: 173.63 | I30: 173.3 | J30: 202.17 | K30: 162.33 | L30: 175.9 | M30: 190.7 | N30: 200.47 | O30: 213.1 | P30: 225.13 | Q30: 276.6 | R30: 342.77 | S30: 460.5 | T30: 794.43 | U30: 0.027 | V30: 0.3
A31: 28 | B31: 132.9 | C31: 188.3 | D31: 110.75 | E31: 176.73 | F31: 166.9 | G31: 168.31 | H31: 171.54 | I31: 171.21 | J31: 199.73 | K31: 160.38 | L31: 173.78 | M31: 188.4 | N31: 198.05 | O31: 210.53 | P31: 222.42 | Q31: 273.27 | R31: 338.64 | S31: 454.95 | T31: 784.86 | U31: 0.028 | V31: 0.3036588972
A32: 29 | B32: 131.35 | C32: 186.11 | D32: 109.46 | E32: 174.68 | F32: 164.96 | G32: 166.36 | H32: 169.55 | I32: 169.22 | J32: 197.41 | K32: 158.51 | L32: 171.76 | M32: 186.21 | N32: 195.75 | O32: 208.08 | P32: 219.83 | Q32: 270.09 | R32: 334.7 | S32: 449.66 | T32: 775.73 | U32: 0.029 | V32: 0.3072316826
A33: 30 | B33: 129.88 | C33: 184.02 | D33: 108.23 | E33: 172.72 | F33: 163.1 | G33: 164.49 | H33: 167.64 | I33: 167.32 | J33: 195.19 | K33: 156.73 | L33: 169.83 | M33: 184.12 | N33: 193.55 | O33: 205.75 | P33: 217.36 | Q33: 267.05 | R33: 330.94 | S33: 444.61 | T33: 767.02 | U33: 0.03 | V33: 0.3107232506
A34: 31 | B34: 128.47 | C34: 182.02 | D34: 107.05 | E34: 170.84 | F34: 161.33 | G34: 162.7 | H34: 165.82 | I34: 165.5 | J34: 193.07 | K34: 155.03 | L34: 167.98 | M34: 182.12 | N34: 191.44 | O34: 203.51 | P34: 215 | Q34: 264.15 | R34: 327.34 | S34: 439.77 | T34: 758.68 | U34: 0.031 | V34: 0.3141380652
A35: 32 | B35: 127.11 | C35: 180.1 | D35: 105.93 | E35: =ROUND(E$2/$V35,2) -> 169.04 | F35: 159.63 | G35: 160.99 | H35: 164.07 | I35: 163.76 | J35: 191.04 | K35: 153.4 | L35: 166.22 | M35: 180.2 | N35: 189.43 | O35: 201.37 | P35: 212.74 | Q35: 261.37 | R35: 323.89 | S35: 435.15 | T35: 750.69 | U35: 0.032 | V35: 0.3174802104
A36: 33 | B36: 125.82 | C36: 178.27 | D36: 104.85 | E36: 167.32 | F36: 158 | G36: 159.34 | H36: 162.4 | I36: 162.09 | J36: 189.09 | K36: 151.83 | L36: 164.52 | M36: 178.36 | N36: 187.5 | O36: 199.31 | P36: 210.57 | Q36: 258.7 | R36: 320.59 | S36: 430.7 | T36: 743.03 | U36: 0.033 | V36: 0.320753433
A37: 34 | B37: 124.57 | C37: 176.5 | D37: 103.81 | E37: 165.66 | F37: 156.44 | G37: 157.77 | H37: 160.79 | I37: 160.48 | J37: 187.21 | K37: 150.33 | L37: 162.89 | M37: 176.6 | N37: 185.64 | O37: 197.34 | P37: 208.48 | Q37: 256.14 | R37: 317.41 | S37: 426.44 | T37: 735.67 | U37: 0.034 | V37: 0.3239611801
A38: 35 | B38: 123.37 | C38: 174.8 | D38: 102.81 | E38: 164.07 | F38: 154.93 | G38: 156.25 | H38: 159.24 | I38: 158.94 | J38: 185.41 | K38: 148.88 | L38: 161.32 | M38: 174.9 | N38: 183.85 | O38: 195.44 | P38: 206.48 | Q38: 253.68 | R38: 314.36 | S38: 422.34 | T38: 728.6 | U38: 0.035 | V38: 0.327106631
A39: 36 | B39: 122.22 | C39: 173.17 | D39: 101.85 | E39: 162.53 | F39: 153.49 | G39: 154.79 | H39: 157.76 | I39: 157.45 | J39: 183.68 | K39: 147.49 | L39: 159.82 | M39: 173.26 | N39: 182.14 | O39: 193.61 | P39: 204.55 | Q39: 251.31 | R39: 311.42 | S39: 418.39 | T39: 721.79 | U39: 0.036 | V39: 0.3301927249
A40: 37 | B40: 121.11 | C40: 171.6 | D40: 100.92 | E40: 161.05 | F40: 152.09 | G40: 153.38 | H40: 156.32 | I40: 156.02 | J40: 182.01 | K40: 146.15 | L40: 158.36 | M40: 171.69 | N40: 180.48 | O40: 191.85 | P40: 202.69 | Q40: 249.02 | R40: 308.59 | S40: 414.59 | T40: 715.23 | U40: 0.037 | V40: 0.3332221852
A41: 38 | B41: 120.04 | C41: 170.08 | D41: 100.03 | E41: 159.63 | F41: 150.74 | G41: 152.02 | H41: 154.94 | I41: 154.64 | J41: 180.4 | K41: 144.86 | L41: 156.96 | M41: 170.17 | N41: 178.88 | O41: 190.16 | P41: 200.89 | Q41: 246.82 | R41: 305.86 | S41: 410.92 | T41: 708.9 | U41: 0.038 | V41: 0.3361975407
A42: 39 | B42: 119 | C42: 168.61 | D42: 99.17 | E42: 158.25 | F42: 149.45 | G42: 150.71 | H42: 153.6 | I42: 153.31 | J42: 178.84 | K42: 143.61 | L42: 155.61 | M42: 168.7 | N42: 177.34 | O42: 188.52 | P42: 199.16 | Q42: 244.69 | R42: 303.22 | S42: 407.38 | T42: 702.79 | U42: 0.039 | V42: 0.3391211443
A43: 40 | B43: 118 | C43: 167.19 | D43: 98.33 | E43: 156.92 | F43: 148.19 | G43: 149.45 | H43: 152.31 | I43: 152.02 | J43: 177.34 | K43: 142.4 | L43: 154.3 | M43: 167.28 | N43: 175.85 | O43: 186.93 | P43: 197.49 | Q43: 242.63 | R43: 300.68 | S43: 403.95 | T43: 696.88 | U43: 0.04 | V43: 0.3419951893
A44: 41 | B44: 117.03 | C44: 165.82 | D44: 97.53 | E44: 155.64 | F44: 146.97 | G44: 148.22 | H44: 151.06 | I44: 150.77 | J44: 175.89 | K44: 141.23 | L44: 153.04 | M44: 165.91 | N44: 174.41 | O44: 185.4 | P44: 195.87 | Q44: 240.65 | R44: 298.21 | S44: 400.64 | T44: 691.17 | U44: 0.041 | V44: 0.344821724
A45: 42 | B45: 116.1 | C45: 164.5 | D45: 96.75 | E45: 154.39 | F45: 145.8 | G45: 147.04 | H45: 149.86 | I45: 149.57 | J45: 174.48 | K45: 140.1 | L45: 151.81 | M45: 164.58 | N45: 173.01 | O45: 183.92 | P45: 194.3 | Q45: 238.72 | R45: 295.83 | S45: 397.44 | T45: 685.64 | U45: 0.042 | V45: 0.3476026645
A46: 43 | B46: 115.19 | C46: 163.21 | D46: 95.99 | E46: 153.19 | F46: 144.66 | G46: 145.89 | H46: 148.68 | I46: 148.4 | J46: 173.12 | K46: 139.01 | L46: 150.63 | M46: 163.3 | N46: 171.66 | O46: 182.48 | P46: 192.78 | Q46: 236.86 | R46: 293.52 | S46: 394.33 | T46: 680.28 | U46: 0.043 | V46: 0.350339806
A47: 44 | B47: 114.31 | C47: 161.97 | D47: 95.26 | E47: 152.02 | F47: 143.56 | G47: 144.77 | H47: 147.55 | I47: 147.27 | J47: 171.8 | K47: 137.95 | L47: 149.48 | M47: 162.05 | N47: 170.35 | O47: 181.09 | P47: 191.31 | Q47: 235.05 | R47: 291.27 | S47: 391.32 | T47: 675.09 | U47: 0.044 | V47: 0.3530348335
A48: 45 | B48: 113.46 | C48: 160.76 | D48: 94.55 | E48: 150.88 | F48: 142.48 | G48: 143.69 | H48: 146.45 | I48: 146.17 | J48: 170.51 | K48: 136.92 | L48: 148.36 | M48: 160.84 | N48: 169.08 | O48: 179.74 | P48: 189.88 | Q48: 233.29 | R48: 289.1 | S48: 388.4 | T48: 670.05 | U48: 0.045 | V48: 0.3556893304
A49: 46 | B49: 112.63 | C49: 159.58 | D49: 93.86 | E49: 149.78 | F49: 141.44 | G49: 142.64 | H49: 145.38 | I49: 145.1 | J49: 169.27 | K49: 135.92 | L49: 147.28 | M49: 159.67 | N49: 167.85 | O49: 178.42 | P49: 188.5 | Q49: 231.59 | R49: 286.99 | S49: 385.57 | T49: 665.16 | U49: 0.046 | V49: 0.3583047871
A50: 47 | B50: 111.83 | C50: 158.44 | D50: 93.19 | E50: 148.71 | F50: 140.43 | G50: 141.63 | H50: 144.34 | I50: 144.06 | J50: 168.06 | K50: 134.95 | L50: 146.22 | M50: 158.53 | N50: 166.65 | O50: 177.15 | P50: 187.15 | Q50: 229.94 | R50: 284.94 | S50: 382.81 | T50: =ROUND(T$2/$V50,2) -> 660.41 | U50: 0.047 | V50: 0.360882608
A51: 48 | B51: 111.04 | C51: 157.34 | D51: 92.54 | E51: =ROUND(E$2/$V51,2) -> 147.67 | F51: 139.45 | G51: 140.63 | H51: 143.33 | I51: 143.06 | J51: 166.88 | K51: 134 | L51: 145.2 | M51: 157.42 | N51: 165.48 | O51: 175.91 | P51: 185.84 | Q51: 228.33 | R51: 282.95 | S51: 380.13 | T51: 655.79 | U51: 0.048 | V51: 0.3634241186
A52: 49 | B52: 110.28 | C52: 156.26 | D52: 91.9 | E52: 146.66 | F52: 138.5 | G52: 139.67 | H52: 142.35 | I52: 142.08 | J52: 165.74 | K52: 133.09 | L52: 144.21 | M52: 156.34 | N52: 164.35 | O52: 174.71 | P52: 184.57 | Q52: 226.76 | R52: 281.01 | S52: 377.53 | T52: 651.3 | U52: 0.049 | V52: 0.365930571
A53: 50 | B53: 109.54 | C53: 155.21 | D53: 91.29 | E53: 145.67 | F53: 137.57 | G53: 138.73 | H53: 141.39 | I53: 141.12 | J53: 164.63 | K53: 132.19 | L53: 143.24 | M53: 155.29 | N53: 163.25 | O53: 173.53 | P53: 183.33 | Q53: 225.24 | R53: 279.12 | S53: 375 | T53: 646.93 | U53: 0.05 | V53: 0.3684031499
A54: 51 | B54: 108.82 | C54: 154.19 | D54: 90.69 | E54: 144.72 | F54: 136.66 | G54: 137.82 | H54: 140.46 | I54: 140.19 | J54: 163.55 | K54: 131.32 | L54: 142.3 | M54: 154.27 | N54: 162.17 | O54: 172.39 | P54: 182.13 | Q54: 223.76 | R54: 277.29 | S54: 372.53 | T54: 642.67 | U54: 0.051 | V54: 0.3708429769
A55: 52 | B55: 108.12 | C55: 153.19 | D55: 90.1 | E55: 143.78 | F55: 135.78 | G55: 136.93 | H55: 139.56 | I55: 139.29 | J55: 162.49 | K55: 130.48 | L55: 141.38 | M55: 153.27 | N55: 161.12 | O55: 171.28 | P55: 180.95 | Q55: 222.32 | R55: 275.5 | S55: 370.13 | T55: 638.52 | U55: 0.052 | V55: 0.3732511157
A56: 53 | B56: 107.44 | C56: 152.22 | D56: 89.53 | E56: 142.87 | F56: 134.92 | G56: 136.07 | H56: 138.67 | I56: 138.41 | J56: 161.46 | K56: 129.65 | L56: 140.48 | M56: 152.3 | N56: 160.1 | O56: 170.19 | P56: 179.81 | Q56: 220.91 | R56: 273.75 | S56: 367.78 | T56: 634.48 | U56: 0.053 | V56: 0.3756285754
A57: 54 | B57: 106.77 | C57: 151.28 | D57: 88.97 | E57: 141.99 | F57: 134.08 | G57: 135.22 | H57: 137.81 | I57: 137.55 | J57: 160.46 | K57: 128.84 | L57: 139.61 | M57: 151.36 | N57: 159.11 | O57: 169.14 | P57: 178.69 | Q57: 219.54 | R57: 272.05 | S57: 365.5 | T57: 630.54 | U57: 0.054 | V57: 0.377976315
A58: 55 | B58: 106.12 | C58: 150.36 | D58: 88.43 | E58: 141.12 | F58: 133.26 | G58: 134.4 | H58: 136.97 | I58: 136.71 | J58: 159.48 | K58: 128.06 | L58: 138.76 | M58: 150.44 | N58: 158.14 | O58: 168.11 | P58: 177.6 | Q58: 218.2 | R58: 270.4 | S58: 363.27 | T58: 626.7 | U58: 0.055 | V58: 0.3802952461
A59: 56 | B59: 105.48 | C59: 149.46 | D59: 87.9 | E59: 140.27 | F59: 132.47 | G59: 133.59 | H59: 136.15 | I59: 135.89 | J59: 158.53 | K59: 127.29 | L59: 137.93 | M59: 149.53 | N59: 157.19 | O59: 167.1 | P59: 176.54 | Q59: 216.89 | R59: 268.78 | S59: 361.1 | T59: 622.94 | U59: 0.056 | V59: 0.3825862366
A60: 57 | B60: 104.86 | C60: 148.58 | D60: 87.38 | E60: 139.45 | F60: 131.69 | G60: 132.8 | H60: 135.35 | I60: 135.09 | J60: 157.59 | K60: 126.54 | L60: 137.12 | M60: 148.66 | N60: 156.27 | O60: 166.12 | P60: 175.5 | Q60: 215.62 | R60: 267.19 | S60: 358.97 | T60: 619.28 | U60: 0.057 | V60: 0.3848501131
A61: 58 | B61: 104.26 | C61: 147.72 | D61: 86.88 | E61: 138.64 | F61: 130.93 | G61: 132.04 | H61: 134.57 | I61: 134.31 | J61: 156.68 | K61: 125.81 | L61: 136.33 | M61: 147.8 | N61: 155.37 | O61: 165.16 | P61: 174.48 | Q61: 214.37 | R61: 265.65 | S61: 356.9 | T61: 615.7 | U61: 0.058 | V61: 0.3870876641
A62: 59 | B62: 103.66 | C62: 146.88 | D62: 86.39 | E62: 137.86 | F62: 130.18 | G62: 131.29 | H62: 133.8 | I62: 133.55 | J62: 155.79 | K62: 125.1 | L62: 135.55 | M62: 146.96 | N62: 154.48 | O62: 164.22 | P62: 173.49 | Q62: 213.15 | R62: 264.14 | S62: 354.87 | T62: 612.2 | U62: 0.059 | V62: 0.3892996416
A63: 60 | B63: 103.08 | C63: 146.06 | D63: 85.9 | E63: 137.09 | F63: 129.46 | G63: 130.55 | H63: 133.06 | I63: 132.8 | J63: 154.92 | K63: 124.4 | L63: 134.79 | M63: 146.14 | N63: 153.62 | O63: 163.3 | P63: 172.52 | Q63: 211.96 | R63: 262.67 | S63: 352.89 | T63: 608.78 | U63: 0.06 | V63: 0.3914867641
A64: 61 | B64: 102.52 | C64: 145.25 | D64: 85.43 | E64: 136.33 | F64: 128.74 | G64: 129.84 | H64: 132.33 | I64: 132.07 | J64: 154.07 | K64: 123.71 | L64: 134.05 | M64: 145.33 | N64: 152.78 | O64: 162.4 | P64: 171.57 | Q64: 210.8 | R64: 261.22 | S64: 350.95 | T64: 605.44 | U64: 0.061 | V64: 0.3936497183
A65: 62 | B65: 101.96 | C65: 144.47 | D65: 84.97 | E65: 135.59 | F65: 128.05 | G65: 129.13 | H65: 131.61 | I65: 131.36 | J65: 153.24 | K65: 123.05 | L65: 133.33 | M65: 144.55 | N65: 151.95 | O65: 161.53 | P65: 170.65 | Q65: 209.66 | R65: 259.81 | S65: 349.05 | T65: 602.16 | U65: 0.062 | V65: 0.395789161
A66: 63 | B66: 101.42 | C66: 143.7 | D66: 84.52 | E66: 134.87 | F66: 127.37 | G66: 128.45 | H66: 130.91 | I66: 130.66 | J66: 152.42 | K66: 122.39 | L66: 132.62 | M66: 143.78 | N66: 151.14 | O66: 160.67 | P66: 169.74 | Q66: 208.54 | R66: 258.43 | S66: 347.19 | T66: 598.96 | U66: 0.063 | V66: 0.3979057208
A67: 64 | B67: 100.89 | C67: 142.95 | D67: 84.08 | E67: 134.17 | F67: 126.7 | G67: 127.78 | H67: 130.23 | I67: 129.98 | J67: 151.63 | K67: 121.75 | L67: 131.93 | M67: 143.03 | N67: 150.35 | O67: 159.83 | P67: 168.85 | Q67: 207.45 | R67: 257.08 | S67: 345.38 | T67: =ROUND(T$2/$V67,2) -> 595.83 | U67: 0.064 | V67: 0.4
A68: 65 | B68: 100.37 | C68: 142.21 | D68: 83.64 | E68: 133.48 | F68: 126.05 | G68: 127.12 | H68: 129.55 | I68: 129.31 | J68: 150.84 | K68: 121.12 | L68: 131.24 | M68: 142.29 | N68: 149.57 | O68: 159 | P68: 167.98 | Q68: 206.38 | R68: 255.75 | S68: 343.59 | T68: 592.75 | U68: =A68/1000 -> 0.065 | V68: =POWER(U68,1/3) -> 0.4020725759
A69: 66 | B69: 99.86 | C69: 141.49 | D69: =ROUND(D$2/$V69,2) -> 83.22 | E69: 132.8 | F69: 125.41 | G69: 126.47 | H69: 128.9 | I69: 128.65 | J69: 150.08 | K69: 120.51 | L69: 130.58 | M69: 141.57 | N69: 148.82 | O69: 158.19 | P69: 167.13 | Q69: 205.33 | R69: 254.45 | S69: 341.85 | T69: 589.74 | U69: 0.066 | V69: 0.4041240021
A70: 67 | B70: 99.36 | C70: 140.78 | D70: 82.8 | E70: 132.13 | F70: 124.78 | G70: 125.84 | H70: 128.25 | I70: 128.01 | J70: 149.33 | K70: 119.91 | L70: 129.93 | M70: 140.86 | N70: 148.07 | O70: 157.4 | P70: 166.29 | Q70: 204.31 | R70: 253.18 | S70: 340.14 | T70: 586.8 | U70: 0.067 | V70: 0.40615481
A71: 68 | B71: 98.87 | C71: 140.09 | D71: 82.39 | E71: 131.48 | F71: 124.17 | G71: 125.22 | H71: 127.62 | I71: 127.37 | J71: 148.59 | K71: 119.31 | L71: 129.29 | M71: 140.16 | N71: 147.34 | O71: 156.63 | P71: 165.47 | Q71: 203.3 | R71: 251.93 | S71: 338.47 | T71: 583.91 | U71: 0.068 | V71: 0.4081655102
A72: 69 | B72: 98.39 | C72: 139.41 | D72: 81.99 | E72: 130.85 | F72: 123.56 | G72: 124.61 | H72: 127 | I72: 126.76 | J72: 147.87 | K72: 118.74 | L72: 128.66 | M72: 139.48 | N72: 146.63 | O72: 155.87 | P72: 164.67 | Q72: 202.31 | R72: 250.71 | S72: 336.82 | T72: 581.07 | U72: 0.069 | V72: 0.410156593
A73: 70 | B73: 97.92 | C73: 138.74 | D73: 81.6 | E73: 130.22 | F73: 122.97 | G73: 124.01 | H73: 126.39 | I73: 126.15 | J73: 147.16 | K73: 118.17 | L73: 128.04 | M73: 138.82 | N73: 145.93 | O73: 155.12 | P73: 163.88 | Q73: 201.34 | R73: 249.51 | S73: 335.21 | T73: 578.29 | U73: 0.07 | V73: 0.41212853
A74: 71 | B74: 97.46 | C74: 138.09 | D74: 81.22 | E74: 129.6 | F74: 122.39 | G74: 123.43 | H74: 125.8 | I74: 125.55 | J74: 146.47 | K74: 117.61 | L74: 127.44 | M74: 138.16 | N74: 145.24 | O74: 154.39 | P74: 163.11 | Q74: 200.4 | R74: 248.33 | S74: 333.63 | T74: 575.56 | U74: 0.071 | V74: 0.4140817749
A75: 72 | B75: 97.01 | C75: 137.45 | D75: 80.84 | E75: 129 | F75: 121.82 | G75: 122.86 | H75: 125.21 | I75: 124.97 | J75: 145.79 | K75: 117.06 | L75: 126.85 | M75: 137.52 | N75: 144.56 | O75: 153.67 | P75: 162.35 | Q75: 199.46 | R75: 247.18 | S75: 332.08 | T75: 572.89 | U75: 0.072 | V75: 0.4160167646
A76: 73 | B76: 96.56 | C76: 136.81 | D76: 80.47 | E76: 128.41 | F76: 121.26 | G76: 122.29 | H76: 124.64 | I76: 124.4 | J76: 145.12 | K76: 116.53 | L76: 126.26 | M76: 136.89 | N76: 143.9 | O76: 152.97 | P76: 161.6 | Q76: 198.55 | R76: 246.04 | S76: 330.55 | T76: 570.26 | U76: 0.073 | V76: 0.4179339196
A77: 74 | B77: 96.12 | C77: 136.2 | D77: 80.1 | E77: 127.83 | F77: 120.71 | G77: 121.74 | H77: 124.07 | I77: 123.83 | J77: 144.46 | K77: 116 | L77: 125.69 | M77: 136.27 | N77: 143.25 | O77: 152.27 | P77: 160.87 | Q77: 197.65 | R77: 244.93 | S77: 329.06 | T77: 567.68 | U77: 0.074 | V77: 0.4198336454
A78: 75 | B78: 95.69 | C78: 135.59 | D78: 79.75 | E78: 127.26 | F78: 120.18 | G78: 121.2 | H78: 123.52 | I78: 123.28 | J78: 143.82 | K78: 115.48 | L78: 125.13 | M78: 135.66 | N78: 142.61 | O78: 151.59 | P78: 160.16 | Q78: 196.77 | R78: 243.84 | S78: 327.59 | T78: 565.14 | U78: 0.075 | V78: 0.4217163327
A79: 76 | B79: 95.27 | C79: 134.99 | D79: 79.39 | E79: 126.7 | F79: 119.65 | G79: 120.66 | H79: 122.97 | I79: 122.74 | J79: 143.18 | K79: 114.97 | L79: 124.58 | M79: 135.06 | N79: 141.98 | O79: 150.93 | P79: 159.45 | Q79: 195.9 | R79: 242.76 | S79: 326.15 | T79: 562.65 | U79: 0.076 | V79: 0.4235823584
A80: 77 | B80: 94.86 | C80: 134.4 | D80: 79.05 | E80: 126.15 | F80: 119.13 | G80: 120.14 | H80: 122.44 | I80: 122.21 | J80: 142.56 | K80: 114.47 | L80: 124.04 | M80: 134.48 | N80: 141.36 | O80: 150.27 | P80: 158.76 | Q80: 195.05 | R80: 241.71 | S80: 324.73 | T80: 560.21 | U80: 0.077 | V80: 0.4254320865
A81: 78 | B81: 94.45 | C81: 133.83 | D81: 78.71 | E81: 125.61 | F81: 118.61 | G81: 119.62 | H81: 121.91 | I81: 121.68 | J81: 141.95 | K81: 113.98 | L81: 123.51 | M81: 133.9 | N81: 140.76 | O81: 149.63 | P81: 158.07 | Q81: 194.21 | R81: 240.67 | S81: 323.33 | T81: 557.8 | U81: 0.078 | V81: 0.4272658682
A82: 79 | B82: 94.05 | C82: 133.26 | D82: 78.38 | E82: 125.07 | F82: 118.11 | G82: 119.11 | H82: 121.4 | I82: 121.17 | J82: 141.35 | K82: 113.5 | L82: 122.98 | M82: 133.33 | N82: 140.16 | O82: 148.99 | P82: 157.41 | Q82: 193.39 | R82: 239.65 | S82: 321.96 | T82: 555.44 | U82: 0.079 | V82: 0.4290840427
A83: 80 | B83: 93.66 | C83: 132.7 | D83: 78.05 | E83: 124.55 | F83: 117.62 | G83: 118.62 | H83: 120.89 | I83: 120.66 | J83: 140.76 | K83: 113.02 | L83: 122.47 | M83: 132.77 | N83: 139.57 | O83: 148.37 | P83: 156.75 | Q83: 192.58 | R83: 238.65 | S83: 320.62 | T83: 553.11 | U83: 0.08 | V83: 0.430886938
A84: 81 | B84: =ROUND(B$2/$V84,2) -> 93.27 | C84: 132.15 | D84: 77.73 | E84: 124.04 | F84: 117.13 | G84: 118.13 | H84: 120.39 | I84: 120.16 | J84: 140.17 | K84: 112.56 | L84: 121.96 | M84: 132.22 | N84: 139 | O84: 147.76 | P84: 156.1 | Q84: 191.78 | R84: 237.66 | S84: 319.29 | T84: =ROUND(T$2/$V84,2) -> 550.83 | U84: 0.081 | V84: 0.4326748711
A85: 82 | B85: 92.89 | C85: 131.61 | D85: 77.41 | E85: 123.53 | F85: 116.65 | G85: 117.64 | H85: 119.9 | I85: 119.67 | J85: 139.6 | K85: 112.1 | L85: 121.46 | M85: 131.68 | N85: 138.43 | O85: 147.15 | P85: 155.46 | Q85: 191 | R85: 236.69 | S85: 317.99 | T85: 548.58 | U85: 0.082 | V85: 0.4344481486
A86: 83 | B86: 92.52 | C86: 131.08 | D86: 77.1 | E86: 123.03 | F86: 116.18 | G86: 117.17 | H86: 119.42 | I86: 119.19 | J86: 139.04 | K86: 111.64 | L86: 120.97 | M86: 131.15 | N86: 137.87 | O86: 146.56 | P86: 154.83 | Q86: 190.23 | R86: 235.74 | S86: 316.71 | T86: 546.37 | U86: 0.083 | V86: 0.4362070671
A87: 84 | B87: 92.15 | C87: 130.56 | D87: 76.79 | E87: 122.54 | F87: 115.72 | G87: 116.7 | H87: 118.94 | I87: 118.71 | J87: 138.49 | K87: 111.2 | L87: 120.49 | M87: 130.63 | N87: 137.32 | O87: 145.97 | P87: 154.22 | Q87: 189.47 | R87: 234.8 | S87: 315.45 | T87: 544.19 | U87: 0.084 | V87: 0.437951914
A88: 85 | B88: 91.78 | C88: 130.05 | D88: 76.49 | E88: 122.06 | F88: 115.26 | G88: 116.24 | H88: 118.47 | I88: 118.24 | J88: 137.94 | K88: 110.76 | L88: 120.02 | M88: 130.12 | N88: 136.78 | O88: 145.4 | P88: 153.61 | Q88: 188.73 | R88: 233.87 | S88: 314.2 | T88: 542.05 | U88: 0.085 | V88: 0.4396829672
A89: 86 | B89: 91.43 | C89: 129.54 | D89: 76.19 | E89: 121.58 | F89: 114.82 | G89: 115.79 | H89: 118.01 | I89: 117.78 | J89: 137.4 | K89: 110.33 | L89: 119.55 | M89: 129.61 | N89: 136.25 | O89: 144.83 | P89: 153.01 | Q89: 187.99 | R89: 232.96 | S89: 312.98 | T89: 539.94 | U89: 0.086 | V89: 0.4414004962
A90: 87 | B90: 91.08 | C90: 129.04 | D90: 75.9 | E90: 121.12 | F90: 114.37 | G90: 115.35 | H90: 117.56 | I90: 117.33 | J90: 136.88 | K90: 109.91 | L90: 119.09 | M90: 129.11 | N90: 135.72 | O90: 144.28 | P90: 152.42 | Q90: 187.27 | R90: 232.07 | S90: 311.78 | T90: 537.86 | U90: 0.087 | V90: 0.4431047622
A91: 88 | B91: 90.73 | C91: 128.55 | D91: 75.61 | E91: 120.66 | F91: 113.94 | G91: 114.91 | H91: 117.11 | I91: 116.89 | J91: 136.35 | K91: 109.49 | L91: 118.64 | M91: 128.62 | N91: 135.21 | O91: 143.73 | P91: 151.84 | Q91: 186.56 | R91: 231.18 | S91: 310.59 | T91: 535.82 | U91: 0.088 | V91: 0.4447960181
A92: 89 | B92: 90.39 | C92: 128.07 | D92: 75.32 | E92: 120.2 | F92: 113.51 | G92: 114.47 | H92: 116.67 | I92: 116.45 | J92: 135.84 | K92: 109.08 | L92: 118.19 | M92: 128.14 | N92: 134.7 | O92: 143.19 | P92: 151.27 | Q92: 185.86 | R92: 230.32 | S92: 309.42 | T92: 533.8 | U92: 0.089 | V92: 0.4464745096
A93: 90 | B93: 90.05 | C93: 127.59 | D93: 75.04 | E93: 119.75 | F93: 113.09 | G93: 114.05 | H93: 116.24 | I93: 116.01 | J93: 135.34 | K93: 108.67 | L93: 117.75 | M93: 127.66 | N93: 134.2 | O93: 142.66 | P93: 150.71 | Q93: 185.17 | R93: 229.46 | S93: 308.27 | T93: 531.82 | U93: 0.09 | V93: 0.4481404747
A94: 91 | B94: 89.72 | C94: 127.12 | D94: 74.77 | E94: 119.31 | F94: 112.67 | G94: 113.63 | H94: 115.81 | I94: 115.59 | J94: 134.84 | K94: 108.27 | L94: 117.32 | M94: 127.19 | N94: 133.71 | O94: 142.13 | P94: 150.16 | Q94: 184.48 | R94: 228.62 | S94: 307.14 | T94: 529.86 | U94: 0.091 | V94: 0.4497941445
A95: 92 | B95: 89.39 | C95: 126.66 | D95: 74.5 | E95: 118.88 | F95: 112.26 | G95: 113.22 | H95: 115.39 | I95: 115.17 | J95: 134.35 | K95: 107.88 | L95: 116.89 | M95: 126.73 | N95: 133.22 | O95: 141.61 | P95: 149.61 | Q95: 183.81 | R95: 227.78 | S95: 306.02 | T95: 527.94 | U95: 0.092 | V95: 0.4514357435
A96: 93 | B96: 89.07 | C96: 126.21 | D96: 74.23 | E96: 118.45 | F96: 111.86 | G96: 112.81 | H96: 114.97 | I96: 114.75 | J96: 133.87 | K96: 107.49 | L96: 116.47 | M96: 126.27 | N96: 132.74 | O96: 141.11 | P96: 149.07 | Q96: 183.15 | R96: 226.96 | S96: 304.92 | T96: 526.04 | U96: 0.093 | V96: 0.4530654896
A97: 94 | B97: 88.76 | C97: 125.76 | D97: 73.96 | E97: 118.03 | F97: 111.46 | G97: 112.41 | H97: 114.56 | I97: 114.34 | J97: 133.39 | K97: 107.11 | L97: 116.06 | M97: 125.82 | N97: 132.27 | O97: 140.6 | P97: 148.54 | Q97: 182.5 | R97: 226.16 | S97: 303.84 | T97: 524.17 | U97: 0.094 | V97: 0.4546835944
A98: 95 | B98: 88.44 | C98: 125.31 | D98: 73.7 | E98: 117.62 | F98: 111.07 | G98: 112.01 | H98: 114.16 | I98: 113.94 | J98: 132.92 | K98: 106.73 | L98: 115.65 | M98: 125.38 | N98: 131.8 | O98: 140.11 | P98: 148.02 | Q98: 181.86 | R98: 225.36 | S98: 302.77 | T98: 522.32 | U98: 0.095 | V98: 0.4562902635
A99: 96 | B99: 88.14 | C99: 124.88 | D99: 73.45 | E99: 117.21 | F99: 110.68 | G99: 111.62 | H99: 113.76 | I99: 113.54 | J99: 132.46 | K99: 106.36 | L99: 115.25 | M99: 124.94 | N99: 131.34 | O99: 139.62 | P99: 147.5 | Q99: 181.22 | R99: 224.58 | S99: 301.71 | T99: 520.5 | U99: 0.096 | V99: 0.457885697
A100: 97 | B100: 87.83 | C100: 124.45 | D100: 73.19 | E100: 116.8 | F100: 110.3 | G100: 111.24 | H100: 113.37 | I100: 113.15 | J100: 132 | K100: 105.99 | L100: 114.85 | M100: 124.51 | N100: 130.89 | O100: 139.14 | P100: 147 | Q100: 180.6 | R100: 223.8 | S100: 300.67 | T100: 518.71 | U100: 0.097 | V100: 0.4594700892
A101: 98 | B101: 87.53 | C101: 124.02 | D101: 72.94 | E101: 116.4 | F101: 109.92 | G101: 110.86 | H101: 112.98 | I101: 112.77 | J101: 131.55 | K101: 105.63 | L101: 114.46 | M101: 124.09 | N101: 130.44 | O101: 138.66 | P101: 146.49 | Q101: 179.98 | R101: 223.04 | S101: 299.65 | T101: =ROUND(T$2/$V101,2) -> 516.94 | U101: 0.098 | V101: 0.4610436292
A102: 99 | B102: 87.24 | C102: 123.6 | D102: 72.7 | E102: 116.01 | F102: 109.55 | G102: 110.48 | H102: 112.6 | I102: 112.38 | J102: 131.1 | K102: 105.27 | L102: 114.07 | M102: 123.67 | N102: 130 | O102: 138.2 | P102: 146 | Q102: 179.37 | R102: 222.28 | S102: 298.63 | T102: 515.19 | U102: 0.099 | V102: 0.4626065009
A103: 100 | B103: 86.94 | C103: 123.19 | D103: 72.45 | E103: 115.62 | F103: 109.19 | G103: 110.11 | H103: 112.22 | I103: 112.01 | J103: 130.67 | K103: 104.92 | L103: 113.69 | M103: 123.26 | N103: 129.57 | O103: 137.73 | P103: 145.51 | Q103: 178.77 | R103: 221.54 | S103: 297.64 | T103: 513.47 | U103: 0.1 | V103: 0.4641588834
A104: 101 | B104: 86.66 | C104: 122.78 | D104: 72.21 | E104: 115.24 | F104: 108.83 | G104: 109.75 | H104: 111.85 | I104: 111.64 | J104: 130.23 | K104: 104.57 | L104: 113.31 | M104: 122.85 | N104: 129.14 | O104: 137.28 | P104: 145.03 | Q104: 178.18 | R104: 220.81 | S104: 296.65 | T104: 511.77 | U104: 0.101 | V104: 0.4657009508
A105: 102 | B105: 86.37 | C105: 122.38 | D105: 71.98 | E105: 114.86 | F105: 108.47 | G105: 109.39 | H105: 111.49 | I105: 111.27 | J105: 129.81 | K105: 104.23 | L105: 112.94 | M105: 122.44 | N105: 128.72 | O105: 136.83 | P105: 144.55 | Q105: 177.6 | R105: 220.08 | S105: 295.68 | T105: 510.09 | U105: 0.102 | V105: 0.4672328728
A106: 103 | B106: 86.09 | C106: 121.98 | D106: 71.74 | E106: 114.49 | F106: 108.12 | G106: 109.03 | H106: 111.12 | I106: 110.91 | J106: 129.39 | K106: 103.89 | L106: 112.57 | M106: 122.05 | N106: 128.3 | O106: 136.38 | P106: 144.08 | Q106: 177.02 | R106: 219.37 | S106: 294.72 | T106: 508.43 | U106: 0.103 | V106: 0.4687548148
A107: 104 | B107: 85.82 | C107: 121.59 | D107: 71.51 | E107: 114.12 | F107: 107.77 | G107: 108.68 | H107: 110.77 | I107: 110.55 | J107: 128.97 | K107: 103.56 | L107: 112.21 | M107: 121.65 | N107: 127.88 | O107: 135.94 | P107: 143.62 | Q107: 176.45 | R107: 218.66 | S107: 293.77 | T107: 506.8 | U107: 0.104 | V107: 0.4702669375
A108: 105 | B108: 85.54 | C108: 121.2 | D108: 71.28 | E108: 113.76 | F108: 107.43 | G108: 108.34 | H108: 110.41 | I108: 110.2 | J108: 128.56 | K108: 103.23 | L108: 111.86 | M108: 121.27 | N108: 127.48 | O108: 135.51 | P108: 143.16 | Q108: 175.89 | R108: 217.97 | S108: 292.83 | T108: 505.18 | U108: 0.105 | V108: 0.471769398
A109: 106 | B109: 85.27 | C109: 120.82 | D109: 71.06 | E109: 113.4 | F109: 107.09 | G109: 108 | H109: 110.07 | I109: 109.85 | J109: 128.15 | K109: 102.9 | L109: 111.5 | M109: 120.88 | N109: 127.08 | O109: 135.08 | P109: 142.71 | Q109: 175.34 | R109: 217.28 | S109: 291.91 | T109: 503.59 | U109: 0.106 | V109: 0.4732623491
A110: 107 | B110: 85.01 | C110: 120.44 | D110: 70.84 | E110: 113.04 | F110: 106.75 | G110: 107.66 | H110: 109.72 | I110: 109.51 | J110: 127.75 | K110: 102.58 | L110: 111.15 | M110: 120.51 | N110: 126.68 | O110: 134.66 | P110: 142.27 | Q110: 174.79 | R110: 216.6 | S110: 291 | T110: 502.02 | U110: 0.107 | V110: 0.4747459399
A111: 108 | B111: 84.74 | C111: 120.07 | D111: 70.62 | E111: 112.69 | F111: 106.42 | G111: 107.32 | H111: 109.38 | I111: 109.17 | J111: 127.36 | K111: 102.26 | L111: 110.81 | M111: 120.13 | N111: 126.29 | O111: 134.24 | P111: 141.83 | Q111: 174.25 | R111: 215.93 | S111: 290.1 | T111: 500.46 | U111: 0.108 | V111: 0.4762203156
A112: 109 | B112: 84.48 | C112: 119.7 | D112: 70.4 | E112: 112.35 | F112: 106.09 | G112: 107 | H112: 109.05 | I112: 108.84 | J112: 126.97 | K112: 101.95 | L112: 110.47 | M112: 119.76 | N112: 125.9 | O112: 133.83 | P112: 141.39 | Q112: 173.71 | R112: 215.27 | S112: 289.21 | T112: 498.93 | U112: 0.109 | V112: 0.4776856181
A113: 110 | B113: 84.23 | C113: 119.34 | D113: 70.19 | E113: 112.01 | F113: 105.77 | G113: 106.67 | H113: 108.72 | I113: 108.51 | J113: 126.58 | K113: 101.64 | L113: 110.13 | M113: 119.4 | N113: 125.52 | O113: 133.43 | P113: 140.96 | Q113: 173.18 | R113: 214.61 | S113: 288.33 | T113: 497.41 | U113: 0.11 | V113: 0.4791419857
A114: 111 | B114: 83.97 | C114: 118.98 | D114: 69.98 | E114: 111.67 | F114: 105.45 | G114: 106.35 | H114: 108.39 | I114: 108.18 | J114: 126.2 | K114: 101.33 | L114: 109.8 | M114: 119.04 | N114: 125.14 | O114: 133.02 | P114: 140.54 | Q114: 172.66 | R114: 213.97 | S114: 287.46 | T114: 495.91 | U114: 0.111 | V114: 0.4805895534
A115: 112 | B115: 83.72 | C115: 118.62 | D115: 69.77 | E115: =ROUND(E$2/$V115,2) -> 111.34 | F115: 105.14 | G115: 106.03 | H115: 108.06 | I115: 107.86 | J115: 125.82 | K115: 101.03 | L115: 109.47 | M115: 118.69 | N115: 124.76 | O115: 132.63 | P115: 140.12 | Q115: 172.15 | R115: 213.33 | S115: 286.6 | T115: 494.43 | U115: 0.112 | V115: 0.4820284528
A116: 113 | B116: 83.47 | C116: 118.27 | D116: 69.56 | E116: 111.01 | F116: 104.83 | G116: 105.72 | H116: 107.74 | I116: 107.54 | J116: 125.45 | K116: 100.73 | L116: 109.15 | M116: 118.33 | N116: 124.4 | O116: 132.23 | P116: 139.7 | Q116: 171.64 | R116: 212.7 | S116: 285.75 | T116: 492.97 | U116: 0.113 | V116: 0.4834588127
A117: 114 | B117: 83.23 | C117: 117.92 | D117: 69.36 | E117: 110.68 | F117: 104.52 | G117: 105.41 | H117: 107.43 | I117: 107.22 | J117: 125.08 | K117: 100.44 | L117: 108.83 | M117: 117.99 | N117: 124.03 | O117: 131.85 | P117: 139.29 | Q117: 171.13 | R117: 212.07 | S117: 284.92 | T117: 491.52 | U117: 0.114 | V117: 0.4848807586
A118: 115 | B118: 82.99 | C118: 117.58 | D118: 69.16 | E118: 110.36 | F118: 104.22 | G118: 105.1 | H118: 107.12 | I118: 106.91 | J118: 124.72 | K118: 100.15 | L118: 108.51 | M118: 117.64 | N118: 123.67 | O118: 131.46 | P118: 138.89 | Q118: 170.64 | R118: 211.46 | S118: 284.09 | T118: =ROUND(T$2/$V118,2) -> 490.09 | U118: 0.115 | V118: 0.4862944131
A119: 116 | B119: 82.75 | C119: 117.24 | D119: 68.96 | E119: 110.04 | F119: 103.92 | G119: 104.8 | H119: 106.81 | I119: 106.6 | J119: 124.36 | K119: 99.86 | L119: 108.2 | M119: 117.31 | N119: 123.31 | O119: 131.08 | P119: 138.49 | Q119: 170.15 | R119: 210.85 | S119: 283.27 | T119: 488.68 | U119: 0.116 | V119: 0.4876998961
A120: 117 | B120: 82.51 | C120: 116.91 | D120: 68.76 | E120: 109.73 | F120: 103.62 | G120: 104.5 | H120: 106.5 | I120: 106.3 | J120: 124 | K120: 99.57 | L120: 107.89 | M120: 116.97 | N120: 122.96 | O120: 130.71 | P120: 138.09 | Q120: 169.66 | R120: 210.24 | S120: 282.46 | T120: 487.29 | U120: 0.117 | V120: 0.4890973247
A121: 118 | B121: 82.28 | C121: 116.58 | D121: 68.56 | E121: 109.42 | F121: 103.33 | G121: 104.2 | H121: 106.2 | I121: 106 | J121: 123.65 | K121: 99.29 | L121: 107.59 | M121: 116.64 | N121: 122.61 | O121: 130.34 | P121: 137.7 | Q121: 169.18 | R121: 209.65 | S121: 281.66 | T121: 485.91 | U121: 0.118 | V121: 0.4904868132
A122: 119 | B122: 82.05 | C122: 116.25 | D122: 68.37 | E122: 109.11 | F122: 103.04 | G122: 103.91 | H122: 105.9 | I122: 105.7 | J122: 123.31 | K122: 99.01 | L122: 107.28 | M122: 116.31 | N122: 122.27 | O122: 129.97 | P122: 137.31 | Q122: 168.7 | R122: 209.06 | S122: 280.87 | T122: 484.54 | U122: 0.119 | V122: 0.4918684734
A123: 120 | B123: 81.82 | C123: 115.93 | D123: 68.18 | E123: 108.8 | F123: 102.75 | G123: 103.62 | H123: 105.61 | I123: 105.4 | J123: 122.96 | K123: 98.73 | L123: 106.99 | M123: 115.99 | N123: 121.93 | O123: 129.61 | P123: 136.93 | Q123: 168.23 | R123: 208.48 | S123: 280.09 | T123: 483.19 | U123: 0.12 | V123: 0.4932424149
A124: 121 | B124: 81.59 | C124: 115.61 | D124: 67.99 | E124: 108.5 | F124: 102.46 | G124: 103.33 | H124: 105.32 | I124: 105.11 | J124: 122.62 | K124: 98.46 | L124: 106.69 | M124: 115.67 | N124: 121.59 | O124: 129.25 | P124: 136.55 | Q124: 167.77 | R124: 207.9 | S124: 279.31 | T124: 481.86 | U124: 0.121 | V124: 0.4946087443
A125: 122 | B125: 81.37 | C125: 115.29 | D125: 67.81 | E125: 108.21 | F125: 102.18 | G125: 103.05 | H125: 105.03 | I125: 104.83 | J125: 122.29 | K125: 98.19 | L125: 106.4 | M125: 115.35 | N125: 121.26 | O125: 128.9 | P125: 136.18 | Q125: 167.31 | R125: 207.33 | S125: 278.55 | T125: 480.54 | U125: 0.122 | V125: 0.4959675664
A126: 123 | B126: 81.15 | C126: 114.98 | D126: 67.62 | E126: 107.91 | F126: 101.91 | G126: 102.77 | H126: 104.74 | I126: 104.54 | J126: 121.95 | K126: 97.93 | L126: 106.11 | M126: 115.04 | N126: 120.93 | O126: 128.55 | P126: 135.81 | Q126: 166.85 | R126: 206.77 | S126: 277.79 | T126: 479.23 | U126: 0.123 | V126: 0.4973189833
A127: 124 | B127: 80.93 | C127: 114.67 | D127: 67.44 | E127: 107.62 | F127: 101.63 | G127: 102.49 | H127: 104.46 | I127: 104.26 | J127: 121.63 | K127: 97.66 | L127: 105.82 | M127: 114.73 | N127: 120.6 | O127: 128.2 | P127: 135.44 | Q127: 166.4 | R127: 206.21 | S127: 277.04 | T127: 477.94 | U127: 0.124 | V127: 0.4986630952
A128: 125 | B128: 80.71 | C128: 114.36 | D128: 67.26 | E128: 107.33 | F128: 101.36 | G128: 102.22 | H128: 104.18 | I128: 103.98 | J128: 121.3 | K128: 97.4 | L128: 105.54 | M128: 114.42 | N128: 120.28 | O128: 127.86 | P128: 135.08 | Q128: 165.96 | R128: 205.66 | S128: 276.3 | T128: 476.66 | U128: 0.125 | V128: 0.5
A129: 126 | B129: 80.5 | C129: 114.06 | D129: 67.08 | E129: 107.05 | F129: 101.09 | G129: 101.95 | H129: 103.9 | I129: 103.7 | J129: 120.98 | K129: 97.14 | L129: 105.26 | M129: 114.12 | N129: 119.96 | O129: 127.52 | P129: 134.72 | Q129: 165.52 | R129: 205.11 | S129: 275.57 | T129: 475.4 | U129: 0.126 | V129: 0.5013297935
A130: 127 | B130: 80.29 | C130: 113.76 | D130: 66.91 | E130: 106.77 | F130: 100.83 | G130: 101.68 | H130: 103.63 | I130: 103.43 | J130: 120.66 | K130: 96.89 | L130: 104.98 | M130: 113.82 | N130: 119.65 | O130: 127.19 | P130: 134.37 | Q130: 165.08 | R130: 204.57 | S130: 274.84 | T130: 474.14 | U130: 0.127 | V130: 0.5026525695
A131: 128 | B131: 80.08 | C131: 113.46 | D131: 66.73 | E131: 106.49 | F131: 100.56 | G131: 101.42 | H131: 103.36 | I131: 103.16 | J131: 120.34 | K131: 96.63 | L131: 104.71 | M131: 113.52 | N131: 119.33 | O131: 126.85 | P131: 134.02 | Q131: 164.65 | R131: 204.04 | S131: 274.12 | T131: 472.91 | U131: 0.128 | V131: 0.50396842
A132: 129 | B132: 79.87 | C132: 113.16 | D132: 66.56 | E132: 106.21 | F132: 100.3 | G132: 101.15 | H132: 103.09 | I132: 102.89 | J132: 120.03 | K132: 96.38 | L132: 104.44 | M132: 113.22 | N132: 119.02 | O132: 126.52 | P132: 133.67 | Q132: 164.23 | R132: 203.51 | S132: 273.41 | T132: 471.68 | U132: =A132/1000 -> 0.129 | V132: =POWER(U132,1/3) -> 0.5052774347
A133: 130 | B133: 79.66 | C133: 112.87 | D133: =ROUND(D$2/$V133,2) -> 66.39 | E133: 105.94 | F133: 100.04 | G133: 100.89 | H133: 102.83 | I133: 102.63 | J133: 119.72 | K133: 96.13 | L133: 104.17 | M133: 112.93 | N133: 118.72 | O133: 126.2 | P133: 133.33 | Q133: 163.8 | R133: 202.99 | S133: 272.71 | T133: 470.47 | U133: 0.13 | V133: 0.5065797019
A134: 131 | B134: 79.46 | C134: 112.59 | D134: 66.22 | E134: 105.67 | F134: 99.79 | G134: 100.63 | H134: 102.56 | I134: 102.37 | J134: 119.42 | K134: 95.89 | L134: 103.9 | M134: 112.65 | N134: 118.41 | O134: 125.88 | P134: 132.99 | Q134: 163.39 | R134: 202.47 | S134: 272.02 | T134: 469.27 | U134: 0.131 | V134: 0.5078753078
A135: 132 | B135: 79.26 | C135: 112.3 | D135: 66.05 | E135: 105.4 | F135: 99.54 | G135: 100.38 | H135: 102.3 | I135: 102.11 | J135: 119.12 | K135: 95.65 | L135: 103.64 | M135: 112.36 | N135: 118.12 | O135: 125.56 | P135: 132.65 | Q135: 162.97 | R135: 201.96 | S135: 271.33 | T135: =ROUND(T$2/$V135,2) -> 468.08 | U135: 0.132 | V135: 0.509164337
A136: 133 | B136: 79.06 | C136: 112.02 | D136: 65.88 | E136: 105.14 | F136: 99.29 | G136: 100.13 | H136: 102.05 | I136: 101.85 | J136: 118.82 | K136: 95.41 | L136: 103.38 | M136: 112.08 | N136: 117.82 | O136: 125.24 | P136: 132.32 | Q136: 162.56 | R136: 201.45 | S136: 270.65 | T136: 466.9 | U136: 0.133 | V136: 0.5104468722
A137: 134 | B137: 78.86 | C137: 111.74 | D137: 65.72 | E137: 104.88 | F137: 99.04 | G137: 99.88 | H137: 101.79 | I137: 101.6 | J137: 118.52 | K137: 95.17 | L137: 103.12 | M137: 111.8 | N137: 117.52 | O137: 124.93 | P137: 131.99 | Q137: 162.16 | R137: 200.95 | S137: 269.97 | T137: 465.74 | U137: 0.134 | V137: 0.5117229947
A138: 135 | B138: 78.67 | C138: 111.46 | D138: 65.56 | E138: 104.62 | F138: 98.79 | G138: 99.63 | H138: 101.54 | I138: 101.35 | J138: 118.23 | K138: 94.93 | L138: 102.87 | M138: 111.52 | N138: 117.23 | O138: 124.62 | P138: 131.66 | Q138: 161.76 | R138: 200.45 | S138: 269.3 | T138: 464.59 | U138: 0.135 | V138: 0.512992784
A139: 136 | B139: 78.47 | C139: 111.19 | D139: 65.4 | E139: 104.36 | F139: 98.55 | G139: 99.39 | H139: 101.29 | I139: 101.1 | J139: 117.94 | K139: 94.7 | L139: 102.61 | M139: 111.25 | N139: 116.95 | O139: 124.32 | P139: 131.34 | Q139: 161.36 | R139: 199.96 | S139: 268.64 | T139: 463.45 | U139: 0.136 | V139: 0.5142563181
A140: 137 | B140: 78.28 | C140: 110.92 | D140: 65.24 | E140: 104.1 | F140: 98.31 | G140: 99.14 | H140: 101.04 | I140: 100.85 | J140: 117.65 | K140: 94.47 | L140: 102.36 | M140: 110.98 | N140: 116.66 | O140: 124.01 | P140: 131.01 | Q140: 160.97 | R140: 199.47 | S140: 267.99 | T140: 462.32 | U140: 0.137 | V140: 0.5155136735
A141: 138 | B141: 78.09 | C141: 110.65 | D141: 65.08 | E141: 103.85 | F141: 98.07 | G141: 98.9 | H141: 100.8 | I141: 100.61 | J141: 117.36 | K141: 94.24 | L141: 102.12 | M141: 110.71 | N141: 116.38 | O141: 123.71 | P141: 130.7 | Q141: 160.58 | R141: 198.99 | S141: 267.34 | T141: 461.2 | U141: 0.138 | V141: 0.5167649252
A142: 139 | B142: 77.91 | C142: 110.38 | D142: 64.92 | E142: 103.6 | F142: 97.84 | G142: 98.67 | H142: 100.56 | I142: 100.36 | J142: 117.08 | K142: 94.01 | L142: 101.87 | M142: 110.44 | N142: 116.1 | O142: 123.41 | P142: 130.38 | Q142: 160.19 | R142: 198.51 | S142: 266.69 | T142: 460.09 | U142: 0.139 | V142: 0.5180101467
A143: 140 | B143: 77.72 | C143: 110.12 | D143: 64.77 | E143: 103.35 | F143: 97.6 | G143: 98.43 | H143: 100.32 | I143: 100.13 | J143: 116.8 | K143: 93.79 | L143: 101.63 | M143: 110.18 | N143: 115.82 | O143: 123.12 | P143: 130.07 | Q143: 159.81 | R143: 198.04 | S143: 266.06 | T143: 458.99 | U143: 0.14 | V143: 0.5192494102
A144: 141 | B144: 77.54 | C144: 109.86 | D144: 64.61 | E144: 103.11 | F144: 97.37 | G144: 98.2 | H144: 100.08 | I144: 99.89 | J144: 116.53 | K144: 93.57 | L144: 101.39 | M144: 109.92 | N144: 115.55 | O144: 122.83 | P144: 129.76 | Q144: 159.43 | R144: 197.57 | S144: 265.43 | T144: 457.9 | U144: 0.141 | V144: 0.5204827863
A145: 142 | B145: 77.35 | C145: 109.6 | D145: 64.46 | E145: 102.87 | F145: 97.14 | G145: 97.97 | H145: 99.84 | I145: 99.65 | J145: 116.25 | K145: 93.35 | L145: 101.15 | M145: 109.66 | N145: 115.27 | O145: 122.54 | P145: 129.46 | Q145: 159.05 | R145: 197.1 | S145: 264.8 | T145: 456.82 | U145: 0.142 | V145: 0.5217103446
A146: 143 | B146: 77.17 | C146: 109.34 | D146: 64.31 | E146: 102.63 | F146: 96.92 | G146: 97.74 | H146: 99.61 | I146: 99.42 | J146: 115.98 | K146: 93.13 | L146: 100.91 | M146: 109.4 | N146: 115.01 | O146: 122.25 | P146: 129.16 | Q146: 158.68 | R146: 196.64 | S146: 264.18 | T146: 455.76 | U146: 0.143 | V146: 0.5229321532
A147: 144 | B147: 76.99 | C147: 109.09 | D147: 64.16 | E147: 102.39 | F147: 96.69 | G147: 97.51 | H147: 99.38 | I147: 99.19 | J147: 115.71 | K147: 92.91 | L147: 100.68 | M147: 109.15 | N147: 114.74 | O147: 121.97 | P147: 128.86 | Q147: 158.31 | R147: 196.18 | S147: 263.57 | T147: 454.7 | U147: 0.144 | V147: 0.5241482788
A148: 145 | B148: =ROUND(B$2/$V148,2) -> 76.82 | C148: 108.84 | D148: 64.01 | E148: 102.15 | F148: 96.47 | G148: 97.29 | H148: 99.15 | I148: 98.96 | J148: 115.44 | K148: 92.7 | L148: 100.45 | M148: 108.9 | N148: 114.47 | O148: 121.69 | P148: 128.56 | Q148: 157.95 | R148: 195.73 | S148: 262.96 | T148: 453.65 | U148: 0.145 | V148: 0.5253587872
A149: 146 | B149: 76.64 | C149: 108.59 | D149: 63.87 | E149: 101.92 | F149: 96.25 | G149: 97.06 | H149: 98.92 | I149: 98.73 | J149: 115.18 | K149: 92.49 | L149: 100.22 | M149: 108.65 | N149: 114.21 | O149: 121.41 | P149: 128.27 | Q149: 157.59 | R149: 195.28 | S149: 262.36 | T149: 452.61 | U149: 0.146 | V149: 0.5265637428
A150: 147 | B150: 76.47 | C150: 108.34 | D150: 63.72 | E150: 101.69 | F150: 96.03 | G150: 96.84 | H150: 98.7 | I150: 98.51 | J150: 114.92 | K150: 92.28 | L150: 99.99 | M150: 108.4 | N150: 113.95 | O150: 121.13 | P150: 127.97 | Q150: 157.23 | R150: 194.84 | S150: 261.77 | T150: 451.59 | U150: 0.147 | V150: 0.5277632088
A151: 148 | B151: 76.29 | C151: 108.1 | D151: 63.58 | E151: 101.46 | F151: 95.81 | G151: 96.62 | H151: 98.48 | I151: 98.29 | J151: 114.66 | K151: 92.07 | L151: 99.76 | M151: 108.16 | N151: 113.7 | O151: 120.86 | P151: 127.69 | Q151: 156.87 | R151: 194.4 | S151: 261.17 | T151: 450.57 | U151: 0.148 | V151: 0.5289572473
A152: 149 | B152: 76.12 | C152: 107.86 | D152: 63.44 | E152: 101.23 | F152: 95.6 | G152: 96.41 | H152: 98.26 | I152: 98.07 | J152: 114.4 | K152: 91.86 | L152: 99.54 | M152: 107.91 | N152: 113.44 | O152: 120.59 | P152: 127.4 | Q152: 156.52 | R152: 193.97 | S152: 260.59 | T152: =ROUND(T$2/$V152,2) -> 449.56 | U152: 0.149 | V152: 0.5301459192
A153: 150 | B153: 75.95 | C153: 107.62 | D153: 63.29 | E153: 101.01 | F153: 95.38 | G153: 96.19 | H153: 98.04 | I153: 97.85 | J153: 114.15 | K153: 91.66 | L153: 99.32 | M153: 107.67 | N153: 113.19 | O153: 120.32 | P153: 127.12 | Q153: 156.17 | R153: 193.53 | S153: 260.01 | T153: 448.55 | U153: 0.15 | V153: 0.5313292846
A154: 151 | B154: 75.78 | C154: 107.38 | D154: 63.15 | E154: 100.78 | F154: 95.17 | G154: 95.98 | H154: 97.82 | I154: 97.63 | J154: 113.9 | K154: 91.45 | L154: 99.1 | M154: 107.44 | N154: 112.94 | O154: 120.05 | P154: 126.83 | Q154: 155.83 | R154: 193.11 | S154: 259.43 | T154: 447.56 | U154: 0.151 | V154: 0.5325074022
A155: 152 | B155: 75.62 | C155: 107.14 | D155: 63.02 | E155: 100.56 | F155: 94.96 | G155: 95.77 | H155: 97.61 | I155: 97.42 | J155: 113.64 | K155: 91.25 | L155: 98.88 | M155: 107.2 | N155: 112.69 | O155: 119.79 | P155: 126.56 | Q155: 155.49 | R155: 192.68 | S155: 258.86 | T155: 446.58 | U155: 0.152 | V155: 0.5336803297
A156: 153 | B156: 75.45 | C156: 106.91 | D156: 62.88 | E156: 100.34 | F156: 94.76 | G156: 95.56 | H156: 97.39 | I156: 97.21 | J156: 113.4 | K156: 91.05 | L156: 98.66 | M156: 106.96 | N156: 112.44 | O156: 119.53 | P156: 126.28 | Q156: 155.15 | R156: 192.26 | S156: 258.3 | T156: 445.6 | U156: 0.153 | V156: 0.5348481241
A157: 154 | B157: 75.29 | C157: 106.68 | D157: 62.74 | E157: 100.12 | F157: 94.55 | G157: 95.35 | H157: 97.18 | I157: 96.99 | J157: 113.15 | K157: 90.86 | L157: 98.45 | M157: 106.73 | N157: 112.2 | O157: 119.27 | P157: 126 | Q157: 154.81 | R157: 191.84 | S157: 257.74 | T157: 444.64 | U157: 0.154 | V157: 0.5360108411
A158: 155 | B158: 75.13 | C158: 106.45 | D158: 62.61 | E158: 99.91 | F158: 94.35 | G158: 95.15 | H158: 96.97 | I158: 96.79 | J158: 112.91 | K158: 90.66 | L158: 98.24 | M158: 106.5 | N158: 111.96 | O158: 119.01 | P158: 125.73 | Q158: 154.48 | R158: 191.43 | S158: 257.18 | T158: 443.68 | U158: 0.155 | V158: 0.5371685355
A159: 156 | B159: 74.97 | C159: 106.22 | D159: 62.47 | E159: 99.69 | F159: 94.14 | G159: 94.94 | H159: 96.76 | I159: 96.58 | J159: 112.67 | K159: 90.47 | L159: 98.03 | M159: 106.27 | N159: 111.72 | O159: 118.76 | P159: 125.46 | Q159: 154.15 | R159: 191.02 | S159: 256.63 | T159: 442.73 | U159: 0.156 | V159: 0.5383212612
A160: 157 | B160: 74.81 | C160: 105.99 | D160: 62.34 | E160: 99.48 | F160: 93.94 | G160: 94.74 | H160: 96.56 | I160: 96.37 | J160: 112.43 | K160: 90.27 | L160: 97.82 | M160: 106.05 | N160: 111.48 | O160: 118.51 | P160: 125.2 | Q160: 153.82 | R160: 190.61 | S160: 256.09 | T160: 441.79 | U160: 0.157 | V160: 0.5394690712
A161: 158 | B161: 74.65 | C161: 105.77 | D161: 62.21 | E161: 99.27 | F161: 93.75 | G161: 94.54 | H161: 96.35 | I161: 96.17 | J161: 112.19 | K161: 90.08 | L161: 97.61 | M161: 105.82 | N161: 111.24 | O161: 118.25 | P161: 124.93 | Q161: 153.49 | R161: 190.21 | S161: 255.54 | T161: 440.85 | U161: 0.158 | V161: 0.5406120176
A162: 159 | B162: 74.49 | C162: 105.55 | D162: 62.08 | E162: 99.06 | F162: 93.55 | G162: 94.34 | H162: 96.15 | I162: 95.97 | J162: 111.95 | K162: 89.89 | L162: 97.41 | M162: 105.6 | N162: 111.01 | O162: 118.01 | P162: 124.67 | Q162: 153.17 | R162: 189.81 | S162: 255.01 | T162: 439.93 | U162: 0.159 | V162: 0.5417501515
A163: 160 | B163: 74.34 | C163: 105.33 | D163: 61.95 | E163: 98.86 | F163: 93.35 | G163: 94.15 | H163: 95.95 | I163: 95.77 | J163: 111.72 | K163: 89.71 | L163: 97.2 | M163: 105.38 | N163: 110.78 | O163: 117.76 | P163: 124.41 | Q163: 152.85 | R163: 189.41 | S163: 254.47 | T163: 439.01 | U163: 0.16 | V163: 0.5428835233
A164: 161 | B164: 74.18 | C164: 105.11 | D164: 61.82 | E164: 98.65 | F164: 93.16 | G164: 93.95 | H164: 95.75 | I164: 95.57 | J164: 111.49 | K164: 89.52 | L164: 97 | M164: 105.16 | N164: 110.55 | O164: 117.52 | P164: 124.15 | Q164: 152.53 | R164: 189.02 | S164: 253.95 | T164: 438.1 | U164: 0.161 | V164: 0.5440121825
A165: 162 | B165: 74.03 | C165: 104.89 | D165: 61.69 | E165: 98.45 | F165: 92.97 | G165: 93.76 | H165: 95.55 | I165: 95.37 | J165: 111.26 | K165: 89.34 | L165: 96.8 | M165: 104.95 | N165: 110.32 | O165: 117.27 | P165: 123.9 | Q165: 152.22 | R165: 188.63 | S165: 253.42 | T165: 437.19 | U165: 0.162 | V165: 0.5451361778
A166: 163 | B166: 73.88 | C166: 104.68 | D166: 61.56 | E166: 98.25 | F166: 92.78 | G166: 93.56 | H166: 95.36 | I166: 95.18 | J166: 111.03 | K166: 89.15 | L166: 96.6 | M166: 104.73 | N166: 110.09 | O166: 117.03 | P166: 123.64 | Q166: 151.91 | R166: 188.25 | S166: 252.9 | T166: 436.3 | U166: 0.163 | V166: 0.5462555571
A167: 164 | B167: 73.73 | C167: 104.46 | D167: 61.44 | E167: 98.05 | F167: 92.59 | G167: 93.37 | H167: 95.16 | I167: 94.98 | J167: 110.8 | K167: 88.97 | L167: 96.41 | M167: 104.52 | N167: 109.87 | O167: 116.79 | P167: 123.39 | Q167: 151.6 | R167: 187.86 | S167: 252.39 | T167: 435.41 | U167: 0.164 | V167: 0.5473703675
A168: 165 | B168: 73.58 | C168: 104.25 | D168: 61.31 | E168: 97.85 | F168: 92.4 | G168: 93.18 | H168: 94.97 | I168: 94.79 | J168: 110.58 | K168: 88.79 | L168: 96.21 | M168: 104.31 | N168: 109.65 | O168: 116.56 | P168: 123.14 | Q168: 151.29 | R168: 187.48 | S168: 251.88 | T168: 434.53 | U168: 0.165 | V168: 0.5484806552
A169: 166 | B169: 73.43 | C169: 104.04 | D169: 61.19 | E169: 97.65 | F169: 92.21 | G169: 93 | H169: 94.78 | I169: 94.6 | J169: 110.36 | K169: 88.61 | L169: 96.02 | M169: 104.1 | N169: 109.43 | O169: 116.32 | P169: 122.89 | Q169: 150.99 | R169: 187.1 | S169: 251.37 | T169: =ROUND(T$2/$V169,2) -> 433.65 | U169: 0.166 | V169: 0.549586466
A170: 167 | B170: 73.28 | C170: 103.83 | D170: 61.07 | E170: 97.45 | F170: 92.03 | G170: 92.81 | H170: 94.59 | I170: 94.41 | J170: 110.13 | K170: 88.43 | L170: 95.83 | M170: 103.89 | N170: 109.21 | O170: 116.09 | P170: 122.65 | Q170: 150.68 | R170: 186.73 | S170: 250.87 | T170: 432.79 | U170: 0.167 | V170: 0.5506878446
A171: 168 | B171: 73.14 | C171: 103.63 | D171: 60.95 | E171: 97.26 | F171: 91.85 | G171: 92.63 | H171: 94.4 | I171: 94.22 | J171: 109.92 | K171: 88.26 | L171: 95.64 | M171: 103.68 | N171: 108.99 | O171: 115.86 | P171: 122.4 | Q171: 150.38 | R171: 186.36 | S171: 250.37 | T171: 431.93 | U171: 0.168 | V171: 0.5517848353
A172: 169 | B172: 72.99 | C172: 103.42 | D172: 60.83 | E172: 97.07 | F172: 91.67 | G172: 92.44 | H172: 94.22 | I172: 94.04 | J172: 109.7 | K172: 88.08 | L172: 95.45 | M172: 103.48 | N172: 108.78 | O172: 115.63 | P172: 122.16 | Q172: 150.09 | R172: 185.99 | S172: 249.87 | T172: 431.07 | U172: 0.169 | V172: 0.5528774814
A173: 170 | B173: 72.85 | C173: 103.22 | D173: 60.71 | E173: 96.88 | F173: 91.49 | G173: 92.26 | H173: 94.03 | I173: 93.85 | J173: 109.48 | K173: 87.91 | L173: 95.26 | M173: 103.27 | N173: 108.56 | O173: 115.4 | P173: 121.92 | Q173: 149.79 | R173: 185.63 | S173: 249.38 | T173: 430.23 | U173: 0.17 | V173: 0.5539658257
A174: 171 | B174: 72.71 | C174: 103.02 | D174: 60.59 | E174: 96.69 | F174: 91.31 | G174: 92.08 | H174: 93.85 | I174: 93.67 | J174: 109.27 | K174: 87.74 | L174: 95.07 | M174: 103.07 | N174: 108.35 | O174: 115.18 | P174: 121.68 | Q174: 149.5 | R174: 185.26 | S174: 248.9 | T174: 429.38 | U174: 0.171 | V174: 0.5550499103
A175: 172 | B175: 72.57 | C175: 102.82 | D175: 60.47 | E175: 96.5 | F175: 91.13 | G175: 91.9 | H175: 93.67 | I175: 93.49 | J175: 109.06 | K175: 87.57 | L175: 94.89 | M175: 102.87 | N175: 108.14 | O175: 114.96 | P175: 121.45 | Q175: 149.21 | R175: 184.9 | S175: 248.41 | T175: 428.55 | U175: 0.172 | V175: 0.5561297767
A176: 173 | B176: 72.43 | C176: 102.62 | D176: 60.35 | E176: 96.31 | F176: 90.95 | G176: 91.73 | H176: 93.48 | I176: 93.3 | J176: 108.85 | K176: 87.4 | L176: 94.7 | M176: 102.67 | N176: 107.93 | O176: 114.73 | P176: 121.21 | Q176: 148.92 | R176: 184.55 | S176: 247.93 | T176: 427.72 | U176: 0.173 | V176: 0.5572054656
A177: 174 | B177: 72.29 | C177: 102.42 | D177: 60.24 | E177: 96.13 | F177: 90.78 | G177: 91.55 | H177: 93.3 | I177: 93.13 | J177: 108.64 | K177: 87.23 | L177: 94.52 | M177: 102.48 | N177: 107.72 | O177: 114.51 | P177: 120.98 | Q177: 148.64 | R177: 184.19 | S177: 247.46 | T177: 426.9 | U177: 0.174 | V177: 0.5582770172
A178: 175 | B178: 72.15 | C178: 102.23 | D178: 60.12 | E178: 95.95 | F178: 90.61 | G178: 91.37 | H178: 93.13 | I178: 92.95 | J178: 108.43 | K178: 87.07 | L178: 94.34 | M178: 102.28 | N178: 107.52 | O178: 114.29 | P178: 120.75 | Q178: 148.35 | R178: 183.84 | S178: 246.99 | T178: 426.09 | U178: 0.175 | V178: 0.559344471
A179: 176 | B179: 72.01 | C179: 102.03 | D179: 60.01 | E179: =ROUND(E$2/$V179,2) -> 95.76 | F179: 90.43 | G179: 91.2 | H179: 92.95 | I179: 92.77 | J179: 108.22 | K179: 86.9 | L179: 94.16 | M179: 102.09 | N179: 107.31 | O179: 114.08 | P179: 120.52 | Q179: 148.07 | R179: 183.49 | S179: 246.52 | T179: 425.28 | U179: 0.176 | V179: 0.5604078661
A180: 177 | B180: 71.88 | C180: 101.84 | D180: 59.9 | E180: 95.58 | F180: 90.26 | G180: 91.03 | H180: 92.77 | I180: 92.6 | J180: 108.02 | K180: 86.74 | L180: 93.99 | M180: 101.89 | N180: 107.11 | O180: 113.86 | P180: 120.29 | Q180: 147.79 | R180: 183.15 | S180: 246.05 | T180: 424.48 | U180: 0.177 | V180: 0.5614672408
A181: 178 | B181: 71.74 | C181: 101.65 | D181: 59.78 | E181: 95.4 | F181: 90.09 | G181: 90.86 | H181: 92.6 | I181: 92.42 | J181: 107.82 | K181: 86.57 | L181: 93.81 | M181: 101.7 | N181: 106.91 | O181: 113.65 | P181: 120.07 | Q181: 147.51 | R181: 182.8 | S181: 245.59 | T181: 423.68 | U181: 0.178 | V181: 0.5625226328
A182: 179 | B182: 71.61 | C182: 101.46 | D182: 59.67 | E182: 95.23 | F182: 89.93 | G182: 90.69 | H182: 92.43 | I182: 92.25 | J182: 107.62 | K182: 86.41 | L182: 93.63 | M182: 101.51 | N182: 106.71 | O182: 113.44 | P182: 119.84 | Q182: 147.24 | R182: 182.46 | S182: 245.13 | T182: 422.89 | U182: 0.179 | V182: 0.5635740795
A183: 180 | B183: 71.47 | C183: 101.27 | D183: 59.56 | E183: 95.05 | F183: 89.76 | G183: 90.52 | H183: 92.26 | I183: 92.08 | J183: 107.42 | K183: 86.25 | L183: 93.46 | M183: 101.32 | N183: 106.51 | O183: 113.23 | P183: 119.62 | Q183: 146.97 | R183: 182.12 | S183: 244.68 | T183: 422.11 | U183: 0.18 | V183: 0.5646216173
A184: 181 | B184: 71.34 | C184: 101.08 | D184: 59.45 | E184: 94.87 | F184: 89.59 | G184: 90.35 | H184: 92.09 | I184: 91.91 | J184: 107.22 | K184: 86.09 | L184: 93.29 | M184: 101.14 | N184: 106.32 | O184: 113.02 | P184: 119.4 | Q184: 146.69 | R184: 181.79 | S184: 244.23 | T184: 421.33 | U184: 0.181 | V184: 0.5656652826
A185: 182 | B185: 71.21 | C185: 100.9 | D185: 59.34 | E185: 94.7 | F185: 89.43 | G185: 90.19 | H185: 91.92 | I185: 91.74 | J185: 107.02 | K185: 85.94 | L185: 93.12 | M185: 100.95 | N185: 106.12 | O185: 112.81 | P185: 119.18 | Q185: 146.43 | R185: 181.45 | S185: 243.78 | T185: 420.55 | U185: 0.182 | V185: 0.5667051108
A186: 183 | B186: 71.08 | C186: 100.71 | D186: 59.23 | E186: 94.53 | F186: 89.27 | G186: 90.02 | H186: 91.75 | I186: 91.57 | J186: 106.83 | K186: 85.78 | L186: 92.95 | M186: 100.77 | N186: 105.93 | O186: 112.6 | P186: 118.96 | Q186: 146.16 | R186: 181.12 | S186: 243.33 | T186: =ROUND(T$2/$V186,2) -> 419.79 | U186: 0.183 | V186: 0.5677411371
A187: 184 | B187: 70.95 | C187: 100.53 | D187: 59.13 | E187: 94.36 | F187: 89.1 | G187: 89.86 | H187: 91.58 | I187: 91.41 | J187: 106.63 | K187: 85.62 | L187: 92.78 | M187: 100.58 | N187: 105.74 | O187: 112.4 | P187: 118.75 | Q187: 145.89 | R187: 180.79 | S187: 242.89 | T187: 419.02 | U187: 0.184 | V187: 0.568773396
A188: 185 | B188: 70.82 | C188: 100.35 | D188: 59.02 | E188: 94.19 | F188: 88.94 | G188: 89.7 | H188: 91.42 | I188: 91.24 | J188: 106.44 | K188: 85.47 | L188: 92.61 | M188: 100.4 | N188: 105.55 | O188: 112.2 | P188: 118.53 | Q188: 145.63 | R188: 180.47 | S188: 242.45 | T188: 418.27 | U188: 0.185 | V188: 0.5698019215
A189: 186 | B189: 70.7 | C189: 100.17 | D189: 58.91 | E189: 94.02 | F189: 88.78 | G189: 89.54 | H189: 91.25 | I189: 91.08 | J189: 106.25 | K189: 85.31 | L189: 92.44 | M189: 100.22 | N189: 105.36 | O189: 112 | P189: 118.32 | Q189: 145.37 | R189: 180.14 | S189: 242.02 | T189: 417.52 | U189: 0.186 | V189: 0.5708267473
A190: 187 | B190: 70.57 | C190: 99.99 | D190: 58.81 | E190: 93.85 | F190: 88.62 | G190: 89.38 | H190: 91.09 | I190: 90.92 | J190: 106.06 | K190: 85.16 | L190: 92.28 | M190: 100.04 | N190: 105.17 | O190: 111.8 | P190: 118.11 | Q190: 145.11 | R190: 179.82 | S190: 241.59 | T190: 416.77 | U190: 0.187 | V190: 0.5718479065
A191: 188 | B191: 70.45 | C191: 99.81 | D191: 58.7 | E191: 93.68 | F191: 88.47 | G191: 89.22 | H191: 90.93 | I191: 90.75 | J191: 105.87 | K191: 85.01 | L191: 92.12 | M191: 99.87 | N191: 104.98 | O191: 111.6 | P191: 117.9 | Q191: 144.85 | R191: 179.5 | S191: 241.16 | T191: 416.03 | U191: 0.188 | V191: 0.5728654316
A192: 189 | B192: 70.32 | C192: 99.64 | D192: 58.6 | E192: 93.52 | F192: 88.31 | G192: 89.06 | H192: 90.77 | I192: 90.59 | J192: 105.68 | K192: 84.86 | L192: 91.95 | M192: 99.69 | N192: 104.8 | O192: 111.4 | P192: 117.69 | Q192: 144.59 | R192: 179.18 | S192: 240.73 | T192: 415.3 | U192: 0.189 | V192: 0.5738793548
A193: 190 | B193: 70.2 | C193: 99.46 | D193: 58.5 | E193: 93.35 | F193: 88.16 | G193: 88.9 | H193: 90.61 | I193: 90.43 | J193: 105.5 | K193: 84.71 | L193: 91.79 | M193: 99.51 | N193: 104.61 | O193: 111.2 | P193: 117.48 | Q193: 144.34 | R193: 178.87 | S193: 240.31 | T193: 414.57 | U193: 0.19 | V193: 0.5748897079
A194: 191 | B194: 70.08 | C194: 99.29 | D194: 58.4 | E194: 93.19 | F194: 88 | G194: 88.75 | H194: 90.45 | I194: 90.28 | J194: 105.31 | K194: 84.56 | L194: 91.63 | M194: 99.34 | N194: 104.43 | O194: 111.01 | P194: 117.28 | Q194: 144.09 | R194: 178.56 | S194: 239.89 | T194: 413.84 | U194: 0.191 | V194: 0.575896522
A195: 192 | B195: 69.95 | C195: 99.12 | D195: 58.29 | E195: 93.03 | F195: 87.85 | G195: 88.59 | H195: 90.29 | I195: 90.12 | J195: 105.13 | K195: 84.42 | L195: 91.47 | M195: 99.17 | N195: 104.25 | O195: 110.82 | P195: 117.07 | Q195: 143.84 | R195: 178.25 | S195: 239.47 | T195: 413.12 | U195: 0.192 | V195: 0.5768998281
A196: 193 | B196: 69.83 | C196: 98.94 | D196: 58.19 | E196: 92.87 | F196: 87.7 | G196: 88.44 | H196: 90.14 | I196: 89.96 | J196: 104.95 | K196: 84.27 | L196: 91.31 | M196: 99 | N196: 104.07 | O196: 110.62 | P196: 116.87 | Q196: 143.59 | R196: 177.94 | S196: 239.06 | T196: 412.41 | U196: =A196/1000 -> 0.193 | V196: =POWER(U196,1/3) -> 0.5778996565
A197: 194 | B197: 69.71 | C197: 98.77 | D197: =ROUND(D$2/$V197,2) -> 58.09 | E197: 92.71 | F197: 87.55 | G197: 88.29 | H197: 89.98 | I197: 89.81 | J197: 104.77 | K197: 84.13 | L197: 91.16 | M197: 98.83 | N197: 103.89 | O197: 110.43 | P197: 116.67 | Q197: 143.34 | R197: 177.63 | S197: 238.64 | T197: 411.7 | U197: 0.194 | V197: 0.5788960372
A198: 195 | B198: 69.59 | C198: 98.6 | D198: 57.99 | E198: 92.55 | F198: 87.4 | G198: 88.14 | H198: 89.83 | I198: 89.66 | J198: 104.59 | K198: 83.98 | L198: 91 | M198: 98.66 | N198: 103.71 | O198: 110.25 | P198: 116.47 | Q198: 143.1 | R198: 177.33 | S198: 238.24 | T198: 410.99 | U198: 0.195 | V198: 0.5798889998
A199: 196 | B199: 69.47 | C199: 98.44 | D199: 57.9 | E199: 92.39 | F199: 87.25 | G199: 87.99 | H199: 89.67 | I199: 89.5 | J199: 104.41 | K199: 83.84 | L199: 90.85 | M199: 98.49 | N199: 103.53 | O199: 110.06 | P199: 116.27 | Q199: 142.85 | R199: 177.02 | S199: 237.83 | T199: 410.29 | U199: 0.196 | V199: 0.5808785734
A200: 197 | B200: 69.36 | C200: 98.27 | D200: 57.8 | E200: 92.23 | F200: 87.1 | G200: 87.84 | H200: 89.52 | I200: 89.35 | J200: 104.23 | K200: 83.7 | L200: 90.69 | M200: 98.32 | N200: 103.36 | O200: 109.87 | P200: 116.08 | Q200: 142.61 | R200: 176.72 | S200: 237.43 | T200: 409.6 | U200: 0.197 | V200: 0.5818647867
A201: 198 | B201: 69.24 | C201: 98.1 | D201: 57.7 | E201: 92.08 | F201: 86.95 | G201: 87.69 | H201: 89.37 | I201: 89.2 | J201: 104.06 | K201: 83.56 | L201: 90.54 | M201: 98.16 | N201: 103.18 | O201: 109.69 | P201: 115.88 | Q201: 142.37 | R201: 176.43 | S201: 237.03 | T201: 408.91 | U201: 0.198 | V201: 0.5828476683
... 1002 more rows

Sheet 100FR F (hidden)
A1: Score | B1: S19 | C1: S18 | D1: S17 | E1: S16 | F1: S15 | G1: S14 | H1: S13 | I1: S12 | J1: S11 | K1: S10 | L1: S9 | M1: S8 | N1: S7 | O1: S6 | P1: S5 | Q1: S4 | R1: S3 | S1: S2 | T1: S1 | U1: score/1000 | V1: Power
B2: 45.225 | C2: 66.062 | D2: 37.6875 | E2: 63.045 | F2: 56.1 | G2: 57.86 | H2: 57.84 | I2: 58.6 | J2: 65.21 | K2: 59.42 | L2: 61.95 | M2: 65.6 | N2: 68.56 | O2: 76.72 | P2: 81.61 | Q2: 88.75 | R2: 100.29 | S2: 141.08 | T2: 118.83
A4: 1 | B4: =ROUND(B$2/$V4,2) -> 452.25 | C4: 660.62 | D4: 376.88 | E4: =ROUND(E$2/$V4,2) -> 630.45 | F4: 561 | G4: 578.6 | H4: 578.4 | I4: 586 | J4: 652.1 | K4: 594.2 | L4: 619.5 | M4: 656 | N4: 685.6 | O4: 767.2 | P4: 816.1 | Q4: 887.5 | R4: 1002.9 | S4: 1410.8 | T4: 1188.3 | U4: =A4/1000 -> 0.001 | V4: =POWER(U4,1/3) -> 0.1
A5: 2 | B5: 358.95 | C5: 524.33 | D5: 299.13 | E5: 500.39 | F5: 445.27 | G5: 459.24 | H5: 459.08 | I5: 465.11 | J5: 517.57 | K5: 471.62 | L5: 491.7 | M5: 520.67 | N5: 544.16 | O5: 608.93 | P5: 647.74 | Q5: 704.41 | R5: 796 | S5: 1119.75 | T5: 943.15 | U5: 0.002 | V5: 0.125992105
A6: 3 | B6: 313.57 | C6: 458.05 | D6: 261.31 | E6: 437.13 | F6: 388.98 | G6: 401.18 | H6: 401.04 | I6: 406.31 | J6: 452.14 | K6: 412 | L6: 429.54 | M6: 454.84 | N6: 475.37 | O6: 531.95 | P6: 565.85 | Q6: 615.36 | R6: 695.37 | S6: 978.19 | T6: 823.92 | U6: 0.003 | V6: 0.144224957
A7: 4 | B7: 284.9 | C7: 416.16 | D7: 237.42 | E7: 397.16 | F7: 353.41 | G7: 364.5 | H7: 364.37 | I7: 369.16 | J7: 410.8 | K7: 374.32 | L7: 390.26 | M7: 413.25 | N7: 431.9 | O7: 483.31 | P7: 514.11 | Q7: 559.09 | R7: 631.79 | S7: 888.75 | T7: 748.58 | U7: 0.004 | V7: 0.1587401052
A8: 5 | B8: 264.48 | C8: 386.33 | D8: 220.4 | E8: 368.69 | F8: 328.07 | G8: 338.37 | H8: 338.25 | I8: 342.69 | J8: 381.35 | K8: 347.49 | L8: 362.29 | M8: 383.63 | N8: 400.94 | O8: 448.66 | P8: 477.26 | Q8: 519.01 | R8: 586.5 | S8: 825.04 | T8: 694.92 | U8: 0.005 | V8: 0.1709975947
A9: 6 | B9: 248.88 | C9: 363.55 | D9: 207.4 | E9: 346.95 | F9: 308.73 | G9: 318.42 | H9: 318.31 | I9: 322.49 | J9: 358.86 | K9: 327 | L9: 340.92 | M9: 361.01 | N9: 377.3 | O9: 422.21 | P9: 449.12 | Q9: 488.41 | R9: 551.92 | S9: 776.39 | T9: 653.95 | U9: 0.006 | V9: 0.1817120593
A10: 7 | B10: 236.42 | C10: 345.34 | D10: 197.01 | E10: 329.57 | F10: 293.27 | G10: 302.47 | H10: 302.36 | I10: 306.34 | J10: 340.89 | K10: 310.62 | L10: 323.85 | M10: 342.93 | N10: 358.4 | O10: 401.06 | P10: 426.62 | Q10: 463.95 | R10: 524.27 | S10: 737.51 | T10: 621.19 | U10: 0.007 | V10: 0.1912931183
A11: 8 | B11: 226.13 | C11: 330.31 | D11: 188.44 | E11: 315.23 | F11: 280.5 | G11: 289.3 | H11: 289.2 | I11: 293 | J11: 326.05 | K11: 297.1 | L11: 309.75 | M11: 328 | N11: 342.8 | O11: 383.6 | P11: 408.05 | Q11: 443.75 | R11: 501.45 | S11: 705.4 | T11: 594.15 | U11: 0.008 | V11: 0.2
A12: 9 | B12: 217.42 | C12: 317.59 | D12: 181.18 | E12: 303.09 | F12: 269.7 | G12: 278.16 | H12: 278.07 | I12: 281.72 | J12: 313.5 | K12: 285.66 | L12: 297.82 | M12: 315.37 | N12: 329.6 | O12: 368.83 | P12: 392.34 | Q12: 426.67 | R12: 482.14 | S12: 678.24 | T12: 571.28 | U12: 0.009 | V12: 0.2080083823
A13: 10 | B13: 209.92 | C13: 306.63 | D13: 174.93 | E13: 292.63 | F13: 260.39 | G13: 268.56 | H13: 268.47 | I13: 272 | J13: 302.68 | K13: 275.8 | L13: 287.55 | M13: 304.49 | N13: 318.23 | O13: 356.1 | P13: 378.8 | Q13: 411.94 | R13: 465.5 | S13: 654.84 | T13: 551.56 | U13: 0.01 | V13: 0.215443469
A14: 11 | B14: 203.35 | C14: 297.04 | D14: 169.46 | E14: 283.48 | F14: 252.25 | G14: 260.16 | H14: 260.07 | I14: 263.49 | J14: 293.21 | K14: 267.18 | L14: 278.55 | M14: 294.97 | N14: 308.28 | O14: 344.97 | P14: 366.95 | Q14: 399.06 | R14: 450.95 | S14: 634.36 | T14: 534.31 | U14: 0.011 | V14: 0.2223980091
A15: 12 | B15: 197.54 | C15: 288.55 | D15: 164.62 | E15: 275.37 | F15: 245.04 | G15: 252.73 | H15: 252.64 | I15: 255.96 | J15: 284.83 | K15: 259.54 | L15: 270.59 | M15: 286.53 | N15: 299.46 | O15: 335.11 | P15: 356.46 | Q15: 387.65 | R15: 438.06 | S15: 616.22 | T15: 519.04 | U15: 0.012 | V15: 0.2289428485
A16: 13 | B16: 192.34 | C16: 280.96 | D16: 160.28 | E16: 268.12 | F16: 238.59 | G16: 246.07 | H16: 245.99 | I16: 249.22 | J16: 277.33 | K16: 252.71 | L16: 263.47 | M16: 278.99 | N16: 291.58 | O16: 326.28 | P16: 347.08 | Q16: 377.45 | R16: 426.52 | S16: 600 | T16: 505.37 | U16: 0.013 | V16: 0.2351334688
A17: 14 | B17: 187.64 | C17: 274.1 | D17: 156.37 | E17: 261.58 | F17: 232.77 | G17: 240.07 | H17: 239.99 | I17: 243.14 | J17: 270.56 | K17: 246.54 | L17: 257.04 | M17: 272.18 | N17: 284.46 | O17: 318.32 | P17: 338.61 | Q17: 368.24 | R17: 416.12 | S17: 585.36 | T17: 493.04 | U17: 0.014 | V17: 0.2410142264
A18: 15 | B18: 183.38 | C18: 267.87 | D18: 152.82 | E18: 255.63 | F18: 227.47 | G18: 234.61 | H18: 234.53 | I18: 237.61 | J18: 264.41 | K18: 240.94 | L18: 251.19 | M18: 265.99 | N18: 278 | O18: 311.08 | P18: 330.91 | Q18: 359.86 | R18: 406.66 | S18: 572.05 | T18: 481.83 | U18: 0.015 | V18: 0.2466212074
A19: 16 | B19: 179.48 | C19: 262.17 | D19: 149.56 | E19: 250.19 | F19: 222.63 | G19: 229.62 | H19: 229.54 | I19: 232.55 | J19: 258.79 | K19: 235.81 | L19: 245.85 | M19: 260.33 | N19: 272.08 | O19: 304.46 | P19: 323.87 | Q19: 352.2 | R19: 398 | S19: 559.88 | T19: =ROUND(T$2/$V19,2) -> 471.58 | U19: 0.016 | V19: 0.25198421
A20: 17 | B20: 175.89 | C20: 256.92 | D20: 146.57 | E20: =ROUND(E$2/$V20,2) -> 245.19 | F20: 218.18 | G20: 225.02 | H20: 224.95 | I20: 227.9 | J20: 253.61 | K20: 231.09 | L20: 240.93 | M20: 255.13 | N20: 266.64 | O20: 298.37 | P20: 317.39 | Q20: 345.16 | R20: 390.04 | S20: 548.68 | T20: 462.14 | U20: 0.017 | V20: 0.2571281591
A21: 18 | B21: 172.57 | C21: 252.07 | D21: 143.8 | E21: 240.56 | F21: 214.06 | G21: 220.78 | H21: 220.7 | I21: 223.6 | J21: 248.82 | K21: 226.73 | L21: 236.38 | M21: 250.31 | N21: 261.61 | O21: 292.74 | P21: 311.4 | Q21: 338.64 | R21: 382.68 | S21: 538.32 | T21: 453.42 | U21: 0.018 | V21: 0.2620741394
A22: 19 | B22: 169.48 | C22: 247.57 | D22: 141.24 | E22: 236.27 | F22: 210.24 | G22: 216.83 | H22: 216.76 | I22: 219.61 | J22: 244.38 | K22: 222.68 | L22: 232.16 | M22: 245.84 | N22: 256.93 | O22: 287.51 | P22: 305.84 | Q22: 332.6 | R22: 375.84 | S22: 528.71 | T22: 445.32 | U22: 0.019 | V22: 0.2668401649
A23: 20 | B23: 166.61 | C23: 243.37 | D23: 138.84 | E23: 232.26 | F23: 206.67 | G23: 213.16 | H23: 213.08 | I23: 215.88 | J23: 240.24 | K23: 218.91 | L23: 228.23 | M23: 241.67 | N23: 252.58 | O23: 282.64 | P23: 300.65 | Q23: 326.96 | R23: 369.47 | S23: 519.74 | T23: 437.77 | U23: 0.02 | V23: 0.2714417617
A24: 21 | B24: 163.92 | C24: 239.45 | D24: 136.6 | E24: 228.51 | F24: 203.34 | G24: 209.72 | H24: 209.65 | I24: 212.4 | J24: 236.36 | K24: 215.37 | L24: 224.54 | M24: 237.77 | N24: 248.5 | O24: 278.08 | P24: 295.8 | Q24: 321.68 | R24: 363.51 | S24: 511.36 | T24: 430.71 | U24: 0.021 | V24: 0.2758924176
A25: 22 | B25: 161.4 | C25: 235.76 | D25: 134.5 | E25: 225 | F25: 200.21 | G25: 206.49 | H25: 206.42 | I25: 209.13 | J25: 232.72 | K25: 212.06 | L25: 221.09 | M25: 234.12 | N25: 244.68 | O25: 273.8 | P25: 291.25 | Q25: 316.73 | R25: 357.92 | S25: 503.49 | T25: 424.08 | U25: 0.022 | V25: 0.2802039331
A26: 23 | B26: 159.03 | C26: 232.3 | D26: 132.52 | E26: 221.69 | F26: 197.27 | G26: 203.46 | H26: 203.39 | I26: 206.06 | J26: 229.3 | K26: 208.94 | L26: 217.84 | M26: 230.67 | N26: 241.08 | O26: 269.77 | P26: 286.97 | Q26: 312.08 | R26: 352.65 | S26: 496.09 | T26: 417.85 | U26: 0.023 | V26: 0.284386698
A27: 24 | B27: 156.79 | C27: 229.02 | D27: 130.66 | E27: 218.56 | F27: 194.49 | G27: 200.59 | H27: 200.52 | I27: 203.15 | J27: 226.07 | K27: 206 | L27: 214.77 | M27: 227.42 | N27: 237.68 | O27: 265.97 | P27: 282.93 | Q27: 307.68 | R27: 347.69 | S27: 489.1 | T27: 411.96 | U27: 0.024 | V27: 0.2884499141
A28: 25 | B28: 154.67 | C28: 225.93 | D28: 128.89 | E28: 215.61 | F28: 191.86 | G28: 197.88 | H28: 197.81 | I28: 200.41 | J28: 223.02 | K28: 203.21 | L28: 211.87 | M28: 224.35 | N28: 234.47 | O28: 262.38 | P28: 279.1 | Q28: 303.52 | R28: 342.99 | S28: 482.49 | T28: 406.39 | U28: 0.025 | V28: 0.2924017738
A29: 26 | B29: 152.66 | C29: 222.99 | D29: 127.22 | E29: 212.81 | F29: 189.37 | G29: 195.31 | H29: 195.24 | I29: 197.81 | J29: 220.12 | K29: 200.57 | L29: 209.11 | M29: 221.43 | N29: 231.43 | O29: 258.97 | P29: 275.48 | Q29: 299.58 | R29: 338.53 | S29: 476.22 | T29: 401.11 | U29: 0.026 | V29: 0.2962496068
A30: 27 | B30: 150.75 | C30: 220.21 | D30: 125.63 | E30: 210.15 | F30: 187 | G30: 192.87 | H30: 192.8 | I30: 195.33 | J30: 217.37 | K30: 198.07 | L30: 206.5 | M30: 218.67 | N30: 228.53 | O30: 255.73 | P30: 272.03 | Q30: 295.83 | R30: 334.3 | S30: 470.27 | T30: 396.1 | U30: 0.027 | V30: 0.3
A31: 28 | B31: 148.93 | C31: 217.55 | D31: 124.11 | E31: 207.62 | F31: 184.75 | G31: 190.54 | H31: 190.48 | I31: 192.98 | J31: 214.75 | K31: 195.68 | L31: 204.01 | M31: 216.03 | N31: 225.78 | O31: 252.65 | P31: 268.76 | Q31: 292.27 | R31: 330.27 | S31: 464.6 | T31: 391.33 | U31: 0.028 | V31: 0.3036588972
A32: 29 | B32: 147.2 | C32: 215.02 | D32: 122.67 | E32: 205.2 | F32: 182.6 | G32: 188.33 | H32: 188.26 | I32: 190.74 | J32: 212.25 | K32: 193.4 | L32: 201.64 | M32: 213.52 | N32: 223.15 | O32: 249.71 | P32: 265.63 | Q32: 288.87 | R32: 326.43 | S32: 459.2 | T32: 386.78 | U32: 0.029 | V32: 0.3072316826
A33: 30 | B33: 145.55 | C33: 212.61 | D33: 121.29 | E33: 202.9 | F33: 180.55 | G33: 186.21 | H33: 186.15 | I33: 188.59 | J33: 209.87 | K33: 191.23 | L33: 199.37 | M33: 211.12 | N33: 220.65 | O33: 246.91 | P33: 262.65 | Q33: 285.62 | R33: 322.76 | S33: 454.04 | T33: 382.43 | U33: 0.03 | V33: 0.3107232506
A34: 31 | B34: 143.97 | C34: 210.3 | D34: 119.97 | E34: 200.69 | F34: 178.58 | G34: 184.19 | H34: 184.12 | I34: 186.54 | J34: 207.58 | K34: 189.15 | L34: 197.21 | M34: 208.83 | N34: 218.25 | O34: 244.22 | P34: 259.79 | Q34: 282.52 | R34: 319.25 | S34: 449.1 | T34: 378.27 | U34: 0.031 | V34: 0.3141380652
A35: 32 | B35: 142.45 | C35: 208.08 | D35: 118.71 | E35: 198.58 | F35: 176.7 | G35: 182.25 | H35: 182.18 | I35: 184.58 | J35: 205.4 | K35: 187.16 | L35: 195.13 | M35: 206.63 | N35: 215.95 | O35: 241.65 | P35: 257.06 | Q35: 279.54 | R35: 315.89 | S35: 444.37 | T35: =ROUND(T$2/$V35,2) -> 374.29 | U35: 0.032 | V35: 0.3174802104
A36: 33 | B36: 141 | C36: 205.96 | D36: 117.5 | E36: =ROUND(E$2/$V36,2) -> 196.55 | F36: 174.9 | G36: 180.39 | H36: 180.33 | I36: 182.69 | J36: 203.3 | K36: 185.25 | L36: 193.14 | M36: 204.52 | N36: 213.75 | O36: 239.19 | P36: 254.43 | Q36: 276.69 | R36: 312.67 | S36: 439.84 | T36: 370.47 | U36: 0.033 | V36: 0.320753433
A37: 34 | B37: 139.6 | C37: 203.92 | D37: 116.33 | E37: 194.61 | F37: 173.17 | G37: 178.6 | H37: 178.54 | I37: 180.89 | J37: 201.29 | K37: 183.42 | L37: 191.23 | M37: 202.49 | N37: 211.63 | O37: 236.82 | P37: 251.91 | Q37: 273.95 | R37: 309.57 | S37: 435.48 | T37: 366.8 | U37: 0.034 | V37: 0.3239611801
A38: 35 | B38: 138.26 | C38: 201.96 | D38: 115.21 | E38: 192.74 | F38: 171.5 | G38: 176.88 | H38: 176.82 | I38: 179.15 | J38: 199.35 | K38: 181.65 | L38: 189.39 | M38: 200.55 | N38: 209.6 | O38: 234.54 | P38: 249.49 | Q38: 271.32 | R38: 306.6 | S38: 431.3 | T38: 363.28 | U38: 0.035 | V38: 0.327106631
A39: 36 | B39: 136.97 | C39: 200.07 | D39: 114.14 | E39: 190.93 | F39: 169.9 | G39: 175.23 | H39: 175.17 | I39: 177.47 | J39: 197.49 | K39: 179.96 | L39: 187.62 | M39: 198.67 | N39: 207.64 | O39: 232.35 | P39: 247.16 | Q39: 268.78 | R39: 303.73 | S39: 427.27 | T39: 359.88 | U39: 0.036 | V39: 0.3301927249
A40: 37 | B40: 135.72 | C40: 198.25 | D40: 113.1 | E40: 189.2 | F40: 168.36 | G40: 173.64 | H40: 173.58 | I40: 175.86 | J40: 195.7 | K40: 178.32 | L40: 185.91 | M40: 196.87 | N40: 205.75 | O40: 230.24 | P40: 244.91 | Q40: 266.34 | R40: 300.97 | S40: 423.38 | T40: 356.61 | U40: 0.037 | V40: 0.3332221852
A41: 38 | B41: 134.52 | C41: 196.5 | D41: 112.1 | E41: 187.52 | F41: 166.87 | G41: 172.1 | H41: 172.04 | I41: 174.3 | J41: 193.96 | K41: 176.74 | L41: 184.27 | M41: 195.12 | N41: 203.93 | O41: 228.2 | P41: 242.74 | Q41: 263.98 | R41: 298.31 | S41: 419.63 | T41: 353.45 | U41: 0.038 | V41: 0.3361975407
A42: 39 | B42: 133.36 | C42: 194.8 | D42: 111.13 | E42: 185.91 | F42: 165.43 | G42: 170.62 | H42: 170.56 | I42: 172.8 | J42: 192.29 | K42: 175.22 | L42: 182.68 | M42: 193.44 | N42: 202.17 | O42: 226.23 | P42: 240.65 | Q42: 261.71 | R42: 295.74 | S42: 416.02 | T42: 350.41 | U42: 0.039 | V42: 0.3391211443
A43: 40 | B43: 132.24 | C43: 193.17 | D43: 110.2 | E43: 184.34 | F43: 164.04 | G43: 169.18 | H43: 169.13 | I43: 171.35 | J43: 190.68 | K43: 173.75 | L43: 181.14 | M43: 191.82 | N43: 200.47 | O43: 224.33 | P43: 238.63 | Q43: 259.51 | R43: 293.25 | S43: 412.52 | T43: 347.46 | U43: 0.04 | V43: 0.3419951893
A44: 41 | B44: 131.15 | C44: 191.58 | D44: 109.3 | E44: 182.83 | F44: 162.69 | G44: 167.8 | H44: 167.74 | I44: 169.94 | J44: 189.11 | K44: 172.32 | L44: 179.66 | M44: 190.24 | N44: 198.83 | O44: 222.49 | P44: 236.67 | Q44: 257.38 | R44: 290.85 | S44: 409.14 | T44: 344.61 | U44: 0.041 | V44: 0.344821724
A45: 42 | B45: 130.11 | C45: 190.05 | D45: 108.42 | E45: 181.37 | F45: 161.39 | G45: 166.45 | H45: 166.4 | I45: 168.58 | J45: 187.6 | K45: 170.94 | L45: 178.22 | M45: 188.72 | N45: 197.24 | O45: 220.71 | P45: 234.78 | Q45: 255.32 | R45: 288.52 | S45: 405.87 | T45: 341.86 | U45: 0.042 | V45: 0.3476026645
A46: 43 | B46: 129.09 | C46: 188.57 | D46: 107.57 | E46: 179.95 | F46: 160.13 | G46: 165.15 | H46: 165.1 | I46: 167.27 | J46: 186.13 | K46: 169.61 | L46: 176.83 | M46: 187.25 | N46: 195.7 | O46: 218.99 | P46: 232.95 | Q46: 253.33 | R46: 286.26 | S46: 402.69 | T46: 339.18 | U46: 0.043 | V46: 0.350339806
A47: 44 | B47: 128.1 | C47: 187.13 | D47: 106.75 | E47: 178.58 | F47: 158.91 | G47: 163.89 | H47: 163.84 | I47: 165.99 | J47: 184.71 | K47: 168.31 | L47: 175.48 | M47: 185.82 | N47: 194.2 | O47: 217.32 | P47: 231.17 | Q47: 251.39 | R47: 284.08 | S47: 399.62 | T47: 336.6 | U47: 0.044 | V47: 0.3530348335
A48: 45 | B48: 127.15 | C48: 185.73 | D48: 105.96 | E48: 177.25 | F48: 157.72 | G48: 162.67 | H48: 162.61 | I48: 164.75 | J48: 183.33 | K48: 167.06 | L48: 174.17 | M48: 184.43 | N48: 192.75 | O48: 215.69 | P48: 229.44 | Q48: 249.52 | R48: 281.96 | S48: 396.64 | T48: 334.08 | U48: 0.045 | V48: 0.3556893304
A49: 46 | B49: 126.22 | C49: 184.37 | D49: 105.18 | E49: 175.95 | F49: 156.57 | G49: 161.48 | H49: 161.43 | I49: 163.55 | J49: 182 | K49: 165.84 | L49: 172.9 | M49: 183.08 | N49: 191.35 | O49: 214.12 | P49: 227.77 | Q49: 247.69 | R49: 279.9 | S49: 393.74 | T49: 331.65 | U49: 0.046 | V49: 0.3583047871
A50: 47 | B50: 125.32 | C50: 183.06 | D50: 104.43 | E50: 174.7 | F50: 155.45 | G50: 160.33 | H50: 160.27 | I50: 162.38 | J50: 180.7 | K50: 164.65 | L50: 171.66 | M50: 181.78 | N50: 189.98 | O50: 212.59 | P50: 226.14 | Q50: 245.92 | R50: 277.9 | S50: 390.93 | T50: 329.28 | U50: 0.047 | V50: 0.360882608
A51: 48 | B51: 124.44 | C51: 181.78 | D51: 103.7 | E51: 173.48 | F51: 154.37 | G51: 159.21 | H51: 159.15 | I51: 161.24 | J51: 179.43 | K51: 163.5 | L51: 170.46 | M51: 180.51 | N51: 188.65 | O51: 211.1 | P51: 224.56 | Q51: 244.21 | R51: 275.96 | S51: 388.2 | T51: =ROUND(T$2/$V51,2) -> 326.97 | U51: 0.048 | V51: 0.3634241186
A52: 49 | B52: 123.59 | C52: 180.53 | D52: 102.99 | E52: =ROUND(E$2/$V52,2) -> 172.29 | F52: 153.31 | G52: 158.12 | H52: 158.06 | I52: 160.14 | J52: 178.2 | K52: 162.38 | L52: 169.29 | M52: 179.27 | N52: 187.36 | O52: 209.66 | P52: 223.02 | Q52: 242.53 | R52: 274.07 | S52: 385.54 | T52: 324.73 | U52: 0.049 | V52: 0.365930571
A53: 50 | B53: 122.76 | C53: 179.32 | D53: 102.3 | E53: 171.13 | F53: 152.28 | G53: 157.06 | H53: 157 | I53: 159.06 | J53: 177.01 | K53: 161.29 | L53: 168.16 | M53: 178.07 | N53: 186.1 | O53: 208.25 | P53: 221.52 | Q53: 240.9 | R53: 272.23 | S53: 382.95 | T53: 322.55 | U53: 0.05 | V53: 0.3684031499
A54: 51 | B54: 121.95 | C54: 178.14 | D54: 101.63 | E54: 170 | F54: 151.28 | G54: 156.02 | H54: 155.97 | I54: 158.02 | J54: 175.84 | K54: 160.23 | L54: 167.05 | M54: 176.89 | N54: 184.88 | O54: 206.88 | P54: 220.07 | Q54: 239.32 | R54: 270.44 | S54: 380.43 | T54: 320.43 | U54: 0.051 | V54: 0.3708429769
A55: 52 | B55: 121.17 | C55: 176.99 | D55: 100.97 | E55: 168.91 | F55: 150.3 | G55: 155.02 | H55: 154.96 | I55: 157 | J55: 174.71 | K55: 159.2 | L55: 165.97 | M55: 175.75 | N55: 183.68 | O55: 205.55 | P55: 218.65 | Q55: 237.78 | R55: 268.69 | S55: 377.98 | T55: 318.36 | U55: 0.052 | V55: 0.3732511157
A56: 53 | B56: 120.4 | C56: 175.87 | D56: 100.33 | E56: 167.84 | F56: 149.35 | G56: 154.04 | H56: 153.98 | I56: 156.01 | J56: 173.6 | K56: 158.19 | L56: 164.92 | M56: 174.64 | N56: 182.52 | O56: 204.24 | P56: 217.26 | Q56: 236.27 | R56: 266.99 | S56: 375.58 | T56: 316.35 | U56: 0.053 | V56: 0.3756285754
A57: 54 | B57: 119.65 | C57: 174.78 | D57: 99.71 | E57: 166.8 | F57: 148.42 | G57: 153.08 | H57: 153.03 | I57: 155.04 | J57: 172.52 | K57: 157.21 | L57: 163.9 | M57: 173.56 | N57: 181.39 | O57: 202.98 | P57: 215.91 | Q57: 234.8 | R57: 265.33 | S57: 373.25 | T57: 314.38 | U57: 0.054 | V57: 0.377976315
A58: 55 | B58: 118.92 | C58: 173.71 | D58: 99.1 | E58: 165.78 | F58: 147.52 | G58: 152.14 | H58: 152.09 | I58: 154.09 | J58: 171.47 | K58: 156.25 | L58: 162.9 | M58: 172.5 | N58: 180.28 | O58: 201.74 | P58: 214.6 | Q58: 233.37 | R58: 263.72 | S58: 370.97 | T58: 312.47 | U58: 0.055 | V58: 0.3802952461
A59: 56 | B59: 118.21 | C59: 172.67 | D59: 98.51 | E59: 164.79 | F59: 146.63 | G59: 151.23 | H59: 151.18 | I59: 153.17 | J59: 170.45 | K59: 155.31 | L59: 161.92 | M59: 171.46 | N59: 179.2 | O59: 200.53 | P59: 213.31 | Q59: 231.97 | R59: 262.14 | S59: 368.75 | T59: 310.6 | U59: 0.056 | V59: 0.3825862366
A60: 57 | B60: 117.51 | C60: 171.66 | D60: 97.93 | E60: 163.82 | F60: 145.77 | G60: 150.34 | H60: 150.29 | I60: 152.27 | J60: 169.44 | K60: 154.4 | L60: 160.97 | M60: 170.46 | N60: 178.15 | O60: 199.35 | P60: 212.06 | Q60: 230.61 | R60: 260.59 | S60: 366.58 | T60: 308.77 | U60: 0.057 | V60: 0.3848501131
A61: 58 | B61: 116.83 | C61: 170.66 | D61: 97.36 | E61: 162.87 | F61: 144.93 | G61: 149.48 | H61: 149.42 | I61: 151.39 | J61: 168.46 | K61: 153.51 | L61: 160.04 | M61: 169.47 | N61: 177.12 | O61: 198.2 | P61: 210.83 | Q61: 229.28 | R61: 259.09 | S61: 364.47 | T61: 306.98 | U61: 0.058 | V61: 0.3870876641
A62: 59 | B62: 116.17 | C62: 169.69 | D62: 96.81 | E62: 161.94 | F62: 144.1 | G62: 148.63 | H62: 148.57 | I62: 150.53 | J62: 167.51 | K62: 152.63 | L62: 159.13 | M62: 168.51 | N62: 176.11 | O62: 197.07 | P62: 209.63 | Q62: 227.97 | R62: 257.62 | S62: 362.39 | T62: 305.24 | U62: 0.059 | V62: 0.3892996416
A63: 60 | B63: 115.52 | C63: 168.75 | D63: 96.27 | E63: 161.04 | F63: 143.3 | G63: 147.8 | H63: 147.74 | I63: 149.69 | J63: 166.57 | K63: 151.78 | L63: 158.24 | M63: 167.57 | N63: 175.13 | O63: 195.97 | P63: 208.46 | Q63: 226.7 | R63: 256.18 | S63: 360.37 | T63: 303.54 | U63: 0.06 | V63: 0.3914867641
A64: 61 | B64: 114.89 | C64: 167.82 | D64: 95.74 | E64: 160.16 | F64: 142.51 | G64: 146.98 | H64: 146.93 | I64: 148.86 | J64: 165.65 | K64: 150.95 | L64: 157.37 | M64: 166.65 | N64: 174.16 | O64: 194.89 | P64: 207.32 | Q64: 225.45 | R64: 254.77 | S64: 358.39 | T64: 301.87 | U64: 0.061 | V64: 0.3936497183
A65: 62 | B65: 114.27 | C65: 166.91 | D65: 95.22 | E65: 159.29 | F65: 141.74 | G65: 146.19 | H65: 146.14 | I65: 148.06 | J65: 164.76 | K65: 150.13 | L65: 156.52 | M65: 165.74 | N65: 173.22 | O65: 193.84 | P65: 206.2 | Q65: 224.24 | R65: 253.39 | S65: 356.45 | T65: 300.24 | U65: 0.062 | V65: 0.395789161
A66: 63 | B66: 113.66 | C66: 166.02 | D66: 94.71 | E66: 158.44 | F66: 140.99 | G66: 145.41 | H66: 145.36 | I66: 147.27 | J66: 163.88 | K66: 149.33 | L66: 155.69 | M66: 164.86 | N66: 172.3 | O66: 192.81 | P66: 205.1 | Q66: 223.04 | R66: 252.04 | S66: 354.56 | T66: 298.64 | U66: 0.063 | V66: 0.3979057208
A67: 64 | B67: 113.06 | C67: 165.16 | D67: 94.22 | E67: 157.61 | F67: 140.25 | G67: 144.65 | H67: 144.6 | I67: 146.5 | J67: 163.03 | K67: 148.55 | L67: 154.88 | M67: 164 | N67: 171.4 | O67: 191.8 | P67: 204.03 | Q67: 221.88 | R67: 250.73 | S67: 352.7 | T67: =ROUND(T$2/$V67,2) -> 297.08 | U67: 0.064 | V67: 0.4
A68: 65 | B68: =ROUND(B$2/$V68,2) -> 112.48 | C68: 164.3 | D68: =ROUND(D$2/$V68,2) -> 93.73 | E68: =ROUND(E$2/$V68,2) -> 156.8 | F68: 139.53 | G68: 143.9 | H68: 143.85 | I68: 145.74 | J68: 162.18 | K68: 147.78 | L68: 154.08 | M68: 163.15 | N68: 170.52 | O68: 190.81 | P68: 202.97 | Q68: 220.73 | R68: 249.43 | S68: 350.88 | T68: 295.54 | U68: =A68/1000 -> 0.065 | V68: =POWER(U68,1/3) -> 0.4020725759
A69: 66 | B69: 111.91 | C69: 163.47 | D69: 93.26 | E69: 156 | F69: 138.82 | G69: 143.17 | H69: 143.12 | I69: 145 | J69: 161.36 | K69: 147.03 | L69: 153.29 | M69: 162.33 | N69: 169.65 | O69: 189.84 | P69: 201.94 | Q69: 219.61 | R69: 248.17 | S69: 349.1 | T69: 294.04 | U69: 0.066 | V69: 0.4041240021
A70: 67 | B70: 111.35 | C70: 162.65 | D70: 92.79 | E70: 155.22 | F70: 138.12 | G70: 142.46 | H70: 142.41 | I70: 144.28 | J70: 160.55 | K70: 146.3 | L70: 152.53 | M70: 161.51 | N70: 168.8 | O70: 188.89 | P70: 200.93 | Q70: 218.51 | R70: 246.93 | S70: 347.36 | T70: 292.57 | U70: 0.067 | V70: 0.40615481
A71: 68 | B71: 110.8 | C71: 161.85 | D71: 92.33 | E71: 154.46 | F71: 137.44 | G71: 141.76 | H71: 141.71 | I71: 143.57 | J71: 159.76 | K71: 145.58 | L71: 151.78 | M71: 160.72 | N71: 167.97 | O71: 187.96 | P71: 199.94 | Q71: 217.44 | R71: 245.71 | S71: 345.64 | T71: 291.13 | U71: 0.068 | V71: 0.4081655102
A72: 69 | B72: 110.26 | C72: 161.07 | D72: 91.89 | E72: 153.71 | F72: 136.78 | G72: 141.07 | H72: 141.02 | I72: 142.87 | J72: 158.99 | K72: 144.87 | L72: 151.04 | M72: 159.94 | N72: 167.16 | O72: 187.05 | P72: 198.97 | Q72: 216.38 | R72: 244.52 | S72: 343.97 | T72: 289.72 | U72: 0.069 | V72: 0.410156593
A73: 70 | B73: 109.74 | C73: 160.29 | D73: 91.45 | E73: 152.97 | F73: 136.12 | G73: 140.39 | H73: 140.34 | I73: 142.19 | J73: 158.23 | K73: 144.18 | L73: 150.32 | M73: 159.17 | N73: 166.36 | O73: 186.16 | P73: 198.02 | Q73: 215.35 | R73: 243.35 | S73: 342.32 | T73: 288.33 | U73: 0.07 | V73: 0.41212853
A74: 71 | B74: 109.22 | C74: 159.54 | D74: 91.01 | E74: 152.25 | F74: 135.48 | G74: 139.73 | H74: 139.68 | I74: 141.52 | J74: 157.48 | K74: 143.5 | L74: 149.61 | M74: 158.42 | N74: 165.57 | O74: 185.28 | P74: 197.09 | Q74: 214.33 | R74: 242.2 | S74: 340.71 | T74: 286.97 | U74: 0.071 | V74: 0.4140817749
A75: 72 | B75: 108.71 | C75: 158.8 | D75: 90.59 | E75: 151.54 | F75: 134.85 | G75: 139.08 | H75: 139.03 | I75: 140.86 | J75: 156.75 | K75: 142.83 | L75: 148.91 | M75: 157.69 | N75: 164.8 | O75: 184.42 | P75: 196.17 | Q75: 213.33 | R75: 241.07 | S75: 339.12 | T75: 285.64 | U75: 0.072 | V75: 0.4160167646
A76: 73 | B76: 108.21 | C76: 158.07 | D76: 90.18 | E76: 150.85 | F76: 134.23 | G76: 138.44 | H76: 138.4 | I76: 140.21 | J76: 156.03 | K76: 142.18 | L76: 148.23 | M76: 156.96 | N76: 164.05 | O76: 183.57 | P76: 195.27 | Q76: 212.35 | R76: 239.97 | S76: 337.57 | T76: 284.33 | U76: 0.073 | V76: 0.4179339196
A77: 74 | B77: 107.72 | C77: 157.35 | D77: 89.77 | E77: 150.17 | F77: 133.62 | G77: 137.82 | H77: 137.77 | I77: 139.58 | J77: 155.32 | K77: 141.53 | L77: 147.56 | M77: 156.25 | N77: 163.3 | O77: 182.74 | P77: 194.39 | Q77: 211.39 | R77: 238.88 | S77: 336.04 | T77: 283.04 | U77: 0.074 | V77: 0.4198336454
A78: 75 | B78: 107.24 | C78: 156.65 | D78: 89.37 | E78: 149.5 | F78: 133.03 | G78: 137.2 | H78: 137.15 | I78: 138.96 | J78: 154.63 | K78: 140.9 | L78: 146.9 | M78: 155.55 | N78: 162.57 | O78: 181.92 | P78: 193.52 | Q78: 210.45 | R78: 237.81 | S78: 334.54 | T78: 281.78 | U78: 0.075 | V78: 0.4217163327
A79: 76 | B79: 106.77 | C79: 155.96 | D79: 88.97 | E79: 148.84 | F79: 132.44 | G79: 136.6 | H79: 136.55 | I79: 138.34 | J79: 153.95 | K79: 140.28 | L79: 146.25 | M79: 154.87 | N79: 161.86 | O79: 181.12 | P79: 192.67 | Q79: 209.52 | R79: 236.77 | S79: 333.06 | T79: 280.54 | U79: 0.076 | V79: 0.4235823584
A80: 77 | B80: 106.3 | C80: 155.28 | D80: 88.59 | E80: 148.19 | F80: 131.87 | G80: 136 | H80: 135.96 | I80: 137.74 | J80: 153.28 | K80: 139.67 | L80: 145.62 | M80: 154.2 | N80: 161.15 | O80: 180.33 | P80: 191.83 | Q80: 208.61 | R80: 235.74 | S80: 331.62 | T80: 279.32 | U80: 0.077 | V80: 0.4254320865
A81: 78 | B81: 105.85 | C81: 154.62 | D81: 88.21 | E81: 147.55 | F81: 131.3 | G81: 135.42 | H81: 135.37 | I81: 137.15 | J81: 152.62 | K81: 139.07 | L81: 144.99 | M81: 153.53 | N81: 160.46 | O81: 179.56 | P81: 191.01 | Q81: 207.72 | R81: 234.73 | S81: 330.19 | T81: 278.12 | U81: 0.078 | V81: 0.4272658682
A82: 79 | B82: 105.4 | C82: 153.96 | D82: 87.83 | E82: 146.93 | F82: 130.74 | G82: 134.85 | H82: 134.8 | I82: 136.57 | J82: 151.97 | K82: 138.48 | L82: 144.38 | M82: 152.88 | N82: 159.78 | O82: 178.8 | P82: 190.2 | Q82: 206.84 | R82: 233.73 | S82: 328.79 | T82: 276.94 | U82: 0.079 | V82: 0.4290840427
A83: 80 | B83: 104.96 | C83: 153.32 | D83: 87.46 | E83: 146.31 | F83: 130.2 | G83: 134.28 | H83: 134.23 | I83: 136 | J83: 151.34 | K83: 137.9 | L83: 143.77 | M83: 152.24 | N83: 159.11 | O83: 178.05 | P83: 189.4 | Q83: 205.97 | R83: 232.75 | S83: 327.42 | T83: =ROUND(T$2/$V83,2) -> 275.78 | U83: 0.08 | V83: 0.430886938
A84: 81 | B84: 104.52 | C84: 152.68 | D84: 87.1 | E84: =ROUND(E$2/$V84,2) -> 145.71 | F84: 129.66 | G84: 133.73 | H84: 133.68 | I84: 135.44 | J84: 150.71 | K84: 137.33 | L84: 143.18 | M84: 151.61 | N84: 158.46 | O84: 177.32 | P84: 188.62 | Q84: 205.12 | R84: 231.79 | S84: 326.06 | T84: 274.64 | U84: 0.081 | V84: 0.4326748711
A85: 82 | B85: 104.1 | C85: 152.06 | D85: 86.75 | E85: 145.12 | F85: 129.13 | G85: 133.18 | H85: 133.13 | I85: 134.88 | J85: 150.1 | K85: 136.77 | L85: 142.59 | M85: 151 | N85: 157.81 | O85: 176.59 | P85: 187.85 | Q85: 204.28 | R85: 230.84 | S85: 324.73 | T85: 273.52 | U85: 0.082 | V85: 0.4344481486
A86: 83 | B86: 103.68 | C86: 151.45 | D86: 86.4 | E86: 144.53 | F86: 128.61 | G86: 132.64 | H86: 132.6 | I86: 134.34 | J86: 149.49 | K86: 136.22 | L86: 142.02 | M86: 150.39 | N86: 157.17 | O86: 175.88 | P86: 187.09 | Q86: 203.46 | R86: 229.91 | S86: 323.42 | T86: 272.42 | U86: 0.083 | V86: 0.4362070671
A87: 84 | B87: 103.26 | C87: 150.84 | D87: 86.05 | E87: 143.95 | F87: 128.1 | G87: 132.11 | H87: 132.07 | I87: 133.8 | J87: 148.9 | K87: 135.68 | L87: 141.45 | M87: 149.79 | N87: 156.55 | O87: 175.18 | P87: 186.34 | Q87: 202.65 | R87: 229 | S87: 322.14 | T87: 271.33 | U87: 0.084 | V87: 0.437951914
A88: 85 | B88: 102.86 | C88: 150.25 | D88: 85.72 | E88: 143.39 | F88: 127.59 | G88: 131.59 | H88: 131.55 | I88: 133.28 | J88: 148.31 | K88: 135.14 | L88: 140.9 | M88: 149.2 | N88: 155.93 | O88: 174.49 | P88: 185.61 | Q88: 201.85 | R88: 228.1 | S88: 320.87 | T88: 270.26 | U88: 0.085 | V88: 0.4396829672
A89: 86 | B89: 102.46 | C89: 149.66 | D89: 85.38 | E89: 142.83 | F89: 127.1 | G89: 131.08 | H89: 131.04 | I89: 132.76 | J89: 147.73 | K89: 134.62 | L89: 140.35 | M89: 148.62 | N89: 155.32 | O89: 173.81 | P89: 184.89 | Q89: 201.06 | R89: 227.21 | S89: 319.62 | T89: 269.21 | U89: 0.086 | V89: 0.4414004962
A90: 87 | B90: 102.06 | C90: 149.09 | D90: 85.05 | E90: 142.28 | F90: 126.61 | G90: 130.58 | H90: 130.53 | I90: 132.25 | J90: 147.17 | K90: 134.1 | L90: 139.81 | M90: 148.05 | N90: 154.73 | O90: 173.14 | P90: 184.18 | Q90: 200.29 | R90: 226.33 | S90: 318.39 | T90: 268.18 | U90: 0.087 | V90: 0.4431047622
A91: 88 | B91: 101.68 | C91: 148.52 | D91: 84.73 | E91: 141.74 | F91: 126.13 | G91: 130.08 | H91: 130.04 | I91: 131.75 | J91: 146.61 | K91: 133.59 | L91: 139.28 | M91: 147.48 | N91: 154.14 | O91: 172.48 | P91: 183.48 | Q91: 199.53 | R91: 225.47 | S91: 317.18 | T91: 267.16 | U91: 0.088 | V91: 0.4447960181
A92: 89 | B92: 101.29 | C92: 147.96 | D92: 84.41 | E92: 141.21 | F92: 125.65 | G92: 129.59 | H92: 129.55 | I92: 131.25 | J92: 146.06 | K92: 133.09 | L92: 138.75 | M92: 146.93 | N92: 153.56 | O92: 171.84 | P92: 182.79 | Q92: 198.78 | R92: 224.63 | S92: 315.99 | T92: 266.15 | U92: 0.089 | V92: 0.4464745096
A93: 90 | B93: 100.92 | C93: 147.41 | D93: 84.1 | E93: 140.68 | F93: 125.18 | G93: 129.11 | H93: 129.07 | I93: 130.76 | J93: 145.51 | K93: 132.59 | L93: 138.24 | M93: 146.38 | N93: 152.99 | O93: 171.2 | P93: 182.11 | Q93: 198.04 | R93: 223.79 | S93: 314.81 | T93: 265.16 | U93: 0.09 | V93: 0.4481404747
A94: 91 | B94: 100.55 | C94: 146.87 | D94: 83.79 | E94: 140.16 | F94: 124.72 | G94: 128.64 | H94: 128.59 | I94: 130.28 | J94: 144.98 | K94: 132.1 | L94: 137.73 | M94: 145.84 | N94: 152.43 | O94: 170.57 | P94: 181.44 | Q94: 197.31 | R94: 222.97 | S94: 313.65 | T94: 264.19 | U94: 0.091 | V94: 0.4497941445
A95: 92 | B95: 100.18 | C95: 146.34 | D95: 83.48 | E95: 139.65 | F95: 124.27 | G95: 128.17 | H95: 128.12 | I95: 129.81 | J95: 144.45 | K95: 131.62 | L95: 137.23 | M95: 145.31 | N95: 151.87 | O95: 169.95 | P95: 180.78 | Q95: 196.59 | R95: 222.16 | S95: 312.51 | T95: 263.23 | U95: 0.092 | V95: 0.4514357435
A96: 93 | B96: 99.82 | C96: 145.81 | D96: 83.18 | E96: 139.15 | F96: 123.82 | G96: 127.71 | H96: 127.66 | I96: 129.34 | J96: 143.93 | K96: 131.15 | L96: 136.74 | M96: 144.79 | N96: 151.32 | O96: 169.34 | P96: 180.13 | Q96: 195.89 | R96: 221.36 | S96: 311.39 | T96: 262.28 | U96: 0.093 | V96: 0.4530654896
A97: 94 | B97: 99.46 | C97: 145.29 | D97: 82.89 | E97: 138.66 | F97: 123.38 | G97: 127.25 | H97: 127.21 | I97: 128.88 | J97: 143.42 | K97: 130.68 | L97: 136.25 | M97: 144.28 | N97: 150.79 | O97: 168.73 | P97: 179.49 | Q97: 195.19 | R97: 220.57 | S97: 310.28 | T97: 261.35 | U97: 0.094 | V97: 0.4546835944
A98: 95 | B98: 99.11 | C98: 144.78 | D98: 82.6 | E98: 138.17 | F98: 122.95 | G98: 126.81 | H98: 126.76 | I98: 128.43 | J98: 142.91 | K98: 130.22 | L98: 135.77 | M98: 143.77 | N98: 150.26 | O98: 168.14 | P98: 178.86 | Q98: 194.5 | R98: 219.79 | S98: 309.19 | T98: 260.43 | U98: 0.095 | V98: 0.4562902635
A99: 96 | B99: 98.77 | C99: 144.28 | D99: 82.31 | E99: 137.69 | F99: 122.52 | G99: 126.36 | H99: 126.32 | I99: 127.98 | J99: 142.42 | K99: 129.77 | L99: 135.3 | M99: 143.27 | N99: 149.73 | O99: 167.55 | P99: 178.23 | Q99: 193.83 | R99: 219.03 | S99: 308.11 | T99: =ROUND(T$2/$V99,2) -> 259.52 | U99: 0.096 | V99: 0.457885697
A100: 97 | B100: 98.43 | C100: 143.78 | D100: 82.02 | E100: =ROUND(E$2/$V100,2) -> 137.21 | F100: 122.1 | G100: 125.93 | H100: 125.88 | I100: 127.54 | J100: 141.92 | K100: 129.32 | L100: 134.83 | M100: 142.77 | N100: 149.22 | O100: 166.97 | P100: 177.62 | Q100: 193.16 | R100: 218.27 | S100: 307.05 | T100: 258.62 | U100: 0.097 | V100: 0.4594700892
A101: 98 | B101: 98.09 | C101: 143.29 | D101: 81.74 | E101: 136.74 | F101: 121.68 | G101: 125.5 | H101: 125.45 | I101: 127.1 | J101: 141.44 | K101: 128.88 | L101: 134.37 | M101: 142.29 | N101: 148.71 | O101: 166.41 | P101: 177.01 | Q101: 192.5 | R101: 217.53 | S101: 306 | T101: 257.74 | U101: 0.098 | V101: 0.4610436292
A102: 99 | B102: 97.76 | C102: 142.8 | D102: 81.47 | E102: 136.28 | F102: 121.27 | G102: 125.07 | H102: 125.03 | I102: 126.67 | J102: 140.96 | K102: 128.45 | L102: 133.92 | M102: 141.81 | N102: 148.2 | O102: 165.84 | P102: 176.41 | Q102: 191.85 | R102: 216.79 | S102: 304.97 | T102: 256.87 | U102: 0.099 | V102: 0.4626065009
A103: 100 | B103: 97.43 | C103: 142.33 | D103: 81.2 | E103: 135.83 | F103: 120.86 | G103: 124.66 | H103: 124.61 | I103: 126.25 | J103: 140.49 | K103: 128.02 | L103: 133.47 | M103: 141.33 | N103: 147.71 | O103: 165.29 | P103: 175.82 | Q103: 191.21 | R103: 216.07 | S103: 303.95 | T103: 256.01 | U103: 0.1 | V103: 0.4641588834
A104: 101 | B104: 97.11 | C104: 141.85 | D104: 80.93 | E104: 135.38 | F104: 120.46 | G104: 124.24 | H104: 124.2 | I104: 125.83 | J104: 140.03 | K104: 127.59 | L104: 133.03 | M104: 140.86 | N104: 147.22 | O104: 164.74 | P104: 175.24 | Q104: 190.57 | R104: 215.35 | S104: 302.94 | T104: 255.16 | U104: 0.101 | V104: 0.4657009508
A105: 102 | B105: 96.79 | C105: 141.39 | D105: 80.66 | E105: 134.93 | F105: 120.07 | G105: 123.84 | H105: 123.79 | I105: 125.42 | J105: 139.57 | K105: 127.17 | L105: 132.59 | M105: 140.4 | N105: 146.74 | O105: 164.2 | P105: 174.67 | Q105: 189.95 | R105: 214.65 | S105: 301.95 | T105: 254.33 | U105: 0.102 | V105: 0.4672328728
A106: 103 | B106: 96.48 | C106: 140.93 | D106: 80.4 | E106: 134.49 | F106: 119.68 | G106: 123.43 | H106: 123.39 | I106: 125.01 | J106: 139.11 | K106: 126.76 | L106: 132.16 | M106: 139.95 | N106: 146.26 | O106: 163.67 | P106: 174.1 | Q106: 189.33 | R106: 213.95 | S106: 300.97 | T106: 253.5 | U106: 0.103 | V106: 0.4687548148
A107: 104 | B107: 96.17 | C107: 140.48 | D107: 80.14 | E107: 134.06 | F107: 119.29 | G107: 123.04 | H107: 122.99 | I107: 124.61 | J107: 138.67 | K107: 126.35 | L107: 131.73 | M107: 139.5 | N107: 145.79 | O107: 163.14 | P107: 173.54 | Q107: 188.72 | R107: 213.26 | S107: 300 | T107: 252.69 | U107: 0.104 | V107: 0.4702669375
A108: 105 | B108: 95.86 | C108: 140.03 | D108: 79.89 | E108: 133.64 | F108: 118.91 | G108: 122.64 | H108: 122.6 | I108: 124.21 | J108: 138.22 | K108: 125.95 | L108: 131.31 | M108: 139.05 | N108: 145.33 | O108: 162.62 | P108: 172.99 | Q108: 188.12 | R108: 212.58 | S108: 299.04 | T108: 251.88 | U108: 0.105 | V108: 0.471769398
A109: 106 | B109: 95.56 | C109: 139.59 | D109: 79.63 | E109: 133.21 | F109: 118.54 | G109: 122.26 | H109: 122.22 | I109: 123.82 | J109: 137.79 | K109: 125.55 | L109: 130.9 | M109: 138.61 | N109: 144.87 | O109: 162.11 | P109: 172.44 | Q109: 187.53 | R109: 211.91 | S109: 298.1 | T109: 251.09 | U109: 0.106 | V109: 0.4732623491
A110: 107 | B110: 95.26 | C110: 139.15 | D110: 79.38 | E110: 132.8 | F110: 118.17 | G110: 121.88 | H110: 121.83 | I110: 123.43 | J110: 137.36 | K110: 125.16 | L110: 130.49 | M110: 138.18 | N110: 144.41 | O110: 161.6 | P110: 171.9 | Q110: 186.94 | R110: 211.25 | S110: 297.17 | T110: 250.3 | U110: 0.107 | V110: 0.4747459399
A111: 108 | B111: 94.97 | C111: 138.72 | D111: 79.14 | E111: 132.39 | F111: 117.8 | G111: 121.5 | H111: 121.46 | I111: 123.05 | J111: 136.93 | K111: 124.77 | L111: 130.09 | M111: 137.75 | N111: 143.97 | O111: 161.1 | P111: 171.37 | Q111: 186.36 | R111: 210.6 | S111: 296.25 | T111: 249.53 | U111: 0.108 | V111: 0.4762203156
A112: 109 | B112: 94.68 | C112: 138.3 | D112: 78.9 | E112: 131.98 | F112: 117.44 | G112: 121.13 | H112: 121.08 | I112: 122.67 | J112: 136.51 | K112: 124.39 | L112: 129.69 | M112: 137.33 | N112: 143.53 | O112: 160.61 | P112: 170.84 | Q112: 185.79 | R112: 209.95 | S112: 295.34 | T112: 248.76 | U112: 0.109 | V112: 0.4776856181
A113: 110 | B113: 94.39 | C113: 137.88 | D113: 78.66 | E113: 131.58 | F113: 117.08 | G113: 120.76 | H113: 120.72 | I113: 122.3 | J113: 136.1 | K113: 124.01 | L113: 129.29 | M113: 136.91 | N113: 143.09 | O113: 160.12 | P113: 170.33 | Q113: 185.23 | R113: 209.31 | S113: 294.44 | T113: 248.01 | U113: 0.11 | V113: 0.4791419857
A114: 111 | B114: 94.1 | C114: 137.46 | D114: 78.42 | E114: 131.18 | F114: 116.73 | G114: 120.39 | H114: 120.35 | I114: 121.93 | J114: 135.69 | K114: 123.64 | L114: 128.9 | M114: 136.5 | N114: 142.66 | O114: 159.64 | P114: 169.81 | Q114: 184.67 | R114: 208.68 | S114: 293.56 | T114: 247.26 | U114: 0.111 | V114: 0.4805895534
A115: 112 | B115: 93.82 | C115: 137.05 | D115: 78.19 | E115: 130.79 | F115: 116.38 | G115: 120.03 | H115: 119.99 | I115: 121.57 | J115: 135.28 | K115: 123.27 | L115: 128.52 | M115: 136.09 | N115: 142.23 | O115: 159.16 | P115: 169.31 | Q115: 184.12 | R115: 208.06 | S115: 292.68 | T115: =ROUND(T$2/$V115,2) -> 246.52 | U115: 0.112 | V115: 0.4820284528
A116: 113 | B116: 93.54 | C116: 136.64 | D116: 77.95 | E116: =ROUND(E$2/$V116,2) -> 130.4 | F116: 116.04 | G116: 119.68 | H116: 119.64 | I116: 121.21 | J116: 134.88 | K116: 122.91 | L116: 128.14 | M116: 135.69 | N116: 141.81 | O116: 158.69 | P116: 168.8 | Q116: 183.57 | R116: 207.44 | S116: 291.81 | T116: 245.79 | U116: 0.113 | V116: 0.4834588127
A117: 114 | B117: 93.27 | C117: 136.24 | D117: 77.73 | E117: 130.02 | F117: 115.7 | G117: 119.33 | H117: 119.29 | I117: 120.85 | J117: 134.49 | K117: 122.55 | L117: 127.76 | M117: 135.29 | N117: 141.4 | O117: 158.22 | P117: 168.31 | Q117: 183.03 | R117: 206.83 | S117: 290.96 | T117: 245.07 | U117: 0.114 | V117: 0.4848807586
A118: 115 | B118: 93 | C118: 135.85 | D118: 77.5 | E118: 129.64 | F118: 115.36 | G118: 118.98 | H118: 118.94 | I118: 120.5 | J118: 134.1 | K118: 122.19 | L118: 127.39 | M118: 134.9 | N118: 140.98 | O118: 157.76 | P118: 167.82 | Q118: 182.5 | R118: 206.23 | S118: 290.11 | T118: 244.36 | U118: 0.115 | V118: 0.4862944131
A119: 116 | B119: 92.73 | C119: 135.46 | D119: 77.28 | E119: 129.27 | F119: 115.03 | G119: 118.64 | H119: 118.6 | I119: 120.16 | J119: 133.71 | K119: 121.84 | L119: 127.02 | M119: 134.51 | N119: 140.58 | O119: 157.31 | P119: 167.34 | Q119: 181.98 | R119: 205.64 | S119: 289.28 | T119: 243.65 | U119: 0.116 | V119: 0.4876998961
A120: 117 | B120: 92.47 | C120: 135.07 | D120: 77.06 | E120: 128.9 | F120: 114.7 | G120: 118.3 | H120: 118.26 | I120: 119.81 | J120: 133.33 | K120: 121.49 | L120: 126.66 | M120: 134.12 | N120: 140.18 | O120: 156.86 | P120: 166.86 | Q120: 181.46 | R120: 205.05 | S120: 288.45 | T120: 242.96 | U120: 0.117 | V120: 0.4890973247
A121: 118 | B121: 92.2 | C121: 134.69 | D121: 76.84 | E121: 128.54 | F121: 114.38 | G121: 117.96 | H121: 117.92 | I121: 119.47 | J121: 132.95 | K121: 121.14 | L121: 126.3 | M121: 133.74 | N121: 139.78 | O121: 156.42 | P121: 166.39 | Q121: 180.94 | R121: 204.47 | S121: 287.63 | T121: 242.27 | U121: 0.118 | V121: 0.4904868132
A122: 119 | B122: 91.95 | C122: 134.31 | D122: 76.62 | E122: 128.17 | F122: 114.05 | G122: 117.63 | H122: 117.59 | I122: 119.14 | J122: 132.58 | K122: 120.8 | L122: 125.95 | M122: 133.37 | N122: 139.39 | O122: 155.98 | P122: 165.92 | Q122: 180.43 | R122: 203.9 | S122: 286.82 | T122: 241.59 | U122: 0.119 | V122: 0.4918684734
A123: 120 | B123: 91.69 | C123: 133.93 | D123: 76.41 | E123: 127.82 | F123: 113.74 | G123: 117.31 | H123: 117.26 | I123: 118.81 | J123: 132.21 | K123: 120.47 | L123: 125.6 | M123: 133 | N123: 139 | O123: 155.54 | P123: 165.46 | Q123: 179.93 | R123: 203.33 | S123: 286.03 | T123: 240.92 | U123: 0.12 | V123: 0.4932424149
A124: 121 | B124: 91.44 | C124: 133.56 | D124: 76.2 | E124: 127.46 | F124: 113.42 | G124: 116.98 | H124: 116.94 | I124: 118.48 | J124: 131.84 | K124: 120.14 | L124: 125.25 | M124: 132.63 | N124: 138.61 | O124: 155.11 | P124: 165 | Q124: 179.43 | R124: 202.77 | S124: 285.24 | T124: 240.25 | U124: 0.121 | V124: 0.4946087443
A125: 122 | B125: 91.19 | C125: 133.2 | D125: 75.99 | E125: 127.12 | F125: 113.11 | G125: 116.66 | H125: 116.62 | I125: 118.15 | J125: 131.48 | K125: 119.81 | L125: 124.91 | M125: 132.27 | N125: 138.23 | O125: 154.69 | P125: 164.55 | Q125: 178.94 | R125: 202.21 | S125: 284.45 | T125: 239.59 | U125: 0.122 | V125: 0.4959675664
A126: 123 | B126: 90.94 | C126: 132.84 | D126: 75.78 | E126: 126.77 | F126: 112.8 | G126: 116.34 | H126: 116.3 | I126: 117.83 | J126: 131.12 | K126: 119.48 | L126: 124.57 | M126: 131.91 | N126: 137.86 | O126: 154.27 | P126: 164.1 | Q126: 178.46 | R126: 201.66 | S126: 283.68 | T126: 238.94 | U126: 0.123 | V126: 0.4973189833
A127: 124 | B127: 90.69 | C127: 132.48 | D127: 75.58 | E127: 126.43 | F127: 112.5 | G127: 116.03 | H127: 115.99 | I127: 117.51 | J127: 130.77 | K127: 119.16 | L127: 124.23 | M127: 131.55 | N127: 137.49 | O127: 153.85 | P127: 163.66 | Q127: 177.98 | R127: 201.12 | S127: 282.92 | T127: 238.3 | U127: 0.124 | V127: 0.4986630952
A128: 125 | B128: 90.45 | C128: 132.12 | D128: 75.38 | E128: 126.09 | F128: 112.2 | G128: 115.72 | H128: 115.68 | I128: 117.2 | J128: 130.42 | K128: 118.84 | L128: 123.9 | M128: 131.2 | N128: 137.12 | O128: 153.44 | P128: 163.22 | Q128: 177.5 | R128: 200.58 | S128: 282.16 | T128: 237.66 | U128: 0.125 | V128: 0.5
A129: 126 | B129: 90.21 | C129: 131.77 | D129: 75.18 | E129: 125.76 | F129: 111.9 | G129: 115.41 | H129: 115.37 | I129: 116.89 | J129: 130.07 | K129: 118.52 | L129: 123.57 | M129: 130.85 | N129: 136.76 | O129: 153.03 | P129: 162.79 | Q129: 177.03 | R129: 200.05 | S129: 281.41 | T129: 237.03 | U129: 0.126 | V129: 0.5013297935
A130: 127 | B130: 89.97 | C130: 131.43 | D130: 74.98 | E130: 125.42 | F130: 111.61 | G130: 115.11 | H130: 115.07 | I130: 116.58 | J130: 129.73 | K130: 118.21 | L130: 123.25 | M130: 130.51 | N130: 136.4 | O130: 152.63 | P130: 162.36 | Q130: 176.56 | R130: 199.52 | S130: 280.67 | T130: 236.41 | U130: 0.127 | V130: 0.5026525695
A131: 128 | B131: 89.74 | C131: 131.08 | D131: 74.78 | E131: 125.1 | F131: 111.32 | G131: 114.81 | H131: 114.77 | I131: 116.28 | J131: 129.39 | K131: 117.9 | L131: 122.92 | M131: 130.17 | N131: 136.04 | O131: 152.23 | P131: 161.93 | Q131: 176.1 | R131: 199 | S131: 279.94 | T131: =ROUND(T$2/$V131,2) -> 235.79 | U131: 0.128 | V131: 0.50396842
A132: 129 | B132: =ROUND(B$2/$V132,2) -> 89.51 | C132: 130.74 | D132: =ROUND(D$2/$V132,2) -> 74.59 | E132: =ROUND(E$2/$V132,2) -> 124.77 | F132: 111.03 | G132: 114.51 | H132: 114.47 | I132: 115.98 | J132: 129.06 | K132: 117.6 | L132: 122.61 | M132: 129.83 | N132: 135.69 | O132: 151.84 | P132: 161.52 | Q132: 175.65 | R132: 198.49 | S132: 279.21 | T132: 235.18 | U132: =A132/1000 -> 0.129 | V132: =POWER(U132,1/3) -> 0.5052774347
A133: 130 | B133: 89.28 | C133: 130.41 | D133: 74.4 | E133: 124.45 | F133: 110.74 | G133: 114.22 | H133: 114.18 | I133: 115.68 | J133: 128.73 | K133: 117.3 | L133: 122.29 | M133: 129.5 | N133: 135.34 | O133: 151.45 | P133: 161.1 | Q133: 175.19 | R133: 197.97 | S133: 278.5 | T133: 234.57 | U133: 0.13 | V133: 0.5065797019
A134: 131 | B134: 89.05 | C134: 130.08 | D134: 74.21 | E134: 124.13 | F134: 110.46 | G134: 113.93 | H134: 113.89 | I134: 115.38 | J134: 128.4 | K134: 117 | L134: 121.98 | M134: 129.17 | N134: 134.99 | O134: 151.06 | P134: 160.69 | Q134: 174.75 | R134: 197.47 | S134: 277.78 | T134: 233.97 | U134: 0.131 | V134: 0.5078753078
A135: 132 | B135: 88.82 | C135: 129.75 | D135: 74.02 | E135: 123.82 | F135: 110.18 | G135: 113.64 | H135: 113.6 | I135: 115.09 | J135: 128.07 | K135: 116.7 | L135: 121.67 | M135: 128.84 | N135: 134.65 | O135: 150.68 | P135: 160.28 | Q135: 174.31 | R135: 196.97 | S135: 277.08 | T135: 233.38 | U135: 0.132 | V135: 0.509164337
A136: 133 | B136: 88.6 | C136: 129.42 | D136: 73.83 | E136: 123.51 | F136: 109.9 | G136: 113.35 | H136: 113.31 | I136: 114.8 | J136: 127.75 | K136: 116.41 | L136: 121.36 | M136: 128.51 | N136: 134.31 | O136: 150.3 | P136: 159.88 | Q136: 173.87 | R136: 196.47 | S136: 276.39 | T136: 232.8 | U136: 0.133 | V136: 0.5104468722
A137: 134 | B137: 88.38 | C137: 129.1 | D137: 73.65 | E137: 123.2 | F137: 109.63 | G137: 113.07 | H137: 113.03 | I137: 114.52 | J137: 127.43 | K137: 116.12 | L137: 121.06 | M137: 128.19 | N137: 133.98 | O137: 149.92 | P137: 159.48 | Q137: 173.43 | R137: 195.98 | S137: 275.7 | T137: 232.22 | U137: 0.134 | V137: 0.5117229947
A138: 135 | B138: 88.16 | C138: 128.78 | D138: 73.47 | E138: 122.9 | F138: 109.36 | G138: 112.79 | H138: 112.75 | I138: 114.23 | J138: 127.12 | K138: 115.83 | L138: 120.76 | M138: 127.88 | N138: 133.65 | O138: 149.55 | P138: 159.09 | Q138: 173 | R138: 195.5 | S138: 275.01 | T138: 231.64 | U138: 0.135 | V138: 0.512992784
A139: 136 | B139: 87.94 | C139: 128.46 | D139: 73.29 | E139: 122.59 | F139: 109.09 | G139: 112.51 | H139: 112.47 | I139: 113.95 | J139: 126.8 | K139: 115.55 | L139: 120.47 | M139: 127.56 | N139: 133.32 | O139: 149.19 | P139: 158.7 | Q139: 172.58 | R139: 195.02 | S139: 274.34 | T139: 231.07 | U139: 0.136 | V139: 0.5142563181
A140: 137 | B140: 87.73 | C140: 128.15 | D140: 73.11 | E140: 122.3 | F140: 108.82 | G140: 112.24 | H140: 112.2 | I140: 113.67 | J140: 126.5 | K140: 115.26 | L140: 120.17 | M140: 127.25 | N140: 132.99 | O140: 148.82 | P140: 158.31 | Q140: 172.16 | R140: 194.54 | S140: 273.67 | T140: 230.51 | U140: 0.137 | V140: 0.5155136735
A141: 138 | B141: 87.52 | C141: 127.84 | D141: 72.93 | E141: 122 | F141: 108.56 | G141: 111.97 | H141: 111.93 | I141: 113.4 | J141: 126.19 | K141: 114.98 | L141: 119.88 | M141: 126.94 | N141: 132.67 | O141: 148.46 | P141: 157.92 | Q141: 171.74 | R141: 194.07 | S141: 273.01 | T141: 229.95 | U141: 0.138 | V141: 0.5167649252
A142: 139 | B142: 87.31 | C142: 127.53 | D142: 72.75 | E142: 121.71 | F142: 108.3 | G142: 111.7 | H142: 111.66 | I142: 113.13 | J142: 125.89 | K142: 114.71 | L142: 119.59 | M142: 126.64 | N142: 132.35 | O142: 148.11 | P142: 157.55 | Q142: 171.33 | R142: 193.61 | S142: 272.35 | T142: 229.4 | U142: 0.139 | V142: 0.5180101467
A143: 140 | B143: 87.1 | C143: 127.23 | D143: 72.58 | E143: 121.42 | F143: 108.04 | G143: 111.43 | H143: 111.39 | I143: 112.86 | J143: 125.59 | K143: 114.43 | L143: 119.31 | M143: 126.34 | N143: 132.04 | O143: 147.75 | P143: 157.17 | Q143: 170.92 | R143: 193.14 | S143: 271.7 | T143: 228.85 | U143: 0.14 | V143: 0.5192494102
A144: 141 | B144: 86.89 | C144: 126.92 | D144: 72.41 | E144: 121.13 | F144: 107.78 | G144: 111.17 | H144: 111.13 | I144: 112.59 | J144: 125.29 | K144: 114.16 | L144: 119.02 | M144: 126.04 | N144: 131.72 | O144: 147.4 | P144: 156.8 | Q144: 170.51 | R144: 192.69 | S144: 271.06 | T144: 228.31 | U144: 0.141 | V144: 0.5204827863
A145: 142 | B145: 86.69 | C145: 126.63 | D145: 72.24 | E145: 120.84 | F145: 107.53 | G145: 110.9 | H145: 110.87 | I145: 112.32 | J145: 124.99 | K145: 113.89 | L145: 118.74 | M145: 125.74 | N145: 131.41 | O145: 147.05 | P145: 156.43 | Q145: 170.11 | R145: 192.23 | S145: 270.42 | T145: 227.77 | U145: 0.142 | V145: 0.5217103446
A146: 143 | B146: 86.48 | C146: 126.33 | D146: 72.07 | E146: 120.56 | F146: 107.28 | G146: 110.65 | H146: 110.61 | I146: 112.06 | J146: 124.7 | K146: 113.63 | L146: 118.47 | M146: 125.45 | N146: 131.11 | O146: 146.71 | P146: 156.06 | Q146: 169.72 | R146: 191.78 | S146: 269.79 | T146: 227.24 | U146: 0.143 | V146: 0.5229321532
A147: 144 | B147: 86.28 | C147: 126.04 | D147: 71.9 | E147: 120.28 | F147: 107.03 | G147: 110.39 | H147: 110.35 | I147: 111.8 | J147: 124.41 | K147: 113.36 | L147: 118.19 | M147: 125.16 | N147: 130.8 | O147: 146.37 | P147: 155.7 | Q147: 169.32 | R147: 191.34 | S147: 269.16 | T147: =ROUND(T$2/$V147,2) -> 226.71 | U147: 0.144 | V147: 0.5241482788
A148: 145 | B148: 86.08 | C148: 125.75 | D148: 71.74 | E148: =ROUND(E$2/$V148,2) -> 120 | F148: 106.78 | G148: 110.13 | H148: 110.1 | I148: 111.54 | J148: 124.12 | K148: 113.1 | L148: 117.92 | M148: 124.87 | N148: 130.5 | O148: 146.03 | P148: 155.34 | Q148: 168.93 | R148: 190.9 | S148: 268.54 | T148: 226.19 | U148: 0.145 | V148: 0.5253587872
A149: 146 | B149: 85.89 | C149: 125.46 | D149: 71.57 | E149: 119.73 | F149: 106.54 | G149: 109.88 | H149: 109.84 | I149: 111.29 | J149: 123.84 | K149: 112.84 | L149: 117.65 | M149: 124.58 | N149: 130.2 | O149: 145.7 | P149: 154.99 | Q149: 168.55 | R149: 190.46 | S149: 267.93 | T149: 225.67 | U149: 0.146 | V149: 0.5265637428
A150: 147 | B150: 85.69 | C150: 125.17 | D150: 71.41 | E150: 119.46 | F150: 106.3 | G150: 109.63 | H150: 109.59 | I150: 111.03 | J150: 123.56 | K150: 112.59 | L150: 117.38 | M150: 124.3 | N150: 129.91 | O150: 145.37 | P150: 154.63 | Q150: 168.16 | R150: 190.03 | S150: 267.32 | T150: 225.16 | U150: 0.147 | V150: 0.5277632088
A151: 148 | B151: 85.5 | C151: 124.89 | D151: 71.25 | E151: 119.19 | F151: 106.06 | G151: 109.39 | H151: 109.35 | I151: 110.78 | J151: 123.28 | K151: 112.33 | L151: 117.12 | M151: 124.02 | N151: 129.61 | O151: 145.04 | P151: 154.28 | Q151: 167.78 | R151: 189.6 | S151: 266.71 | T151: 224.65 | U151: 0.148 | V151: 0.5289572473
A152: 149 | B152: 85.31 | C152: 124.61 | D152: 71.09 | E152: 118.92 | F152: 105.82 | G152: 109.14 | H152: 109.1 | I152: 110.54 | J152: 123 | K152: 112.08 | L152: 116.85 | M152: 123.74 | N152: 129.32 | O152: 144.71 | P152: 153.94 | Q152: 167.41 | R152: 189.17 | S152: 266.12 | T152: 224.15 | U152: 0.149 | V152: 0.5301459192
A153: 150 | B153: 85.12 | C153: 124.33 | D153: 70.93 | E153: 118.66 | F153: 105.58 | G153: 108.9 | H153: 108.86 | I153: 110.29 | J153: 122.73 | K153: 111.83 | L153: 116.59 | M153: 123.46 | N153: 129.03 | O153: 144.39 | P153: 153.6 | Q153: 167.03 | R153: 188.75 | S153: 265.52 | T153: 223.65 | U153: 0.15 | V153: 0.5313292846
A154: 151 | B154: 84.93 | C154: 124.06 | D154: 70.77 | E154: 118.39 | F154: 105.35 | G154: 108.66 | H154: 108.62 | I154: 110.05 | J154: 122.46 | K154: 111.59 | L154: 116.34 | M154: 123.19 | N154: 128.75 | O154: 144.07 | P154: 153.26 | Q154: 166.66 | R154: 188.34 | S154: 264.94 | T154: 223.15 | U154: 0.151 | V154: 0.5325074022
A155: 152 | B155: 84.74 | C155: 123.79 | D155: 70.62 | E155: 118.13 | F155: 105.12 | G155: 108.42 | H155: 108.38 | I155: 109.8 | J155: 122.19 | K155: 111.34 | L155: 116.08 | M155: 122.92 | N155: 128.47 | O155: 143.76 | P155: 152.92 | Q155: 166.3 | R155: 187.92 | S155: 264.35 | T155: 222.66 | U155: 0.152 | V155: 0.5336803297
A156: 153 | B156: 84.56 | C156: 123.52 | D156: 70.46 | E156: 117.87 | F156: 104.89 | G156: 108.18 | H156: 108.14 | I156: 109.56 | J156: 121.92 | K156: 111.1 | L156: 115.83 | M156: 122.65 | N156: 128.19 | O156: 143.44 | P156: 152.59 | Q156: 165.93 | R156: 187.51 | S156: 263.78 | T156: 222.18 | U156: 0.153 | V156: 0.5348481241
A157: 154 | B157: 84.37 | C157: 123.25 | D157: 70.31 | E157: 117.62 | F157: 104.66 | G157: 107.95 | H157: 107.91 | I157: 109.33 | J157: 121.66 | K157: 110.86 | L157: 115.58 | M157: 122.39 | N157: 127.91 | O157: 143.13 | P157: 152.25 | Q157: 165.58 | R157: 187.1 | S157: 263.2 | T157: 221.69 | U157: 0.154 | V157: 0.5360108411
A158: 155 | B158: 84.19 | C158: 122.98 | D158: 70.16 | E158: 117.37 | F158: 104.44 | G158: 107.71 | H158: 107.68 | I158: 109.09 | J158: 121.4 | K158: 110.62 | L158: 115.33 | M158: 122.12 | N158: 127.63 | O158: 142.82 | P158: 151.93 | Q158: 165.22 | R158: 186.7 | S158: 262.64 | T158: 221.22 | U158: 0.155 | V158: 0.5371685355
A159: 156 | B159: 84.01 | C159: 122.72 | D159: 70.01 | E159: 117.11 | F159: 104.21 | G159: 107.48 | H159: 107.45 | I159: 108.86 | J159: 121.14 | K159: 110.38 | L159: 115.08 | M159: 121.86 | N159: 127.36 | O159: 142.52 | P159: 151.6 | Q159: 164.86 | R159: 186.3 | S159: 262.07 | T159: 220.74 | U159: 0.156 | V159: 0.5383212612
A160: 157 | B160: 83.83 | C160: 122.46 | D160: 69.86 | E160: 116.86 | F160: 103.99 | G160: 107.25 | H160: 107.22 | I160: 108.63 | J160: 120.88 | K160: 110.15 | L160: 114.84 | M160: 121.6 | N160: 127.09 | O160: 142.21 | P160: 151.28 | Q160: 164.51 | R160: 185.91 | S160: 261.52 | T160: 220.27 | U160: 0.157 | V160: 0.5394690712
A161: 158 | B161: 83.66 | C161: 122.2 | D161: 69.71 | E161: 116.62 | F161: 103.77 | G161: 107.03 | H161: 106.99 | I161: 108.4 | J161: 120.62 | K161: 109.91 | L161: 114.59 | M161: 121.34 | N161: 126.82 | O161: 141.91 | P161: 150.96 | Q161: 164.17 | R161: 185.51 | S161: 260.96 | T161: 219.81 | U161: 0.158 | V161: 0.5406120176
A162: 159 | B162: 83.48 | C162: 121.94 | D162: 69.57 | E162: 116.37 | F162: 103.55 | G162: 106.8 | H162: 106.77 | I162: 108.17 | J162: 120.37 | K162: 109.68 | L162: 114.35 | M162: 121.09 | N162: 126.55 | O162: 141.62 | P162: 150.64 | Q162: 163.82 | R162: 185.12 | S162: 260.42 | T162: 219.34 | U162: 0.159 | V162: 0.5417501515
A163: 160 | B163: 83.31 | C163: 121.69 | D163: 69.42 | E163: 116.13 | F163: 103.34 | G163: 106.58 | H163: 106.54 | I163: 107.94 | J163: 120.12 | K163: 109.45 | L163: 114.11 | M163: 120.84 | N163: 126.29 | O163: 141.32 | P163: 150.33 | Q163: 163.48 | R163: 184.74 | S163: 259.87 | T163: =ROUND(T$2/$V163,2) -> 218.89 | U163: 0.16 | V163: 0.5428835233
A164: 161 | B164: 83.13 | C164: 121.43 | D164: 69.28 | E164: =ROUND(E$2/$V164,2) -> 115.89 | F164: 103.12 | G164: 106.36 | H164: 106.32 | I164: 107.72 | J164: 119.87 | K164: 109.23 | L164: 113.88 | M164: 120.59 | N164: 126.03 | O164: 141.03 | P164: 150.02 | Q164: 163.14 | R164: 184.35 | S164: 259.33 | T164: 218.43 | U164: 0.161 | V164: 0.5440121825
A165: 162 | B165: 82.96 | C165: 121.18 | D165: 69.13 | E165: 115.65 | F165: 102.91 | G165: 106.14 | H165: 106.1 | I165: 107.5 | J165: 119.62 | K165: 109 | L165: 113.64 | M165: 120.34 | N165: 125.77 | O165: 140.74 | P165: 149.71 | Q165: 162.8 | R165: 183.97 | S165: 258.8 | T165: 217.98 | U165: 0.162 | V165: 0.5451361778
A166: 163 | B166: 82.79 | C166: 120.94 | D166: 68.99 | E166: 115.41 | F166: 102.7 | G166: 105.92 | H166: 105.88 | I166: 107.28 | J166: 119.38 | K166: 108.78 | L166: 113.41 | M166: 120.09 | N166: 125.51 | O166: 140.45 | P166: 149.4 | Q166: 162.47 | R166: 183.6 | S166: 258.27 | T166: 217.54 | U166: 0.163 | V166: 0.5462555571
A167: 164 | B167: 82.62 | C167: 120.69 | D167: 68.85 | E167: 115.18 | F167: 102.49 | G167: 105.71 | H167: 105.67 | I167: 107.06 | J167: 119.13 | K167: 108.56 | L167: 113.18 | M167: 119.85 | N167: 125.25 | O167: 140.16 | P167: 149.09 | Q167: 162.14 | R167: 183.22 | S167: 257.74 | T167: 217.09 | U167: 0.164 | V167: 0.5473703675
A168: 165 | B168: 82.46 | C168: 120.45 | D168: 68.71 | E168: 114.94 | F168: 102.28 | G168: 105.49 | H168: 105.45 | I168: 106.84 | J168: 118.89 | K168: 108.34 | L168: 112.95 | M168: 119.6 | N168: 125 | O168: 139.88 | P168: 148.79 | Q168: 161.81 | R168: 182.85 | S168: 257.22 | T168: 216.65 | U168: 0.165 | V168: 0.5484806552
A169: 166 | B169: 82.29 | C169: 120.2 | D169: 68.57 | E169: 114.71 | F169: 102.08 | G169: 105.28 | H169: 105.24 | I169: 106.63 | J169: 118.65 | K169: 108.12 | L169: 112.72 | M169: 119.36 | N169: 124.75 | O169: 139.6 | P169: 148.49 | Q169: 161.49 | R169: 182.48 | S169: 256.7 | T169: 216.22 | U169: 0.166 | V169: 0.549586466
A170: 167 | B170: 82.12 | C170: 119.96 | D170: 68.44 | E170: 114.48 | F170: 101.87 | G170: 105.07 | H170: 105.03 | I170: 106.41 | J170: 118.42 | K170: 107.9 | L170: 112.5 | M170: 119.12 | N170: 124.5 | O170: 139.32 | P170: 148.2 | Q170: 161.16 | R170: 182.12 | S170: 256.19 | T170: 215.78 | U170: 0.167 | V170: 0.5506878446
A171: 168 | B171: 81.96 | C171: 119.72 | D171: 68.3 | E171: 114.26 | F171: 101.67 | G171: 104.86 | H171: 104.82 | I171: 106.2 | J171: 118.18 | K171: 107.69 | L171: 112.27 | M171: 118.89 | N171: 124.25 | O171: 139.04 | P171: 147.9 | Q171: 160.84 | R171: 181.76 | S171: 255.68 | T171: 215.36 | U171: 0.168 | V171: 0.5517848353
A172: 169 | B172: 81.8 | C172: 119.49 | D172: 68.17 | E172: 114.03 | F172: 101.47 | G172: 104.65 | H172: 104.62 | I172: 105.99 | J172: 117.95 | K172: 107.47 | L172: 112.05 | M172: 118.65 | N172: 124.01 | O172: 138.76 | P172: 147.61 | Q172: 160.52 | R172: 181.4 | S172: 255.17 | T172: 214.93 | U172: 0.169 | V172: 0.5528774814
A173: 170 | B173: 81.64 | C173: 119.25 | D173: 68.03 | E173: 113.81 | F173: 101.27 | G173: 104.45 | H173: 104.41 | I173: 105.78 | J173: 117.71 | K173: 107.26 | L173: 111.83 | M173: 118.42 | N173: 123.76 | O173: 138.49 | P173: 147.32 | Q173: 160.21 | R173: 181.04 | S173: 254.67 | T173: 214.51 | U173: 0.17 | V173: 0.5539658257
A174: 171 | B174: 81.48 | C174: 119.02 | D174: 67.9 | E174: 113.58 | F174: 101.07 | G174: 104.24 | H174: 104.21 | I174: 105.58 | J174: 117.48 | K174: 107.05 | L174: 111.61 | M174: 118.19 | N174: 123.52 | O174: 138.22 | P174: 147.03 | Q174: 159.9 | R174: 180.69 | S174: 254.18 | T174: 214.09 | U174: 0.171 | V174: 0.5550499103
A175: 172 | B175: 81.32 | C175: 118.79 | D175: 67.77 | E175: 113.36 | F175: 100.88 | G175: 104.04 | H175: 104 | I175: 105.37 | J175: 117.26 | K175: 106.85 | L175: 111.39 | M175: 117.96 | N175: 123.28 | O175: 137.95 | P175: 146.75 | Q175: 159.59 | R175: 180.34 | S175: 253.68 | T175: 213.67 | U175: 0.172 | V175: 0.5561297767
A176: 173 | B176: 81.16 | C176: 118.56 | D176: 67.64 | E176: 113.14 | F176: 100.68 | G176: 103.84 | H176: 103.8 | I176: 105.17 | J176: 117.03 | K176: 106.64 | L176: 111.18 | M176: 117.73 | N176: 123.04 | O176: 137.69 | P176: 146.46 | Q176: 159.28 | R176: 179.99 | S176: 253.19 | T176: 213.26 | U176: 0.173 | V176: 0.5572054656
A177: 174 | B177: 81.01 | C177: 118.33 | D177: 67.51 | E177: 112.93 | F177: 100.49 | G177: 103.64 | H177: 103.6 | I177: 104.97 | J177: 116.81 | K177: 106.43 | L177: 110.97 | M177: 117.5 | N177: 122.81 | O177: 137.42 | P177: 146.18 | Q177: 158.97 | R177: 179.64 | S177: 252.71 | T177: 212.85 | U177: 0.174 | V177: 0.5582770172
A178: 175 | B178: 80.85 | C178: 118.11 | D178: 67.38 | E178: 112.71 | F178: 100.3 | G178: 103.44 | H178: 103.41 | I178: 104.77 | J178: 116.58 | K178: 106.23 | L178: 110.75 | M178: 117.28 | N178: 122.57 | O178: 137.16 | P178: 145.9 | Q178: 158.67 | R178: 179.3 | S178: 252.22 | T178: 212.45 | U178: 0.175 | V178: 0.559344471
A179: 176 | B179: 80.7 | C179: 117.88 | D179: 67.25 | E179: 112.5 | F179: 100.11 | G179: 103.25 | H179: 103.21 | I179: 104.57 | J179: 116.36 | K179: 106.03 | L179: 110.54 | M179: 117.06 | N179: 122.34 | O179: 136.9 | P179: 145.63 | Q179: 158.37 | R179: 178.96 | S179: 251.75 | T179: =ROUND(T$2/$V179,2) -> 212.04 | U179: 0.176 | V179: 0.5604078661
A180: 177 | B180: 80.55 | C180: 117.66 | D180: 67.12 | E180: =ROUND(E$2/$V180,2) -> 112.29 | F180: 99.92 | G180: 103.05 | H180: 103.02 | I180: 104.37 | J180: 116.14 | K180: 105.83 | L180: 110.34 | M180: 116.84 | N180: 122.11 | O180: 136.64 | P180: 145.35 | Q180: 158.07 | R180: 178.62 | S180: 251.27 | T180: 211.64 | U180: 0.177 | V180: 0.5614672408
A181: 178 | B181: 80.4 | C181: 117.44 | D181: 67 | E181: 112.08 | F181: 99.73 | G181: 102.86 | H181: 102.82 | I181: 104.17 | J181: 115.92 | K181: 105.63 | L181: 110.13 | M181: 116.62 | N181: 121.88 | O181: 136.39 | P181: 145.08 | Q181: 157.77 | R181: 178.29 | S181: 250.8 | T181: 211.24 | U181: 0.178 | V181: 0.5625226328
A182: 179 | B182: 80.25 | C182: 117.22 | D182: 66.87 | E182: 111.87 | F182: 99.54 | G182: 102.67 | H182: 102.63 | I182: 103.98 | J182: 115.71 | K182: 105.43 | L182: 109.92 | M182: 116.4 | N182: 121.65 | O182: 136.13 | P182: 144.81 | Q182: 157.48 | R182: 177.95 | S182: 250.33 | T182: 210.85 | U182: 0.179 | V182: 0.5635740795
A183: 180 | B183: 80.1 | C183: 117 | D183: 66.75 | E183: 111.66 | F183: 99.36 | G183: 102.48 | H183: 102.44 | I183: 103.79 | J183: 115.49 | K183: 105.24 | L183: 109.72 | M183: 116.18 | N183: 121.43 | O183: 135.88 | P183: 144.54 | Q183: 157.18 | R183: 177.62 | S183: 249.87 | T183: 210.46 | U183: 0.18 | V183: 0.5646216173
A184: 181 | B184: 79.95 | C184: 116.79 | D184: 66.63 | E184: 111.45 | F184: 99.18 | G184: 102.29 | H184: 102.25 | I184: 103.59 | J184: 115.28 | K184: 105.04 | L184: 109.52 | M184: 115.97 | N184: 121.2 | O184: 135.63 | P184: 144.27 | Q184: 156.89 | R184: 177.3 | S184: 249.41 | T184: 210.07 | U184: 0.181 | V184: 0.5656652826
A185: 182 | B185: 79.8 | C185: 116.57 | D185: 66.5 | E185: 111.25 | F185: 98.99 | G185: 102.1 | H185: 102.06 | I185: 103.4 | J185: 115.07 | K185: 104.85 | L185: 109.32 | M185: 115.76 | N185: 120.98 | O185: 135.38 | P185: 144.01 | Q185: 156.61 | R185: 176.97 | S185: 248.95 | T185: 209.69 | U185: 0.182 | V185: 0.5667051108
A186: 183 | B186: 79.66 | C186: 116.36 | D186: 66.38 | E186: 111.05 | F186: 98.81 | G186: 101.91 | H186: 101.88 | I186: 103.22 | J186: 114.86 | K186: 104.66 | L186: 109.12 | M186: 115.55 | N186: 120.76 | O186: 135.13 | P186: 143.75 | Q186: 156.32 | R186: 176.65 | S186: 248.49 | T186: 209.3 | U186: 0.183 | V186: 0.5677411371
A187: 184 | B187: 79.51 | C187: 116.15 | D187: 66.26 | E187: 110.84 | F187: 98.63 | G187: 101.73 | H187: 101.69 | I187: 103.03 | J187: 114.65 | K187: 104.47 | L187: 108.92 | M187: 115.34 | N187: 120.54 | O187: 134.89 | P187: 143.48 | Q187: 156.04 | R187: 176.33 | S187: 248.04 | T187: 208.92 | U187: 0.184 | V187: 0.568773396
A188: 185 | B188: 79.37 | C188: 115.94 | D188: 66.14 | E188: 110.64 | F188: 98.46 | G188: 101.54 | H188: 101.51 | I188: 102.84 | J188: 114.44 | K188: 104.28 | L188: 108.72 | M188: 115.13 | N188: 120.32 | O188: 134.64 | P188: 143.23 | Q188: 155.76 | R188: 176.01 | S188: 247.59 | T188: 208.55 | U188: 0.185 | V188: 0.5698019215
A189: 186 | B189: 79.23 | C189: 115.73 | D189: 66.02 | E189: 110.45 | F189: 98.28 | G189: 101.36 | H189: 101.33 | I189: 102.66 | J189: 114.24 | K189: 104.09 | L189: 108.53 | M189: 114.92 | N189: 120.11 | O189: 134.4 | P189: 142.97 | Q189: 155.48 | R189: 175.69 | S189: 247.15 | T189: 208.17 | U189: 0.186 | V189: 0.5708267473
A190: 187 | B190: 79.09 | C190: 115.52 | D190: 65.9 | E190: 110.25 | F190: 98.1 | G190: 101.18 | H190: 101.15 | I190: 102.47 | J190: 114.03 | K190: 103.91 | L190: 108.33 | M190: 114.72 | N190: 119.89 | O190: 134.16 | P190: 142.71 | Q190: 155.2 | R190: 175.38 | S190: 246.71 | T190: 207.8 | U190: 0.187 | V190: 0.5718479065
A191: 188 | B191: 78.95 | C191: 115.32 | D191: 65.79 | E191: 110.05 | F191: 97.93 | G191: 101 | H191: 100.97 | I191: 102.29 | J191: 113.83 | K191: 103.72 | L191: 108.14 | M191: 114.51 | N191: 119.68 | O191: 133.92 | P191: 142.46 | Q191: 154.92 | R191: 175.07 | S191: 246.27 | T191: 207.43 | U191: 0.188 | V191: 0.5728654316
A192: 189 | B192: 78.81 | C192: 115.11 | D192: 65.67 | E192: 109.86 | F192: 97.76 | G192: 100.82 | H192: 100.79 | I192: 102.11 | J192: 113.63 | K192: 103.54 | L192: 107.95 | M192: 114.31 | N192: 119.47 | O192: 133.69 | P192: 142.21 | Q192: 154.65 | R192: 174.76 | S192: 245.84 | T192: 207.06 | U192: 0.189 | V192: 0.5738793548
A193: 190 | B193: 78.67 | C193: 114.91 | D193: 65.56 | E193: 109.66 | F193: 97.58 | G193: 100.65 | H193: 100.61 | I193: 101.93 | J193: 113.43 | K193: 103.36 | L193: 107.76 | M193: 114.11 | N193: 119.26 | O193: 133.45 | P193: 141.96 | Q193: 154.38 | R193: 174.45 | S193: 245.4 | T193: 206.7 | U193: 0.19 | V193: 0.5748897079
A194: 191 | B194: 78.53 | C194: 114.71 | D194: 65.44 | E194: 109.47 | F194: 97.41 | G194: 100.47 | H194: 100.43 | I194: 101.75 | J194: 113.23 | K194: 103.18 | L194: 107.57 | M194: 113.91 | N194: 119.05 | O194: 133.22 | P194: 141.71 | Q194: 154.11 | R194: 174.15 | S194: 244.97 | T194: 206.34 | U194: 0.191 | V194: 0.575896522
A195: 192 | B195: 78.39 | C195: 114.51 | D195: 65.33 | E195: 109.28 | F195: 97.24 | G195: 100.29 | H195: 100.26 | I195: 101.58 | J195: 113.04 | K195: 103 | L195: 107.38 | M195: 113.71 | N195: 118.84 | O195: 132.99 | P195: 141.46 | Q195: 153.84 | R195: 173.84 | S195: 244.55 | T195: =ROUND(T$2/$V195,2) -> 205.98 | U195: 0.192 | V195: 0.5768998281
A196: 193 | B196: =ROUND(B$2/$V196,2) -> 78.26 | C196: 114.31 | D196: =ROUND(D$2/$V196,2) -> 65.21 | E196: =ROUND(E$2/$V196,2) -> 109.09 | F196: 97.08 | G196: 100.12 | H196: 100.09 | I196: 101.4 | J196: 112.84 | K196: 102.82 | L196: 107.2 | M196: 113.51 | N196: 118.64 | O196: 132.76 | P196: 141.22 | Q196: 153.57 | R196: 173.54 | S196: 244.13 | T196: 205.62 | U196: =A196/1000 -> 0.193 | V196: =POWER(U196,1/3) -> 0.5778996565
A197: 194 | B197: 78.12 | C197: 114.12 | D197: 65.1 | E197: 108.91 | F197: 96.91 | G197: 99.95 | H197: 99.91 | I197: 101.23 | J197: 112.65 | K197: 102.64 | L197: 107.01 | M197: 113.32 | N197: 118.43 | O197: 132.53 | P197: 140.98 | Q197: 153.31 | R197: 173.24 | S197: 243.71 | T197: 205.27 | U197: 0.194 | V197: 0.5788960372
A198: 195 | B198: 77.99 | C198: 113.92 | D198: 64.99 | E198: 108.72 | F198: 96.74 | G198: 99.78 | H198: 99.74 | I198: 101.05 | J198: 112.45 | K198: 102.47 | L198: 106.83 | M198: 113.13 | N198: 118.23 | O198: 132.3 | P198: 140.73 | Q198: 153.05 | R198: 172.95 | S198: 243.29 | T198: 204.92 | U198: 0.195 | V198: 0.5798889998
A199: 196 | B199: 77.86 | C199: 113.73 | D199: 64.88 | E199: 108.53 | F199: 96.58 | G199: 99.61 | H199: 99.57 | I199: 100.88 | J199: 112.26 | K199: 102.29 | L199: 106.65 | M199: 112.93 | N199: 118.03 | O199: 132.08 | P199: 140.49 | Q199: 152.79 | R199: 172.65 | S199: 242.87 | T199: 204.57 | U199: 0.196 | V199: 0.5808785734
A200: 197 | B200: 77.72 | C200: 113.53 | D200: 64.77 | E200: 108.35 | F200: 96.41 | G200: 99.44 | H200: 99.4 | I200: 100.71 | J200: 112.07 | K200: 102.12 | L200: 106.47 | M200: 112.74 | N200: 117.83 | O200: 131.85 | P200: 140.26 | Q200: 152.53 | R200: 172.36 | S200: 242.46 | T200: 204.22 | U200: 0.197 | V200: 0.5818647867
A201: 198 | B201: 77.59 | C201: 113.34 | D201: 64.66 | E201: 108.17 | F201: 96.25 | G201: 99.27 | H201: 99.24 | I201: 100.54 | J201: 111.88 | K201: 101.95 | L201: 106.29 | M201: 112.55 | N201: 117.63 | O201: 131.63 | P201: 140.02 | Q201: 152.27 | R201: 172.07 | S201: 242.05 | T201: 203.88 | U201: 0.198 | V201: 0.5828476683
... 1002 more rows

Sheet 200FR
B2: 2023/24 Short Course Multi Class Event Results Table
B3: Event | C3: 200FR
B5: # | C5: Name | D5: M/F | E5: Class | F5: Time m:s | G5: Time (s) | H5: Points | J5: To sort results click the arrow
B6: =ROW(B6)-ROW(B$5) -> 1 | C6: Swimmer 1 | D6: M | E6: S1 | F6: 00:00:00 | G6: =IF(F6<1,F6*24*60*60,F6) -> 0 | H6: =MAX(IF(OFFSET(INDIRECT("'" & $C$3 & " " &$D6 & "'!A1"),3,MATCH($E6,INDIRECT("'" & $C$3 & " " &$D6 & "'!B1:T1"),0),1200,1)>=$G6,1,0)*INDIRECT("'" & $C$3 & " " &$D6 & "'!A4:A1203")) -> 1200
B7: 2 | C7: Swimmer 2 | D7: M | E7: S2 | F7: 00:00:00 | G7: 0 | H7: =MAX(IF(OFFSET(INDIRECT("'" & $C$3 & " " &$D7 & "'!A1"),3,MATCH($E7,INDIRECT("'" & $C$3 & " " &$D7 & "'!B1:T1"),0),1200,1)>=$G7,1,0)*INDIRECT("'" & $C$3 & " " &$D7 & "'!A4:A1203")) -> 1200
B8: 3 | C8: Swimmer 3 | D8: M | E8: S3 | F8: 00:00:00 | G8: 0 | H8: =MAX(IF(OFFSET(INDIRECT("'" & $C$3 & " " &$D8 & "'!A1"),3,MATCH($E8,INDIRECT("'" & $C$3 & " " &$D8 & "'!B1:T1"),0),1200,1)>=$G8,1,0)*INDIRECT("'" & $C$3 & " " &$D8 & "'!A4:A1203")) -> 1200
B9: 4 | C9: Swimmer 4 | D9: M | E9: S4 | F9: 00:00:00 | G9: 0 | H9: =MAX(IF(OFFSET(INDIRECT("'" & $C$3 & " " &$D9 & "'!A1"),3,MATCH($E9,INDIRECT("'" & $C$3 & " " &$D9 & "'!B1:T1"),0),1200,1)>=$G9,1,0)*INDIRECT("'" & $C$3 & " " &$D9 & "'!A4:A1203")) -> 1200
B10: 5 | C10: Swimmer 5 | D10: M | E10: S5 | F10: 00:00:00 | G10: 0 | H10: =MAX(IF(OFFSET(INDIRECT("'" & $C$3 & " " &$D10 & "'!A1"),3,MATCH($E10,INDIRECT("'" & $C$3 & " " &$D10 & "'!B1:T1"),0),1200,1)>=$G10,1,0)*INDIRECT("'" & $C$3 & " " &$D10 & "'!A4:A1203")) -> 1200
B11: 6 | C11: Swimmer 6 | D11: M | E11: S6 | F11: 00:00:00 | G11: 0 | H11: =MAX(IF(OFFSET(INDIRECT("'" & $C$3 & " " &$D11 & "'!A1"),3,MATCH($E11,INDIRECT("'" & $C$3 & " " &$D11 & "'!B1:T1"),0),1200,1)>=$G11,1,0)*INDIRECT("'" & $C$3 & " " &$D11 & "'!A4:A1203")) -> 1200
B12: 7 | C12: Swimmer 7 | D12: M | E12: S7 | F12: 00:00:00 | G12: 0 | H12: =MAX(IF(OFFSET(INDIRECT("'" & $C$3 & " " &$D12 & "'!A1"),3,MATCH($E12,INDIRECT("'" & $C$3 & " " &$D12 & "'!B1:T1"),0),1200,1)>=$G12,1,0)*INDIRECT("'" & $C$3 & " " &$D12 & "'!A4:A1203")) -> 1200
B13: 8 | C13: Swimmer 8 | D13: M | E13: S8 | F13: 00:00:00 | G13: 0 | H13: =MAX(IF(OFFSET(INDIRECT("'" & $C$3 & " " &$D13 & "'!A1"),3,MATCH($E13,INDIRECT("'" & $C$3 & " " &$D13 & "'!B1:T1"),0),1200,1)>=$G13,1,0)*INDIRECT("'" & $C$3 & " " &$D13 & "'!A4:A1203")) -> 1200
B14: 9 | C14: Swimmer 9 | D14: M | E14: S9 | F14: 00:00:00 | G14: 0 | H14: =MAX(IF(OFFSET(INDIRECT("'" & $C$3 & " " &$D14 & "'!A1"),3,MATCH($E14,INDIRECT("'" & $C$3 & " " &$D14 & "'!B1:T1"),0),1200,1)>=$G14,1,0)*INDIRECT("'" & $C$3 & " " &$D14 & "'!A4:A1203")) -> 1200
B15: 10 | C15: Swimmer 10 | D15: M | E15: S19 | F15: 00:00:00 | G15: 0 | H15: =MAX(IF(OFFSET(INDIRECT("'" & $C$3 & " " &$D15 & "'!A1"),3,MATCH($E15,INDIRECT("'" & $C$3 & " " &$D15 & "'!B1:T1"),0),1200,1)>=$G15,1,0)*INDIRECT("'" & $C$3 & " " &$D15 & "'!A4:A1203")) -> 1200
C16: (insert name or lane) | D16: (select M or F) | E16: (select athlete class) | F16: (insert time swum)
B21: swimming.org.au

Sheet 200FR M (hidden)
A1: Score | B1: S19 | C1: S18 | D1: S17 | E1: S16 | F1: S15 | G1: S14 | H1: S13 | I1: S12 | J1: S11 | K1: S10 | L1: S9 | M1: S8 | N1: S7 | O1: S6 | P1: S5 | Q1: S4 | R1: S3 | S1: S2 | T1: S1 | U1: score/1000 | V1: Power
B2: 89.433 | C2: 126.1995 | D2: 74.5275 | E2: 125.793 | F2: 109.54 | G2: 111.55 | H2: 115.96 | I2: 123.28 | J2: 136.13 | K2: 112.83 | L2: 115.77 | M2: 126.09 | N2: 136.94 | O2: 136.95 | P2: 149.85 | Q2: 179.08 | R2: 214.93 | S2: 285.73 | T2: 299.22
A4: 1 | B4: =ROUND(B$2/$V4,2) -> 894.33 | C4: =ROUND(C$2/$V4,2) -> 1262 | D4: =ROUND(D$2/$V4,2) -> 745.28 | E4: =ROUND(E$2/$V4,2) -> 1257.93 | F4: =ROUND(F$2/$V4,2) -> 1095.4 | G4: 1115.5 | H4: 1159.6 | I4: 1232.8 | J4: 1361.3 | K4: 1128.3 | L4: 1157.7 | M4: 1260.9 | N4: 1369.4 | O4: 1369.5 | P4: 1498.5 | Q4: 1790.8 | R4: 2149.3 | S4: 2857.3 | T4: 2992.2 | U4: =A4/1000 -> 0.001 | V4: =POWER(U4,1/3) -> 0.1
A5: 2 | B5: =ROUND(B$2/$V5,2) -> 709.83 | C5: 1001.65 | D5: =ROUND(D$2/$V5,2) -> 591.53 | E5: =ROUND(E$2/$V5,2) -> 998.42 | F5: 869.42 | G5: 885.37 | H5: 920.38 | I5: 978.47 | J5: 1080.46 | K5: 895.53 | L5: 918.87 | M5: 1000.78 | N5: 1086.89 | O5: 1086.97 | P5: 1189.36 | Q5: 1421.36 | R5: 1705.9 | S5: 2267.84 | T5: 2374.91 | U5: 0.002 | V5: 0.125992105
A6: 3 | B6: 620.09 | C6: 875.02 | D6: 516.74 | E6: 872.2 | F6: 759.51 | G6: 773.44 | H6: 804.02 | I6: 854.78 | J6: 943.87 | K6: 782.32 | L6: 802.7 | M6: 874.26 | N6: 949.49 | O6: 949.56 | P6: 1039 | Q6: 1241.67 | R6: 1490.24 | S6: 1981.14 | T6: 2074.68 | U6: 0.003 | V6: 0.144224957
A7: 4 | B7: 563.39 | C7: 795.01 | D7: 469.49 | E7: 792.45 | F7: 690.06 | G7: 702.72 | H7: 730.5 | I7: 776.62 | J7: 857.57 | K7: 710.78 | L7: 729.31 | M7: 794.32 | N7: 862.67 | O7: 862.73 | P7: 944 | Q7: 1128.13 | R7: 1353.97 | S7: 1799.99 | T7: 1884.97 | U7: 0.004 | V7: 0.1587401052
A8: 5 | B8: 523.01 | C8: 738.02 | D8: 435.84 | E8: 735.64 | F8: 640.59 | G8: 652.35 | H8: 678.14 | I8: 720.95 | J8: 796.09 | K8: 659.83 | L8: 677.03 | M8: 737.38 | N8: 800.83 | O8: 800.89 | P8: 876.33 | Q8: 1047.27 | R8: 1256.92 | S8: 1670.96 | T8: 1749.85 | U8: 0.005 | V8: 0.1709975947
A9: 6 | B9: 492.17 | C9: 694.5 | D9: 410.14 | E9: 692.27 | F9: 602.82 | G9: 613.88 | H9: 638.15 | I9: 678.44 | J9: 749.15 | K9: 620.93 | L9: 637.11 | M9: 693.9 | N9: 753.61 | O9: 753.66 | P9: 824.66 | Q9: 985.52 | R9: 1182.81 | S9: 1572.43 | T9: 1646.67 | U9: 0.006 | V9: 0.1817120593
A10: 7 | B10: 467.52 | C10: 659.72 | D10: 389.6 | E10: 657.59 | F10: 572.63 | G10: 583.14 | H10: 606.19 | I10: 644.46 | J10: 711.63 | K10: 589.83 | L10: 605.2 | M10: 659.15 | N10: 715.86 | O10: 715.92 | P10: 783.35 | Q10: 936.15 | R10: 1123.56 | S10: 1493.68 | T10: 1564.2 | U10: 0.007 | V10: 0.1912931183
A11: 8 | B11: 447.17 | C11: 631 | D11: 372.64 | E11: 628.97 | F11: 547.7 | G11: 557.75 | H11: 579.8 | I11: 616.4 | J11: 680.65 | K11: 564.15 | L11: 578.85 | M11: 630.45 | N11: 684.7 | O11: 684.75 | P11: 749.25 | Q11: 895.4 | R11: 1074.65 | S11: 1428.65 | T11: 1496.1 | U11: 0.008 | V11: 0.2
A12: 9 | B12: 429.95 | C12: 606.7 | D12: 358.29 | E12: 604.75 | F12: 526.61 | G12: 536.28 | H12: 557.48 | I12: 592.67 | J12: 654.44 | K12: 542.43 | L12: 556.56 | M12: 606.18 | N12: 658.34 | O12: 658.39 | P12: 720.4 | Q12: 860.93 | R12: 1033.28 | S12: 1373.65 | T12: 1438.5 | U12: 0.009 | V12: 0.2080083823
A13: 10 | B13: 415.11 | C13: 585.77 | D13: 345.93 | E13: 583.88 | F13: 508.44 | G13: 517.77 | H13: 538.24 | I13: 572.22 | J13: 631.86 | K13: 523.71 | L13: 537.36 | M13: 585.26 | N13: 635.62 | O13: 635.67 | P13: 695.54 | Q13: 831.22 | R13: 997.62 | S13: 1326.24 | T13: 1388.86 | U13: 0.01 | V13: 0.215443469
A14: 11 | B14: 402.13 | C14: 567.45 | D14: 335.11 | E14: 565.62 | F14: 492.54 | G14: 501.58 | H14: 521.41 | I14: 554.32 | J14: 612.1 | K14: 507.33 | L14: 520.55 | M14: 566.96 | N14: 615.74 | O14: 615.79 | P14: 673.79 | Q14: 805.22 | R14: 966.42 | S14: 1284.77 | T14: 1345.43 | U14: 0.011 | V14: 0.2223980091
A15: 12 | B15: 390.63 | C15: 551.23 | D15: 325.53 | E15: 549.45 | F15: 478.46 | G15: 487.24 | H15: 506.5 | I15: 538.47 | J15: 594.6 | K15: 492.83 | L15: 505.67 | M15: 550.75 | N15: 598.14 | O15: 598.18 | P15: 654.53 | Q15: 782.2 | R15: 938.79 | S15: 1248.04 | T15: 1306.96 | U15: 0.012 | V15: 0.2289428485
A16: 13 | B16: 380.35 | C16: 536.71 | D16: 316.96 | E16: 534.99 | F16: 465.86 | G16: 474.41 | H16: 493.17 | I16: 524.3 | J16: 578.95 | K16: 479.86 | L16: 492.36 | M16: 536.25 | N16: 582.39 | O16: 582.44 | P16: 637.3 | Q16: 761.61 | R16: 914.08 | S16: 1215.18 | T16: 1272.55 | U16: 0.013 | V16: 0.2351334688
A17: 14 | B17: 371.07 | C17: 523.62 | D17: 309.22 | E17: 521.93 | F17: 454.5 | G17: 462.84 | H17: 481.13 | I17: 511.51 | J17: 564.82 | K17: 468.15 | L17: 480.35 | M17: 523.16 | N17: 568.18 | O17: 568.22 | P17: 621.75 | Q17: 743.03 | R17: 891.77 | S17: 1185.53 | T17: 1241.5 | U17: 0.014 | V17: 0.2410142264
A18: 15 | B18: 362.63 | C18: 511.71 | D18: 302.19 | E18: 510.07 | F18: 444.16 | G18: 452.31 | H18: 470.19 | I18: 499.88 | J18: 551.98 | K18: 457.5 | L18: 469.42 | M18: 511.27 | N18: 555.26 | O18: 555.31 | P18: 607.61 | Q18: 726.13 | R18: 871.5 | S18: 1158.58 | T18: 1213.28 | U18: 0.015 | V18: 0.2466212074
A19: 16 | B19: 354.92 | C19: 500.82 | D19: 295.76 | E19: 499.21 | F19: 434.71 | G19: 442.69 | H19: 460.19 | I19: 489.24 | J19: 540.23 | K19: 447.77 | L19: 459.43 | M19: 500.39 | N19: 543.45 | O19: 543.49 | P19: 594.68 | Q19: 710.68 | R19: 852.95 | S19: 1133.92 | T19: 1187.46 | U19: 0.016 | V19: 0.25198421
A20: 17 | B20: 347.81 | C20: 490.8 | D20: 289.85 | E20: 489.22 | F20: 426.01 | G20: 433.83 | H20: 450.98 | I20: 479.45 | J20: 529.42 | K20: 438.81 | L20: 450.24 | M20: 490.38 | N20: 532.57 | O20: 532.61 | P20: 582.78 | Q20: 696.46 | R20: 835.89 | S20: 1111.24 | T20: 1163.7 | U20: 0.017 | V20: 0.2571281591
A21: 18 | B21: 341.25 | C21: 481.54 | D21: 284.38 | E21: 479.99 | F21: 417.97 | G21: 425.64 | H21: 442.47 | I21: 470.4 | J21: 519.43 | K21: 430.53 | L21: 441.75 | M21: 481.12 | N21: 522.52 | O21: 522.56 | P21: 571.78 | Q21: 683.32 | R21: 820.11 | S21: 1090.26 | T21: 1141.74 | U21: 0.018 | V21: 0.2620741394
A22: 19 | B22: 335.16 | C22: 472.94 | D22: 279.3 | E22: 471.42 | F22: 410.51 | G22: 418.04 | H22: 434.57 | I22: 462 | J22: 510.16 | K22: 422.84 | L22: 433.86 | M22: 472.53 | N22: 513.19 | O22: 513.23 | P22: 561.57 | Q22: 671.11 | R22: 805.46 | S22: 1070.79 | T22: 1121.35 | U22: 0.019 | V22: 0.2668401649
A23: 20 | B23: 329.47 | C23: 464.92 | D23: 274.56 | E23: 463.43 | F23: 403.55 | G23: 410.95 | H23: 427.2 | I23: 454.17 | J23: 501.51 | K23: 415.67 | L23: 426.5 | M23: 464.52 | N23: 504.49 | O23: 504.53 | P23: 552.05 | Q23: 659.74 | R23: 791.81 | S23: 1052.64 | T23: 1102.34 | U23: 0.02 | V23: 0.2714417617
A24: 21 | B24: 324.16 | C24: 457.42 | D24: 270.13 | E24: 455.95 | F24: 397.04 | G24: 404.32 | H24: 420.31 | I24: 446.84 | J24: 493.42 | K24: 408.96 | L24: 419.62 | M24: 457.03 | N24: 496.35 | O24: 496.39 | P24: 543.15 | Q24: 649.09 | R24: 779.04 | S24: 1035.66 | T24: 1084.55 | U24: 0.021 | V24: 0.2758924176
A25: 22 | B25: 319.17 | C25: 450.38 | D25: 265.98 | E25: 448.93 | F25: 390.93 | G25: 398.1 | H25: 413.84 | I25: 439.97 | J25: 485.82 | K25: 402.67 | L25: 413.16 | M25: 449.99 | N25: 488.72 | O25: 488.75 | P25: 534.79 | Q25: 639.11 | R25: 767.05 | S25: 1019.72 | T25: 1067.87 | U25: 0.022 | V25: 0.2802039331
A26: 23 | B26: 314.48 | C26: 443.76 | D26: 262.06 | E26: 442.33 | F26: 385.18 | G26: 392.25 | H26: 407.75 | I26: 433.49 | J26: 478.68 | K26: 396.75 | L26: 407.09 | M26: 443.38 | N26: 481.53 | O26: 481.56 | P26: 526.92 | Q26: 629.71 | R26: 755.77 | S26: 1004.72 | T26: 1052.16 | U26: 0.023 | V26: 0.284386698
A27: 24 | B27: 310.05 | C27: 437.51 | D27: 258.37 | E27: 436.1 | F27: 379.75 | G27: 386.72 | H27: 402.01 | I27: 427.39 | J27: 471.94 | K27: 391.16 | L27: 401.35 | M27: 437.13 | N27: 474.74 | O27: 474.78 | P27: 519.5 | Q27: 620.84 | R27: 745.12 | S27: 990.57 | T27: 1037.34 | U27: 0.024 | V27: 0.2884499141
A28: 25 | B28: 305.86 | C28: 431.6 | D28: 254.88 | E28: 430.21 | F28: 374.62 | G28: 381.5 | H28: 396.58 | I28: 421.61 | J28: 465.56 | K28: 385.87 | L28: 395.93 | M28: 431.22 | N28: 468.33 | O28: 468.36 | P28: 512.48 | Q28: 612.44 | R28: 735.05 | S28: 977.18 | T28: 1023.32 | U28: 0.025 | V28: 0.2924017738
A29: 26 | B29: 301.88 | C29: 425.99 | D29: 251.57 | E29: 424.62 | F29: 369.76 | G29: 376.54 | H29: 391.43 | I29: 416.14 | J29: 459.51 | K29: 380.86 | L29: 390.79 | M29: 425.62 | N29: 462.25 | O29: 462.28 | P29: 505.82 | Q29: 604.49 | R29: 725.5 | S29: 964.49 | T29: 1010.03 | U29: 0.026 | V29: 0.2962496068
A30: 27 | B30: 298.11 | C30: 420.67 | D30: 248.43 | E30: 419.31 | F30: 365.13 | G30: 371.83 | H30: 386.53 | I30: 410.93 | J30: 453.77 | K30: 376.1 | L30: 385.9 | M30: 420.3 | N30: 456.47 | O30: 456.5 | P30: 499.5 | Q30: 596.93 | R30: 716.43 | S30: 952.43 | T30: 997.4 | U30: 0.027 | V30: 0.3
A31: 28 | B31: 294.52 | C31: 415.6 | D31: 245.43 | E31: 414.26 | F31: 360.73 | G31: 367.35 | H31: 381.88 | I31: 405.98 | J31: 448.3 | K31: 371.57 | L31: 381.25 | M31: 415.24 | N31: 450.97 | O31: 451 | P31: 493.48 | Q31: 589.74 | R31: 707.8 | S31: 940.96 | T31: 985.38 | U31: 0.028 | V31: 0.3036588972
A32: 29 | B32: 291.09 | C32: 410.76 | D32: 242.58 | E32: 409.44 | F32: 356.54 | G32: 363.08 | H32: 377.44 | I32: 401.26 | J32: 443.09 | K32: 367.25 | L32: 376.82 | M32: 410.41 | N32: 445.72 | O32: 445.75 | P32: 487.74 | Q32: 582.88 | R32: 699.57 | S32: 930.01 | T32: 973.92 | U32: 0.029 | V32: 0.3072316826
A33: 30 | B33: 287.82 | C33: 406.15 | D33: 239.85 | E33: 404.84 | F33: 352.53 | G33: 359 | H33: 373.19 | I33: 396.75 | J33: 438.11 | K33: 363.12 | L33: 372.58 | M33: 405.8 | N33: 440.71 | O33: 440.75 | P33: 482.26 | Q33: 576.33 | R33: 691.71 | S33: 919.56 | T33: 962.98 | U33: 0.03 | V33: 0.3107232506
A34: 31 | B34: 284.69 | C34: 401.73 | D34: 237.24 | E34: 400.44 | F34: 348.7 | G34: 355.1 | H34: 369.14 | I34: 392.44 | J34: 433.34 | K34: 359.17 | L34: 368.53 | M34: 401.38 | N34: 435.92 | O34: 435.95 | P34: 477.02 | Q34: 570.07 | R34: 684.19 | S34: 909.57 | T34: 952.51 | U34: 0.031 | V34: 0.3141380652
A35: 32 | B35: 281.7 | C35: 397.5 | D35: 234.75 | E35: =ROUND(E$2/$V35,2) -> 396.22 | F35: 345.03 | G35: 351.36 | H35: 365.25 | I35: 388.31 | J35: 428.78 | K35: 355.39 | L35: 364.65 | M35: 397.16 | N35: 431.33 | O35: 431.37 | P35: 472 | Q35: 564.07 | R35: 676.99 | S35: 899.99 | T35: 942.48 | U35: 0.032 | V35: 0.3174802104
A36: 33 | B36: 278.82 | C36: 393.45 | D36: 232.35 | E36: 392.18 | F36: 341.51 | G36: 347.77 | H36: 361.52 | I36: 384.35 | J36: 424.41 | K36: 351.77 | L36: 360.93 | M36: 393.11 | N36: 426.93 | O36: 426.96 | P36: 467.18 | Q36: 558.31 | R36: 670.08 | S36: 890.81 | T36: 932.87 | U36: 0.033 | V36: 0.320753433
A37: 34 | B37: 276.06 | C37: 389.55 | D37: 230.05 | E37: 388.3 | F37: 338.13 | G37: 344.33 | H37: 357.94 | I37: 380.54 | J37: 420.2 | K37: 348.28 | L37: 357.36 | M37: 389.21 | N37: 422.7 | O37: 422.74 | P37: 462.56 | Q37: 552.78 | R37: 663.44 | S37: 881.99 | T37: 923.63 | U37: 0.034 | V37: 0.3239611801
A38: 35 | B38: 273.41 | C38: 385.81 | D38: 227.84 | E38: 384.56 | F38: 334.88 | G38: 341.02 | H38: 354.5 | I38: 376.88 | J38: 416.16 | K38: 344.93 | L38: 353.92 | M38: 385.47 | N38: 418.64 | O38: 418.67 | P38: 458.11 | Q38: 547.47 | R38: 657.06 | S38: 873.51 | T38: 914.75 | U38: 0.035 | V38: 0.327106631
A39: 36 | B39: 270.85 | C39: 382.2 | D39: 225.71 | E39: 380.97 | F39: 331.75 | G39: 337.83 | H39: 351.19 | I39: 373.36 | J39: 412.27 | K39: 341.71 | L39: 350.61 | M39: 381.87 | N39: 414.73 | O39: 414.76 | P39: 453.83 | Q39: 542.35 | R39: 650.92 | S39: 865.34 | T39: 906.2 | U39: 0.036 | V39: 0.3301927249
A40: 37 | B40: 268.39 | C40: 378.72 | D40: 223.66 | E40: 377.5 | F40: 328.73 | G40: 334.76 | H40: 348 | I40: 369.96 | J40: 408.53 | K40: 338.6 | L40: 347.43 | M40: 378.4 | N40: 410.96 | O40: 410.99 | P40: 449.7 | Q40: 537.42 | R40: 645.01 | S40: 857.48 | T40: 897.96 | U40: 0.037 | V40: 0.3332221852
A41: 38 | B41: 266.01 | C41: 375.37 | D41: 221.68 | E41: 374.16 | F41: 325.82 | G41: 331.8 | H41: 344.92 | I41: 366.69 | J41: 404.91 | K41: 335.61 | L41: 344.35 | M41: 375.05 | N41: 407.32 | O41: 407.35 | P41: 445.72 | Q41: 532.66 | R41: 639.3 | S41: 849.89 | T41: 890.01 | U41: 0.038 | V41: 0.3361975407
A42: 39 | B42: 263.72 | C42: 372.14 | D42: 219.77 | E42: 370.94 | F42: 323.01 | G42: 328.94 | H42: 341.94 | I42: 363.53 | J42: 401.42 | K42: 332.71 | L42: 341.38 | M42: 371.81 | N42: 403.81 | O42: 403.84 | P42: 441.88 | Q42: 528.07 | R42: 633.79 | S42: 842.56 | T42: 882.34 | U42: 0.039 | V42: 0.3391211443
A43: 40 | B43: 261.5 | C43: 369.01 | D43: 217.92 | E43: 367.82 | F43: 320.3 | G43: 326.17 | H43: 339.07 | I43: 360.47 | J43: 398.05 | K43: 329.92 | L43: 338.51 | M43: 368.69 | N43: 400.41 | O43: 400.44 | P43: 438.16 | Q43: 523.63 | R43: 628.46 | S43: 835.48 | T43: 874.92 | U43: 0.04 | V43: 0.3419951893
A44: 41 | B44: 259.36 | C44: 365.98 | D44: 216.13 | E44: 364.81 | F44: 317.67 | G44: 323.5 | H44: 336.29 | I44: 357.52 | J44: 394.78 | K44: 327.21 | L44: 335.74 | M44: 365.67 | N44: 397.13 | O44: 397.16 | P44: 434.57 | Q44: 519.34 | R44: 623.31 | S44: 828.63 | T44: 867.75 | U44: 0.041 | V44: 0.344821724
A45: 42 | B45: 257.29 | C45: 363.06 | D45: 214.4 | E45: 361.89 | F45: 315.13 | G45: 320.91 | H45: 333.6 | I45: 354.66 | J45: 391.63 | K45: 324.59 | L45: 333.05 | M45: 362.74 | N45: 393.96 | O45: 393.98 | P45: 431.1 | Q45: 515.19 | R45: 618.32 | S45: 822 | T45: 860.81 | U45: 0.042 | V45: 0.3476026645
A46: 43 | B46: 255.28 | C46: 360.22 | D46: 212.73 | E46: 359.06 | F46: 312.67 | G46: 318.41 | H46: 330.99 | I46: 351.89 | J46: 388.57 | K46: 322.06 | L46: 330.45 | M46: 359.91 | N46: 390.88 | O46: 390.91 | P46: 427.73 | Q46: 511.16 | R46: 613.49 | S46: 815.58 | T46: 854.09 | U46: 0.043 | V46: 0.350339806
A47: 44 | B47: 253.33 | C47: 357.47 | D47: 211.11 | E47: 356.32 | F47: 310.28 | G47: 315.97 | H47: 328.47 | I47: 349.2 | J47: 385.6 | K47: 319.6 | L47: 327.93 | M47: 357.16 | N47: 387.89 | O47: 387.92 | P47: 424.46 | Q47: 507.26 | R47: 608.81 | S47: 809.35 | T47: 847.57 | U47: 0.044 | V47: 0.3530348335
A48: 45 | B48: 251.44 | C48: 354.8 | D48: 209.53 | E48: 353.66 | F48: 307.97 | G48: 313.62 | H48: 326.01 | I48: 346.59 | J48: 382.72 | K48: 317.22 | L48: 325.48 | M48: 354.49 | N48: 385 | O48: 385.03 | P48: 421.29 | Q48: 503.47 | R48: 604.26 | S48: 803.31 | T48: 841.24 | U48: 0.045 | V48: 0.3556893304
A49: 46 | B49: 249.6 | C49: 352.21 | D49: 208 | E49: 351.08 | F49: 305.72 | G49: 311.33 | H49: 323.64 | I49: 344.06 | J49: 379.93 | K49: 314.9 | L49: 323.1 | M49: 351.91 | N49: 382.19 | O49: 382.22 | P49: 418.22 | Q49: 499.8 | R49: 599.85 | S49: 797.45 | T49: 835.1 | U49: 0.046 | V49: 0.3583047871
A50: 47 | B50: 247.82 | C50: 349.7 | D50: 206.51 | E50: 348.57 | F50: 303.53 | G50: 309.1 | H50: 321.32 | I50: 341.61 | J50: 377.21 | K50: 312.65 | L50: 320.8 | M50: 349.39 | N50: 379.46 | O50: 379.49 | P50: 415.23 | Q50: 496.23 | R50: 595.57 | S50: 791.75 | T50: =ROUND(T$2/$V50,2) -> 829.13 | U50: 0.047 | V50: 0.360882608
A51: 48 | B51: 246.08 | C51: 347.25 | D51: 205.07 | E51: =ROUND(E$2/$V51,2) -> 346.13 | F51: 301.41 | G51: 306.94 | H51: 319.08 | I51: 339.22 | J51: 374.58 | K51: 310.46 | L51: 318.55 | M51: 346.95 | N51: 376.8 | O51: 376.83 | P51: 412.33 | Q51: 492.76 | R51: 591.4 | S51: 786.22 | T51: 823.34 | U51: 0.048 | V51: 0.3634241186
A52: 49 | B52: 244.4 | C52: 344.87 | D52: 203.67 | E52: 343.76 | F52: 299.35 | G52: 304.84 | H52: 316.89 | I52: 336.89 | J52: 372.01 | K52: 308.34 | L52: 316.37 | M52: 344.57 | N52: 374.22 | O52: 374.25 | P52: 409.5 | Q52: 489.38 | R52: 587.35 | S52: 780.83 | T52: 817.7 | U52: 0.049 | V52: 0.365930571
A53: 50 | B53: 242.76 | C53: 342.56 | D53: 202.3 | E53: 341.45 | F53: 297.34 | G53: 302.79 | H53: 314.76 | I53: 334.63 | J53: 369.51 | K53: 306.27 | L53: 314.25 | M53: 342.26 | N53: 371.71 | O53: 371.74 | P53: 406.76 | Q53: 486.1 | R53: 583.41 | S53: 775.59 | T53: 812.21 | U53: 0.05 | V53: 0.3684031499
A54: 51 | B54: 241.16 | C54: 340.3 | D54: 200.97 | E54: 339.21 | F54: 295.38 | G54: 300.8 | H54: 312.69 | I54: 332.43 | J54: 367.08 | K54: 304.25 | L54: 312.18 | M54: 340.01 | N54: 369.27 | O54: 369.29 | P54: 404.08 | Q54: 482.9 | R54: 579.57 | S54: 770.49 | T54: 806.86 | U54: 0.051 | V54: 0.3708429769
A55: 52 | B55: 239.61 | C55: 338.11 | D55: 199.67 | E55: 337.02 | F55: 293.48 | G55: 298.86 | H55: 310.68 | I55: 330.29 | J55: 364.71 | K55: 302.29 | L55: 310.17 | M55: 337.82 | N55: 366.88 | O55: 366.91 | P55: 401.47 | Q55: 479.78 | R55: 575.83 | S55: 765.52 | T55: 801.66 | U55: 0.052 | V55: 0.3732511157
A56: 53 | B56: 238.09 | C56: 335.97 | D56: 198.41 | E56: 334.89 | F56: 291.62 | G56: 296.97 | H56: 308.71 | I56: 328.2 | J56: 362.41 | K56: 300.38 | L56: 308.2 | M56: 335.68 | N56: 364.56 | O56: 364.59 | P56: 398.93 | Q56: 476.75 | R56: 572.19 | S56: 760.67 | T56: 796.58 | U56: 0.053 | V56: 0.3756285754
A57: 54 | B57: 236.61 | C57: 333.88 | D57: 197.18 | E57: 332.81 | F57: 289.81 | G57: 295.12 | H57: 306.79 | I57: 326.16 | J57: 360.15 | K57: 298.51 | L57: 306.29 | M57: 333.59 | N57: 362.3 | O57: 362.32 | P57: 396.45 | Q57: 473.79 | R57: 568.63 | S57: 755.95 | T57: 791.64 | U57: 0.054 | V57: 0.377976315
A58: 55 | B58: 235.17 | C58: 331.85 | D58: 195.97 | E58: 330.78 | F58: 288.04 | G58: 293.32 | H58: 304.92 | I58: 324.17 | J58: 357.96 | K58: 296.69 | L58: 304.42 | M58: 331.56 | N58: 360.09 | O58: 360.11 | P58: 394.04 | Q58: 470.9 | R58: 565.17 | S58: 751.34 | T58: 786.81 | U58: 0.055 | V58: 0.3802952461
A59: 56 | B59: 233.76 | C59: 329.86 | D59: 194.8 | E59: 328.8 | F59: 286.31 | G59: 291.57 | H59: 303.1 | I59: 322.23 | J59: 355.82 | K59: 294.91 | L59: 302.6 | M59: 329.57 | N59: 357.93 | O59: 357.96 | P59: 391.68 | Q59: 468.08 | R59: 561.78 | S59: 746.84 | T59: 782.1 | U59: 0.056 | V59: 0.3825862366
A60: 57 | B60: 232.38 | C60: 327.92 | D60: 193.65 | E60: 326.86 | F60: 284.63 | G60: 289.85 | H60: 301.31 | I60: 320.33 | J60: 353.72 | K60: 293.18 | L60: 300.82 | M60: 327.63 | N60: 355.83 | O60: 355.85 | P60: 389.37 | Q60: 465.32 | R60: 558.48 | S60: 742.44 | T60: 777.5 | U60: 0.057 | V60: 0.3848501131
A61: 58 | B61: 231.04 | C61: 326.02 | D61: 192.53 | E61: 324.97 | F61: 282.98 | G61: 288.18 | H61: 299.57 | I61: 318.48 | J61: 351.68 | K61: 291.48 | L61: 299.08 | M61: 325.74 | N61: 353.77 | O61: 353.8 | P61: 387.12 | Q61: 462.63 | R61: 555.25 | S61: 738.15 | T61: 773 | U61: 0.058 | V61: 0.3870876641
A62: 59 | B62: 229.73 | C62: 324.17 | D62: 191.44 | E62: 323.13 | F62: 281.38 | G62: 286.54 | H62: 297.87 | I62: 316.67 | J62: 349.68 | K62: 289.83 | L62: 297.38 | M62: 323.89 | N62: 351.76 | O62: 351.79 | P62: 384.92 | Q62: 460.01 | R62: 552.09 | S62: 733.96 | T62: 768.61 | U62: 0.059 | V62: 0.3892996416
A63: 60 | B63: 228.44 | C63: 322.36 | D63: 190.37 | E63: 321.32 | F63: 279.81 | G63: 284.94 | H63: 296.2 | I63: 314.9 | J63: 347.73 | K63: 288.21 | L63: 295.72 | M63: 322.08 | N63: 349.79 | O63: 349.82 | P63: 382.77 | Q63: 457.44 | R63: 549.01 | S63: 729.86 | T63: 764.32 | U63: 0.06 | V63: 0.3914867641
A64: 61 | B64: 227.19 | C64: 320.59 | D64: 189.32 | E64: 319.56 | F64: 278.27 | G64: 283.37 | H64: 294.58 | I64: 313.17 | J64: 345.82 | K64: 286.63 | L64: 294.09 | M64: 320.31 | N64: 347.87 | O64: 347.9 | P64: 380.67 | Q64: 454.92 | R64: 545.99 | S64: 725.85 | T64: 760.12 | U64: 0.061 | V64: 0.3936497183
A65: 62 | B65: 225.96 | C65: 318.86 | D65: 188.3 | E65: 317.83 | F65: 276.76 | G65: 281.84 | H65: 292.98 | I65: 311.48 | J65: 343.95 | K65: 285.08 | L65: 292.5 | M65: 318.58 | N65: 345.99 | O65: 346.02 | P65: 378.61 | Q65: 452.46 | R65: 543.04 | S65: 721.92 | T65: 756.01 | U65: 0.062 | V65: 0.395789161
A66: 63 | B66: 224.76 | C66: 317.16 | D66: 187.3 | E66: 316.14 | F66: 275.29 | G66: 280.34 | H66: 291.43 | I66: 309.82 | J66: 342.12 | K66: 283.56 | L66: 290.95 | M66: 316.88 | N66: 344.15 | O66: 344.18 | P66: 376.6 | Q66: 450.06 | R66: 540.15 | S66: 718.08 | T66: 751.99 | U66: 0.063 | V66: 0.3979057208
A67: 64 | B67: 223.58 | C67: 315.5 | D67: 186.32 | E67: 314.48 | F67: 273.85 | G67: 278.88 | H67: 289.9 | I67: 308.2 | J67: 340.33 | K67: 282.08 | L67: 289.43 | M67: 315.23 | N67: 342.35 | O67: 342.38 | P67: 374.63 | Q67: 447.7 | R67: 537.33 | S67: 714.33 | T67: =ROUND(T$2/$V67,2) -> 748.05 | U67: 0.064 | V67: 0.4
A68: 65 | B68: 222.43 | C68: 313.87 | D68: 185.36 | E68: 312.86 | F68: 272.44 | G68: 277.44 | H68: 288.41 | I68: 306.61 | J68: 338.57 | K68: 280.62 | L68: 287.93 | M68: 313.6 | N68: 340.59 | O68: 340.61 | P68: 372.69 | Q68: 445.39 | R68: 534.56 | S68: 710.64 | T68: 744.19 | U68: =A68/1000 -> 0.065 | V68: =POWER(U68,1/3) -> 0.4020725759
A69: 66 | B69: =ROUND(B$2/$V69,2) -> 221.3 | C69: 312.28 | D69: =ROUND(D$2/$V69,2) -> 184.42 | E69: 311.27 | F69: 271.06 | G69: 276.03 | H69: 286.94 | I69: 305.05 | J69: 336.85 | K69: 279.2 | L69: 286.47 | M69: 312.01 | N69: 338.86 | O69: 338.88 | P69: 370.8 | Q69: 443.13 | R69: 531.84 | S69: 707.04 | T69: 740.42 | U69: 0.066 | V69: 0.4041240021
A70: 67 | B70: 220.19 | C70: 310.72 | D70: 183.5 | E70: 309.72 | F70: 269.7 | G70: 274.65 | H70: 285.51 | I70: 303.53 | J70: 335.17 | K70: 277.8 | L70: 285.04 | M70: 310.45 | N70: 337.16 | O70: 337.19 | P70: 368.95 | Q70: 440.92 | R70: 529.18 | S70: 703.5 | T70: 736.71 | U70: 0.067 | V70: 0.40615481
A71: 68 | B71: 219.11 | C71: 309.19 | D71: 182.59 | E71: 308.19 | F71: 268.37 | G71: 273.3 | H71: 284.1 | I71: 302.03 | J71: 333.52 | K71: 276.43 | L71: 283.63 | M71: 308.92 | N71: 335.5 | O71: 335.53 | P71: 367.13 | Q71: 438.74 | R71: 526.58 | S71: 700.03 | T71: 733.08 | U71: 0.068 | V71: 0.4081655102
A72: 69 | B72: 218.05 | C72: 307.69 | D72: 181.7 | E72: 306.7 | F72: 267.07 | G72: 271.97 | H72: 282.72 | I72: 300.57 | J72: 331.9 | K72: 275.09 | L72: 282.26 | M72: 307.42 | N72: 333.87 | O72: 333.9 | P72: 365.35 | Q72: 436.61 | R72: 524.02 | S72: 696.64 | T72: 729.53 | U72: 0.069 | V72: 0.410156593
A73: 70 | B73: 217 | C73: 306.21 | D73: 180.84 | E73: 305.23 | F73: 265.79 | G73: 270.67 | H73: 281.37 | I73: 299.13 | J73: 330.31 | K73: 273.77 | L73: 280.91 | M73: 305.95 | N73: 332.27 | O73: 332.3 | P73: 363.6 | Q73: 434.52 | R73: 521.51 | S73: 693.3 | T73: 726.04 | U73: 0.07 | V73: 0.41212853
A74: 71 | B74: 215.98 | C74: 304.77 | D74: 179.98 | E74: 303.79 | F74: 264.54 | G74: 269.39 | H74: 280.04 | I74: 297.72 | J74: 328.75 | K74: 272.48 | L74: 279.58 | M74: 304.51 | N74: 330.71 | O74: 330.73 | P74: 361.89 | Q74: 432.47 | R74: 519.05 | S74: 690.03 | T74: 722.61 | U74: 0.071 | V74: 0.4140817749
A75: 72 | B75: 214.97 | C75: 303.35 | D75: 179.15 | E75: 302.37 | F75: 263.31 | G75: 268.14 | H75: 278.74 | I75: 296.33 | J75: 327.22 | K75: 271.22 | L75: 278.28 | M75: 303.09 | N75: 329.17 | O75: 329.19 | P75: 360.2 | Q75: 430.46 | R75: 516.64 | S75: 686.82 | T75: 719.25 | U75: 0.072 | V75: 0.4160167646
A76: 73 | B76: 213.99 | C76: 301.96 | D76: 178.32 | E76: 300.99 | F76: 262.1 | G76: 266.91 | H76: 277.46 | I76: 294.97 | J76: 325.72 | K76: 269.97 | L76: 277.01 | M76: 301.7 | N76: 327.66 | O76: 327.68 | P76: 358.55 | Q76: 428.49 | R76: 514.27 | S76: 683.67 | T76: 715.95 | U76: 0.073 | V76: 0.4179339196
A77: 74 | B77: 213.02 | C77: 300.59 | D77: 177.52 | E77: 299.63 | F77: 260.91 | G77: 265.7 | H77: 276.2 | I77: 293.64 | J77: 324.25 | K77: 268.75 | L77: 275.75 | M77: 300.33 | N77: 326.18 | O77: 326.2 | P77: 356.93 | Q77: 426.55 | R77: 511.94 | S77: 680.58 | T77: 712.71 | U77: 0.074 | V77: 0.4198336454
A78: 75 | B78: 212.07 | C78: 299.25 | D78: 176.72 | E78: 298.29 | F78: 259.75 | G78: 264.51 | H78: 274.97 | I78: 292.33 | J78: 322.8 | K78: 267.55 | L78: 274.52 | M78: 298.99 | N78: 324.72 | O78: 324.74 | P78: 355.33 | Q78: 424.65 | R78: 509.66 | S78: 677.54 | T78: 709.53 | U78: 0.075 | V78: 0.4217163327
A79: 76 | B79: 211.13 | C79: 297.93 | D79: 175.95 | E79: 296.97 | F79: 258.6 | G79: 263.35 | H79: 273.76 | I79: 291.04 | J79: 321.38 | K79: 266.37 | L79: 273.31 | M79: 297.68 | N79: 323.29 | O79: 323.31 | P79: 353.77 | Q79: 422.77 | R79: 507.41 | S79: 674.56 | T79: 706.4 | U79: 0.076 | V79: 0.4235823584
A80: 77 | B80: 210.22 | C80: 296.64 | D80: 175.18 | E80: 295.68 | F80: 257.48 | G80: 262.2 | H80: 272.57 | I80: 289.78 | J80: 319.98 | K80: 265.21 | L80: 272.12 | M80: 296.38 | N80: 321.88 | O80: 321.91 | P80: 352.23 | Q80: 420.94 | R80: 505.2 | S80: 671.62 | T80: 703.33 | U80: 0.077 | V80: 0.4254320865
A81: 78 | B81: 209.31 | C81: 295.37 | D81: 174.43 | E81: 294.41 | F81: 256.37 | G81: 261.08 | H81: 271.4 | I81: 288.53 | J81: 318.61 | K81: 264.07 | L81: 270.96 | M81: 295.11 | N81: 320.5 | O81: 320.53 | P81: 350.72 | Q81: 419.13 | R81: 503.04 | S81: 668.74 | T81: 700.31 | U81: 0.078 | V81: 0.4272658682
A82: 79 | B82: 208.43 | C82: 294.11 | D82: 173.69 | E82: 293.17 | F82: 255.29 | G82: 259.97 | H82: 270.25 | I82: 287.31 | J82: 317.26 | K82: 262.96 | L82: 269.81 | M82: 293.86 | N82: 319.14 | O82: 319.17 | P82: 349.23 | Q82: 417.35 | R82: 500.9 | S82: 665.91 | T82: 697.35 | U82: 0.079 | V82: 0.4290840427
A83: 80 | B83: 207.56 | C83: 292.88 | D83: 172.96 | E83: 291.94 | F83: 254.22 | G83: 258.88 | H83: 269.12 | I83: 286.11 | J83: 315.93 | K83: 261.86 | L83: 268.68 | M83: 292.63 | N83: 317.81 | O83: 317.83 | P83: 347.77 | Q83: 415.61 | R83: 498.81 | S83: 663.12 | T83: 694.43 | U83: 0.08 | V83: 0.430886938
A84: 81 | B84: 206.7 | C84: 291.67 | D84: 172.25 | E84: 290.73 | F84: 253.17 | G84: 257.81 | H84: 268.01 | I84: 284.93 | J84: 314.62 | K84: 260.77 | L84: 267.57 | M84: 291.42 | N84: 316.5 | O84: 316.52 | P84: 346.33 | Q84: 413.89 | R84: 496.75 | S84: 660.38 | T84: =ROUND(T$2/$V84,2) -> 691.56 | U84: 0.081 | V84: 0.4326748711
A85: 82 | B85: 205.85 | C85: 290.48 | D85: 171.55 | E85: 289.55 | F85: 252.14 | G85: 256.76 | H85: 266.91 | I85: 283.76 | J85: 313.34 | K85: 259.71 | L85: 266.48 | M85: 290.23 | N85: 315.2 | O85: 315.23 | P85: 344.92 | Q85: 412.2 | R85: 494.72 | S85: 657.68 | T85: 688.74 | U85: 0.082 | V85: 0.4344481486
A86: 83 | B86: 205.02 | C86: 289.31 | D86: 170.85 | E86: 288.38 | F86: 251.12 | G86: 255.73 | H86: 265.84 | I86: 282.62 | J86: 312.08 | K86: 258.66 | L86: 265.4 | M86: 289.06 | N86: 313.93 | O86: 313.96 | P86: 343.53 | Q86: 410.54 | R86: 492.72 | S86: 655.03 | T86: 685.96 | U86: 0.083 | V86: 0.4362070671
A87: 84 | B87: 204.21 | C87: 288.16 | D87: 170.17 | E87: 287.23 | F87: 250.12 | G87: 254.71 | H87: 264.78 | I87: 281.49 | J87: 310.83 | K87: 257.63 | L87: 264.34 | M87: 287.91 | N87: 312.68 | O87: 312.71 | P87: 342.16 | Q87: 408.9 | R87: 490.76 | S87: 652.42 | T87: 683.23 | U87: 0.084 | V87: 0.437951914
A88: 85 | B88: 203.4 | C88: 287.02 | D88: 169.5 | E88: 286.1 | F88: 249.13 | G88: 253.71 | H88: 263.74 | I88: 280.38 | J88: 309.61 | K88: 256.62 | L88: 263.3 | M88: 286.77 | N88: 311.45 | O88: 311.47 | P88: 340.81 | Q88: 407.29 | R88: 488.83 | S88: 649.85 | T88: 680.54 | U88: 0.085 | V88: 0.4396829672
A89: 86 | B89: 202.61 | C89: 285.91 | D89: 168.84 | E89: 284.99 | F89: 248.16 | G89: 252.72 | H89: 262.71 | I89: 279.29 | J89: 308.4 | K89: 255.62 | L89: 262.28 | M89: 285.66 | N89: 310.24 | O89: 310.26 | P89: 339.49 | Q89: 405.71 | R89: 486.93 | S89: 647.33 | T89: 677.89 | U89: 0.086 | V89: 0.4414004962
A90: 87 | B90: 201.83 | C90: 284.81 | D90: 168.19 | E90: 283.89 | F90: 247.21 | G90: 251.75 | H90: 261.7 | I90: 278.22 | J90: 307.22 | K90: 254.64 | L90: 261.27 | M90: 284.56 | N90: 309.05 | O90: 309.07 | P90: 338.18 | Q90: 404.15 | R90: 485.05 | S90: 644.84 | T90: 675.28 | U90: 0.087 | V90: 0.4431047622
A91: 88 | B91: 201.07 | C91: 283.72 | D91: 167.55 | E91: 282.81 | F91: 246.27 | G91: 250.79 | H91: 260.7 | I91: 277.16 | J91: 306.05 | K91: 253.67 | L91: 260.28 | M91: 283.48 | N91: 307.87 | O91: 307.89 | P91: 336.9 | Q91: 402.61 | R91: 483.21 | S91: 642.38 | T91: 672.71 | U91: 0.088 | V91: 0.4447960181
A92: 89 | B92: 200.31 | C92: 282.66 | D92: 166.92 | E92: 281.75 | F92: 245.34 | G92: 249.85 | H92: 259.72 | I92: 276.12 | J92: 304.9 | K92: 252.71 | L92: 259.3 | M92: 282.41 | N92: 306.71 | O92: 306.74 | P92: 335.63 | Q92: 401.1 | R92: 481.39 | S92: 639.97 | T92: 670.18 | U92: 0.089 | V92: 0.4464745096
A93: 90 | B93: 199.56 | C93: 281.61 | D93: 166.3 | E93: 280.7 | F93: 244.43 | G93: 248.92 | H93: 258.76 | I93: 275.09 | J93: 303.77 | K93: 251.77 | L93: 258.33 | M93: 281.36 | N93: 305.57 | O93: 305.6 | P93: 334.38 | Q93: 399.61 | R93: 479.6 | S93: 637.59 | T93: 667.69 | U93: 0.09 | V93: 0.4481404747
A94: 91 | B94: 198.83 | C94: 280.57 | D94: 165.69 | E94: 279.67 | F94: 243.53 | G94: 248 | H94: 257.81 | I94: 274.08 | J94: 302.65 | K94: 250.85 | L94: 257.38 | M94: 280.33 | N94: 304.45 | O94: 304.47 | P94: 333.15 | Q94: 398.14 | R94: 477.84 | S94: 635.25 | T94: 665.24 | U94: 0.091 | V94: 0.4497941445
A95: 92 | B95: 198.11 | C95: 279.55 | D95: 165.09 | E95: 278.65 | F95: 242.65 | G95: 247.1 | H95: 256.87 | I95: 273.08 | J95: 301.55 | K95: 249.94 | L95: 256.45 | M95: 279.31 | N95: 303.34 | O95: 303.37 | P95: 331.94 | Q95: 396.69 | R95: 476.1 | S95: 632.94 | T95: 662.82 | U95: 0.092 | V95: 0.4514357435
A96: 93 | B96: 197.4 | C96: 278.55 | D96: 164.5 | E96: 277.65 | F96: 241.78 | G96: 246.21 | H96: 255.95 | I96: 272.1 | J96: 300.46 | K96: 249.04 | L96: 255.53 | M96: 278.3 | N96: 302.25 | O96: 302.27 | P96: 330.75 | Q96: 395.26 | R96: 474.39 | S96: 630.66 | T96: 660.43 | U96: 0.093 | V96: 0.4530654896
A97: 94 | B97: 196.69 | C97: 277.55 | D97: 163.91 | E97: 276.66 | F97: 240.91 | G97: 245.34 | H97: 255.03 | I97: 271.13 | J97: 299.4 | K97: 248.15 | L97: 254.62 | M97: 277.31 | N97: 301.18 | O97: 301.2 | P97: 329.57 | Q97: 393.86 | R97: 472.7 | S97: 628.42 | T97: 658.08 | U97: 0.094 | V97: 0.4546835944
A98: 95 | B98: 196 | C98: 276.58 | D98: 163.33 | E98: 275.69 | F98: 240.07 | G98: 244.47 | H98: 254.14 | I98: 270.18 | J98: 298.34 | K98: 247.28 | L98: 253.72 | M98: 276.34 | N98: 300.12 | O98: 300.14 | P98: 328.41 | Q98: 392.47 | R98: 471.04 | S98: 626.2 | T98: 655.77 | U98: 0.095 | V98: 0.4562902635
A99: 96 | B99: 195.32 | C99: 275.61 | D99: 162.76 | E99: 274.73 | F99: 239.23 | G99: 243.62 | H99: 253.25 | I99: 269.24 | J99: 297.3 | K99: 246.42 | L99: 252.84 | M99: 275.37 | N99: 299.07 | O99: 299.09 | P99: 327.27 | Q99: 391.1 | R99: 469.4 | S99: 624.02 | T99: 653.48 | U99: 0.096 | V99: 0.457885697
A100: 97 | B100: 194.64 | C100: 274.66 | D100: 162.2 | E100: 273.78 | F100: 238.41 | G100: 242.78 | H100: 252.38 | I100: 268.31 | J100: 296.28 | K100: 245.57 | L100: 251.96 | M100: 274.42 | N100: 298.04 | O100: 298.06 | P100: 326.14 | Q100: 389.75 | R100: 467.78 | S100: 621.87 | T100: 651.23 | U100: 0.097 | V100: 0.4594700892
A101: 98 | B101: 193.98 | C101: 273.73 | D101: 161.65 | E101: 272.84 | F101: 237.59 | G101: 241.95 | H101: 251.52 | I101: 267.39 | J101: 295.26 | K101: 244.73 | L101: 251.1 | M101: 273.49 | N101: 297.02 | O101: 297.04 | P101: 325.02 | Q101: 388.42 | R101: 466.18 | S101: 619.75 | T101: =ROUND(T$2/$V101,2) -> 649.01 | U101: 0.098 | V101: 0.4610436292
A102: 99 | B102: 193.32 | C102: 272.8 | D102: 161.1 | E102: 271.92 | F102: 236.79 | G102: 241.13 | H102: 250.67 | I102: 266.49 | J102: 294.27 | K102: 243.9 | L102: 250.26 | M102: 272.56 | N102: 296.02 | O102: 296.04 | P102: 323.93 | Q102: 387.11 | R102: 464.61 | S102: 617.65 | T102: 646.81 | U102: 0.099 | V102: 0.4626065009
A103: 100 | B103: 192.68 | C103: 271.89 | D103: 160.56 | E103: 271.01 | F103: 236 | G103: 240.33 | H103: 249.83 | I103: 265.6 | J103: 293.28 | K103: 243.08 | L103: 249.42 | M103: 271.65 | N103: 295.03 | O103: 295.05 | P103: 322.84 | Q103: 385.82 | R103: 463.05 | S103: 615.59 | T103: 644.65 | U103: 0.1 | V103: 0.4641588834
A104: 101 | B104: 192.04 | C104: 270.99 | D104: 160.03 | E104: 270.12 | F104: 235.22 | G104: 239.53 | H104: 249 | I104: 264.72 | J104: 292.31 | K104: 242.28 | L104: 248.59 | M104: 270.75 | N104: 294.05 | O104: 294.07 | P104: 321.77 | Q104: 384.54 | R104: 461.52 | S104: 613.55 | T104: 642.52 | U104: 0.101 | V104: 0.4657009508
A105: 102 | B105: 191.41 | C105: 270.1 | D105: 159.51 | E105: 269.23 | F105: 234.44 | G105: 238.75 | H105: 248.18 | I105: 263.85 | J105: 291.35 | K105: 241.49 | L105: 247.78 | M105: 269.87 | N105: 293.09 | O105: 293.11 | P105: 320.72 | Q105: 383.28 | R105: 460.01 | S105: 611.54 | T105: 640.41 | U105: 0.102 | V105: 0.4672328728
A106: 103 | B106: 190.79 | C106: 269.22 | D106: 158.99 | E106: 268.36 | F106: 233.68 | G106: 237.97 | H106: 247.38 | I106: 262.99 | J106: 290.41 | K106: 240.7 | L106: 246.97 | M106: 268.99 | N106: 292.14 | O106: 292.16 | P106: 319.68 | Q106: 382.03 | R106: 458.51 | S106: 609.55 | T106: 638.33 | U106: 0.103 | V106: 0.4687548148
A107: 104 | B107: 190.17 | C107: 268.36 | D107: 158.48 | E107: 267.49 | F107: 232.93 | G107: 237.21 | H107: 246.58 | I107: 262.15 | J107: 289.47 | K107: 239.93 | L107: 246.18 | M107: 268.12 | N107: 291.2 | O107: 291.22 | P107: 318.65 | Q107: 380.8 | R107: 457.04 | S107: 607.59 | T107: 636.28 | U107: 0.104 | V107: 0.4702669375
A108: 105 | B108: 189.57 | C108: 267.5 | D108: 157.97 | E108: 266.64 | F108: 232.19 | G108: 236.45 | H108: 245.8 | I108: 261.31 | J108: 288.55 | K108: 239.16 | L108: 245.4 | M108: 267.27 | N108: 290.27 | O108: 290.29 | P108: 317.63 | Q108: 379.59 | R108: 455.58 | S108: 605.66 | T108: 634.25 | U108: 0.105 | V108: 0.471769398
A109: 106 | B109: 188.97 | C109: 266.66 | D109: 157.48 | E109: 265.8 | F109: 231.46 | G109: 235.7 | H109: 245.02 | I109: 260.49 | J109: 287.64 | K109: 238.41 | L109: 244.62 | M109: 266.43 | N109: 289.35 | O109: 289.37 | P109: 316.63 | Q109: 378.39 | R109: 454.15 | S109: 603.75 | T109: 632.25 | U109: 0.106 | V109: 0.4732623491
A110: 107 | B110: 188.38 | C110: 265.83 | D110: 156.98 | E110: 264.97 | F110: 230.73 | G110: 234.97 | H110: 244.26 | I110: 259.68 | J110: 286.74 | K110: 237.66 | L110: 243.86 | M110: 265.59 | N110: 288.45 | O110: 288.47 | P110: 315.64 | Q110: 377.21 | R110: 452.73 | S110: 601.86 | T110: 630.27 | U110: 0.107 | V110: 0.4747459399
A111: 108 | B111: 187.8 | C111: 265 | D111: 156.5 | E111: 264.15 | F111: 230.02 | G111: 234.24 | H111: 243.5 | I111: 258.87 | J111: 285.86 | K111: 236.93 | L111: 243.1 | M111: 264.77 | N111: 287.56 | O111: 287.58 | P111: 314.67 | Q111: 376.04 | R111: 451.32 | S111: 600 | T111: 628.32 | U111: 0.108 | V111: 0.4762203156
A112: 109 | B112: 187.22 | C112: 264.19 | D112: 156.02 | E112: 263.34 | F112: 229.31 | G112: 233.52 | H112: 242.75 | I112: 258.08 | J112: 284.98 | K112: 236.2 | L112: 242.36 | M112: 263.96 | N112: 286.67 | O112: 286.69 | P112: 313.7 | Q112: 374.89 | R112: 449.94 | S112: 598.15 | T112: 626.4 | U112: 0.109 | V112: 0.4776856181
A113: 110 | B113: 186.65 | C113: 263.39 | D113: 155.54 | E113: 262.54 | F113: 228.62 | G113: 232.81 | H113: 242.02 | I113: 257.29 | J113: 284.11 | K113: 235.48 | L113: 241.62 | M113: 263.16 | N113: 285.8 | O113: 285.82 | P113: 312.75 | Q113: 373.75 | R113: 448.57 | S113: 596.34 | T113: 624.49 | U113: 0.11 | V113: 0.4791419857
A114: 111 | B114: 186.09 | C114: 262.59 | D114: 155.08 | E114: 261.75 | F114: 227.93 | G114: 232.11 | H114: 241.29 | I114: 256.52 | J114: 283.26 | K114: 234.77 | L114: 240.89 | M114: 262.37 | N114: 284.94 | O114: 284.96 | P114: 311.8 | Q114: 372.63 | R114: 447.22 | S114: 594.54 | T114: 622.61 | U114: 0.111 | V114: 0.4805895534
A115: 112 | B115: 185.53 | C115: 261.81 | D115: 154.61 | E115: =ROUND(E$2/$V115,2) -> 260.97 | F115: 227.25 | G115: 231.42 | H115: 240.57 | I115: 255.75 | J115: 282.41 | K115: 234.07 | L115: 240.17 | M115: 261.58 | N115: 284.09 | O115: 284.11 | P115: 310.87 | Q115: 371.51 | R115: 445.89 | S115: 592.77 | T115: 620.75 | U115: 0.112 | V115: 0.4820284528
A116: 113 | B116: 184.99 | C116: 261.03 | D116: 154.15 | E116: 260.19 | F116: 226.58 | G116: 230.73 | H116: 239.85 | I116: 255 | J116: 281.58 | K116: 233.38 | L116: 239.46 | M116: 260.81 | N116: 283.25 | O116: 283.27 | P116: 309.95 | Q116: 370.41 | R116: 444.57 | S116: 591.01 | T116: 618.92 | U116: 0.113 | V116: 0.4834588127
A117: 114 | B117: 184.44 | C117: 260.27 | D117: 153.7 | E117: 259.43 | F117: 225.91 | G117: 230.06 | H117: 239.15 | I117: 254.25 | J117: 280.75 | K117: 232.7 | L117: 238.76 | M117: 260.04 | N117: 282.42 | O117: 282.44 | P117: 309.05 | Q117: 369.33 | R117: 443.26 | S117: 589.28 | T117: 617.1 | U117: 0.114 | V117: 0.4848807586
A118: 115 | B118: 183.91 | C118: 259.51 | D118: 153.26 | E118: 258.68 | F118: 225.25 | G118: 229.39 | H118: 238.46 | I118: 253.51 | J118: 279.93 | K118: 232.02 | L118: 238.07 | M118: 259.29 | N118: 281.6 | O118: 281.62 | P118: 308.15 | Q118: 368.25 | R118: 441.98 | S118: 587.57 | T118: =ROUND(T$2/$V118,2) -> 615.31 | U118: 0.115 | V118: 0.4862944131
A119: 116 | B119: 183.38 | C119: 258.76 | D119: 152.81 | E119: 257.93 | F119: 224.61 | G119: 228.73 | H119: 237.77 | I119: 252.78 | J119: 279.13 | K119: 231.35 | L119: 237.38 | M119: 258.54 | N119: 280.79 | O119: 280.81 | P119: 307.26 | Q119: 367.19 | R119: 440.7 | S119: 585.87 | T119: 613.53 | U119: 0.116 | V119: 0.4876998961
A120: 117 | B120: 182.85 | C120: 258.03 | D120: 152.38 | E120: 257.19 | F120: 223.96 | G120: 228.07 | H120: 237.09 | I120: 252.06 | J120: 278.33 | K120: 230.69 | L120: 236.7 | M120: 257.8 | N120: 279.99 | O120: 280.01 | P120: 306.38 | Q120: 366.14 | R120: 439.44 | S120: 584.2 | T120: 611.78 | U120: 0.117 | V120: 0.4890973247
A121: 118 | B121: 182.34 | C121: 257.29 | D121: 151.95 | E121: 256.47 | F121: 223.33 | G121: 227.43 | H121: 236.42 | I121: 251.34 | J121: 277.54 | K121: 230.04 | L121: 236.03 | M121: 257.07 | N121: 279.19 | O121: 279.21 | P121: 305.51 | Q121: 365.11 | R121: 438.2 | S121: 582.54 | T121: 610.05 | U121: 0.118 | V121: 0.4904868132
A122: 119 | B122: 181.82 | C122: 256.57 | D122: 151.52 | E122: 255.75 | F122: 222.7 | G122: 226.79 | H122: 235.75 | I122: 250.64 | J122: 276.76 | K122: 229.39 | L122: 235.37 | M122: 256.35 | N122: 278.41 | O122: 278.43 | P122: 304.65 | Q122: 364.08 | R122: 436.97 | S122: 580.91 | T122: 608.33 | U122: 0.119 | V122: 0.4918684734
A123: 120 | B123: 181.32 | C123: 255.86 | D123: 151.1 | E123: 255.03 | F123: 222.08 | G123: 226.16 | H123: 235.1 | I123: 249.94 | J123: 275.99 | K123: 228.75 | L123: 234.71 | M123: 255.63 | N123: 277.63 | O123: 277.65 | P123: 303.81 | Q123: 363.07 | R123: 435.75 | S123: 579.29 | T123: 606.64 | U123: 0.12 | V123: 0.4932424149
A124: 121 | B124: 180.82 | C124: 255.15 | D124: 150.68 | E124: 254.33 | F124: 221.47 | G124: 225.53 | H124: 234.45 | I124: 249.25 | J124: 275.23 | K124: 228.12 | L124: 234.06 | M124: 254.93 | N124: 276.87 | O124: 276.89 | P124: 302.97 | Q124: 362.06 | R124: 434.55 | S124: 577.69 | T124: 604.96 | U124: 0.121 | V124: 0.4946087443
A125: 122 | B125: 180.32 | C125: 254.45 | D125: 150.27 | E125: 253.63 | F125: 220.86 | G125: 224.91 | H125: 233.81 | I125: 248.56 | J125: 274.47 | K125: 227.49 | L125: 233.42 | M125: 254.23 | N125: 276.11 | O125: 276.13 | P125: 302.14 | Q125: 361.07 | R125: 433.35 | S125: 576.11 | T125: 603.31 | U125: 0.122 | V125: 0.4959675664
A126: 123 | B126: 179.83 | C126: 253.76 | D126: 149.86 | E126: 252.94 | F126: 220.26 | G126: 224.3 | H126: 233.17 | I126: 247.89 | J126: 273.73 | K126: 226.88 | L126: 232.79 | M126: 253.54 | N126: 275.36 | O126: 275.38 | P126: 301.32 | Q126: 360.09 | R126: 432.18 | S126: 574.54 | T126: 601.67 | U126: 0.123 | V126: 0.4973189833
A127: 124 | B127: 179.35 | C127: 253.08 | D127: 149.45 | E127: 252.26 | F127: 219.67 | G127: 223.7 | H127: 232.54 | I127: 247.22 | J127: 272.99 | K127: 226.26 | L127: 232.16 | M127: 252.86 | N127: 274.61 | O127: 274.63 | P127: 300.5 | Q127: 359.12 | R127: 431.01 | S127: 572.99 | T127: 600.04 | U127: 0.124 | V127: 0.4986630952
A128: 125 | B128: 178.87 | C128: 252.4 | D128: 149.06 | E128: 251.59 | F128: 219.08 | G128: 223.1 | H128: 231.92 | I128: 246.56 | J128: 272.26 | K128: 225.66 | L128: 231.54 | M128: 252.18 | N128: 273.88 | O128: 273.9 | P128: 299.7 | Q128: 358.16 | R128: 429.86 | S128: 571.46 | T128: 598.44 | U128: 0.125 | V128: 0.5
